Workbook

Sheet Toel. Wijziging NG4R (aug 2016)
B2: Toelichting bij berekening gewijzigde x-factoren, q-factoren en rekenvolumina NG4R d.d. 25 augustus 2016
B4: Toelichting bij dit bestand
B6: Dit bestand bevat het rekenmodel waarmee ACM de kapitaalkosten berekent ten behoeve van de x-factoren. Deze x-factoren heeft ACM gewijzigd vastgesteld in de volgende x-factorbesluiten.
B9: Wijziging x-factorbesluiten 2011-2013 Gas d.d. 25 augustus 2016 | C9: Zaaknummer | D9: Kenmerk
B10: Cogas Infra & Beheer B.V. | C10: 16.0769.52 | D10: ACM/DE/2016/204792
B11: DELTA Netwerkbedrijf B.V. | C11: 16.0771.52 | D11: ACM/DE/2016/204794
B12: Enexis B.V. | C12: 16.0773.52 | D12: ACM/DE/2016/204796
B13: Liander N.V. | C13: 16.0776.52 | D13: ACM/DE/2016/204798
B14: Endinet B.V. | C14: 16.0777.52 | D14: ACM/DE/2016/204800
B15: RENDO Netbeheer B.V. | C15: 16.0779.52 | D15: ACM/DE/2016/204802
B16: Stedin Netbeheer B.V. | C16: 16.0781.52 | D16: ACM/DE/2016/204805
B17: Westland Infra Netbeheer B.V. | C17: 16.0783.52 | D17: ACM/DE/2016/204807
B18: Zebra Gasnetwerk B.V. | C18: 16.0784.52 | D18: ACM/DE/2016/204808
B20: Legenda celkleuren
B22: Data en input
B24: Berekende waarde
B26: Waarde die zonder berekening wordt overgenomen uit een andere cel
B28: Berekende of overgenomen waarde en tevens resultaat
B30: Waarde of berekening die speciale aandacht vraagt (toelichting in opmerking)
B32: Waarde of berekening die (vooralsnog) kennelijk onjuist of onvolledig is

Sheet Aanpassing gegevens (aug 2016)
B2: Toelichting bij berekening Gewijzigde x-factoren, q-factoren en rekenvolumina NG4R
B4: Dit Excel-bestand is onderdeel van het model waarmee de x-factoren voor de regionale netbeheerders gas voor de periode 2011 tot en met 2013 worden berekend.
B5: Dit bestand maakt onderdeel uit van de (gewijzigde) x/q/rv-besluiten voor de vierde periode voor de regionale netbeheerders gas (besluiten van 25 augustus 2016).
B6: Dit bestand zoals dat nu tot stand is gekomen is volledig gebaseerd op de eerdere berekening voor de vaststelling van de gewijzigde X- en Q-factoren en rekenvolumina NG4R van besluiten van 11 september 2014,
B7: behoudens de aanpassingen die onderstaand worden toegelicht.
B9: In onderstaande overzichten geldt steeds:
B10: Oorspronkelijke gegevens: gegevens zoals opgenomen in de kapitaalkostensheet die gepubliceerd is bij de gewijzigde X- en Q-factoren en rekenvolumina NG4R van besluiten van 11 september 2014.
B11: Aanpassing: aanpassing van de gegevens op basis van een specifieke bron (wordt steeds genoemd).
B12: Nieuw: nieuwe gegevens zoals deze zijn opgenomen in het blad "Data Gasaansluiting".
B14: In alle gevallen betreft het gegevens in duizenden euro's, weergegeven in het prijspeil van het genoemde jaar.
B17: Aanpassing: verwerking in de kapitaalkostenberekening van de gewijzigde start-GAW voor gasaansluitingen van Stedin
B19: Netbeheerder: | D19: Stedin
B20: Bron nieuwe gegevens: | D20: Gewijzigde berekening start-GAW voor gasaansluitingen van Stedin (bestand: RNB's Gas-2011-2013-rekenmodule-start-GAW GAD wijziging zomer 2016, tabblad 'dashboard', cel K13)
D21: De wijziging is tot stand gekomen op basis van een e-mail van Stedin aan ACM van 18 maart 2016.
B23: Investeringsjaar | C23: Aanpassing gegevens | D23: Celverwijzing | F23: Oorspronkelijk | J23: Nieuw
B24: 2008 (start-GAW) | C24: Startwaarde GAW | D24: Blad: Data Gasaansluiting, cel: F9 | F24: 310803.729 | J24: 260952.3968

Sheet Toel. herstel NG4R (sep. 2014)
B2: Toelichting bij berekening gewijzigde x-factoren, q-factoren en rekenvolumina NG4R d.d. 11 september 2014
B4: Toelichting bij dit bestand
B6: Dit bestand bevat het rekenmodel waarmee ACM de kapitaalkosten berekent ten behoeve van de x-factoren. Deze x-factoren heeft ACM vastgesteld in de volgende x-factorbesluiten.
B9: Herstel x-factorbesluiten 2011-2013 Gas | C9: Zaaknummer | D9: Kenmerk
B10: Cogas Infra & Beheer B.V. | C10: 14.0714.52 | D10: ACM/DE/2014/205145
B11: DELTA Netwerkbedrijf B.V. | C11: 14.0716.52 | D11: ACM/DE/2014/205147
B12: Enexis B.V. | C12: 14.0718.52 | D12: ACM/DE/2014/205149
B13: Liander N.V. | C13: 14.0720.52 | D13: ACM/DE/2014/205151
B14: Endinet B.V. | C14: 14.0722.52 | D14: ACM/DE/2014/205153
B15: RENDO Netbeheer B.V. | C15: 14.0724.52 | D15: ACM/DE/2014/205155
B16: Stedin Netbeheer B.V. | C16: 14.0726.52 | D16: ACM/DE/2014/205157
B17: Westland Infra Netbeheer B.V. | C17: 14.0728.52 | D17: ACM/DE/2014/205159
B18: Zebra Gasnetwerk B.V. | C18: 14.0729.52 | D18: ACM/DE/2014/205160
B20: Legenda celkleuren
B22: Data en input
B24: Berekende waarde
B26: Waarde die zonder berekening wordt overgenomen uit een andere cel
B28: Berekende of overgenomen waarde en tevens resultaat
B30: Waarde of berekening die speciale aandacht vraagt (toelichting in opmerking)
B32: Waarde of berekening die (vooralsnog) kennelijk onjuist of onvolledig is

Sheet Aanpassing gegevens (sep 14)
B2: Toelichting bij berekening Gewijzigde x-factoren, q-factoren en rekenvolumina NG4R
B4: Dit Excel-bestand is onderdeel van het model waarmee de x-factoren voor de regionale netbeheerders gas voor de periode 2011 tot en met 2013 worden berekend.
B5: Dit bestand maakt onderdeel uit van de (gewijzigde) x/q/rv-besluiten voor de vierde periode voor de regionale netbeheerders gas (besluiten van 11 september 2014 met kenmerk 14.0747.52).
B6: Dit bestand zoals dat nu tot stand is gekomen is volledig gebaseerd op de berekening voor de vaststelling van de gewijzigde X- en Q-factoren en rekenvolumina NG4R van besluiten van 31 maart 2011 met kenmerk 103636,
B7: behoudens de aanpassingen die onderstaand worden toegelicht.
B9: In onderstaande overzichten geldt steeds:
B10: Oorspronkelijke gegevens: gegevens zoals opgenomen in de kapitaalkostensheet die gepubliceerd is bij de gewijzigde X- en Q-factoren en rekenvolumina NG4R van besluiten van 31 maart 2011 met kenmerk 103636.
B11: Aanpassing: aanpassing van de gegevens op basis van een specifieke bron (wordt steeds genoemd). Op het blad "Data G" wordt steeds verwezen naar deze aanpassing.
B12: Nieuw: nieuwe gegevens zoals deze zijn opgenomen in het blad "Data G".
B14: In alle gevallen betreft het gegevens in duizenden euro's, weergegeven in het prijspeil van het genoemde jaar, of in aantallen volumes.
B18: Aanpassing: voor Enexis worden investeringen in software voor de meetdienst in 2007-2009 uit de kapitaalkostenberekening gehaald
B20: Netbeheerder: | D20: Enexis
B21: Bron nieuwe gegevens: | D21: Brief Enexis aan Energiekamer NMa 21 mei 2012 (kenmerken: 103779/203.B495; 12-SRA-uit-18).
B23: Investeringsjaar | C23: Aanpassing gegevens | D23: Celverwijzing blad 'Data G' | F23: Oorspronkelijk | H23: Aanpassing | J23: Nieuw
B25: 2007 | C25: Aanschafwaarde Investeringen met afschrijvingstermijn 5 | D25: BP125 | F25: 5984 | H25: -663.00736 | J25: =F25+H25 -> 5320.99264
B26: 2008 | C26: Aanschafwaarde Investeringen met afschrijvingstermijn 5 | D26: CJ160 | F26: 1210 | H26: 1155.92229 | J26: =F26+H26 -> 2365.92229
B27: 2009 | C27: Aanschafwaarde Investeringen met afschrijvingstermijn 5 | D27: DA196 | F27: =10150.3752934976-24 -> 10126.37529 | H27: -3448.89548 | J27: =F27+H27 -> 6677.479813
B29: Aanpassing: Leaseauto's Enexis
B31: Netbeheerder: | D31: Enexis
B32: Bron nieuwe gegevens: | D32: OPEX onderzoek, Mail Enexis 17 september 2013 en gaw sheet NG5R
B34: Investeringsjaar | C34: Aanpassing gegevens | D34: Celverwijzing blad 'Data G' | F34: Oorspronkelijk | H34: Aanpassing | J34: Nieuw
B35: 2006 | C35: Aanschafwaarde investeringen met afschrijvingstermijn 10 | D35: BD89 | F35: 488 | H35: =1740.434-488 -> 1252.434 | J35: =F35+H35 -> 1740.434
B36: 2007 | C36: Aanschafwaarde investeringen met afschrijvingstermijn 10 | D36: BP124 | F36: 823 | H36: =2397.602-823 -> 1574.602 | J36: 2397.602
B37: 2008 | C37: Aanschafwaarde investeringen met afschrijvingstermijn 10 | D37: CJ159 | F37: 1006 | H37: =2508.229-1006 -> 1502.229 | J37: 2508.229
B38: 2009 | C38: Aanschafwaarde investeringen met afschrijvingstermijn 10 | D38: DA195 | F38: 2338 | H38: 1860.14 | J38: 4198.14
B41: Aanpassing: afschrijvingstermijn start GAW afgekochte precario RENDO van 12,5 naar 20 jaar o.b.v. CBB uitspraak
B43: Netbeheerder: | D43: RENDO
B44: Bron nieuwe gegevens: | D44: Besluit ACM 26 juni 2013 (kenmerk ACM/RVB/2013/201914_OV)
B46: Investeringsjaar | C46: Aanpassing gegevens | D46: Celverwijzing blad 'Data G' | F46: Oorspronkelijk | H46: Aanpassing | J46: Nieuw
B48: 2004 | C48: Start-GAW Afgekochte precario | D48: P11 | F48: 21756.599 | H48: 5439.15025 | J48: =F48+H48 -> 27195.74925
B49: 2004 | C49: Afschrijvingsbedrag afgekochte precario | D49: P12 | F49: 1450.439933 | H49: 362.6100167 | J49: =F49+H49 -> 1813.04995
B52: Aanpassing: investeringsgegevens Liander o.b.v.foutief geboekte investeringen (onterecht als investeringsbijdragen gepassiveerd)
B54: Netbeheerder: | D54: Liander
B55: Bron nieuwe gegevens: | D55: E-mail Liander aan ACM op 18 september 2013 en 25 juli 2014
B57: Investeringsjaar | C57: Aanpassing gegevens | D57: Celverwijzing blad 'Data G' | F57: Oorspronkelijk | H57: Aanpassing | J57: Nieuw
B58: 2008 | C58: Aanschafwaarde investeringen met afschrijvingstermijn 55 | D58: CN155 | F58: 5851.39 | H58: 46.748 | J58: =F58+H58 -> 5898.138
B59: 2008 | C59: Aanschafwaarde investeringen met afschrijvingstermijn 45 | D59: CN156 | F59: 17405.85 | H59: 77.718 | J59: 17483.568
B60: 2008 | C60: Aanschafwaarde investeringen met afschrijvingstermijn 30 | D60: CN157 | F60: 1521.726 | H60: 21.461 | J60: 1543.187
B61: 2009 | C61: Aanschafwaarde investeringen met afschrijvingstermijn 55 | D61: DE190 | F61: 5829.917 | H61: 5.194 | J61: 5835.111
B62: 2009 | C62: Aanschafwaarde investeringen met afschrijvingstermijn 45 | D62: DE191 | F62: 22860.637 | H62: 38.313 | J62: =F62+H62 -> 22898.95

Sheet Kapitaalkosten
B1: Kapitaalkosten netbeheerder: | C1: LIANDER
B2: Elektriciteit of Gas: | C2: G
B3: (Alle bedragen x 1000 EUR)
B5: Verslagjaar -> | D5: 2001 | E5: 2002 | F5: 2003 | G5: 2004 | H5: 2005 | I5: 2006 | J5: 2007 | K5: 2008 | L5: 2009 | M5: 2010 | N5: 2011 | O5: 2012 | P5: 2013 | Q5: 2014 | R5: 2015 | S5: 2016 | T5: 2017 | U5: 2018 | V5: 2019 | W5: 2020
B7: Boekwaarde (ongeindexeerd) | D7: =SUM(D22,D31,D83,D135,D187,D239,D291,D336,D381,D426,D473,D517,D561,D605,D649,D693) -> 0 | E7: =SUM(E22,E31,E83,E135,E187,E239,E291,E336,E381,E426,E473,E517,E561,E605,E649,E693) -> 0 | F7: 0 | G7: 1796546.46 | H7: 1757840.733 | I7: 1720624.951 | J7: 1688341.182 | K7: 1658548.22 | L7: 1636379.885 | M7: 1583773.172 | N7: 1531166.46 | O7: 1478559.748 | P7: 1425953.035 | Q7: 1373346.323 | R7: 1320739.611 | S7: 1268132.898 | T7: 1215526.186 | U7: 1162919.474 | V7: 1110312.761 | W7: 1057706.049
B8: Boekwaarde (geindexeerd) | D8: =SUM(D23,D32, D84,D136,D188,D240,D292,D337,D382,D427,D474,D518,D562,D606,D650,D694) -> 0 | E8: =SUM(E23,E32, E84,E136,E188,E240,E292,E337,E382,E427,E474,E518,E562,E606,E650,E694) -> 0 | F8: 0 | G8: 1796546.46 | H8: 1777019.398 | I8: =SUM(I23,I32, I84,I136,I188,I240,I292,I337,I382,I427,I474,I518,I562,I606,I650,I694) -> 1770234.913 | J8: 1760400.078 | K8: 1747011.159 | L8: 1776025.559 | M8: 1723901.016 | S8: 1268132.898 | T8: 1215526.186 | U8: 1162919.474 | V8: 1110312.761 | W8: 1057706.049
B9: Afschrijvingen (geindexeerd) | D9: =SUM(D25,D34, D86,D138,D190,D242,D294,D339,D384,D429,D476,D520,D564,D608,D652,D696) -> 0 | E9: =SUM(E25,E34, E86,E138,E190,E242,E294,E339,E384,E429,E476,E520,E564,E608,E652,E696) -> 0 | F9: 0 | G9: 52819.09135 | H9: 53778.84049 | I9: 55094.72078 | J9: 56295.44113 | K9: 57429.42846 | L9: =SUM(L25,L34, L86,L138,L190,L242,L294,L339,L384,L429,L476,L520,L564,L608,L652,L696) -> 59914.47749 | M9: 57452.61964 | S9: 52606.71233 | T9: 52606.71233 | U9: 52606.71233 | V9: 52606.71233 | W9: 52606.71233
B10: Kapitaalkosten (=WACC * Boekwaarde geindexeerd + Afschrijvingen geindexeerd) | D10: =SUM(D26,D35,D87,D139,D191,D243,D295,D340,D385,D430,D477,D521,D565,D609,D653,D697) -> 0 | E10: =SUM(E26,E35,E87,E139,E191,E243,E295,E340,E385,E430,E477,E521,E565,E609,E653,E697) -> 0 | F10: 0 | G10: 174984.2506 | H10: 174616.1596 | I10: =SUM(I26,I35,I87,I139,I191,I243,I295,I340,I385,I430,I477,I521,I565,I609,I653,I697) -> 175470.6949 | J10: 176002.6465 | K10: 153515.0422 | L10: =SUM(L26,L35,L87,L139,L191,L243,L295,L340,L385,L430,L477,L521,L565,L609,L653,L697) -> 157595.8832 | M10: 152267.1755 | S10: 52606.71233 | T10: 52606.71233 | U10: 52606.71233 | V10: 52606.71233 | W10: 52606.71233
B12: Investeringen
B13: =IF(EofG="E",2000,IF(EofG="EHD",2006,IF(EofG="HS",2007,2004))) -> 2004
A15: =RIGHT(B$13,2)&"StartGaW" -> 04StartGaW | B15: Start GAW | C15: =IF(EofG="E",IF(ISERROR(VLOOKUP(Kapitaalkosten!$A15,'Data E (oud)'!$1:$1048576,HLOOKUP(Naam&Kapitaalkosten!B$13&EofG,'Data E (oud)'!$D$5:$IV$6,2,FALSE),FALSE)),0,VLOOKUP(Kapitaalkosten!$A15,'Data E (oud)'!$1:$1048576,HLOOKUP(Naam&Kapitaalkosten!B$13&EofG,'Data E (oud)'!$D$5:$IV$6,2,FALSE),FALSE)),IF(ISERROR(VLOOKUP(Kapitaalkosten!$A15,'Data G'!$1:$1048576,HLOOKUP(Naam&Kapitaalkosten!B$13&EofG,'Data G'!$D$5:$IV$6,2,FALSE),FALSE)),0,VLOOKUP(Kapitaalkosten!$A15,'Data G'!$1:$1048576,HLOOKUP(Naam&Kapitaalkosten!B$13&EofG,'Data G'!$D$5:$IV$6,2,FALSE),FALSE))) -> 1830713.589
A16: =RIGHT(B$13,2)&"StartAf" -> 04StartAf | B16: Gestandaardiseerde afschrijvingen | C16: =IF(EofG="E",IF(ISERROR(VLOOKUP(Kapitaalkosten!$A16,'Data E (oud)'!$1:$1048576,HLOOKUP(Naam&Kapitaalkosten!B$13&EofG,'Data E (oud)'!$D$5:$IV$6,2,FALSE),FALSE)),0,VLOOKUP(Kapitaalkosten!$A16,'Data E (oud)'!$1:$1048576,HLOOKUP(Naam&Kapitaalkosten!B$13&EofG,'Data E (oud)'!$D$5:$IV$6,2,FALSE),FALSE)),IF(ISERROR(VLOOKUP(Kapitaalkosten!$A16,'Data G'!$1:$1048576,HLOOKUP(Naam&Kapitaalkosten!B$13&EofG,'Data G'!$D$5:$IV$6,2,FALSE),FALSE)),0,VLOOKUP(Kapitaalkosten!$A16,'Data G'!$1:$1048576,HLOOKUP(Naam&Kapitaalkosten!B$13&EofG,'Data G'!$D$5:$IV$6,2,FALSE),FALSE))) -> 52606.71233
B17: Start GAW excl afgekochte precario | C17: =C15-C28 -> 1830713.589
B18: Afschrijvingen excl afgekochte precario | C18: =C17/(C15/C16) -> 52606.71233
B19: Afschrijvingen startGAW | D19: =IF($B$13<=D$5, $C18, 0) -> 0 | E19: =IF($B$13<=E$5, IF(E20=0,IF(SUM($D19:D19)+D19<$C17,D19,$C17-SUM($D19:D19)),IF(SUM($D19:D19)+D19<$C17-E20-E21,D19-E21/(E5-$B13+1),$C17-SUM($D19:D19)-E20-E21)), 0) -> 0 | F19: =IF($B$13<=F$5, IF(F20=0,IF(SUM($D19:E19)+E19<$C17,E19,$C17-SUM($D19:E19)),IF(SUM($D19:E19)+E19<$C17-F20-F21,E19-F21/(F5-$B13+1),$C17-SUM($D19:E19)-F20-F21)), 0) -> 0 | G19: =IF($B$13<=G$5, IF(G20=0,IF(SUM($D19:F19)+F19<$C17,IF(F19=0,C18,F19),$C17-SUM($D19:F19)),IF(SUM($D19:F19)+F19<$C17-G20-G21,F19-G21/(G5-$B13-1),$C17-SUM($D19:F19)-G20-G21)), 0) -> 52606.71233 | H19: =IF($B$13<=H$5, IF(H20=0,IF(SUM($D19:G19)+G19<$C17,IF(G19=0,$C18,G19),$C17-SUM($D19:G19)),IF(SUM($D19:G19)+G19<$C17-H20-H21,G19-H21/(H5-$B13-1),$C17-SUM($D19:G19)-H20-H21)), 0) -> 52606.71233 | I19: =IF($B$13<=I$5, IF(I20=0,IF(SUM($D19:H19)+H19<$C17,IF(H19=0,$C18,H19),$C17-SUM($D19:H19)),IF(SUM($D19:H19)+H19<$C17-I20-I21,H19-I21/(I5-$B13-1),$C17-SUM($D19:H19)-I20-I21)), 0) -> 52606.71233 | J19: =IF($B$13<=J$5, IF(J20=0,IF(SUM($D19:I19)+I19<$C17,IF(I19=0,$C18,I19),$C17-SUM($D19:I19)),IF(SUM($D19:I19)+I19<$C17-J20-J21,I19-J21/(J5-$B13-1),$C17-SUM($D19:I19)-J20-J21)), 0) -> 52606.71233 | K19: =IF($B$13<=K$5, IF(K20=0,IF(SUM($D19:J19)+J19<$C17,IF(J19=0,$C18,J19),$C17-SUM($D19:J19)),IF(SUM($D19:J19)+J19<$C17-K20-K21,J19-K21/(K5-$B13-1),$C17-SUM($D19:J19)-K20-K21)), 0) -> 52606.71233 | L19: =IF($B$13<=L$5, IF(L20=0,IF(SUM($D19:K19)+K19<$C17,IF(K19=0,$C18,K19),$C17-SUM($D19:K19)),IF(SUM($D19:K19)+K19<$C17-L20-L21,K19-L21/(L5-$B13-1),$C17-SUM($D19:K19)-L20-L21)), 0) -> 52606.71233 | M19: =IF($B$13<=M$5, IF(M20=0,IF(SUM($D19:L19)+L19<$C17,IF(L19=0,$C18,L19),$C17-SUM($D19:L19)),IF(SUM($D19:L19)+L19<$C17-M20-M21,L19-M21/(M5-$B13-1),$C17-SUM($D19:L19)-M20-M21)), 0) -> 52606.71233 | N19: =IF($B$13<=N$5, IF(N20=0,IF(SUM($D19:M19)+M19<$C17,IF(M19=0,$C18,M19),$C17-SUM($D19:M19)),IF(SUM($D19:M19)+M19<$C17-N20-N21,M19-N21/(N5-$B13-1),$C17-SUM($D19:M19)-N20-N21)), 0) -> 52606.71233 | O19: =IF($B$13<=O$5, IF(O20=0,IF(SUM($D19:N19)+N19<$C17,IF(N19=0,$C18,N19),$C17-SUM($D19:N19)),IF(SUM($D19:N19)+N19<$C17-O20-O21,N19-O21/(O5-$B13-1),$C17-SUM($D19:N19)-O20-O21)), 0) -> 52606.71233 | P19: =IF($B$13<=P$5, IF(P20=0,IF(SUM($D19:O19)+O19<$C17,IF(O19=0,$C18,O19),$C17-SUM($D19:O19)),IF(SUM($D19:O19)+O19<$C17-P20-P21,O19-P21/(P5-$B13-1),$C17-SUM($D19:O19)-P20-P21)), 0) -> 52606.71233 | Q19: =IF($B$13<=Q$5, IF(Q20=0,IF(SUM($D19:P19)+P19<$C17,IF(P19=0,$C18,P19),$C17-SUM($D19:P19)),IF(SUM($D19:P19)+P19<$C17-Q20-Q21,P19-Q21/(Q5-$B13-1),$C17-SUM($D19:P19)-Q20-Q21)), 0) -> 52606.71233 | R19: =IF($B$13<=R$5, IF(R20=0,IF(SUM($D19:Q19)+Q19<$C17,IF(Q19=0,$C18,Q19),$C17-SUM($D19:Q19)),IF(SUM($D19:Q19)+Q19<$C17-R20-R21,Q19-R21/(R5-$B13-1),$C17-SUM($D19:Q19)-R20-R21)), 0) -> 52606.71233 | S19: =IF($B$13<=S$5, IF(S20=0,IF(SUM($D19:R19)+R19<$C17,IF(R19=0,$C18,R19),$C17-SUM($D19:R19)),IF(SUM($D19:R19)+R19<$C17-S20-S21,R19-S21/(S5-$B13-1),$C17-SUM($D19:R19)-S20-S21)), 0) -> 52606.71233 | T19: =IF($B$13<=T$5, IF(T20=0,IF(SUM($D19:S19)+S19<$C17,IF(S19=0,$C18,S19),$C17-SUM($D19:S19)),IF(SUM($D19:S19)+S19<$C17-T20-T21,S19-T21/(T5-$B13-1),$C17-SUM($D19:S19)-T20-T21)), 0) -> 52606.71233 | U19: =IF($B$13<=U$5, IF(U20=0,IF(SUM($D19:T19)+T19<$C17,IF(T19=0,$C18,T19),$C17-SUM($D19:T19)),IF(SUM($D19:T19)+T19<$C17-U20-U21,T19-U21/(U5-$B13-1),$C17-SUM($D19:T19)-U20-U21)), 0) -> 52606.71233 | V19: =IF($B$13<=V$5, IF(V20=0,IF(SUM($D19:U19)+U19<$C17,IF(U19=0,$C18,U19),$C17-SUM($D19:U19)),IF(SUM($D19:U19)+U19<$C17-V20-V21,U19-V21/(V5-$B13-1),$C17-SUM($D19:U19)-V20-V21)), 0) -> 52606.71233 | W19: =IF($B$13<=W$5, IF(W20=0,IF(SUM($D19:V19)+V19<$C17,IF(V19=0,$C18,V19),$C17-SUM($D19:V19)),IF(SUM($D19:V19)+V19<$C17-W20-W21,V19-W21/(W5-$B13-1),$C17-SUM($D19:V19)-W20-W21)), 0) -> 52606.71233
A20: =RIGHT(B$13,2)&"StartDes" -> 04StartDes | B20: Desinvesteringen | D20: =IF(EofG="E",IF(ISERROR(VLOOKUP(Kapitaalkosten!$A20,'Data E (oud)'!$1:$1048576,HLOOKUP(Naam&Kapitaalkosten!D$5&EofG,'Data E (oud)'!$D$5:$IV$6,2,FALSE),FALSE)),0,VLOOKUP(Kapitaalkosten!$A20,'Data E (oud)'!$1:$1048576,HLOOKUP(Naam&Kapitaalkosten!D$5&EofG,'Data E (oud)'!$D$5:$IV$6,2,FALSE),FALSE)),IF(ISERROR(VLOOKUP(Kapitaalkosten!$A20,'Data G'!$1:$1048576,HLOOKUP(Naam&Kapitaalkosten!D$5&EofG,'Data G'!$D$5:$IV$6,2,FALSE),FALSE)),0,VLOOKUP(Kapitaalkosten!$A20,'Data G'!$1:$1048576,HLOOKUP(Naam&Kapitaalkosten!D$5&EofG,'Data G'!$D$5:$IV$6,2,FALSE),FALSE))) -> 0 | E20: =IF(EofG="E",IF(ISERROR(VLOOKUP(Kapitaalkosten!$A20,'Data E (oud)'!$1:$1048576,HLOOKUP(Naam&Kapitaalkosten!E$5&EofG,'Data E (oud)'!$D$5:$IV$6,2,FALSE),FALSE)),0,VLOOKUP(Kapitaalkosten!$A20,'Data E (oud)'!$1:$1048576,HLOOKUP(Naam&Kapitaalkosten!E$5&EofG,'Data E (oud)'!$D$5:$IV$6,2,FALSE),FALSE)),IF(ISERROR(VLOOKUP(Kapitaalkosten!$A20,'Data G'!$1:$1048576,HLOOKUP(Naam&Kapitaalkosten!E$5&EofG,'Data G'!$D$5:$IV$6,2,FALSE),FALSE)),0,VLOOKUP(Kapitaalkosten!$A20,'Data G'!$1:$1048576,HLOOKUP(Naam&Kapitaalkosten!E$5&EofG,'Data G'!$D$5:$IV$6,2,FALSE),FALSE))) -> 0 | F20: =IF(EofG="E",IF(ISERROR(VLOOKUP(Kapitaalkosten!$A20,'Data E (oud)'!$1:$1048576,HLOOKUP(Naam&Kapitaalkosten!F$5&EofG,'Data E (oud)'!$D$5:$IV$6,2,FALSE),FALSE)),0,VLOOKUP(Kapitaalkosten!$A20,'Data E (oud)'!$1:$1048576,HLOOKUP(Naam&Kapitaalkosten!F$5&EofG,'Data E (oud)'!$D$5:$IV$6,2,FALSE),FALSE)),IF(ISERROR(VLOOKUP(Kapitaalkosten!$A20,'Data G'!$1:$1048576,HLOOKUP(Naam&Kapitaalkosten!F$5&EofG,'Data G'!$D$5:$IV$6,2,FALSE),FALSE)),0,VLOOKUP(Kapitaalkosten!$A20,'Data G'!$1:$1048576,HLOOKUP(Naam&Kapitaalkosten!F$5&EofG,'Data G'!$D$5:$IV$6,2,FALSE),FALSE))) -> 0 | G20: =IF(EofG="E",IF(ISERROR(VLOOKUP(Kapitaalkosten!$A20,'Data E (oud)'!$1:$1048576,HLOOKUP(Naam&Kapitaalkosten!G$5&EofG,'Data E (oud)'!$D$5:$IV$6,2,FALSE),FALSE)),0,VLOOKUP(Kapitaalkosten!$A20,'Data E (oud)'!$1:$1048576,HLOOKUP(Naam&Kapitaalkosten!G$5&EofG,'Data E (oud)'!$D$5:$IV$6,2,FALSE),FALSE)),IF(ISERROR(VLOOKUP(Kapitaalkosten!$A20,'Data G'!$1:$1048576,HLOOKUP(Naam&Kapitaalkosten!G$5&EofG,'Data G'!$D$5:$IV$6,2,FALSE),FALSE)),0,VLOOKUP(Kapitaalkosten!$A20,'Data G'!$1:$1048576,HLOOKUP(Naam&Kapitaalkosten!G$5&EofG,'Data G'!$D$5:$IV$6,2,FALSE),FALSE))) -> 0 | H20: =IF(EofG="E",IF(ISERROR(VLOOKUP(Kapitaalkosten!$A20,'Data E (oud)'!$1:$1048576,HLOOKUP(Naam&Kapitaalkosten!H$5&EofG,'Data E (oud)'!$D$5:$IV$6,2,FALSE),FALSE)),0,VLOOKUP(Kapitaalkosten!$A20,'Data E (oud)'!$1:$1048576,HLOOKUP(Naam&Kapitaalkosten!H$5&EofG,'Data E (oud)'!$D$5:$IV$6,2,FALSE),FALSE)),IF(ISERROR(VLOOKUP(Kapitaalkosten!$A20,'Data G'!$1:$1048576,HLOOKUP(Naam&Kapitaalkosten!H$5&EofG,'Data G'!$D$5:$IV$6,2,FALSE),FALSE)),0,VLOOKUP(Kapitaalkosten!$A20,'Data G'!$1:$1048576,HLOOKUP(Naam&Kapitaalkosten!H$5&EofG,'Data G'!$D$5:$IV$6,2,FALSE),FALSE))) -> 0 | I20: =IF(EofG="E",IF(ISERROR(VLOOKUP(Kapitaalkosten!$A20,'Data E (oud)'!$1:$1048576,HLOOKUP(Naam&Kapitaalkosten!I$5&EofG,'Data E (oud)'!$D$5:$IV$6,2,FALSE),FALSE)),0,VLOOKUP(Kapitaalkosten!$A20,'Data E (oud)'!$1:$1048576,HLOOKUP(Naam&Kapitaalkosten!I$5&EofG,'Data E (oud)'!$D$5:$IV$6,2,FALSE),FALSE)),IF(ISERROR(VLOOKUP(Kapitaalkosten!$A20,'Data G'!$1:$1048576,HLOOKUP(Naam&Kapitaalkosten!I$5&EofG,'Data G'!$D$5:$IV$6,2,FALSE),FALSE)),0,VLOOKUP(Kapitaalkosten!$A20,'Data G'!$1:$1048576,HLOOKUP(Naam&Kapitaalkosten!I$5&EofG,'Data G'!$D$5:$IV$6,2,FALSE),FALSE))) -> 0 | J20: =IF(EofG="E",IF(ISERROR(VLOOKUP(Kapitaalkosten!$A20,'Data E (oud)'!$1:$1048576,HLOOKUP(Naam&Kapitaalkosten!J$5&EofG,'Data E (oud)'!$D$5:$IV$6,2,FALSE),FALSE)),0,VLOOKUP(Kapitaalkosten!$A20,'Data E (oud)'!$1:$1048576,HLOOKUP(Naam&Kapitaalkosten!J$5&EofG,'Data E (oud)'!$D$5:$IV$6,2,FALSE),FALSE)),IF(ISERROR(VLOOKUP(Kapitaalkosten!$A20,'Data G'!$1:$1048576,HLOOKUP(Naam&Kapitaalkosten!J$5&EofG,'Data G'!$D$5:$IV$6,2,FALSE),FALSE)),0,VLOOKUP(Kapitaalkosten!$A20,'Data G'!$1:$1048576,HLOOKUP(Naam&Kapitaalkosten!J$5&EofG,'Data G'!$D$5:$IV$6,2,FALSE),FALSE))) -> 0 | K20: =IF(EofG="E",IF(ISERROR(VLOOKUP(Kapitaalkosten!$A20,'Data E (oud)'!$1:$1048576,HLOOKUP(Naam&Kapitaalkosten!K$5&EofG,'Data E (oud)'!$D$5:$IV$6,2,FALSE),FALSE)),0,VLOOKUP(Kapitaalkosten!$A20,'Data E (oud)'!$1:$1048576,HLOOKUP(Naam&Kapitaalkosten!K$5&EofG,'Data E (oud)'!$D$5:$IV$6,2,FALSE),FALSE)),IF(ISERROR(VLOOKUP(Kapitaalkosten!$A20,'Data G'!$1:$1048576,HLOOKUP(Naam&Kapitaalkosten!K$5&EofG,'Data G'!$D$5:$IV$6,2,FALSE),FALSE)),0,VLOOKUP(Kapitaalkosten!$A20,'Data G'!$1:$1048576,HLOOKUP(Naam&Kapitaalkosten!K$5&EofG,'Data G'!$D$5:$IV$6,2,FALSE),FALSE))) -> 0 | L20: =IF(EofG="E",IF(ISERROR(VLOOKUP(Kapitaalkosten!$A20,'Data E (oud)'!$1:$1048576,HLOOKUP(Naam&Kapitaalkosten!L$5&EofG,'Data E (oud)'!$D$5:$IV$6,2,FALSE),FALSE)),0,VLOOKUP(Kapitaalkosten!$A20,'Data E (oud)'!$1:$1048576,HLOOKUP(Naam&Kapitaalkosten!L$5&EofG,'Data E (oud)'!$D$5:$IV$6,2,FALSE),FALSE)),IF(ISERROR(VLOOKUP(Kapitaalkosten!$A20,'Data G'!$1:$1048576,HLOOKUP(Naam&Kapitaalkosten!L$5&EofG,'Data G'!$D$5:$IV$6,2,FALSE),FALSE)),0,VLOOKUP(Kapitaalkosten!$A20,'Data G'!$1:$1048576,HLOOKUP(Naam&Kapitaalkosten!L$5&EofG,'Data G'!$D$5:$IV$6,2,FALSE),FALSE))) -> 0
A21: =RIGHT(B$13,2)&"StartCADDes" -> 04StartCADDes | B21: Cumulatieve afschrijvingen desinvesteringen | D21: =IF(EofG="E",IF(ISERROR(VLOOKUP(Kapitaalkosten!$A21,'Data E (oud)'!$1:$1048576,HLOOKUP(Naam&Kapitaalkosten!D$5&EofG,'Data E (oud)'!$D$5:$IV$6,2,FALSE),FALSE)),0,VLOOKUP(Kapitaalkosten!$A21,'Data E (oud)'!$1:$1048576,HLOOKUP(Naam&Kapitaalkosten!D$5&EofG,'Data E (oud)'!$D$5:$IV$6,2,FALSE),FALSE)),IF(ISERROR(VLOOKUP(Kapitaalkosten!$A21,'Data G'!$1:$1048576,HLOOKUP(Naam&Kapitaalkosten!D$5&EofG,'Data G'!$D$5:$IV$6,2,FALSE),FALSE)),0,VLOOKUP(Kapitaalkosten!$A21,'Data G'!$1:$1048576,HLOOKUP(Naam&Kapitaalkosten!D$5&EofG,'Data G'!$D$5:$IV$6,2,FALSE),FALSE))) -> 0 | E21: =IF(EofG="E",IF(ISERROR(VLOOKUP(Kapitaalkosten!$A21,'Data E (oud)'!$1:$1048576,HLOOKUP(Naam&Kapitaalkosten!E$5&EofG,'Data E (oud)'!$D$5:$IV$6,2,FALSE),FALSE)),0,VLOOKUP(Kapitaalkosten!$A21,'Data E (oud)'!$1:$1048576,HLOOKUP(Naam&Kapitaalkosten!E$5&EofG,'Data E (oud)'!$D$5:$IV$6,2,FALSE),FALSE)),IF(ISERROR(VLOOKUP(Kapitaalkosten!$A21,'Data G'!$1:$1048576,HLOOKUP(Naam&Kapitaalkosten!E$5&EofG,'Data G'!$D$5:$IV$6,2,FALSE),FALSE)),0,VLOOKUP(Kapitaalkosten!$A21,'Data G'!$1:$1048576,HLOOKUP(Naam&Kapitaalkosten!E$5&EofG,'Data G'!$D$5:$IV$6,2,FALSE),FALSE))) -> 0 | F21: =IF(EofG="E",IF(ISERROR(VLOOKUP(Kapitaalkosten!$A21,'Data E (oud)'!$1:$1048576,HLOOKUP(Naam&Kapitaalkosten!F$5&EofG,'Data E (oud)'!$D$5:$IV$6,2,FALSE),FALSE)),0,VLOOKUP(Kapitaalkosten!$A21,'Data E (oud)'!$1:$1048576,HLOOKUP(Naam&Kapitaalkosten!F$5&EofG,'Data E (oud)'!$D$5:$IV$6,2,FALSE),FALSE)),IF(ISERROR(VLOOKUP(Kapitaalkosten!$A21,'Data G'!$1:$1048576,HLOOKUP(Naam&Kapitaalkosten!F$5&EofG,'Data G'!$D$5:$IV$6,2,FALSE),FALSE)),0,VLOOKUP(Kapitaalkosten!$A21,'Data G'!$1:$1048576,HLOOKUP(Naam&Kapitaalkosten!F$5&EofG,'Data G'!$D$5:$IV$6,2,FALSE),FALSE))) -> 0 | G21: =IF(EofG="E",IF(ISERROR(VLOOKUP(Kapitaalkosten!$A21,'Data E (oud)'!$1:$1048576,HLOOKUP(Naam&Kapitaalkosten!G$5&EofG,'Data E (oud)'!$D$5:$IV$6,2,FALSE),FALSE)),0,VLOOKUP(Kapitaalkosten!$A21,'Data E (oud)'!$1:$1048576,HLOOKUP(Naam&Kapitaalkosten!G$5&EofG,'Data E (oud)'!$D$5:$IV$6,2,FALSE),FALSE)),IF(ISERROR(VLOOKUP(Kapitaalkosten!$A21,'Data G'!$1:$1048576,HLOOKUP(Naam&Kapitaalkosten!G$5&EofG,'Data G'!$D$5:$IV$6,2,FALSE),FALSE)),0,VLOOKUP(Kapitaalkosten!$A21,'Data G'!$1:$1048576,HLOOKUP(Naam&Kapitaalkosten!G$5&EofG,'Data G'!$D$5:$IV$6,2,FALSE),FALSE))) -> 0 | H21: =IF(EofG="E",IF(ISERROR(VLOOKUP(Kapitaalkosten!$A21,'Data E (oud)'!$1:$1048576,HLOOKUP(Naam&Kapitaalkosten!H$5&EofG,'Data E (oud)'!$D$5:$IV$6,2,FALSE),FALSE)),0,VLOOKUP(Kapitaalkosten!$A21,'Data E (oud)'!$1:$1048576,HLOOKUP(Naam&Kapitaalkosten!H$5&EofG,'Data E (oud)'!$D$5:$IV$6,2,FALSE),FALSE)),IF(ISERROR(VLOOKUP(Kapitaalkosten!$A21,'Data G'!$1:$1048576,HLOOKUP(Naam&Kapitaalkosten!H$5&EofG,'Data G'!$D$5:$IV$6,2,FALSE),FALSE)),0,VLOOKUP(Kapitaalkosten!$A21,'Data G'!$1:$1048576,HLOOKUP(Naam&Kapitaalkosten!H$5&EofG,'Data G'!$D$5:$IV$6,2,FALSE),FALSE))) -> 0 | I21: =IF(EofG="E",IF(ISERROR(VLOOKUP(Kapitaalkosten!$A21,'Data E (oud)'!$1:$1048576,HLOOKUP(Naam&Kapitaalkosten!I$5&EofG,'Data E (oud)'!$D$5:$IV$6,2,FALSE),FALSE)),0,VLOOKUP(Kapitaalkosten!$A21,'Data E (oud)'!$1:$1048576,HLOOKUP(Naam&Kapitaalkosten!I$5&EofG,'Data E (oud)'!$D$5:$IV$6,2,FALSE),FALSE)),IF(ISERROR(VLOOKUP(Kapitaalkosten!$A21,'Data G'!$1:$1048576,HLOOKUP(Naam&Kapitaalkosten!I$5&EofG,'Data G'!$D$5:$IV$6,2,FALSE),FALSE)),0,VLOOKUP(Kapitaalkosten!$A21,'Data G'!$1:$1048576,HLOOKUP(Naam&Kapitaalkosten!I$5&EofG,'Data G'!$D$5:$IV$6,2,FALSE),FALSE))) -> 0 | J21: =IF(EofG="E",IF(ISERROR(VLOOKUP(Kapitaalkosten!$A21,'Data E (oud)'!$1:$1048576,HLOOKUP(Naam&Kapitaalkosten!J$5&EofG,'Data E (oud)'!$D$5:$IV$6,2,FALSE),FALSE)),0,VLOOKUP(Kapitaalkosten!$A21,'Data E (oud)'!$1:$1048576,HLOOKUP(Naam&Kapitaalkosten!J$5&EofG,'Data E (oud)'!$D$5:$IV$6,2,FALSE),FALSE)),IF(ISERROR(VLOOKUP(Kapitaalkosten!$A21,'Data G'!$1:$1048576,HLOOKUP(Naam&Kapitaalkosten!J$5&EofG,'Data G'!$D$5:$IV$6,2,FALSE),FALSE)),0,VLOOKUP(Kapitaalkosten!$A21,'Data G'!$1:$1048576,HLOOKUP(Naam&Kapitaalkosten!J$5&EofG,'Data G'!$D$5:$IV$6,2,FALSE),FALSE))) -> 0 | K21: =IF(EofG="E",IF(ISERROR(VLOOKUP(Kapitaalkosten!$A21,'Data E (oud)'!$1:$1048576,HLOOKUP(Naam&Kapitaalkosten!K$5&EofG,'Data E (oud)'!$D$5:$IV$6,2,FALSE),FALSE)),0,VLOOKUP(Kapitaalkosten!$A21,'Data E (oud)'!$1:$1048576,HLOOKUP(Naam&Kapitaalkosten!K$5&EofG,'Data E (oud)'!$D$5:$IV$6,2,FALSE),FALSE)),IF(ISERROR(VLOOKUP(Kapitaalkosten!$A21,'Data G'!$1:$1048576,HLOOKUP(Naam&Kapitaalkosten!K$5&EofG,'Data G'!$D$5:$IV$6,2,FALSE),FALSE)),0,VLOOKUP(Kapitaalkosten!$A21,'Data G'!$1:$1048576,HLOOKUP(Naam&Kapitaalkosten!K$5&EofG,'Data G'!$D$5:$IV$6,2,FALSE),FALSE))) -> 0 | L21: =IF(EofG="E",IF(ISERROR(VLOOKUP(Kapitaalkosten!$A21,'Data E (oud)'!$1:$1048576,HLOOKUP(Naam&Kapitaalkosten!L$5&EofG,'Data E (oud)'!$D$5:$IV$6,2,FALSE),FALSE)),0,VLOOKUP(Kapitaalkosten!$A21,'Data E (oud)'!$1:$1048576,HLOOKUP(Naam&Kapitaalkosten!L$5&EofG,'Data E (oud)'!$D$5:$IV$6,2,FALSE),FALSE)),IF(ISERROR(VLOOKUP(Kapitaalkosten!$A21,'Data G'!$1:$1048576,HLOOKUP(Naam&Kapitaalkosten!L$5&EofG,'Data G'!$D$5:$IV$6,2,FALSE),FALSE)),0,VLOOKUP(Kapitaalkosten!$A21,'Data G'!$1:$1048576,HLOOKUP(Naam&Kapitaalkosten!L$5&EofG,'Data G'!$D$5:$IV$6,2,FALSE),FALSE))) -> 0
B22: Ultimo boekwaarde (ongeindexeerd) | D22: =IF(OR($B$13=D$5,B13=2000),C17-D19-(D20-D21),0) -> 0 | E22: =IF($B$13=E$5,$C17-E19-(E20-E21),D22-E19-(E20-E21)) -> 0 | F22: 0 | G22: 1778106.877 | H22: 1725500.164 | I22: 1672893.452 | J22: 1620286.74 | K22: 1567680.027 | L22: 1515073.315 | M22: 1462466.603 | N22: 1409859.89 | O22: 1357253.178 | P22: 1304646.466 | Q22: 1252039.753 | R22: 1199433.041 | S22: 1146826.329 | T22: 1094219.616 | U22: 1041612.904 | V22: 989006.1918 | W22: 936399.4794
B23: Ultimo boekwaarde (geindexeerd) | D23: =D22*(1+CPI($B13,D$5)) -> 0 | E23: 0 | F23: 0 | G23: 1778106.877 | H23: 1744480.666 | I23: 1721738.595 | J23: 1690942.214 | K23: 1654037.949 | L23: 1649686.386 | M23: 1597182.826 | R23: 1199433.041 | S23: 1146826.329 | T23: 1094219.616 | U23: 1041612.904 | V23: 989006.1918 | W23: 936399.4794
B24: Kapitaalkostenvergoeding over geindexeerde boekwaarde | D24: =D23*VLOOKUP(D$5,WACCtabel,3,FALSE) -> 0 | E24: 0 | F24: 0 | G24: =G23*VLOOKUP(G$5,WACCtabel,3,FALSE) -> 120911.2676 | H24: =H23*VLOOKUP(H$5,WACCtabel,3,FALSE) -> 118624.6853 | I24: =I23*VLOOKUP(I$5,WACCtabel,3,FALSE) -> 117078.2245 | J24: 114984.0706 | K24: 90972.08721 | L24: 90732.75125 | M24: 87845.05542 | R24: 0 | S24: 0 | T24: 0 | U24: 0 | V24: 0 | W24: 0
B25: Afschrijvingen geindexeerd | D25: =D19*(1+CPI($B13,D$5)) -> 0 | E25: 0 | F25: 0 | G25: 52606.71233 | H25: 53185.38616 | I25: 54142.72311 | J25: 54900.72124 | K25: 55504.62917 | L25: 57280.7773 | M25: 57452.61964 | R25: 52606.71233 | S25: 52606.71233 | T25: 52606.71233 | U25: 52606.71233 | V25: 52606.71233 | W25: 52606.71233
B26: Geïndexeerde kapitaalkosten | D26: =D24+D25 -> 0 | E26: =E24+E25 -> 0 | F26: 0 | G26: 173517.9799 | H26: 171810.0715 | I26: =I24+I25 -> 171220.9476 | J26: 169884.7918 | K26: 146476.7164 | L26: 148013.5286 | M26: 145297.6751 | R26: 52606.71233 | S26: 52606.71233 | T26: 52606.71233 | U26: 52606.71233 | V26: 52606.71233 | W26: 52606.71233
A28: =RIGHT(B$13,2)&"Precario" -> 04Precario | B28: Afgekochte precario in startGAW | C28: =IF(EofG="E",IF(ISERROR(VLOOKUP(Kapitaalkosten!$A28,'Data E (oud)'!$1:$1048576,HLOOKUP(Naam&Kapitaalkosten!B$13&EofG,'Data E (oud)'!$D$5:$IV$6,2,FALSE),FALSE)),0,VLOOKUP(Kapitaalkosten!$A28,'Data E (oud)'!$1:$1048576,HLOOKUP(Naam&Kapitaalkosten!B$13&EofG,'Data E (oud)'!$D$5:$IV$6,2,FALSE),FALSE)),IF(ISERROR(VLOOKUP(Kapitaalkosten!$A28,'Data G'!$1:$1048576,HLOOKUP(Naam&Kapitaalkosten!B$13&EofG,'Data G'!$D$5:$IV$6,2,FALSE),FALSE)),0,VLOOKUP(Kapitaalkosten!$A28,'Data G'!$1:$1048576,HLOOKUP(Naam&Kapitaalkosten!B$13&EofG,'Data G'!$D$5:$IV$6,2,FALSE),FALSE))) -> 0
A29: =RIGHT(B$13,2)&"PrecarioAf" -> 04PrecarioAf | B29: Afschrijving afgekochte precario | C29: =IF(EofG="E",IF(ISERROR(VLOOKUP(Kapitaalkosten!$A29,'Data E (oud)'!$1:$1048576,HLOOKUP(Naam&Kapitaalkosten!B$13&EofG,'Data E (oud)'!$D$5:$IV$6,2,FALSE),FALSE)),0,VLOOKUP(Kapitaalkosten!$A29,'Data E (oud)'!$1:$1048576,HLOOKUP(Naam&Kapitaalkosten!B$13&EofG,'Data E (oud)'!$D$5:$IV$6,2,FALSE),FALSE)),IF(ISERROR(VLOOKUP(Kapitaalkosten!$A29,'Data G'!$1:$1048576,HLOOKUP(Naam&Kapitaalkosten!B$13&EofG,'Data G'!$D$5:$IV$6,2,FALSE),FALSE)),0,VLOOKUP(Kapitaalkosten!$A29,'Data G'!$1:$1048576,HLOOKUP(Naam&Kapitaalkosten!B$13&EofG,'Data G'!$D$5:$IV$6,2,FALSE),FALSE))) -> 0
B30: Afschrijvingen afgekochte precario | D30: =IF($B$13<=D$5, $C29, 0) -> 0 | E30: =IF($B$13<=E$5, IF(SUM($D30:D30)+D30<$C28,$C29,$C28-SUM($D30:D30)),0) -> 0 | F30: =IF($B$13<=F$5, IF(SUM($D30:E30)+E30<$C28,$C29,$C28-SUM($D30:E30)),0) -> 0 | G30: =IF($B$13<=G$5, IF(SUM($D30:F30)+F30<$C28,$C29,$C28-SUM($D30:F30)),0) -> 0 | H30: =IF($B$13<=H$5, IF(SUM($D30:G30)+G30<$C28,$C29,$C28-SUM($D30:G30)),0) -> 0 | I30: =IF($B$13<=I$5, IF(SUM($D30:H30)+H30<$C28,$C29,$C28-SUM($D30:H30)),0) -> 0 | J30: =IF($B$13<=J$5, IF(SUM($D30:I30)+I30<$C28,$C29,$C28-SUM($D30:I30)),0) -> 0 | K30: =IF($B$13<=K$5, IF(SUM($D30:J30)+J30<$C28,$C29,$C28-SUM($D30:J30)),0) -> 0 | L30: =IF($B$13<=L$5, IF(SUM($D30:K30)+K30<$C28,$C29,$C28-SUM($D30:K30)),0) -> 0 | M30: =IF($B$13<=M$5, IF(SUM($D30:L30)+L30<$C28,$C29,$C28-SUM($D30:L30)),0) -> 0 | N30: =IF($B$13<=N$5, IF(SUM($D30:M30)+M30<$C28,$C29,$C28-SUM($D30:M30)),0) -> 0 | O30: =IF($B$13<=O$5, IF(SUM($D30:N30)+N30<$C28,$C29,$C28-SUM($D30:N30)),0) -> 0 | P30: =IF($B$13<=P$5, IF(SUM($D30:O30)+O30<$C28,$C29,$C28-SUM($D30:O30)),0) -> 0 | Q30: =IF($B$13<=Q$5, IF(SUM($D30:P30)+P30<$C28,$C29,$C28-SUM($D30:P30)),0) -> 0 | R30: =IF($B$13<=R$5, IF(SUM($D30:Q30)+Q30<$C28,$C29,$C28-SUM($D30:Q30)),0) -> 0 | S30: =IF($B$13<=S$5, IF(SUM($D30:R30)+R30<$C28,$C29,$C28-SUM($D30:R30)),0) -> 0 | T30: =IF($B$13<=T$5, IF(SUM($D30:S30)+S30<$C28,$C29,$C28-SUM($D30:S30)),0) -> 0 | U30: =IF($B$13<=U$5, IF(SUM($D30:T30)+T30<$C28,$C29,$C28-SUM($D30:T30)),0) -> 0 | V30: =IF($B$13<=V$5, IF(SUM($D30:U30)+U30<$C28,$C29,$C28-SUM($D30:U30)),0) -> 0 | W30: =IF($B$13<=W$5, IF(SUM($D30:V30)+V30<$C28,$C29,$C28-SUM($D30:V30)),0) -> 0
B31: Ultimo boekwaarde (ongeindexeerd) | D31: =IF($B$13<=D$5,C28-D30,0) -> 0 | E31: =IF($B$13=E$5,$C28-E30,D31-E30) -> 0 | F31: 0 | G31: 0 | H31: 0 | I31: 0 | J31: 0 | K31: 0 | L31: 0 | M31: =IF($B$13=M$5,$C28-M30,L31-M30) -> 0 | N31: 0 | O31: 0 | P31: 0 | Q31: 0 | R31: 0 | S31: 0 | T31: 0 | U31: 0 | V31: 0 | W31: 0
B32: Ultimo boekwaarde (geindexeerd) | D32: =D31*(1+CPI($B13,D$5)) -> 0 | E32: 0 | F32: 0 | G32: 0 | H32: 0 | I32: 0 | J32: 0 | K32: 0 | L32: 0 | M32: 0 | R32: 0 | S32: 0 | T32: 0 | U32: 0 | V32: 0 | W32: 0
B33: Kapitaalkostenvergoeding over geindexeerde boekwaarde | D33: =D32*VLOOKUP(D$5,WACCtabel,3,FALSE) -> 0 | E33: 0 | F33: 0 | G33: 0 | H33: 0 | I33: 0 | J33: 0 | K33: 0 | L33: 0 | M33: 0 | R33: 0 | S33: 0 | T33: 0 | U33: 0 | V33: 0 | W33: 0
B34: Afschrijvingen geindexeerd | D34: =D30*(1+CPI($B13,D$5)) -> 0 | E34: 0 | F34: 0 | G34: 0 | H34: 0 | I34: 0 | J34: 0 | K34: 0 | L34: 0 | M34: 0 | N34: =N30*(1+CPI($B13,N$5)) ->  | R34: 0 | S34: 0 | T34: 0 | U34: 0 | V34: 0 | W34: 0
B35: Geïndexeerde kapitaalkosten | D35: =D33+D34 -> 0 | E35: 0 | F35: 0 | G35: 0 | H35: 0 | I35: 0 | J35: 0 | K35: 0 | L35: 0 | M35: 0 | R35: 0 | S35: 0 | T35: 0 | U35: 0 | V35: 0 | W35: 0
B37: 2001
B39: Investeringen | C39: =SUM(D40:D47) -> 0
A40: =RIGHT(B$37,2)&"Inv"&C40 -> 01Inv50 | B40: Aanschafwaarde Investeringen met afschrijvingstermijn: | C40: 50 | D40: =IF(EofG="E",IF(ISERROR(VLOOKUP(Kapitaalkosten!$A40,'Data E (oud)'!$1:$1048576,HLOOKUP(Naam&Kapitaalkosten!D$5&EofG,'Data E (oud)'!$D$5:$IV$6,2,FALSE),FALSE)),0,VLOOKUP(Kapitaalkosten!$A40,'Data E (oud)'!$1:$1048576,HLOOKUP(Naam&Kapitaalkosten!D$5&EofG,'Data E (oud)'!$D$5:$IV$6,2,FALSE),FALSE)),IF(ISERROR(VLOOKUP(Kapitaalkosten!$A40,'Data G'!$1:$1048576,HLOOKUP(Naam&Kapitaalkosten!D$5&EofG,'Data G'!$D$5:$IV$6,2,FALSE),FALSE)),0,VLOOKUP(Kapitaalkosten!$A40,'Data G'!$1:$1048576,HLOOKUP(Naam&Kapitaalkosten!D$5&EofG,'Data G'!$D$5:$IV$6,2,FALSE),FALSE))) -> 0 | E40: =D40-E58-E76 -> 0 | F40: =E40-F58-F76 -> 0 | G40: 0 | H40: 0 | I40: 0 | J40: 0 | K40: 0 | L40: 0 | M40: 0 | N40: 0 | O40: 0 | P40: 0 | Q40: 0 | R40: 0 | S40: 0 | T40: 0 | U40: 0 | V40: 0 | W40: 0
A41: 01Inv40 | B41: Aanschafwaarde Investeringen met afschrijvingstermijn: | C41: 40 | D41: =IF(EofG="E",IF(ISERROR(VLOOKUP(Kapitaalkosten!$A41,'Data E (oud)'!$1:$1048576,HLOOKUP(Naam&Kapitaalkosten!D$5&EofG,'Data E (oud)'!$D$5:$IV$6,2,FALSE),FALSE)),0,VLOOKUP(Kapitaalkosten!$A41,'Data E (oud)'!$1:$1048576,HLOOKUP(Naam&Kapitaalkosten!D$5&EofG,'Data E (oud)'!$D$5:$IV$6,2,FALSE),FALSE)),IF(ISERROR(VLOOKUP(Kapitaalkosten!$A41,'Data G'!$1:$1048576,HLOOKUP(Naam&Kapitaalkosten!D$5&EofG,'Data G'!$D$5:$IV$6,2,FALSE),FALSE)),0,VLOOKUP(Kapitaalkosten!$A41,'Data G'!$1:$1048576,HLOOKUP(Naam&Kapitaalkosten!D$5&EofG,'Data G'!$D$5:$IV$6,2,FALSE),FALSE))) -> 0 | E41: 0 | F41: =E41-F59-F77 -> 0 | G41: 0 | H41: 0 | I41: 0 | J41: 0 | K41: 0 | L41: 0 | M41: 0 | N41: 0 | O41: 0 | P41: 0 | Q41: 0 | R41: 0 | S41: 0 | T41: 0 | U41: 0 | V41: 0 | W41: 0
A42: 01Inv30 | B42: Aanschafwaarde Investeringen met afschrijvingstermijn: | C42: 30 | D42: =IF(EofG="E",IF(ISERROR(VLOOKUP(Kapitaalkosten!$A42,'Data E (oud)'!$1:$1048576,HLOOKUP(Naam&Kapitaalkosten!D$5&EofG,'Data E (oud)'!$D$5:$IV$6,2,FALSE),FALSE)),0,VLOOKUP(Kapitaalkosten!$A42,'Data E (oud)'!$1:$1048576,HLOOKUP(Naam&Kapitaalkosten!D$5&EofG,'Data E (oud)'!$D$5:$IV$6,2,FALSE),FALSE)),IF(ISERROR(VLOOKUP(Kapitaalkosten!$A42,'Data G'!$1:$1048576,HLOOKUP(Naam&Kapitaalkosten!D$5&EofG,'Data G'!$D$5:$IV$6,2,FALSE),FALSE)),0,VLOOKUP(Kapitaalkosten!$A42,'Data G'!$1:$1048576,HLOOKUP(Naam&Kapitaalkosten!D$5&EofG,'Data G'!$D$5:$IV$6,2,FALSE),FALSE))) -> 0 | E42: 0 | F42: 0 | G42: 0 | H42: 0 | I42: 0 | J42: 0 | K42: 0 | L42: 0 | M42: 0 | N42: 0 | O42: 0 | P42: 0 | Q42: 0 | R42: 0 | S42: 0 | T42: 0 | U42: 0 | V42: 0 | W42: 0
A43: 01Inv25 | B43: Aanschafwaarde Investeringen met afschrijvingstermijn: | C43: 25 | D43: =IF(EofG="E",IF(ISERROR(VLOOKUP(Kapitaalkosten!$A43,'Data E (oud)'!$1:$1048576,HLOOKUP(Naam&Kapitaalkosten!D$5&EofG,'Data E (oud)'!$D$5:$IV$6,2,FALSE),FALSE)),0,VLOOKUP(Kapitaalkosten!$A43,'Data E (oud)'!$1:$1048576,HLOOKUP(Naam&Kapitaalkosten!D$5&EofG,'Data E (oud)'!$D$5:$IV$6,2,FALSE),FALSE)),IF(ISERROR(VLOOKUP(Kapitaalkosten!$A43,'Data G'!$1:$1048576,HLOOKUP(Naam&Kapitaalkosten!D$5&EofG,'Data G'!$D$5:$IV$6,2,FALSE),FALSE)),0,VLOOKUP(Kapitaalkosten!$A43,'Data G'!$1:$1048576,HLOOKUP(Naam&Kapitaalkosten!D$5&EofG,'Data G'!$D$5:$IV$6,2,FALSE),FALSE))) -> 0 | E43: 0 | F43: 0 | G43: 0 | H43: 0 | I43: 0 | J43: 0 | K43: 0 | L43: 0 | M43: 0 | N43: 0 | O43: 0 | P43: 0 | Q43: 0 | R43: 0 | S43: 0 | T43: 0 | U43: 0 | V43: 0 | W43: 0
A44: 01Inv10 | B44: Aanschafwaarde Investeringen met afschrijvingstermijn: | C44: 10 | D44: =IF(EofG="E",IF(ISERROR(VLOOKUP(Kapitaalkosten!$A44,'Data E (oud)'!$1:$1048576,HLOOKUP(Naam&Kapitaalkosten!D$5&EofG,'Data E (oud)'!$D$5:$IV$6,2,FALSE),FALSE)),0,VLOOKUP(Kapitaalkosten!$A44,'Data E (oud)'!$1:$1048576,HLOOKUP(Naam&Kapitaalkosten!D$5&EofG,'Data E (oud)'!$D$5:$IV$6,2,FALSE),FALSE)),IF(ISERROR(VLOOKUP(Kapitaalkosten!$A44,'Data G'!$1:$1048576,HLOOKUP(Naam&Kapitaalkosten!D$5&EofG,'Data G'!$D$5:$IV$6,2,FALSE),FALSE)),0,VLOOKUP(Kapitaalkosten!$A44,'Data G'!$1:$1048576,HLOOKUP(Naam&Kapitaalkosten!D$5&EofG,'Data G'!$D$5:$IV$6,2,FALSE),FALSE))) -> 0 | E44: 0 | F44: 0 | G44: 0 | H44: 0 | I44: 0 | J44: 0 | K44: 0 | L44: 0 | M44: 0 | N44: 0 | O44: 0 | P44: 0 | Q44: 0 | R44: 0 | S44: 0 | T44: 0 | U44: 0 | V44: 0 | W44: 0
A45: 01Inv5 | B45: Aanschafwaarde Investeringen met afschrijvingstermijn: | C45: 5 | D45: =IF(EofG="E",IF(ISERROR(VLOOKUP(Kapitaalkosten!$A45,'Data E (oud)'!$1:$1048576,HLOOKUP(Naam&Kapitaalkosten!D$5&EofG,'Data E (oud)'!$D$5:$IV$6,2,FALSE),FALSE)),0,VLOOKUP(Kapitaalkosten!$A45,'Data E (oud)'!$1:$1048576,HLOOKUP(Naam&Kapitaalkosten!D$5&EofG,'Data E (oud)'!$D$5:$IV$6,2,FALSE),FALSE)),IF(ISERROR(VLOOKUP(Kapitaalkosten!$A45,'Data G'!$1:$1048576,HLOOKUP(Naam&Kapitaalkosten!D$5&EofG,'Data G'!$D$5:$IV$6,2,FALSE),FALSE)),0,VLOOKUP(Kapitaalkosten!$A45,'Data G'!$1:$1048576,HLOOKUP(Naam&Kapitaalkosten!D$5&EofG,'Data G'!$D$5:$IV$6,2,FALSE),FALSE))) -> 0 | E45: 0 | F45: 0 | G45: =F45-G63-G81 -> 0 | H45: =G45-H63-H81 -> 0 | I45: 0 | J45: 0 | K45: 0 | L45: 0 | M45: 0 | N45: 0 | O45: 0 | P45: 0 | Q45: 0 | R45: 0 | S45: 0 | T45: 0 | U45: 0 | V45: 0 | W45: 0
A46: 01Inv3 | B46: Aanschafwaarde Investeringen met afschrijvingstermijn: | C46: 3 | D46: =IF(EofG="E",IF(ISERROR(VLOOKUP(Kapitaalkosten!$A46,'Data E (oud)'!$1:$1048576,HLOOKUP(Naam&Kapitaalkosten!D$5&EofG,'Data E (oud)'!$D$5:$IV$6,2,FALSE),FALSE)),0,VLOOKUP(Kapitaalkosten!$A46,'Data E (oud)'!$1:$1048576,HLOOKUP(Naam&Kapitaalkosten!D$5&EofG,'Data E (oud)'!$D$5:$IV$6,2,FALSE),FALSE)),IF(ISERROR(VLOOKUP(Kapitaalkosten!$A46,'Data G'!$1:$1048576,HLOOKUP(Naam&Kapitaalkosten!D$5&EofG,'Data G'!$D$5:$IV$6,2,FALSE),FALSE)),0,VLOOKUP(Kapitaalkosten!$A46,'Data G'!$1:$1048576,HLOOKUP(Naam&Kapitaalkosten!D$5&EofG,'Data G'!$D$5:$IV$6,2,FALSE),FALSE))) -> 0 | E46: 0 | F46: 0 | G46: 0 | H46: 0 | I46: 0 | J46: 0 | K46: 0 | L46: 0 | M46: 0 | N46: 0 | O46: 0 | P46: 0 | Q46: 0 | R46: 0 | S46: 0 | T46: 0 | U46: 0 | V46: 0 | W46: 0
A47: =RIGHT(B$37,2)&"Inv"&C47 -> 01Invgeen | B47: Aanschafwaarde Investeringen met afschrijvingstermijn: | C47: geen | D47: =IF(EofG="E",IF(ISERROR(VLOOKUP(Kapitaalkosten!$A47,'Data E (oud)'!$1:$1048576,HLOOKUP(Naam&Kapitaalkosten!D$5&EofG,'Data E (oud)'!$D$5:$IV$6,2,FALSE),FALSE)),0,VLOOKUP(Kapitaalkosten!$A47,'Data E (oud)'!$1:$1048576,HLOOKUP(Naam&Kapitaalkosten!D$5&EofG,'Data E (oud)'!$D$5:$IV$6,2,FALSE),FALSE)),IF(ISERROR(VLOOKUP(Kapitaalkosten!$A47,'Data G'!$1:$1048576,HLOOKUP(Naam&Kapitaalkosten!D$5&EofG,'Data G'!$D$5:$IV$6,2,FALSE),FALSE)),0,VLOOKUP(Kapitaalkosten!$A47,'Data G'!$1:$1048576,HLOOKUP(Naam&Kapitaalkosten!D$5&EofG,'Data G'!$D$5:$IV$6,2,FALSE),FALSE))) -> 0 | E47: =D47 -> 0 | F47: =E47 -> 0 | G47: 0 | H47: 0 | I47: 0 | J47: 0 | K47: 0 | L47: 0 | M47: 0 | N47: 0 | O47: 0 | P47: 0 | Q47: 0 | R47: 0 | S47: 0 | T47: 0 | U47: 0 | V47: 0 | W47: 0
B48: Gestandaardiseerde afschrijvingen | D48: =SUM(D49:D55) -> 0 | E48: =SUM(E49:E55) -> 0 | F48: =SUM(F49:F55) -> 0 | G48: 0 | H48: 0 | I48: 0 | J48: =SUM(J49:J55) -> 0 | K48: 0 | L48: 0 | M48: =SUM(M49:M55) -> 0 | N48: 0 | O48: 0 | P48: 0 | Q48: 0 | R48: 0 | S48: 0 | T48: 0 | U48: 0 | V48: 0 | W48: 0
A49: =RIGHT(B$37,2)&"Af"&C49 -> 01Af50 | B49: afschrijving bij afschrijvingstermijn | C49: 50 | D49: =0.5*($D40/$C40) -> 0 | E49: =IF($D$5+$C49<E$5,"",IF($D$5+$C49=E$5,0.5*E40/$C40,E40/$C40+0.5*E58/$C58)) -> 0 | F49: =IF($D$5+$C49<F$5,"",IF($D$5+$C49=F$5,0.5*F40/$C40,F40/$C40+0.5*F58/$C58)) -> 0 | G49: =IF($D$5+$C49<G$5,"",IF($D$5+$C49=G$5,0.5*G40/$C40,G40/$C40+0.5*G58/$C58)) -> 0 | H49: 0 | I49: 0 | J49: 0 | K49: =IF($D$5+$C49<K$5,"",IF($D$5+$C49=K$5,0.5*K40/$C40,K40/$C40+0.5*K58/$C58)) -> 0 | L49: =IF($D$5+$C49<L$5,"",IF($D$5+$C49=L$5,0.5*L40/$C40,L40/$C40+0.5*L58/$C58)) -> 0 | M49: =IF($D$5+$C49<M$5,"",IF($D$5+$C49=M$5,0.5*M40/$C40,M40/$C40+0.5*M58/$C58)) -> 0 | N49: 0 | O49: 0 | P49: 0 | Q49: 0 | R49: 0 | S49: 0 | T49: 0 | U49: 0 | V49: 0 | W49: 0
A50: 01Af40 | B50: afschrijving bij afschrijvingstermijn | C50: 40 | D50: =0.5*($D41/$C41) -> 0 | E50: =IF($D$5+$C50<E$5,"",IF($D$5+$C50=E$5,0.5*E41/$C41,E41/$C41+0.5*E59/$C59)) -> 0 | F50: 0 | G50: =IF($D$5+$C50<G$5,"",IF($D$5+$C50=G$5,0.5*G41/$C41,G41/$C41+0.5*G59/$C59)) -> 0 | H50: 0 | I50: 0 | J50: =IF($D$5+$C50<J$5,"",IF($D$5+$C50=J$5,0.5*J41/$C41,J41/$C41+0.5*J59/$C59)) -> 0 | K50: =IF($D$5+$C50<K$5,"",IF($D$5+$C50=K$5,0.5*K41/$C41,K41/$C41+0.5*K59/$C59)) -> 0 | L50: 0 | M50: 0 | N50: 0 | O50: 0 | P50: 0 | Q50: 0 | R50: 0 | S50: 0 | T50: 0 | U50: 0 | V50: 0 | W50: 0
A51: 01Af30 | B51: afschrijving bij afschrijvingstermijn | C51: 30 | D51: 0 | E51: 0 | F51: 0 | G51: =IF($D$5+$C51<G$5,"",IF($D$5+$C51=G$5,0.5*G42/$C42,G42/$C42+0.5*G60/$C60)) -> 0 | H51: 0 | I51: 0 | J51: 0 | K51: 0 | L51: 0 | M51: 0 | N51: 0 | O51: 0 | P51: 0 | Q51: 0 | R51: 0 | S51: 0 | T51: 0 | U51: 0 | V51: 0 | W51: 0
A52: 01Af25 | B52: afschrijving bij afschrijvingstermijn | C52: 25 | D52: 0 | E52: 0 | F52: 0 | G52: =IF($D$5+$C52<G$5,"",IF($D$5+$C52=G$5,0.5*G43/$C43,G43/$C43+0.5*G61/$C61)) -> 0 | H52: 0 | I52: 0 | J52: 0 | K52: =IF($D$5+$C52<K$5,"",IF($D$5+$C52=K$5,0.5*K43/$C43,K43/$C43+0.5*K61/$C61)) -> 0 | L52: 0 | M52: 0 | N52: 0 | O52: 0 | P52: 0 | Q52: 0 | R52: 0 | S52: 0 | T52: 0 | U52: 0 | V52: 0 | W52: 0
A53: 01Af10 | B53: afschrijving bij afschrijvingstermijn | C53: 10 | D53: 0 | E53: 0 | F53: 0 | G53: =IF($D$5+$C53<G$5,"",IF($D$5+$C53=G$5,0.5*G44/$C44,G44/$C44+0.5*G62/$C62)) -> 0 | H53: =IF($D$5+$C53<H$5,"",IF($D$5+$C53=H$5,0.5*H44/$C44,H44/$C44+0.5*H62/$C62)) -> 0 | I53: 0 | J53: =IF($D$5+$C53<J$5,"",IF($D$5+$C53=J$5,0.5*J44/$C44,J44/$C44+0.5*J62/$C62)) -> 0 | K53: =IF($D$5+$C53<K$5,"",IF($D$5+$C53=K$5,0.5*K44/$C44,K44/$C44+0.5*K62/$C62)) -> 0 | L53: 0 | M53: =IF($D$5+$C53<M$5,"",IF($D$5+$C53=M$5,0.5*M44/$C44,M44/$C44+0.5*M62/$C62)) -> 0 | N53: 0
A54: 01Af5 | B54: afschrijving bij afschrijvingstermijn | C54: 5 | D54: 0 | E54: 0 | F54: 0 | G54: =IF($D$5+$C54<G$5,"",IF($D$5+$C54=G$5,0.5*G45/$C45,G45/$C45+0.5*G63/$C63)) -> 0 | H54: =IF($D$5+$C54<H$5,"",IF($D$5+$C54=H$5,0.5*H45/$C45,H45/$C45+0.5*H63/$C63)) -> 0 | I54: =IF($D$5+$C54<I$5,"",IF($D$5+$C54=I$5,0.5*I45/$C45,I45/$C45+0.5*I63/$C63)) -> 0
A55: 01Af3 | B55: afschrijving bij afschrijvingstermijn | C55: 3 | D55: 0 | E55: 0 | F55: 0 | G55: =IF($D$5+$C55<G$5,"",IF($D$5+$C55=G$5,0.5*G46/$C46,G46/$C46+0.5*G64/$C64)) -> 0
A56: =RIGHT(B$37,2)&"Af" -> 01Af | B56: Afschrijvingen zoals opgegeven door netbeheerder | D56: =IF(EofG="E",IF(ISERROR(VLOOKUP(Kapitaalkosten!$A56,'Data E (oud)'!$1:$1048576,HLOOKUP(Naam&Kapitaalkosten!D$5&EofG,'Data E (oud)'!$D$5:$IV$6,2,FALSE),FALSE)),0,VLOOKUP(Kapitaalkosten!$A56,'Data E (oud)'!$1:$1048576,HLOOKUP(Naam&Kapitaalkosten!D$5&EofG,'Data E (oud)'!$D$5:$IV$6,2,FALSE),FALSE)),IF(ISERROR(VLOOKUP(Kapitaalkosten!$A56,'Data G'!$1:$1048576,HLOOKUP(Naam&Kapitaalkosten!D$5&EofG,'Data G'!$D$5:$IV$6,2,FALSE),FALSE)),0,VLOOKUP(Kapitaalkosten!$A56,'Data G'!$1:$1048576,HLOOKUP(Naam&Kapitaalkosten!D$5&EofG,'Data G'!$D$5:$IV$6,2,FALSE),FALSE))) -> 0 | E56: =IF(EofG="E",IF(ISERROR(VLOOKUP(Kapitaalkosten!$A56,'Data E (oud)'!$1:$1048576,HLOOKUP(Naam&Kapitaalkosten!E$5&EofG,'Data E (oud)'!$D$5:$IV$6,2,FALSE),FALSE)),0,VLOOKUP(Kapitaalkosten!$A56,'Data E (oud)'!$1:$1048576,HLOOKUP(Naam&Kapitaalkosten!E$5&EofG,'Data E (oud)'!$D$5:$IV$6,2,FALSE),FALSE)),IF(ISERROR(VLOOKUP(Kapitaalkosten!$A56,'Data G'!$1:$1048576,HLOOKUP(Naam&Kapitaalkosten!E$5&EofG,'Data G'!$D$5:$IV$6,2,FALSE),FALSE)),0,VLOOKUP(Kapitaalkosten!$A56,'Data G'!$1:$1048576,HLOOKUP(Naam&Kapitaalkosten!E$5&EofG,'Data G'!$D$5:$IV$6,2,FALSE),FALSE))) -> 0 | F56: =IF(EofG="E",IF(ISERROR(VLOOKUP(Kapitaalkosten!$A56,'Data E (oud)'!$1:$1048576,HLOOKUP(Naam&Kapitaalkosten!F$5&EofG,'Data E (oud)'!$D$5:$IV$6,2,FALSE),FALSE)),0,VLOOKUP(Kapitaalkosten!$A56,'Data E (oud)'!$1:$1048576,HLOOKUP(Naam&Kapitaalkosten!F$5&EofG,'Data E (oud)'!$D$5:$IV$6,2,FALSE),FALSE)),IF(ISERROR(VLOOKUP(Kapitaalkosten!$A56,'Data G'!$1:$1048576,HLOOKUP(Naam&Kapitaalkosten!F$5&EofG,'Data G'!$D$5:$IV$6,2,FALSE),FALSE)),0,VLOOKUP(Kapitaalkosten!$A56,'Data G'!$1:$1048576,HLOOKUP(Naam&Kapitaalkosten!F$5&EofG,'Data G'!$D$5:$IV$6,2,FALSE),FALSE))) -> 0 | G56: =IF(EofG="E",IF(ISERROR(VLOOKUP(Kapitaalkosten!$A56,'Data E (oud)'!$1:$1048576,HLOOKUP(Naam&Kapitaalkosten!G$5&EofG,'Data E (oud)'!$D$5:$IV$6,2,FALSE),FALSE)),0,VLOOKUP(Kapitaalkosten!$A56,'Data E (oud)'!$1:$1048576,HLOOKUP(Naam&Kapitaalkosten!G$5&EofG,'Data E (oud)'!$D$5:$IV$6,2,FALSE),FALSE)),IF(ISERROR(VLOOKUP(Kapitaalkosten!$A56,'Data G'!$1:$1048576,HLOOKUP(Naam&Kapitaalkosten!G$5&EofG,'Data G'!$D$5:$IV$6,2,FALSE),FALSE)),0,VLOOKUP(Kapitaalkosten!$A56,'Data G'!$1:$1048576,HLOOKUP(Naam&Kapitaalkosten!G$5&EofG,'Data G'!$D$5:$IV$6,2,FALSE),FALSE))) -> 0 | H56: =IF(EofG="E",IF(ISERROR(VLOOKUP(Kapitaalkosten!$A56,'Data E (oud)'!$1:$1048576,HLOOKUP(Naam&Kapitaalkosten!H$5&EofG,'Data E (oud)'!$D$5:$IV$6,2,FALSE),FALSE)),0,VLOOKUP(Kapitaalkosten!$A56,'Data E (oud)'!$1:$1048576,HLOOKUP(Naam&Kapitaalkosten!H$5&EofG,'Data E (oud)'!$D$5:$IV$6,2,FALSE),FALSE)),IF(ISERROR(VLOOKUP(Kapitaalkosten!$A56,'Data G'!$1:$1048576,HLOOKUP(Naam&Kapitaalkosten!H$5&EofG,'Data G'!$D$5:$IV$6,2,FALSE),FALSE)),0,VLOOKUP(Kapitaalkosten!$A56,'Data G'!$1:$1048576,HLOOKUP(Naam&Kapitaalkosten!H$5&EofG,'Data G'!$D$5:$IV$6,2,FALSE),FALSE))) -> 0 | I56: =IF(EofG="E",IF(ISERROR(VLOOKUP(Kapitaalkosten!$A56,'Data E (oud)'!$1:$1048576,HLOOKUP(Naam&Kapitaalkosten!I$5&EofG,'Data E (oud)'!$D$5:$IV$6,2,FALSE),FALSE)),0,VLOOKUP(Kapitaalkosten!$A56,'Data E (oud)'!$1:$1048576,HLOOKUP(Naam&Kapitaalkosten!I$5&EofG,'Data E (oud)'!$D$5:$IV$6,2,FALSE),FALSE)),IF(ISERROR(VLOOKUP(Kapitaalkosten!$A56,'Data G'!$1:$1048576,HLOOKUP(Naam&Kapitaalkosten!I$5&EofG,'Data G'!$D$5:$IV$6,2,FALSE),FALSE)),0,VLOOKUP(Kapitaalkosten!$A56,'Data G'!$1:$1048576,HLOOKUP(Naam&Kapitaalkosten!I$5&EofG,'Data G'!$D$5:$IV$6,2,FALSE),FALSE))) -> 0 | J56: =J48 -> 0 | K56: =K48 -> 0 | L56: =L48 -> 0
B57: Desinvesteringen | E57: =SUM(E58:E65) -> 0 | F57: =SUM(F58:F65) -> 0 | G57: 0 | H57: 0 | I57: 0 | J57: 0 | K57: 0 | L57: 0 | M57: 0 | N57: 0 | O57: 0 | P57: 0 | Q57: 0 | R57: 0 | S57: 0 | T57: 0 | U57: 0 | V57: 0 | W57: 0
A58: =RIGHT(B$37,2)&"Des"&C58 -> 01Des50 | B58: Desinvesteringen met afschrijvingstermijn: | C58: 50 | E58: =IF(EofG="E",IF(ISERROR(VLOOKUP(Kapitaalkosten!$A58,'Data E (oud)'!$1:$1048576,HLOOKUP(Naam&Kapitaalkosten!E$5&EofG,'Data E (oud)'!$D$5:$IV$6,2,FALSE),FALSE)),0,VLOOKUP(Kapitaalkosten!$A58,'Data E (oud)'!$1:$1048576,HLOOKUP(Naam&Kapitaalkosten!E$5&EofG,'Data E (oud)'!$D$5:$IV$6,2,FALSE),FALSE)),IF(ISERROR(VLOOKUP(Kapitaalkosten!$A58,'Data G'!$1:$1048576,HLOOKUP(Naam&Kapitaalkosten!E$5&EofG,'Data G'!$D$5:$IV$6,2,FALSE),FALSE)),0,VLOOKUP(Kapitaalkosten!$A58,'Data G'!$1:$1048576,HLOOKUP(Naam&Kapitaalkosten!E$5&EofG,'Data G'!$D$5:$IV$6,2,FALSE),FALSE))) -> 0 | F58: =IF(EofG="E",IF(ISERROR(VLOOKUP(Kapitaalkosten!$A58,'Data E (oud)'!$1:$1048576,HLOOKUP(Naam&Kapitaalkosten!F$5&EofG,'Data E (oud)'!$D$5:$IV$6,2,FALSE),FALSE)),0,VLOOKUP(Kapitaalkosten!$A58,'Data E (oud)'!$1:$1048576,HLOOKUP(Naam&Kapitaalkosten!F$5&EofG,'Data E (oud)'!$D$5:$IV$6,2,FALSE),FALSE)),IF(ISERROR(VLOOKUP(Kapitaalkosten!$A58,'Data G'!$1:$1048576,HLOOKUP(Naam&Kapitaalkosten!F$5&EofG,'Data G'!$D$5:$IV$6,2,FALSE),FALSE)),0,VLOOKUP(Kapitaalkosten!$A58,'Data G'!$1:$1048576,HLOOKUP(Naam&Kapitaalkosten!F$5&EofG,'Data G'!$D$5:$IV$6,2,FALSE),FALSE))) -> 0 | G58: =IF(EofG="E",IF(ISERROR(VLOOKUP(Kapitaalkosten!$A58,'Data E (oud)'!$1:$1048576,HLOOKUP(Naam&Kapitaalkosten!G$5&EofG,'Data E (oud)'!$D$5:$IV$6,2,FALSE),FALSE)),0,VLOOKUP(Kapitaalkosten!$A58,'Data E (oud)'!$1:$1048576,HLOOKUP(Naam&Kapitaalkosten!G$5&EofG,'Data E (oud)'!$D$5:$IV$6,2,FALSE),FALSE)),IF(ISERROR(VLOOKUP(Kapitaalkosten!$A58,'Data G'!$1:$1048576,HLOOKUP(Naam&Kapitaalkosten!G$5&EofG,'Data G'!$D$5:$IV$6,2,FALSE),FALSE)),0,VLOOKUP(Kapitaalkosten!$A58,'Data G'!$1:$1048576,HLOOKUP(Naam&Kapitaalkosten!G$5&EofG,'Data G'!$D$5:$IV$6,2,FALSE),FALSE))) -> 0 | H58: =IF(EofG="E",IF(ISERROR(VLOOKUP(Kapitaalkosten!$A58,'Data E (oud)'!$1:$1048576,HLOOKUP(Naam&Kapitaalkosten!H$5&EofG,'Data E (oud)'!$D$5:$IV$6,2,FALSE),FALSE)),0,VLOOKUP(Kapitaalkosten!$A58,'Data E (oud)'!$1:$1048576,HLOOKUP(Naam&Kapitaalkosten!H$5&EofG,'Data E (oud)'!$D$5:$IV$6,2,FALSE),FALSE)),IF(ISERROR(VLOOKUP(Kapitaalkosten!$A58,'Data G'!$1:$1048576,HLOOKUP(Naam&Kapitaalkosten!H$5&EofG,'Data G'!$D$5:$IV$6,2,FALSE),FALSE)),0,VLOOKUP(Kapitaalkosten!$A58,'Data G'!$1:$1048576,HLOOKUP(Naam&Kapitaalkosten!H$5&EofG,'Data G'!$D$5:$IV$6,2,FALSE),FALSE))) -> 0 | I58: =IF(EofG="E",IF(ISERROR(VLOOKUP(Kapitaalkosten!$A58,'Data E (oud)'!$1:$1048576,HLOOKUP(Naam&Kapitaalkosten!I$5&EofG,'Data E (oud)'!$D$5:$IV$6,2,FALSE),FALSE)),0,VLOOKUP(Kapitaalkosten!$A58,'Data E (oud)'!$1:$1048576,HLOOKUP(Naam&Kapitaalkosten!I$5&EofG,'Data E (oud)'!$D$5:$IV$6,2,FALSE),FALSE)),IF(ISERROR(VLOOKUP(Kapitaalkosten!$A58,'Data G'!$1:$1048576,HLOOKUP(Naam&Kapitaalkosten!I$5&EofG,'Data G'!$D$5:$IV$6,2,FALSE),FALSE)),0,VLOOKUP(Kapitaalkosten!$A58,'Data G'!$1:$1048576,HLOOKUP(Naam&Kapitaalkosten!I$5&EofG,'Data G'!$D$5:$IV$6,2,FALSE),FALSE))) -> 0 | J58: =IF(EofG="E",IF(ISERROR(VLOOKUP(Kapitaalkosten!$A58,'Data E (oud)'!$1:$1048576,HLOOKUP(Naam&Kapitaalkosten!J$5&EofG,'Data E (oud)'!$D$5:$IV$6,2,FALSE),FALSE)),0,VLOOKUP(Kapitaalkosten!$A58,'Data E (oud)'!$1:$1048576,HLOOKUP(Naam&Kapitaalkosten!J$5&EofG,'Data E (oud)'!$D$5:$IV$6,2,FALSE),FALSE)),IF(ISERROR(VLOOKUP(Kapitaalkosten!$A58,'Data G'!$1:$1048576,HLOOKUP(Naam&Kapitaalkosten!J$5&EofG,'Data G'!$D$5:$IV$6,2,FALSE),FALSE)),0,VLOOKUP(Kapitaalkosten!$A58,'Data G'!$1:$1048576,HLOOKUP(Naam&Kapitaalkosten!J$5&EofG,'Data G'!$D$5:$IV$6,2,FALSE),FALSE))) -> 0 | K58: =IF(EofG="E",IF(ISERROR(VLOOKUP(Kapitaalkosten!$A58,'Data E (oud)'!$1:$1048576,HLOOKUP(Naam&Kapitaalkosten!K$5&EofG,'Data E (oud)'!$D$5:$IV$6,2,FALSE),FALSE)),0,VLOOKUP(Kapitaalkosten!$A58,'Data E (oud)'!$1:$1048576,HLOOKUP(Naam&Kapitaalkosten!K$5&EofG,'Data E (oud)'!$D$5:$IV$6,2,FALSE),FALSE)),IF(ISERROR(VLOOKUP(Kapitaalkosten!$A58,'Data G'!$1:$1048576,HLOOKUP(Naam&Kapitaalkosten!K$5&EofG,'Data G'!$D$5:$IV$6,2,FALSE),FALSE)),0,VLOOKUP(Kapitaalkosten!$A58,'Data G'!$1:$1048576,HLOOKUP(Naam&Kapitaalkosten!K$5&EofG,'Data G'!$D$5:$IV$6,2,FALSE),FALSE))) -> 0 | L58: =IF(EofG="E",IF(ISERROR(VLOOKUP(Kapitaalkosten!$A58,'Data E (oud)'!$1:$1048576,HLOOKUP(Naam&Kapitaalkosten!L$5&EofG,'Data E (oud)'!$D$5:$IV$6,2,FALSE),FALSE)),0,VLOOKUP(Kapitaalkosten!$A58,'Data E (oud)'!$1:$1048576,HLOOKUP(Naam&Kapitaalkosten!L$5&EofG,'Data E (oud)'!$D$5:$IV$6,2,FALSE),FALSE)),IF(ISERROR(VLOOKUP(Kapitaalkosten!$A58,'Data G'!$1:$1048576,HLOOKUP(Naam&Kapitaalkosten!L$5&EofG,'Data G'!$D$5:$IV$6,2,FALSE),FALSE)),0,VLOOKUP(Kapitaalkosten!$A58,'Data G'!$1:$1048576,HLOOKUP(Naam&Kapitaalkosten!L$5&EofG,'Data G'!$D$5:$IV$6,2,FALSE),FALSE))) -> 0
A59: 01Des40 | B59: Desinvesteringen met afschrijvingstermijn: | C59: 40 | E59: =IF(EofG="E",IF(ISERROR(VLOOKUP(Kapitaalkosten!$A59,'Data E (oud)'!$1:$1048576,HLOOKUP(Naam&Kapitaalkosten!E$5&EofG,'Data E (oud)'!$D$5:$IV$6,2,FALSE),FALSE)),0,VLOOKUP(Kapitaalkosten!$A59,'Data E (oud)'!$1:$1048576,HLOOKUP(Naam&Kapitaalkosten!E$5&EofG,'Data E (oud)'!$D$5:$IV$6,2,FALSE),FALSE)),IF(ISERROR(VLOOKUP(Kapitaalkosten!$A59,'Data G'!$1:$1048576,HLOOKUP(Naam&Kapitaalkosten!E$5&EofG,'Data G'!$D$5:$IV$6,2,FALSE),FALSE)),0,VLOOKUP(Kapitaalkosten!$A59,'Data G'!$1:$1048576,HLOOKUP(Naam&Kapitaalkosten!E$5&EofG,'Data G'!$D$5:$IV$6,2,FALSE),FALSE))) -> 0 | F59: =IF(EofG="E",IF(ISERROR(VLOOKUP(Kapitaalkosten!$A59,'Data E (oud)'!$1:$1048576,HLOOKUP(Naam&Kapitaalkosten!F$5&EofG,'Data E (oud)'!$D$5:$IV$6,2,FALSE),FALSE)),0,VLOOKUP(Kapitaalkosten!$A59,'Data E (oud)'!$1:$1048576,HLOOKUP(Naam&Kapitaalkosten!F$5&EofG,'Data E (oud)'!$D$5:$IV$6,2,FALSE),FALSE)),IF(ISERROR(VLOOKUP(Kapitaalkosten!$A59,'Data G'!$1:$1048576,HLOOKUP(Naam&Kapitaalkosten!F$5&EofG,'Data G'!$D$5:$IV$6,2,FALSE),FALSE)),0,VLOOKUP(Kapitaalkosten!$A59,'Data G'!$1:$1048576,HLOOKUP(Naam&Kapitaalkosten!F$5&EofG,'Data G'!$D$5:$IV$6,2,FALSE),FALSE))) -> 0 | G59: =IF(EofG="E",IF(ISERROR(VLOOKUP(Kapitaalkosten!$A59,'Data E (oud)'!$1:$1048576,HLOOKUP(Naam&Kapitaalkosten!G$5&EofG,'Data E (oud)'!$D$5:$IV$6,2,FALSE),FALSE)),0,VLOOKUP(Kapitaalkosten!$A59,'Data E (oud)'!$1:$1048576,HLOOKUP(Naam&Kapitaalkosten!G$5&EofG,'Data E (oud)'!$D$5:$IV$6,2,FALSE),FALSE)),IF(ISERROR(VLOOKUP(Kapitaalkosten!$A59,'Data G'!$1:$1048576,HLOOKUP(Naam&Kapitaalkosten!G$5&EofG,'Data G'!$D$5:$IV$6,2,FALSE),FALSE)),0,VLOOKUP(Kapitaalkosten!$A59,'Data G'!$1:$1048576,HLOOKUP(Naam&Kapitaalkosten!G$5&EofG,'Data G'!$D$5:$IV$6,2,FALSE),FALSE))) -> 0 | H59: =IF(EofG="E",IF(ISERROR(VLOOKUP(Kapitaalkosten!$A59,'Data E (oud)'!$1:$1048576,HLOOKUP(Naam&Kapitaalkosten!H$5&EofG,'Data E (oud)'!$D$5:$IV$6,2,FALSE),FALSE)),0,VLOOKUP(Kapitaalkosten!$A59,'Data E (oud)'!$1:$1048576,HLOOKUP(Naam&Kapitaalkosten!H$5&EofG,'Data E (oud)'!$D$5:$IV$6,2,FALSE),FALSE)),IF(ISERROR(VLOOKUP(Kapitaalkosten!$A59,'Data G'!$1:$1048576,HLOOKUP(Naam&Kapitaalkosten!H$5&EofG,'Data G'!$D$5:$IV$6,2,FALSE),FALSE)),0,VLOOKUP(Kapitaalkosten!$A59,'Data G'!$1:$1048576,HLOOKUP(Naam&Kapitaalkosten!H$5&EofG,'Data G'!$D$5:$IV$6,2,FALSE),FALSE))) -> 0 | I59: =IF(EofG="E",IF(ISERROR(VLOOKUP(Kapitaalkosten!$A59,'Data E (oud)'!$1:$1048576,HLOOKUP(Naam&Kapitaalkosten!I$5&EofG,'Data E (oud)'!$D$5:$IV$6,2,FALSE),FALSE)),0,VLOOKUP(Kapitaalkosten!$A59,'Data E (oud)'!$1:$1048576,HLOOKUP(Naam&Kapitaalkosten!I$5&EofG,'Data E (oud)'!$D$5:$IV$6,2,FALSE),FALSE)),IF(ISERROR(VLOOKUP(Kapitaalkosten!$A59,'Data G'!$1:$1048576,HLOOKUP(Naam&Kapitaalkosten!I$5&EofG,'Data G'!$D$5:$IV$6,2,FALSE),FALSE)),0,VLOOKUP(Kapitaalkosten!$A59,'Data G'!$1:$1048576,HLOOKUP(Naam&Kapitaalkosten!I$5&EofG,'Data G'!$D$5:$IV$6,2,FALSE),FALSE))) -> 0 | J59: =IF(EofG="E",IF(ISERROR(VLOOKUP(Kapitaalkosten!$A59,'Data E (oud)'!$1:$1048576,HLOOKUP(Naam&Kapitaalkosten!J$5&EofG,'Data E (oud)'!$D$5:$IV$6,2,FALSE),FALSE)),0,VLOOKUP(Kapitaalkosten!$A59,'Data E (oud)'!$1:$1048576,HLOOKUP(Naam&Kapitaalkosten!J$5&EofG,'Data E (oud)'!$D$5:$IV$6,2,FALSE),FALSE)),IF(ISERROR(VLOOKUP(Kapitaalkosten!$A59,'Data G'!$1:$1048576,HLOOKUP(Naam&Kapitaalkosten!J$5&EofG,'Data G'!$D$5:$IV$6,2,FALSE),FALSE)),0,VLOOKUP(Kapitaalkosten!$A59,'Data G'!$1:$1048576,HLOOKUP(Naam&Kapitaalkosten!J$5&EofG,'Data G'!$D$5:$IV$6,2,FALSE),FALSE))) -> 0 | K59: =IF(EofG="E",IF(ISERROR(VLOOKUP(Kapitaalkosten!$A59,'Data E (oud)'!$1:$1048576,HLOOKUP(Naam&Kapitaalkosten!K$5&EofG,'Data E (oud)'!$D$5:$IV$6,2,FALSE),FALSE)),0,VLOOKUP(Kapitaalkosten!$A59,'Data E (oud)'!$1:$1048576,HLOOKUP(Naam&Kapitaalkosten!K$5&EofG,'Data E (oud)'!$D$5:$IV$6,2,FALSE),FALSE)),IF(ISERROR(VLOOKUP(Kapitaalkosten!$A59,'Data G'!$1:$1048576,HLOOKUP(Naam&Kapitaalkosten!K$5&EofG,'Data G'!$D$5:$IV$6,2,FALSE),FALSE)),0,VLOOKUP(Kapitaalkosten!$A59,'Data G'!$1:$1048576,HLOOKUP(Naam&Kapitaalkosten!K$5&EofG,'Data G'!$D$5:$IV$6,2,FALSE),FALSE))) -> 0 | L59: =IF(EofG="E",IF(ISERROR(VLOOKUP(Kapitaalkosten!$A59,'Data E (oud)'!$1:$1048576,HLOOKUP(Naam&Kapitaalkosten!L$5&EofG,'Data E (oud)'!$D$5:$IV$6,2,FALSE),FALSE)),0,VLOOKUP(Kapitaalkosten!$A59,'Data E (oud)'!$1:$1048576,HLOOKUP(Naam&Kapitaalkosten!L$5&EofG,'Data E (oud)'!$D$5:$IV$6,2,FALSE),FALSE)),IF(ISERROR(VLOOKUP(Kapitaalkosten!$A59,'Data G'!$1:$1048576,HLOOKUP(Naam&Kapitaalkosten!L$5&EofG,'Data G'!$D$5:$IV$6,2,FALSE),FALSE)),0,VLOOKUP(Kapitaalkosten!$A59,'Data G'!$1:$1048576,HLOOKUP(Naam&Kapitaalkosten!L$5&EofG,'Data G'!$D$5:$IV$6,2,FALSE),FALSE))) -> 0
A60: 01Des30 | B60: Desinvesteringen met afschrijvingstermijn: | C60: 30 | E60: =IF(EofG="E",IF(ISERROR(VLOOKUP(Kapitaalkosten!$A60,'Data E (oud)'!$1:$1048576,HLOOKUP(Naam&Kapitaalkosten!E$5&EofG,'Data E (oud)'!$D$5:$IV$6,2,FALSE),FALSE)),0,VLOOKUP(Kapitaalkosten!$A60,'Data E (oud)'!$1:$1048576,HLOOKUP(Naam&Kapitaalkosten!E$5&EofG,'Data E (oud)'!$D$5:$IV$6,2,FALSE),FALSE)),IF(ISERROR(VLOOKUP(Kapitaalkosten!$A60,'Data G'!$1:$1048576,HLOOKUP(Naam&Kapitaalkosten!E$5&EofG,'Data G'!$D$5:$IV$6,2,FALSE),FALSE)),0,VLOOKUP(Kapitaalkosten!$A60,'Data G'!$1:$1048576,HLOOKUP(Naam&Kapitaalkosten!E$5&EofG,'Data G'!$D$5:$IV$6,2,FALSE),FALSE))) -> 0 | F60: =IF(EofG="E",IF(ISERROR(VLOOKUP(Kapitaalkosten!$A60,'Data E (oud)'!$1:$1048576,HLOOKUP(Naam&Kapitaalkosten!F$5&EofG,'Data E (oud)'!$D$5:$IV$6,2,FALSE),FALSE)),0,VLOOKUP(Kapitaalkosten!$A60,'Data E (oud)'!$1:$1048576,HLOOKUP(Naam&Kapitaalkosten!F$5&EofG,'Data E (oud)'!$D$5:$IV$6,2,FALSE),FALSE)),IF(ISERROR(VLOOKUP(Kapitaalkosten!$A60,'Data G'!$1:$1048576,HLOOKUP(Naam&Kapitaalkosten!F$5&EofG,'Data G'!$D$5:$IV$6,2,FALSE),FALSE)),0,VLOOKUP(Kapitaalkosten!$A60,'Data G'!$1:$1048576,HLOOKUP(Naam&Kapitaalkosten!F$5&EofG,'Data G'!$D$5:$IV$6,2,FALSE),FALSE))) -> 0 | G60: =IF(EofG="E",IF(ISERROR(VLOOKUP(Kapitaalkosten!$A60,'Data E (oud)'!$1:$1048576,HLOOKUP(Naam&Kapitaalkosten!G$5&EofG,'Data E (oud)'!$D$5:$IV$6,2,FALSE),FALSE)),0,VLOOKUP(Kapitaalkosten!$A60,'Data E (oud)'!$1:$1048576,HLOOKUP(Naam&Kapitaalkosten!G$5&EofG,'Data E (oud)'!$D$5:$IV$6,2,FALSE),FALSE)),IF(ISERROR(VLOOKUP(Kapitaalkosten!$A60,'Data G'!$1:$1048576,HLOOKUP(Naam&Kapitaalkosten!G$5&EofG,'Data G'!$D$5:$IV$6,2,FALSE),FALSE)),0,VLOOKUP(Kapitaalkosten!$A60,'Data G'!$1:$1048576,HLOOKUP(Naam&Kapitaalkosten!G$5&EofG,'Data G'!$D$5:$IV$6,2,FALSE),FALSE))) -> 0 | H60: =IF(EofG="E",IF(ISERROR(VLOOKUP(Kapitaalkosten!$A60,'Data E (oud)'!$1:$1048576,HLOOKUP(Naam&Kapitaalkosten!H$5&EofG,'Data E (oud)'!$D$5:$IV$6,2,FALSE),FALSE)),0,VLOOKUP(Kapitaalkosten!$A60,'Data E (oud)'!$1:$1048576,HLOOKUP(Naam&Kapitaalkosten!H$5&EofG,'Data E (oud)'!$D$5:$IV$6,2,FALSE),FALSE)),IF(ISERROR(VLOOKUP(Kapitaalkosten!$A60,'Data G'!$1:$1048576,HLOOKUP(Naam&Kapitaalkosten!H$5&EofG,'Data G'!$D$5:$IV$6,2,FALSE),FALSE)),0,VLOOKUP(Kapitaalkosten!$A60,'Data G'!$1:$1048576,HLOOKUP(Naam&Kapitaalkosten!H$5&EofG,'Data G'!$D$5:$IV$6,2,FALSE),FALSE))) -> 0 | I60: =IF(EofG="E",IF(ISERROR(VLOOKUP(Kapitaalkosten!$A60,'Data E (oud)'!$1:$1048576,HLOOKUP(Naam&Kapitaalkosten!I$5&EofG,'Data E (oud)'!$D$5:$IV$6,2,FALSE),FALSE)),0,VLOOKUP(Kapitaalkosten!$A60,'Data E (oud)'!$1:$1048576,HLOOKUP(Naam&Kapitaalkosten!I$5&EofG,'Data E (oud)'!$D$5:$IV$6,2,FALSE),FALSE)),IF(ISERROR(VLOOKUP(Kapitaalkosten!$A60,'Data G'!$1:$1048576,HLOOKUP(Naam&Kapitaalkosten!I$5&EofG,'Data G'!$D$5:$IV$6,2,FALSE),FALSE)),0,VLOOKUP(Kapitaalkosten!$A60,'Data G'!$1:$1048576,HLOOKUP(Naam&Kapitaalkosten!I$5&EofG,'Data G'!$D$5:$IV$6,2,FALSE),FALSE))) -> 0 | J60: =IF(EofG="E",IF(ISERROR(VLOOKUP(Kapitaalkosten!$A60,'Data E (oud)'!$1:$1048576,HLOOKUP(Naam&Kapitaalkosten!J$5&EofG,'Data E (oud)'!$D$5:$IV$6,2,FALSE),FALSE)),0,VLOOKUP(Kapitaalkosten!$A60,'Data E (oud)'!$1:$1048576,HLOOKUP(Naam&Kapitaalkosten!J$5&EofG,'Data E (oud)'!$D$5:$IV$6,2,FALSE),FALSE)),IF(ISERROR(VLOOKUP(Kapitaalkosten!$A60,'Data G'!$1:$1048576,HLOOKUP(Naam&Kapitaalkosten!J$5&EofG,'Data G'!$D$5:$IV$6,2,FALSE),FALSE)),0,VLOOKUP(Kapitaalkosten!$A60,'Data G'!$1:$1048576,HLOOKUP(Naam&Kapitaalkosten!J$5&EofG,'Data G'!$D$5:$IV$6,2,FALSE),FALSE))) -> 0 | K60: =IF(EofG="E",IF(ISERROR(VLOOKUP(Kapitaalkosten!$A60,'Data E (oud)'!$1:$1048576,HLOOKUP(Naam&Kapitaalkosten!K$5&EofG,'Data E (oud)'!$D$5:$IV$6,2,FALSE),FALSE)),0,VLOOKUP(Kapitaalkosten!$A60,'Data E (oud)'!$1:$1048576,HLOOKUP(Naam&Kapitaalkosten!K$5&EofG,'Data E (oud)'!$D$5:$IV$6,2,FALSE),FALSE)),IF(ISERROR(VLOOKUP(Kapitaalkosten!$A60,'Data G'!$1:$1048576,HLOOKUP(Naam&Kapitaalkosten!K$5&EofG,'Data G'!$D$5:$IV$6,2,FALSE),FALSE)),0,VLOOKUP(Kapitaalkosten!$A60,'Data G'!$1:$1048576,HLOOKUP(Naam&Kapitaalkosten!K$5&EofG,'Data G'!$D$5:$IV$6,2,FALSE),FALSE))) -> 0 | L60: =IF(EofG="E",IF(ISERROR(VLOOKUP(Kapitaalkosten!$A60,'Data E (oud)'!$1:$1048576,HLOOKUP(Naam&Kapitaalkosten!L$5&EofG,'Data E (oud)'!$D$5:$IV$6,2,FALSE),FALSE)),0,VLOOKUP(Kapitaalkosten!$A60,'Data E (oud)'!$1:$1048576,HLOOKUP(Naam&Kapitaalkosten!L$5&EofG,'Data E (oud)'!$D$5:$IV$6,2,FALSE),FALSE)),IF(ISERROR(VLOOKUP(Kapitaalkosten!$A60,'Data G'!$1:$1048576,HLOOKUP(Naam&Kapitaalkosten!L$5&EofG,'Data G'!$D$5:$IV$6,2,FALSE),FALSE)),0,VLOOKUP(Kapitaalkosten!$A60,'Data G'!$1:$1048576,HLOOKUP(Naam&Kapitaalkosten!L$5&EofG,'Data G'!$D$5:$IV$6,2,FALSE),FALSE))) -> 0
A61: 01Des25 | B61: Desinvesteringen met afschrijvingstermijn: | C61: 25 | E61: =IF(EofG="E",IF(ISERROR(VLOOKUP(Kapitaalkosten!$A61,'Data E (oud)'!$1:$1048576,HLOOKUP(Naam&Kapitaalkosten!E$5&EofG,'Data E (oud)'!$D$5:$IV$6,2,FALSE),FALSE)),0,VLOOKUP(Kapitaalkosten!$A61,'Data E (oud)'!$1:$1048576,HLOOKUP(Naam&Kapitaalkosten!E$5&EofG,'Data E (oud)'!$D$5:$IV$6,2,FALSE),FALSE)),IF(ISERROR(VLOOKUP(Kapitaalkosten!$A61,'Data G'!$1:$1048576,HLOOKUP(Naam&Kapitaalkosten!E$5&EofG,'Data G'!$D$5:$IV$6,2,FALSE),FALSE)),0,VLOOKUP(Kapitaalkosten!$A61,'Data G'!$1:$1048576,HLOOKUP(Naam&Kapitaalkosten!E$5&EofG,'Data G'!$D$5:$IV$6,2,FALSE),FALSE))) -> 0 | F61: =IF(EofG="E",IF(ISERROR(VLOOKUP(Kapitaalkosten!$A61,'Data E (oud)'!$1:$1048576,HLOOKUP(Naam&Kapitaalkosten!F$5&EofG,'Data E (oud)'!$D$5:$IV$6,2,FALSE),FALSE)),0,VLOOKUP(Kapitaalkosten!$A61,'Data E (oud)'!$1:$1048576,HLOOKUP(Naam&Kapitaalkosten!F$5&EofG,'Data E (oud)'!$D$5:$IV$6,2,FALSE),FALSE)),IF(ISERROR(VLOOKUP(Kapitaalkosten!$A61,'Data G'!$1:$1048576,HLOOKUP(Naam&Kapitaalkosten!F$5&EofG,'Data G'!$D$5:$IV$6,2,FALSE),FALSE)),0,VLOOKUP(Kapitaalkosten!$A61,'Data G'!$1:$1048576,HLOOKUP(Naam&Kapitaalkosten!F$5&EofG,'Data G'!$D$5:$IV$6,2,FALSE),FALSE))) -> 0 | G61: =IF(EofG="E",IF(ISERROR(VLOOKUP(Kapitaalkosten!$A61,'Data E (oud)'!$1:$1048576,HLOOKUP(Naam&Kapitaalkosten!G$5&EofG,'Data E (oud)'!$D$5:$IV$6,2,FALSE),FALSE)),0,VLOOKUP(Kapitaalkosten!$A61,'Data E (oud)'!$1:$1048576,HLOOKUP(Naam&Kapitaalkosten!G$5&EofG,'Data E (oud)'!$D$5:$IV$6,2,FALSE),FALSE)),IF(ISERROR(VLOOKUP(Kapitaalkosten!$A61,'Data G'!$1:$1048576,HLOOKUP(Naam&Kapitaalkosten!G$5&EofG,'Data G'!$D$5:$IV$6,2,FALSE),FALSE)),0,VLOOKUP(Kapitaalkosten!$A61,'Data G'!$1:$1048576,HLOOKUP(Naam&Kapitaalkosten!G$5&EofG,'Data G'!$D$5:$IV$6,2,FALSE),FALSE))) -> 0 | H61: =IF(EofG="E",IF(ISERROR(VLOOKUP(Kapitaalkosten!$A61,'Data E (oud)'!$1:$1048576,HLOOKUP(Naam&Kapitaalkosten!H$5&EofG,'Data E (oud)'!$D$5:$IV$6,2,FALSE),FALSE)),0,VLOOKUP(Kapitaalkosten!$A61,'Data E (oud)'!$1:$1048576,HLOOKUP(Naam&Kapitaalkosten!H$5&EofG,'Data E (oud)'!$D$5:$IV$6,2,FALSE),FALSE)),IF(ISERROR(VLOOKUP(Kapitaalkosten!$A61,'Data G'!$1:$1048576,HLOOKUP(Naam&Kapitaalkosten!H$5&EofG,'Data G'!$D$5:$IV$6,2,FALSE),FALSE)),0,VLOOKUP(Kapitaalkosten!$A61,'Data G'!$1:$1048576,HLOOKUP(Naam&Kapitaalkosten!H$5&EofG,'Data G'!$D$5:$IV$6,2,FALSE),FALSE))) -> 0 | I61: =IF(EofG="E",IF(ISERROR(VLOOKUP(Kapitaalkosten!$A61,'Data E (oud)'!$1:$1048576,HLOOKUP(Naam&Kapitaalkosten!I$5&EofG,'Data E (oud)'!$D$5:$IV$6,2,FALSE),FALSE)),0,VLOOKUP(Kapitaalkosten!$A61,'Data E (oud)'!$1:$1048576,HLOOKUP(Naam&Kapitaalkosten!I$5&EofG,'Data E (oud)'!$D$5:$IV$6,2,FALSE),FALSE)),IF(ISERROR(VLOOKUP(Kapitaalkosten!$A61,'Data G'!$1:$1048576,HLOOKUP(Naam&Kapitaalkosten!I$5&EofG,'Data G'!$D$5:$IV$6,2,FALSE),FALSE)),0,VLOOKUP(Kapitaalkosten!$A61,'Data G'!$1:$1048576,HLOOKUP(Naam&Kapitaalkosten!I$5&EofG,'Data G'!$D$5:$IV$6,2,FALSE),FALSE))) -> 0 | J61: =IF(EofG="E",IF(ISERROR(VLOOKUP(Kapitaalkosten!$A61,'Data E (oud)'!$1:$1048576,HLOOKUP(Naam&Kapitaalkosten!J$5&EofG,'Data E (oud)'!$D$5:$IV$6,2,FALSE),FALSE)),0,VLOOKUP(Kapitaalkosten!$A61,'Data E (oud)'!$1:$1048576,HLOOKUP(Naam&Kapitaalkosten!J$5&EofG,'Data E (oud)'!$D$5:$IV$6,2,FALSE),FALSE)),IF(ISERROR(VLOOKUP(Kapitaalkosten!$A61,'Data G'!$1:$1048576,HLOOKUP(Naam&Kapitaalkosten!J$5&EofG,'Data G'!$D$5:$IV$6,2,FALSE),FALSE)),0,VLOOKUP(Kapitaalkosten!$A61,'Data G'!$1:$1048576,HLOOKUP(Naam&Kapitaalkosten!J$5&EofG,'Data G'!$D$5:$IV$6,2,FALSE),FALSE))) -> 0 | K61: =IF(EofG="E",IF(ISERROR(VLOOKUP(Kapitaalkosten!$A61,'Data E (oud)'!$1:$1048576,HLOOKUP(Naam&Kapitaalkosten!K$5&EofG,'Data E (oud)'!$D$5:$IV$6,2,FALSE),FALSE)),0,VLOOKUP(Kapitaalkosten!$A61,'Data E (oud)'!$1:$1048576,HLOOKUP(Naam&Kapitaalkosten!K$5&EofG,'Data E (oud)'!$D$5:$IV$6,2,FALSE),FALSE)),IF(ISERROR(VLOOKUP(Kapitaalkosten!$A61,'Data G'!$1:$1048576,HLOOKUP(Naam&Kapitaalkosten!K$5&EofG,'Data G'!$D$5:$IV$6,2,FALSE),FALSE)),0,VLOOKUP(Kapitaalkosten!$A61,'Data G'!$1:$1048576,HLOOKUP(Naam&Kapitaalkosten!K$5&EofG,'Data G'!$D$5:$IV$6,2,FALSE),FALSE))) -> 0 | L61: =IF(EofG="E",IF(ISERROR(VLOOKUP(Kapitaalkosten!$A61,'Data E (oud)'!$1:$1048576,HLOOKUP(Naam&Kapitaalkosten!L$5&EofG,'Data E (oud)'!$D$5:$IV$6,2,FALSE),FALSE)),0,VLOOKUP(Kapitaalkosten!$A61,'Data E (oud)'!$1:$1048576,HLOOKUP(Naam&Kapitaalkosten!L$5&EofG,'Data E (oud)'!$D$5:$IV$6,2,FALSE),FALSE)),IF(ISERROR(VLOOKUP(Kapitaalkosten!$A61,'Data G'!$1:$1048576,HLOOKUP(Naam&Kapitaalkosten!L$5&EofG,'Data G'!$D$5:$IV$6,2,FALSE),FALSE)),0,VLOOKUP(Kapitaalkosten!$A61,'Data G'!$1:$1048576,HLOOKUP(Naam&Kapitaalkosten!L$5&EofG,'Data G'!$D$5:$IV$6,2,FALSE),FALSE))) -> 0
A62: 01Des10 | B62: Desinvesteringen met afschrijvingstermijn: | C62: 10 | E62: =IF(EofG="E",IF(ISERROR(VLOOKUP(Kapitaalkosten!$A62,'Data E (oud)'!$1:$1048576,HLOOKUP(Naam&Kapitaalkosten!E$5&EofG,'Data E (oud)'!$D$5:$IV$6,2,FALSE),FALSE)),0,VLOOKUP(Kapitaalkosten!$A62,'Data E (oud)'!$1:$1048576,HLOOKUP(Naam&Kapitaalkosten!E$5&EofG,'Data E (oud)'!$D$5:$IV$6,2,FALSE),FALSE)),IF(ISERROR(VLOOKUP(Kapitaalkosten!$A62,'Data G'!$1:$1048576,HLOOKUP(Naam&Kapitaalkosten!E$5&EofG,'Data G'!$D$5:$IV$6,2,FALSE),FALSE)),0,VLOOKUP(Kapitaalkosten!$A62,'Data G'!$1:$1048576,HLOOKUP(Naam&Kapitaalkosten!E$5&EofG,'Data G'!$D$5:$IV$6,2,FALSE),FALSE))) -> 0 | F62: =IF(EofG="E",IF(ISERROR(VLOOKUP(Kapitaalkosten!$A62,'Data E (oud)'!$1:$1048576,HLOOKUP(Naam&Kapitaalkosten!F$5&EofG,'Data E (oud)'!$D$5:$IV$6,2,FALSE),FALSE)),0,VLOOKUP(Kapitaalkosten!$A62,'Data E (oud)'!$1:$1048576,HLOOKUP(Naam&Kapitaalkosten!F$5&EofG,'Data E (oud)'!$D$5:$IV$6,2,FALSE),FALSE)),IF(ISERROR(VLOOKUP(Kapitaalkosten!$A62,'Data G'!$1:$1048576,HLOOKUP(Naam&Kapitaalkosten!F$5&EofG,'Data G'!$D$5:$IV$6,2,FALSE),FALSE)),0,VLOOKUP(Kapitaalkosten!$A62,'Data G'!$1:$1048576,HLOOKUP(Naam&Kapitaalkosten!F$5&EofG,'Data G'!$D$5:$IV$6,2,FALSE),FALSE))) -> 0 | G62: =IF(EofG="E",IF(ISERROR(VLOOKUP(Kapitaalkosten!$A62,'Data E (oud)'!$1:$1048576,HLOOKUP(Naam&Kapitaalkosten!G$5&EofG,'Data E (oud)'!$D$5:$IV$6,2,FALSE),FALSE)),0,VLOOKUP(Kapitaalkosten!$A62,'Data E (oud)'!$1:$1048576,HLOOKUP(Naam&Kapitaalkosten!G$5&EofG,'Data E (oud)'!$D$5:$IV$6,2,FALSE),FALSE)),IF(ISERROR(VLOOKUP(Kapitaalkosten!$A62,'Data G'!$1:$1048576,HLOOKUP(Naam&Kapitaalkosten!G$5&EofG,'Data G'!$D$5:$IV$6,2,FALSE),FALSE)),0,VLOOKUP(Kapitaalkosten!$A62,'Data G'!$1:$1048576,HLOOKUP(Naam&Kapitaalkosten!G$5&EofG,'Data G'!$D$5:$IV$6,2,FALSE),FALSE))) -> 0 | H62: =IF(EofG="E",IF(ISERROR(VLOOKUP(Kapitaalkosten!$A62,'Data E (oud)'!$1:$1048576,HLOOKUP(Naam&Kapitaalkosten!H$5&EofG,'Data E (oud)'!$D$5:$IV$6,2,FALSE),FALSE)),0,VLOOKUP(Kapitaalkosten!$A62,'Data E (oud)'!$1:$1048576,HLOOKUP(Naam&Kapitaalkosten!H$5&EofG,'Data E (oud)'!$D$5:$IV$6,2,FALSE),FALSE)),IF(ISERROR(VLOOKUP(Kapitaalkosten!$A62,'Data G'!$1:$1048576,HLOOKUP(Naam&Kapitaalkosten!H$5&EofG,'Data G'!$D$5:$IV$6,2,FALSE),FALSE)),0,VLOOKUP(Kapitaalkosten!$A62,'Data G'!$1:$1048576,HLOOKUP(Naam&Kapitaalkosten!H$5&EofG,'Data G'!$D$5:$IV$6,2,FALSE),FALSE))) -> 0 | I62: =IF(EofG="E",IF(ISERROR(VLOOKUP(Kapitaalkosten!$A62,'Data E (oud)'!$1:$1048576,HLOOKUP(Naam&Kapitaalkosten!I$5&EofG,'Data E (oud)'!$D$5:$IV$6,2,FALSE),FALSE)),0,VLOOKUP(Kapitaalkosten!$A62,'Data E (oud)'!$1:$1048576,HLOOKUP(Naam&Kapitaalkosten!I$5&EofG,'Data E (oud)'!$D$5:$IV$6,2,FALSE),FALSE)),IF(ISERROR(VLOOKUP(Kapitaalkosten!$A62,'Data G'!$1:$1048576,HLOOKUP(Naam&Kapitaalkosten!I$5&EofG,'Data G'!$D$5:$IV$6,2,FALSE),FALSE)),0,VLOOKUP(Kapitaalkosten!$A62,'Data G'!$1:$1048576,HLOOKUP(Naam&Kapitaalkosten!I$5&EofG,'Data G'!$D$5:$IV$6,2,FALSE),FALSE))) -> 0 | J62: =IF(EofG="E",IF(ISERROR(VLOOKUP(Kapitaalkosten!$A62,'Data E (oud)'!$1:$1048576,HLOOKUP(Naam&Kapitaalkosten!J$5&EofG,'Data E (oud)'!$D$5:$IV$6,2,FALSE),FALSE)),0,VLOOKUP(Kapitaalkosten!$A62,'Data E (oud)'!$1:$1048576,HLOOKUP(Naam&Kapitaalkosten!J$5&EofG,'Data E (oud)'!$D$5:$IV$6,2,FALSE),FALSE)),IF(ISERROR(VLOOKUP(Kapitaalkosten!$A62,'Data G'!$1:$1048576,HLOOKUP(Naam&Kapitaalkosten!J$5&EofG,'Data G'!$D$5:$IV$6,2,FALSE),FALSE)),0,VLOOKUP(Kapitaalkosten!$A62,'Data G'!$1:$1048576,HLOOKUP(Naam&Kapitaalkosten!J$5&EofG,'Data G'!$D$5:$IV$6,2,FALSE),FALSE))) -> 0 | K62: =IF(EofG="E",IF(ISERROR(VLOOKUP(Kapitaalkosten!$A62,'Data E (oud)'!$1:$1048576,HLOOKUP(Naam&Kapitaalkosten!K$5&EofG,'Data E (oud)'!$D$5:$IV$6,2,FALSE),FALSE)),0,VLOOKUP(Kapitaalkosten!$A62,'Data E (oud)'!$1:$1048576,HLOOKUP(Naam&Kapitaalkosten!K$5&EofG,'Data E (oud)'!$D$5:$IV$6,2,FALSE),FALSE)),IF(ISERROR(VLOOKUP(Kapitaalkosten!$A62,'Data G'!$1:$1048576,HLOOKUP(Naam&Kapitaalkosten!K$5&EofG,'Data G'!$D$5:$IV$6,2,FALSE),FALSE)),0,VLOOKUP(Kapitaalkosten!$A62,'Data G'!$1:$1048576,HLOOKUP(Naam&Kapitaalkosten!K$5&EofG,'Data G'!$D$5:$IV$6,2,FALSE),FALSE))) -> 0 | L62: =IF(EofG="E",IF(ISERROR(VLOOKUP(Kapitaalkosten!$A62,'Data E (oud)'!$1:$1048576,HLOOKUP(Naam&Kapitaalkosten!L$5&EofG,'Data E (oud)'!$D$5:$IV$6,2,FALSE),FALSE)),0,VLOOKUP(Kapitaalkosten!$A62,'Data E (oud)'!$1:$1048576,HLOOKUP(Naam&Kapitaalkosten!L$5&EofG,'Data E (oud)'!$D$5:$IV$6,2,FALSE),FALSE)),IF(ISERROR(VLOOKUP(Kapitaalkosten!$A62,'Data G'!$1:$1048576,HLOOKUP(Naam&Kapitaalkosten!L$5&EofG,'Data G'!$D$5:$IV$6,2,FALSE),FALSE)),0,VLOOKUP(Kapitaalkosten!$A62,'Data G'!$1:$1048576,HLOOKUP(Naam&Kapitaalkosten!L$5&EofG,'Data G'!$D$5:$IV$6,2,FALSE),FALSE))) -> 0
A63: 01Des5 | B63: Desinvesteringen met afschrijvingstermijn: | C63: 5 | E63: =IF(EofG="E",IF(ISERROR(VLOOKUP(Kapitaalkosten!$A63,'Data E (oud)'!$1:$1048576,HLOOKUP(Naam&Kapitaalkosten!E$5&EofG,'Data E (oud)'!$D$5:$IV$6,2,FALSE),FALSE)),0,VLOOKUP(Kapitaalkosten!$A63,'Data E (oud)'!$1:$1048576,HLOOKUP(Naam&Kapitaalkosten!E$5&EofG,'Data E (oud)'!$D$5:$IV$6,2,FALSE),FALSE)),IF(ISERROR(VLOOKUP(Kapitaalkosten!$A63,'Data G'!$1:$1048576,HLOOKUP(Naam&Kapitaalkosten!E$5&EofG,'Data G'!$D$5:$IV$6,2,FALSE),FALSE)),0,VLOOKUP(Kapitaalkosten!$A63,'Data G'!$1:$1048576,HLOOKUP(Naam&Kapitaalkosten!E$5&EofG,'Data G'!$D$5:$IV$6,2,FALSE),FALSE))) -> 0 | F63: =IF(EofG="E",IF(ISERROR(VLOOKUP(Kapitaalkosten!$A63,'Data E (oud)'!$1:$1048576,HLOOKUP(Naam&Kapitaalkosten!F$5&EofG,'Data E (oud)'!$D$5:$IV$6,2,FALSE),FALSE)),0,VLOOKUP(Kapitaalkosten!$A63,'Data E (oud)'!$1:$1048576,HLOOKUP(Naam&Kapitaalkosten!F$5&EofG,'Data E (oud)'!$D$5:$IV$6,2,FALSE),FALSE)),IF(ISERROR(VLOOKUP(Kapitaalkosten!$A63,'Data G'!$1:$1048576,HLOOKUP(Naam&Kapitaalkosten!F$5&EofG,'Data G'!$D$5:$IV$6,2,FALSE),FALSE)),0,VLOOKUP(Kapitaalkosten!$A63,'Data G'!$1:$1048576,HLOOKUP(Naam&Kapitaalkosten!F$5&EofG,'Data G'!$D$5:$IV$6,2,FALSE),FALSE))) -> 0 | G63: =IF(EofG="E",IF(ISERROR(VLOOKUP(Kapitaalkosten!$A63,'Data E (oud)'!$1:$1048576,HLOOKUP(Naam&Kapitaalkosten!G$5&EofG,'Data E (oud)'!$D$5:$IV$6,2,FALSE),FALSE)),0,VLOOKUP(Kapitaalkosten!$A63,'Data E (oud)'!$1:$1048576,HLOOKUP(Naam&Kapitaalkosten!G$5&EofG,'Data E (oud)'!$D$5:$IV$6,2,FALSE),FALSE)),IF(ISERROR(VLOOKUP(Kapitaalkosten!$A63,'Data G'!$1:$1048576,HLOOKUP(Naam&Kapitaalkosten!G$5&EofG,'Data G'!$D$5:$IV$6,2,FALSE),FALSE)),0,VLOOKUP(Kapitaalkosten!$A63,'Data G'!$1:$1048576,HLOOKUP(Naam&Kapitaalkosten!G$5&EofG,'Data G'!$D$5:$IV$6,2,FALSE),FALSE))) -> 0 | H63: =IF(EofG="E",IF(ISERROR(VLOOKUP(Kapitaalkosten!$A63,'Data E (oud)'!$1:$1048576,HLOOKUP(Naam&Kapitaalkosten!H$5&EofG,'Data E (oud)'!$D$5:$IV$6,2,FALSE),FALSE)),0,VLOOKUP(Kapitaalkosten!$A63,'Data E (oud)'!$1:$1048576,HLOOKUP(Naam&Kapitaalkosten!H$5&EofG,'Data E (oud)'!$D$5:$IV$6,2,FALSE),FALSE)),IF(ISERROR(VLOOKUP(Kapitaalkosten!$A63,'Data G'!$1:$1048576,HLOOKUP(Naam&Kapitaalkosten!H$5&EofG,'Data G'!$D$5:$IV$6,2,FALSE),FALSE)),0,VLOOKUP(Kapitaalkosten!$A63,'Data G'!$1:$1048576,HLOOKUP(Naam&Kapitaalkosten!H$5&EofG,'Data G'!$D$5:$IV$6,2,FALSE),FALSE))) -> 0 | I63: =IF(EofG="E",IF(ISERROR(VLOOKUP(Kapitaalkosten!$A63,'Data E (oud)'!$1:$1048576,HLOOKUP(Naam&Kapitaalkosten!I$5&EofG,'Data E (oud)'!$D$5:$IV$6,2,FALSE),FALSE)),0,VLOOKUP(Kapitaalkosten!$A63,'Data E (oud)'!$1:$1048576,HLOOKUP(Naam&Kapitaalkosten!I$5&EofG,'Data E (oud)'!$D$5:$IV$6,2,FALSE),FALSE)),IF(ISERROR(VLOOKUP(Kapitaalkosten!$A63,'Data G'!$1:$1048576,HLOOKUP(Naam&Kapitaalkosten!I$5&EofG,'Data G'!$D$5:$IV$6,2,FALSE),FALSE)),0,VLOOKUP(Kapitaalkosten!$A63,'Data G'!$1:$1048576,HLOOKUP(Naam&Kapitaalkosten!I$5&EofG,'Data G'!$D$5:$IV$6,2,FALSE),FALSE))) -> 0 | J63: =IF(EofG="E",IF(ISERROR(VLOOKUP(Kapitaalkosten!$A63,'Data E (oud)'!$1:$1048576,HLOOKUP(Naam&Kapitaalkosten!J$5&EofG,'Data E (oud)'!$D$5:$IV$6,2,FALSE),FALSE)),0,VLOOKUP(Kapitaalkosten!$A63,'Data E (oud)'!$1:$1048576,HLOOKUP(Naam&Kapitaalkosten!J$5&EofG,'Data E (oud)'!$D$5:$IV$6,2,FALSE),FALSE)),IF(ISERROR(VLOOKUP(Kapitaalkosten!$A63,'Data G'!$1:$1048576,HLOOKUP(Naam&Kapitaalkosten!J$5&EofG,'Data G'!$D$5:$IV$6,2,FALSE),FALSE)),0,VLOOKUP(Kapitaalkosten!$A63,'Data G'!$1:$1048576,HLOOKUP(Naam&Kapitaalkosten!J$5&EofG,'Data G'!$D$5:$IV$6,2,FALSE),FALSE))) -> 0 | K63: =IF(EofG="E",IF(ISERROR(VLOOKUP(Kapitaalkosten!$A63,'Data E (oud)'!$1:$1048576,HLOOKUP(Naam&Kapitaalkosten!K$5&EofG,'Data E (oud)'!$D$5:$IV$6,2,FALSE),FALSE)),0,VLOOKUP(Kapitaalkosten!$A63,'Data E (oud)'!$1:$1048576,HLOOKUP(Naam&Kapitaalkosten!K$5&EofG,'Data E (oud)'!$D$5:$IV$6,2,FALSE),FALSE)),IF(ISERROR(VLOOKUP(Kapitaalkosten!$A63,'Data G'!$1:$1048576,HLOOKUP(Naam&Kapitaalkosten!K$5&EofG,'Data G'!$D$5:$IV$6,2,FALSE),FALSE)),0,VLOOKUP(Kapitaalkosten!$A63,'Data G'!$1:$1048576,HLOOKUP(Naam&Kapitaalkosten!K$5&EofG,'Data G'!$D$5:$IV$6,2,FALSE),FALSE))) -> 0 | L63: =IF(EofG="E",IF(ISERROR(VLOOKUP(Kapitaalkosten!$A63,'Data E (oud)'!$1:$1048576,HLOOKUP(Naam&Kapitaalkosten!L$5&EofG,'Data E (oud)'!$D$5:$IV$6,2,FALSE),FALSE)),0,VLOOKUP(Kapitaalkosten!$A63,'Data E (oud)'!$1:$1048576,HLOOKUP(Naam&Kapitaalkosten!L$5&EofG,'Data E (oud)'!$D$5:$IV$6,2,FALSE),FALSE)),IF(ISERROR(VLOOKUP(Kapitaalkosten!$A63,'Data G'!$1:$1048576,HLOOKUP(Naam&Kapitaalkosten!L$5&EofG,'Data G'!$D$5:$IV$6,2,FALSE),FALSE)),0,VLOOKUP(Kapitaalkosten!$A63,'Data G'!$1:$1048576,HLOOKUP(Naam&Kapitaalkosten!L$5&EofG,'Data G'!$D$5:$IV$6,2,FALSE),FALSE))) -> 0
A64: 01Des3 | B64: Desinvesteringen met afschrijvingstermijn: | C64: 3 | E64: =IF(EofG="E",IF(ISERROR(VLOOKUP(Kapitaalkosten!$A64,'Data E (oud)'!$1:$1048576,HLOOKUP(Naam&Kapitaalkosten!E$5&EofG,'Data E (oud)'!$D$5:$IV$6,2,FALSE),FALSE)),0,VLOOKUP(Kapitaalkosten!$A64,'Data E (oud)'!$1:$1048576,HLOOKUP(Naam&Kapitaalkosten!E$5&EofG,'Data E (oud)'!$D$5:$IV$6,2,FALSE),FALSE)),IF(ISERROR(VLOOKUP(Kapitaalkosten!$A64,'Data G'!$1:$1048576,HLOOKUP(Naam&Kapitaalkosten!E$5&EofG,'Data G'!$D$5:$IV$6,2,FALSE),FALSE)),0,VLOOKUP(Kapitaalkosten!$A64,'Data G'!$1:$1048576,HLOOKUP(Naam&Kapitaalkosten!E$5&EofG,'Data G'!$D$5:$IV$6,2,FALSE),FALSE))) -> 0 | F64: =IF(EofG="E",IF(ISERROR(VLOOKUP(Kapitaalkosten!$A64,'Data E (oud)'!$1:$1048576,HLOOKUP(Naam&Kapitaalkosten!F$5&EofG,'Data E (oud)'!$D$5:$IV$6,2,FALSE),FALSE)),0,VLOOKUP(Kapitaalkosten!$A64,'Data E (oud)'!$1:$1048576,HLOOKUP(Naam&Kapitaalkosten!F$5&EofG,'Data E (oud)'!$D$5:$IV$6,2,FALSE),FALSE)),IF(ISERROR(VLOOKUP(Kapitaalkosten!$A64,'Data G'!$1:$1048576,HLOOKUP(Naam&Kapitaalkosten!F$5&EofG,'Data G'!$D$5:$IV$6,2,FALSE),FALSE)),0,VLOOKUP(Kapitaalkosten!$A64,'Data G'!$1:$1048576,HLOOKUP(Naam&Kapitaalkosten!F$5&EofG,'Data G'!$D$5:$IV$6,2,FALSE),FALSE))) -> 0 | G64: =IF(EofG="E",IF(ISERROR(VLOOKUP(Kapitaalkosten!$A64,'Data E (oud)'!$1:$1048576,HLOOKUP(Naam&Kapitaalkosten!G$5&EofG,'Data E (oud)'!$D$5:$IV$6,2,FALSE),FALSE)),0,VLOOKUP(Kapitaalkosten!$A64,'Data E (oud)'!$1:$1048576,HLOOKUP(Naam&Kapitaalkosten!G$5&EofG,'Data E (oud)'!$D$5:$IV$6,2,FALSE),FALSE)),IF(ISERROR(VLOOKUP(Kapitaalkosten!$A64,'Data G'!$1:$1048576,HLOOKUP(Naam&Kapitaalkosten!G$5&EofG,'Data G'!$D$5:$IV$6,2,FALSE),FALSE)),0,VLOOKUP(Kapitaalkosten!$A64,'Data G'!$1:$1048576,HLOOKUP(Naam&Kapitaalkosten!G$5&EofG,'Data G'!$D$5:$IV$6,2,FALSE),FALSE))) -> 0 | H64: =IF(EofG="E",IF(ISERROR(VLOOKUP(Kapitaalkosten!$A64,'Data E (oud)'!$1:$1048576,HLOOKUP(Naam&Kapitaalkosten!H$5&EofG,'Data E (oud)'!$D$5:$IV$6,2,FALSE),FALSE)),0,VLOOKUP(Kapitaalkosten!$A64,'Data E (oud)'!$1:$1048576,HLOOKUP(Naam&Kapitaalkosten!H$5&EofG,'Data E (oud)'!$D$5:$IV$6,2,FALSE),FALSE)),IF(ISERROR(VLOOKUP(Kapitaalkosten!$A64,'Data G'!$1:$1048576,HLOOKUP(Naam&Kapitaalkosten!H$5&EofG,'Data G'!$D$5:$IV$6,2,FALSE),FALSE)),0,VLOOKUP(Kapitaalkosten!$A64,'Data G'!$1:$1048576,HLOOKUP(Naam&Kapitaalkosten!H$5&EofG,'Data G'!$D$5:$IV$6,2,FALSE),FALSE))) -> 0 | I64: =IF(EofG="E",IF(ISERROR(VLOOKUP(Kapitaalkosten!$A64,'Data E (oud)'!$1:$1048576,HLOOKUP(Naam&Kapitaalkosten!I$5&EofG,'Data E (oud)'!$D$5:$IV$6,2,FALSE),FALSE)),0,VLOOKUP(Kapitaalkosten!$A64,'Data E (oud)'!$1:$1048576,HLOOKUP(Naam&Kapitaalkosten!I$5&EofG,'Data E (oud)'!$D$5:$IV$6,2,FALSE),FALSE)),IF(ISERROR(VLOOKUP(Kapitaalkosten!$A64,'Data G'!$1:$1048576,HLOOKUP(Naam&Kapitaalkosten!I$5&EofG,'Data G'!$D$5:$IV$6,2,FALSE),FALSE)),0,VLOOKUP(Kapitaalkosten!$A64,'Data G'!$1:$1048576,HLOOKUP(Naam&Kapitaalkosten!I$5&EofG,'Data G'!$D$5:$IV$6,2,FALSE),FALSE))) -> 0 | J64: =IF(EofG="E",IF(ISERROR(VLOOKUP(Kapitaalkosten!$A64,'Data E (oud)'!$1:$1048576,HLOOKUP(Naam&Kapitaalkosten!J$5&EofG,'Data E (oud)'!$D$5:$IV$6,2,FALSE),FALSE)),0,VLOOKUP(Kapitaalkosten!$A64,'Data E (oud)'!$1:$1048576,HLOOKUP(Naam&Kapitaalkosten!J$5&EofG,'Data E (oud)'!$D$5:$IV$6,2,FALSE),FALSE)),IF(ISERROR(VLOOKUP(Kapitaalkosten!$A64,'Data G'!$1:$1048576,HLOOKUP(Naam&Kapitaalkosten!J$5&EofG,'Data G'!$D$5:$IV$6,2,FALSE),FALSE)),0,VLOOKUP(Kapitaalkosten!$A64,'Data G'!$1:$1048576,HLOOKUP(Naam&Kapitaalkosten!J$5&EofG,'Data G'!$D$5:$IV$6,2,FALSE),FALSE))) -> 0 | K64: =IF(EofG="E",IF(ISERROR(VLOOKUP(Kapitaalkosten!$A64,'Data E (oud)'!$1:$1048576,HLOOKUP(Naam&Kapitaalkosten!K$5&EofG,'Data E (oud)'!$D$5:$IV$6,2,FALSE),FALSE)),0,VLOOKUP(Kapitaalkosten!$A64,'Data E (oud)'!$1:$1048576,HLOOKUP(Naam&Kapitaalkosten!K$5&EofG,'Data E (oud)'!$D$5:$IV$6,2,FALSE),FALSE)),IF(ISERROR(VLOOKUP(Kapitaalkosten!$A64,'Data G'!$1:$1048576,HLOOKUP(Naam&Kapitaalkosten!K$5&EofG,'Data G'!$D$5:$IV$6,2,FALSE),FALSE)),0,VLOOKUP(Kapitaalkosten!$A64,'Data G'!$1:$1048576,HLOOKUP(Naam&Kapitaalkosten!K$5&EofG,'Data G'!$D$5:$IV$6,2,FALSE),FALSE))) -> 0 | L64: =IF(EofG="E",IF(ISERROR(VLOOKUP(Kapitaalkosten!$A64,'Data E (oud)'!$1:$1048576,HLOOKUP(Naam&Kapitaalkosten!L$5&EofG,'Data E (oud)'!$D$5:$IV$6,2,FALSE),FALSE)),0,VLOOKUP(Kapitaalkosten!$A64,'Data E (oud)'!$1:$1048576,HLOOKUP(Naam&Kapitaalkosten!L$5&EofG,'Data E (oud)'!$D$5:$IV$6,2,FALSE),FALSE)),IF(ISERROR(VLOOKUP(Kapitaalkosten!$A64,'Data G'!$1:$1048576,HLOOKUP(Naam&Kapitaalkosten!L$5&EofG,'Data G'!$D$5:$IV$6,2,FALSE),FALSE)),0,VLOOKUP(Kapitaalkosten!$A64,'Data G'!$1:$1048576,HLOOKUP(Naam&Kapitaalkosten!L$5&EofG,'Data G'!$D$5:$IV$6,2,FALSE),FALSE))) -> 0
A65: 01Desgeen | B65: Desinvesteringen met afschrijvingstermijn: | C65: geen | E65: =IF(EofG="E",IF(ISERROR(VLOOKUP(Kapitaalkosten!$A65,'Data E (oud)'!$1:$1048576,HLOOKUP(Naam&Kapitaalkosten!E$5&EofG,'Data E (oud)'!$D$5:$IV$6,2,FALSE),FALSE)),0,VLOOKUP(Kapitaalkosten!$A65,'Data E (oud)'!$1:$1048576,HLOOKUP(Naam&Kapitaalkosten!E$5&EofG,'Data E (oud)'!$D$5:$IV$6,2,FALSE),FALSE)),IF(ISERROR(VLOOKUP(Kapitaalkosten!$A65,'Data G'!$1:$1048576,HLOOKUP(Naam&Kapitaalkosten!E$5&EofG,'Data G'!$D$5:$IV$6,2,FALSE),FALSE)),0,VLOOKUP(Kapitaalkosten!$A65,'Data G'!$1:$1048576,HLOOKUP(Naam&Kapitaalkosten!E$5&EofG,'Data G'!$D$5:$IV$6,2,FALSE),FALSE))) -> 0 | F65: =IF(EofG="E",IF(ISERROR(VLOOKUP(Kapitaalkosten!$A65,'Data E (oud)'!$1:$1048576,HLOOKUP(Naam&Kapitaalkosten!F$5&EofG,'Data E (oud)'!$D$5:$IV$6,2,FALSE),FALSE)),0,VLOOKUP(Kapitaalkosten!$A65,'Data E (oud)'!$1:$1048576,HLOOKUP(Naam&Kapitaalkosten!F$5&EofG,'Data E (oud)'!$D$5:$IV$6,2,FALSE),FALSE)),IF(ISERROR(VLOOKUP(Kapitaalkosten!$A65,'Data G'!$1:$1048576,HLOOKUP(Naam&Kapitaalkosten!F$5&EofG,'Data G'!$D$5:$IV$6,2,FALSE),FALSE)),0,VLOOKUP(Kapitaalkosten!$A65,'Data G'!$1:$1048576,HLOOKUP(Naam&Kapitaalkosten!F$5&EofG,'Data G'!$D$5:$IV$6,2,FALSE),FALSE))) -> 0 | G65: =IF(EofG="E",IF(ISERROR(VLOOKUP(Kapitaalkosten!$A65,'Data E (oud)'!$1:$1048576,HLOOKUP(Naam&Kapitaalkosten!G$5&EofG,'Data E (oud)'!$D$5:$IV$6,2,FALSE),FALSE)),0,VLOOKUP(Kapitaalkosten!$A65,'Data E (oud)'!$1:$1048576,HLOOKUP(Naam&Kapitaalkosten!G$5&EofG,'Data E (oud)'!$D$5:$IV$6,2,FALSE),FALSE)),IF(ISERROR(VLOOKUP(Kapitaalkosten!$A65,'Data G'!$1:$1048576,HLOOKUP(Naam&Kapitaalkosten!G$5&EofG,'Data G'!$D$5:$IV$6,2,FALSE),FALSE)),0,VLOOKUP(Kapitaalkosten!$A65,'Data G'!$1:$1048576,HLOOKUP(Naam&Kapitaalkosten!G$5&EofG,'Data G'!$D$5:$IV$6,2,FALSE),FALSE))) -> 0 | H65: =IF(EofG="E",IF(ISERROR(VLOOKUP(Kapitaalkosten!$A65,'Data E (oud)'!$1:$1048576,HLOOKUP(Naam&Kapitaalkosten!H$5&EofG,'Data E (oud)'!$D$5:$IV$6,2,FALSE),FALSE)),0,VLOOKUP(Kapitaalkosten!$A65,'Data E (oud)'!$1:$1048576,HLOOKUP(Naam&Kapitaalkosten!H$5&EofG,'Data E (oud)'!$D$5:$IV$6,2,FALSE),FALSE)),IF(ISERROR(VLOOKUP(Kapitaalkosten!$A65,'Data G'!$1:$1048576,HLOOKUP(Naam&Kapitaalkosten!H$5&EofG,'Data G'!$D$5:$IV$6,2,FALSE),FALSE)),0,VLOOKUP(Kapitaalkosten!$A65,'Data G'!$1:$1048576,HLOOKUP(Naam&Kapitaalkosten!H$5&EofG,'Data G'!$D$5:$IV$6,2,FALSE),FALSE))) -> 0 | I65: =IF(EofG="E",IF(ISERROR(VLOOKUP(Kapitaalkosten!$A65,'Data E (oud)'!$1:$1048576,HLOOKUP(Naam&Kapitaalkosten!I$5&EofG,'Data E (oud)'!$D$5:$IV$6,2,FALSE),FALSE)),0,VLOOKUP(Kapitaalkosten!$A65,'Data E (oud)'!$1:$1048576,HLOOKUP(Naam&Kapitaalkosten!I$5&EofG,'Data E (oud)'!$D$5:$IV$6,2,FALSE),FALSE)),IF(ISERROR(VLOOKUP(Kapitaalkosten!$A65,'Data G'!$1:$1048576,HLOOKUP(Naam&Kapitaalkosten!I$5&EofG,'Data G'!$D$5:$IV$6,2,FALSE),FALSE)),0,VLOOKUP(Kapitaalkosten!$A65,'Data G'!$1:$1048576,HLOOKUP(Naam&Kapitaalkosten!I$5&EofG,'Data G'!$D$5:$IV$6,2,FALSE),FALSE))) -> 0 | J65: =IF(EofG="E",IF(ISERROR(VLOOKUP(Kapitaalkosten!$A65,'Data E (oud)'!$1:$1048576,HLOOKUP(Naam&Kapitaalkosten!J$5&EofG,'Data E (oud)'!$D$5:$IV$6,2,FALSE),FALSE)),0,VLOOKUP(Kapitaalkosten!$A65,'Data E (oud)'!$1:$1048576,HLOOKUP(Naam&Kapitaalkosten!J$5&EofG,'Data E (oud)'!$D$5:$IV$6,2,FALSE),FALSE)),IF(ISERROR(VLOOKUP(Kapitaalkosten!$A65,'Data G'!$1:$1048576,HLOOKUP(Naam&Kapitaalkosten!J$5&EofG,'Data G'!$D$5:$IV$6,2,FALSE),FALSE)),0,VLOOKUP(Kapitaalkosten!$A65,'Data G'!$1:$1048576,HLOOKUP(Naam&Kapitaalkosten!J$5&EofG,'Data G'!$D$5:$IV$6,2,FALSE),FALSE))) -> 0 | K65: =IF(EofG="E",IF(ISERROR(VLOOKUP(Kapitaalkosten!$A65,'Data E (oud)'!$1:$1048576,HLOOKUP(Naam&Kapitaalkosten!K$5&EofG,'Data E (oud)'!$D$5:$IV$6,2,FALSE),FALSE)),0,VLOOKUP(Kapitaalkosten!$A65,'Data E (oud)'!$1:$1048576,HLOOKUP(Naam&Kapitaalkosten!K$5&EofG,'Data E (oud)'!$D$5:$IV$6,2,FALSE),FALSE)),IF(ISERROR(VLOOKUP(Kapitaalkosten!$A65,'Data G'!$1:$1048576,HLOOKUP(Naam&Kapitaalkosten!K$5&EofG,'Data G'!$D$5:$IV$6,2,FALSE),FALSE)),0,VLOOKUP(Kapitaalkosten!$A65,'Data G'!$1:$1048576,HLOOKUP(Naam&Kapitaalkosten!K$5&EofG,'Data G'!$D$5:$IV$6,2,FALSE),FALSE))) -> 0 | L65: =IF(EofG="E",IF(ISERROR(VLOOKUP(Kapitaalkosten!$A65,'Data E (oud)'!$1:$1048576,HLOOKUP(Naam&Kapitaalkosten!L$5&EofG,'Data E (oud)'!$D$5:$IV$6,2,FALSE),FALSE)),0,VLOOKUP(Kapitaalkosten!$A65,'Data E (oud)'!$1:$1048576,HLOOKUP(Naam&Kapitaalkosten!L$5&EofG,'Data E (oud)'!$D$5:$IV$6,2,FALSE),FALSE)),IF(ISERROR(VLOOKUP(Kapitaalkosten!$A65,'Data G'!$1:$1048576,HLOOKUP(Naam&Kapitaalkosten!L$5&EofG,'Data G'!$D$5:$IV$6,2,FALSE),FALSE)),0,VLOOKUP(Kapitaalkosten!$A65,'Data G'!$1:$1048576,HLOOKUP(Naam&Kapitaalkosten!L$5&EofG,'Data G'!$D$5:$IV$6,2,FALSE),FALSE))) -> 0
B66: Cumulatieve afschrijvingen desinvesteringen (c.a.d.) | E66: =SUM(E67:E73) -> 0 | F66: =SUM(F67:F73) -> 0 | G66: 0 | H66: =SUM(H67:H73) -> 0 | I66: 0 | J66: =SUM(J67:J73) -> 0 | K66: 0 | L66: 0 | M66: =SUM(M67:M73) -> 0 | N66: 0 | O66: 0 | P66: 0 | Q66: 0 | R66: 0 | S66: 0 | T66: 0 | U66: 0 | V66: 0 | W66: 0
A67: =RIGHT(B$37,2)&"cad"&C67 -> 01cad50 | B67: cumulatieve afschrijving bij afschrijvingstermijn | C67: 50 | E67: =IF(D40=0,"",(SUM($D49:D49)-SUM($D67:D67))*E58/D40+0.5*E58/$C58) ->  | F67: =IF(E40=0,"",(SUM($D49:E49)-SUM($D67:E67))*F58/E40+0.5*F58/$C58) ->  | G67: =IF(F40=0,"",(SUM($D49:F49)-SUM($D67:F67))*G58/F40+0.5*G58/$C58) ->  | H67: =IF(G40=0,"",(SUM($D49:G49)-SUM($D67:G67))*H58/G40+0.5*H58/$C58) ->  | I67: =IF(H40=0,"",(SUM($D49:H49)-SUM($D67:H67))*I58/H40+0.5*I58/$C58) ->  | J67: =IF(I40=0,"",(SUM($D49:I49)-SUM($D67:I67))*J58/I40+0.5*J58/$C58) ->  | K67: =IF(J40=0,"",(SUM($D49:J49)-SUM($D67:J67))*K58/J40+0.5*K58/$C58) ->  | L67: =IF(K40=0,"",(SUM($D49:K49)-SUM($D67:K67))*L58/K40+0.5*L58/$C58) ->  | M67: =IF(L40=0,"",(SUM($D49:L49)-SUM($D67:L67))*M58/L40+0.5*M58/$C58) ->  | N67: =IF(M40=0,"",(SUM($D49:M49)-SUM($D67:M67))*N58/M40+0.5*N58/$C58) ->  | O67: =IF(N40=0,"",(SUM($D49:N49)-SUM($D67:N67))*O58/N40+0.5*O58/$C58) ->  | P67: =IF(O40=0,"",(SUM($D49:O49)-SUM($D67:O67))*P58/O40+0.5*P58/$C58) ->  | Q67: =IF(P40=0,"",(SUM($D49:P49)-SUM($D67:P67))*Q58/P40+0.5*Q58/$C58) ->  | R67: =IF(Q40=0,"",(SUM($D49:Q49)-SUM($D67:Q67))*R58/Q40+0.5*R58/$C58) ->  | S67: =IF(R40=0,"",(SUM($D49:R49)-SUM($D67:R67))*S58/R40+0.5*S58/$C58) ->  | T67: =IF(S40=0,"",(SUM($D49:S49)-SUM($D67:S67))*T58/S40+0.5*T58/$C58) ->  | U67: =IF(T40=0,"",(SUM($D49:T49)-SUM($D67:T67))*U58/T40+0.5*U58/$C58) ->  | V67: =IF(U40=0,"",(SUM($D49:U49)-SUM($D67:U67))*V58/U40+0.5*V58/$C58) ->  | W67: =IF(V40=0,"",(SUM($D49:V49)-SUM($D67:V67))*W58/V40+0.5*W58/$C58) -> 
A68: 01cad40 | B68: cumulatieve afschrijving bij afschrijvingstermijn | C68: 40 | E68: =IF(D41=0,"",(SUM($D50:D50)-SUM($D68:D68))*E59/D41+0.5*E59/$C59) ->  | F68: =IF(E41=0,"",(SUM($D50:E50)-SUM($D68:E68))*F59/E41+0.5*F59/$C59) ->  | G68: =IF(F41=0,"",(SUM($D50:F50)-SUM($D68:F68))*G59/F41+0.5*G59/$C59) ->  | H68: =IF(G41=0,"",(SUM($D50:G50)-SUM($D68:G68))*H59/G41+0.5*H59/$C59) ->  | I68: =IF(H41=0,"",(SUM($D50:H50)-SUM($D68:H68))*I59/H41+0.5*I59/$C59) ->  | J68: =IF(I41=0,"",(SUM($D50:I50)-SUM($D68:I68))*J59/I41+0.5*J59/$C59) ->  | K68: =IF(J41=0,"",(SUM($D50:J50)-SUM($D68:J68))*K59/J41+0.5*K59/$C59) ->  | L68: =IF(K41=0,"",(SUM($D50:K50)-SUM($D68:K68))*L59/K41+0.5*L59/$C59) ->  | M68: =IF(L41=0,"",(SUM($D50:L50)-SUM($D68:L68))*M59/L41+0.5*M59/$C59) ->  | N68: =IF(M41=0,"",(SUM($D50:M50)-SUM($D68:M68))*N59/M41+0.5*N59/$C59) ->  | O68: =IF(N41=0,"",(SUM($D50:N50)-SUM($D68:N68))*O59/N41+0.5*O59/$C59) ->  | P68: =IF(O41=0,"",(SUM($D50:O50)-SUM($D68:O68))*P59/O41+0.5*P59/$C59) ->  | Q68: =IF(P41=0,"",(SUM($D50:P50)-SUM($D68:P68))*Q59/P41+0.5*Q59/$C59) ->  | R68: =IF(Q41=0,"",(SUM($D50:Q50)-SUM($D68:Q68))*R59/Q41+0.5*R59/$C59) ->  | S68: =IF(R41=0,"",(SUM($D50:R50)-SUM($D68:R68))*S59/R41+0.5*S59/$C59) ->  | T68: =IF(S41=0,"",(SUM($D50:S50)-SUM($D68:S68))*T59/S41+0.5*T59/$C59) ->  | U68: =IF(T41=0,"",(SUM($D50:T50)-SUM($D68:T68))*U59/T41+0.5*U59/$C59) ->  | V68: =IF(U41=0,"",(SUM($D50:U50)-SUM($D68:U68))*V59/U41+0.5*V59/$C59) ->  | W68: =IF(V41=0,"",(SUM($D50:V50)-SUM($D68:V68))*W59/V41+0.5*W59/$C59) -> 
A69: 01cad30 | B69: cumulatieve afschrijving bij afschrijvingstermijn | C69: 30 | E69: =IF(D42=0,"",(SUM($D51:D51)-SUM($D69:D69))*E60/D42+0.5*E60/$C60) ->  | F69: =IF(E42=0,"",(SUM($D51:E51)-SUM($D69:E69))*F60/E42+0.5*F60/$C60) ->  | G69: =IF(F42=0,"",(SUM($D51:F51)-SUM($D69:F69))*G60/F42+0.5*G60/$C60) ->  | H69: =IF(G42=0,"",(SUM($D51:G51)-SUM($D69:G69))*H60/G42+0.5*H60/$C60) ->  | I69: =IF(H42=0,"",(SUM($D51:H51)-SUM($D69:H69))*I60/H42+0.5*I60/$C60) ->  | J69: =IF(I42=0,"",(SUM($D51:I51)-SUM($D69:I69))*J60/I42+0.5*J60/$C60) ->  | K69: =IF(J42=0,"",(SUM($D51:J51)-SUM($D69:J69))*K60/J42+0.5*K60/$C60) ->  | L69: =IF(K42=0,"",(SUM($D51:K51)-SUM($D69:K69))*L60/K42+0.5*L60/$C60) ->  | M69: =IF(L42=0,"",(SUM($D51:L51)-SUM($D69:L69))*M60/L42+0.5*M60/$C60) ->  | N69: =IF(M42=0,"",(SUM($D51:M51)-SUM($D69:M69))*N60/M42+0.5*N60/$C60) ->  | O69: =IF(N42=0,"",(SUM($D51:N51)-SUM($D69:N69))*O60/N42+0.5*O60/$C60) ->  | P69: =IF(O42=0,"",(SUM($D51:O51)-SUM($D69:O69))*P60/O42+0.5*P60/$C60) ->  | Q69: =IF(P42=0,"",(SUM($D51:P51)-SUM($D69:P69))*Q60/P42+0.5*Q60/$C60) ->  | R69: =IF(Q42=0,"",(SUM($D51:Q51)-SUM($D69:Q69))*R60/Q42+0.5*R60/$C60) ->  | S69: =IF(R42=0,"",(SUM($D51:R51)-SUM($D69:R69))*S60/R42+0.5*S60/$C60) ->  | T69: =IF(S42=0,"",(SUM($D51:S51)-SUM($D69:S69))*T60/S42+0.5*T60/$C60) ->  | U69: =IF(T42=0,"",(SUM($D51:T51)-SUM($D69:T69))*U60/T42+0.5*U60/$C60) ->  | V69: =IF(U42=0,"",(SUM($D51:U51)-SUM($D69:U69))*V60/U42+0.5*V60/$C60) ->  | W69: =IF(V42=0,"",(SUM($D51:V51)-SUM($D69:V69))*W60/V42+0.5*W60/$C60) -> 
A70: 01cad25 | B70: cumulatieve afschrijving bij afschrijvingstermijn | C70: 25 | E70: =IF(D43=0,"",(SUM($D52:D52)-SUM($D70:D70))*E61/D43+0.5*E61/$C61) ->  | F70: =IF(E43=0,"",(SUM($D52:E52)-SUM($D70:E70))*F61/E43+0.5*F61/$C61) ->  | G70: =IF(F43=0,"",(SUM($D52:F52)-SUM($D70:F70))*G61/F43+0.5*G61/$C61) ->  | H70: =IF(G43=0,"",(SUM($D52:G52)-SUM($D70:G70))*H61/G43+0.5*H61/$C61) ->  | I70: =IF(H43=0,"",(SUM($D52:H52)-SUM($D70:H70))*I61/H43+0.5*I61/$C61) ->  | J70: =IF(I43=0,"",(SUM($D52:I52)-SUM($D70:I70))*J61/I43+0.5*J61/$C61) ->  | K70: =IF(J43=0,"",(SUM($D52:J52)-SUM($D70:J70))*K61/J43) ->  | L70: =IF(K43=0,"",(SUM($D52:K52)-SUM($D70:K70))*L61/K43+0.5*L61/$C61) ->  | M70: =IF(L43=0,"",(SUM($D52:L52)-SUM($D70:L70))*M61/L43+0.5*M61/$C61) ->  | N70: =IF(M43=0,"",(SUM($D52:M52)-SUM($D70:M70))*N61/M43+0.5*N61/$C61) ->  | O70: =IF(N43=0,"",(SUM($D52:N52)-SUM($D70:N70))*O61/N43+0.5*O61/$C61) ->  | P70: =IF(O43=0,"",(SUM($D52:O52)-SUM($D70:O70))*P61/O43+0.5*P61/$C61) ->  | Q70: =IF(P43=0,"",(SUM($D52:P52)-SUM($D70:P70))*Q61/P43+0.5*Q61/$C61) ->  | R70: =IF(Q43=0,"",(SUM($D52:Q52)-SUM($D70:Q70))*R61/Q43+0.5*R61/$C61) ->  | S70: =IF(R43=0,"",(SUM($D52:R52)-SUM($D70:R70))*S61/R43+0.5*S61/$C61) ->  | T70: =IF(S43=0,"",(SUM($D52:S52)-SUM($D70:S70))*T61/S43+0.5*T61/$C61) ->  | U70: =IF(T43=0,"",(SUM($D52:T52)-SUM($D70:T70))*U61/T43+0.5*U61/$C61) ->  | V70: =IF(U43=0,"",(SUM($D52:U52)-SUM($D70:U70))*V61/U43+0.5*V61/$C61) ->  | W70: =IF(V43=0,"",(SUM($D52:V52)-SUM($D70:V70))*W61/V43+0.5*W61/$C61) -> 
A71: 01cad10 | B71: cumulatieve afschrijving bij afschrijvingstermijn | C71: 10 | E71: =IF(D44=0,"",(SUM($D53:D53)-SUM($D71:D71))*E62/D44+0.5*E62/$C62) ->  | F71: =IF(E44=0,"",(SUM($D53:E53)-SUM($D71:E71))*F62/E44+0.5*F62/$C62) ->  | G71: =IF(F44=0,"",(SUM($D53:F53)-SUM($D71:F71))*G62/F44+0.5*G62/$C62) ->  | H71: =IF(G44=0,"",(SUM($D53:G53)-SUM($D71:G71))*H62/G44+0.5*H62/$C62) ->  | I71: =IF(H44=0,"",(SUM($D53:H53)-SUM($D71:H71))*I62/H44+0.5*I62/$C62) ->  | J71: =IF(I44=0,"",(SUM($D53:I53)-SUM($D71:I71))*J62/I44+0.5*J62/$C62) ->  | K71: =IF(J44=0,"",(SUM($D53:J53)-SUM($D71:J71))*K62/J44+0.5*K62/$C62) ->  | L71: =IF(K44=0,"",(SUM($D53:K53)-SUM($D71:K71))*L62/K44+0.5*L62/$C62) ->  | M71: =IF(L44=0,"",(SUM($D53:L53)-SUM($D71:L71))*M62/L44+0.5*M62/$C62) ->  | N71: =IF(M44=0,"",(SUM($D53:M53)-SUM($D71:M71))*N62/M44+0.5*N62/$C62) ->  | O71: =IF(N44=0,"",(SUM($D53:N53)-SUM($D71:N71))*O62/N44+0.5*O62/$C62) ->  | P71: =IF(O44=0,"",(SUM($D53:O53)-SUM($D71:O71))*P62/O44+0.5*P62/$C62) ->  | Q71: =IF(P44=0,"",(SUM($D53:P53)-SUM($D71:P71))*Q62/P44+0.5*Q62/$C62) ->  | R71: =IF(Q44=0,"",(SUM($D53:Q53)-SUM($D71:Q71))*R62/Q44+0.5*R62/$C62) ->  | S71: =IF(R44=0,"",(SUM($D53:R53)-SUM($D71:R71))*S62/R44+0.5*S62/$C62) ->  | T71: =IF(S44=0,"",(SUM($D53:S53)-SUM($D71:S71))*T62/S44+0.5*T62/$C62) ->  | U71: =IF(T44=0,"",(SUM($D53:T53)-SUM($D71:T71))*U62/T44+0.5*U62/$C62) ->  | V71: =IF(U44=0,"",(SUM($D53:U53)-SUM($D71:U71))*V62/U44+0.5*V62/$C62) ->  | W71: =IF(V44=0,"",(SUM($D53:V53)-SUM($D71:V71))*W62/V44+0.5*W62/$C62) -> 
A72: 01cad5 | B72: cumulatieve afschrijving bij afschrijvingstermijn | C72: 5 | E72: =IF(D45=0,"",(SUM($D54:D54)-SUM($D72:D72))*E63/D45+0.5*E63/$C63) ->  | F72: =IF(E45=0,"",(SUM($D54:E54)-SUM($D72:E72))*F63/E45+0.5*F63/$C63) ->  | G72: =IF(F45=0,"",(SUM($D54:F54)-SUM($D72:F72))*G63/F45+0.5*G63/$C63) ->  | H72: =IF(G45=0,"",(SUM($D54:G54)-SUM($D72:G72))*H63/G45+0.5*H63/$C63) ->  | I72: =IF(H45=0,"",(SUM($D54:H54)-SUM($D72:H72))*I63/H45+0.5*I63/$C63) ->  | J72: =IF(I45=0,"",(SUM($D54:I54)-SUM($D72:I72))*J63/I45+0.5*J63/$C63) ->  | K72: =IF(J45=0,"",(SUM($D54:J54)-SUM($D72:J72))*K63/J45+0.5*K63/$C63) ->  | L72: =IF(K45=0,"",(SUM($D54:K54)-SUM($D72:K72))*L63/K45+0.5*L63/$C63) ->  | M72: =IF(L45=0,"",(SUM($D54:L54)-SUM($D72:L72))*M63/L45+0.5*M63/$C63) ->  | N72: =IF(M45=0,"",(SUM($D54:M54)-SUM($D72:M72))*N63/M45+0.5*N63/$C63) ->  | O72: =IF(N45=0,"",(SUM($D54:N54)-SUM($D72:N72))*O63/N45+0.5*O63/$C63) ->  | P72: =IF(O45=0,"",(SUM($D54:O54)-SUM($D72:O72))*P63/O45+0.5*P63/$C63) ->  | Q72: =IF(P45=0,"",(SUM($D54:P54)-SUM($D72:P72))*Q63/P45+0.5*Q63/$C63) ->  | R72: =IF(Q45=0,"",(SUM($D54:Q54)-SUM($D72:Q72))*R63/Q45+0.5*R63/$C63) ->  | S72: =IF(R45=0,"",(SUM($D54:R54)-SUM($D72:R72))*S63/R45+0.5*S63/$C63) ->  | T72: =IF(S45=0,"",(SUM($D54:S54)-SUM($D72:S72))*T63/S45+0.5*T63/$C63) ->  | U72: =IF(T45=0,"",(SUM($D54:T54)-SUM($D72:T72))*U63/T45+0.5*U63/$C63) ->  | V72: =IF(U45=0,"",(SUM($D54:U54)-SUM($D72:U72))*V63/U45+0.5*V63/$C63) ->  | W72: =IF(V45=0,"",(SUM($D54:V54)-SUM($D72:V72))*W63/V45+0.5*W63/$C63) -> 
A73: 01cad3 | B73: cumulatieve afschrijving bij afschrijvingstermijn | C73: 3 | E73: =IF(D46=0,"",(SUM($D55:D55)-SUM($D73:D73))*E64/D46+0.5*E64/$C64) ->  | F73: =IF(E46=0,"",(SUM($D55:E55)-SUM($D73:E73))*F64/E46+0.5*F64/$C64) ->  | G73: =IF(F46=0,"",(SUM($D55:F55)-SUM($D73:F73))*G64/F46+0.5*G64/$C64) ->  | H73: =IF(G46=0,"",(SUM($D55:G55)-SUM($D73:G73))*H64/G46+0.5*H64/$C64) ->  | I73: =IF(H46=0,"",(SUM($D55:H55)-SUM($D73:H73))*I64/H46+0.5*I64/$C64) ->  | J73: =IF(I46=0,"",(SUM($D55:I55)-SUM($D73:I73))*J64/I46+0.5*J64/$C64) ->  | K73: =IF(J46=0,"",(SUM($D55:J55)-SUM($D73:J73))*K64/J46+0.5*K64/$C64) ->  | L73: =IF(K46=0,"",(SUM($D55:K55)-SUM($D73:K73))*L64/K46+0.5*L64/$C64) ->  | M73: =IF(L46=0,"",(SUM($D55:L55)-SUM($D73:L73))*M64/L46+0.5*M64/$C64) ->  | N73: =IF(M46=0,"",(SUM($D55:M55)-SUM($D73:M73))*N64/M46+0.5*N64/$C64) ->  | O73: =IF(N46=0,"",(SUM($D55:N55)-SUM($D73:N73))*O64/N46+0.5*O64/$C64) ->  | P73: =IF(O46=0,"",(SUM($D55:O55)-SUM($D73:O73))*P64/O46+0.5*P64/$C64) ->  | Q73: =IF(P46=0,"",(SUM($D55:P55)-SUM($D73:P73))*Q64/P46+0.5*Q64/$C64) ->  | R73: =IF(Q46=0,"",(SUM($D55:Q55)-SUM($D73:Q73))*R64/Q46+0.5*R64/$C64) ->  | S73: =IF(R46=0,"",(SUM($D55:R55)-SUM($D73:R73))*S64/R46+0.5*S64/$C64) ->  | T73: =IF(S46=0,"",(SUM($D55:S55)-SUM($D73:S73))*T64/S46+0.5*T64/$C64) ->  | U73: =IF(T46=0,"",(SUM($D55:T55)-SUM($D73:T73))*U64/T46+0.5*U64/$C64) ->  | V73: =IF(U46=0,"",(SUM($D55:U55)-SUM($D73:U73))*V64/U46+0.5*V64/$C64) ->  | W73: =IF(V46=0,"",(SUM($D55:V55)-SUM($D73:V73))*W64/V46+0.5*W64/$C64) -> 
A74: =RIGHT(B$37,2)&"cad" -> 01cad | B74: c.a.d. opgegeven door netbeheerder | E74: =IF(EofG="E",IF(ISERROR(VLOOKUP(Kapitaalkosten!$A74,'Data E (oud)'!$1:$1048576,HLOOKUP(Naam&Kapitaalkosten!E$5&EofG,'Data E (oud)'!$D$5:$IV$6,2,FALSE),FALSE)),0,VLOOKUP(Kapitaalkosten!$A74,'Data E (oud)'!$1:$1048576,HLOOKUP(Naam&Kapitaalkosten!E$5&EofG,'Data E (oud)'!$D$5:$IV$6,2,FALSE),FALSE)),IF(ISERROR(VLOOKUP(Kapitaalkosten!$A74,'Data G'!$1:$1048576,HLOOKUP(Naam&Kapitaalkosten!E$5&EofG,'Data G'!$D$5:$IV$6,2,FALSE),FALSE)),0,VLOOKUP(Kapitaalkosten!$A74,'Data G'!$1:$1048576,HLOOKUP(Naam&Kapitaalkosten!E$5&EofG,'Data G'!$D$5:$IV$6,2,FALSE),FALSE))) -> 0 | F74: =IF(EofG="E",IF(ISERROR(VLOOKUP(Kapitaalkosten!$A74,'Data E (oud)'!$1:$1048576,HLOOKUP(Naam&Kapitaalkosten!F$5&EofG,'Data E (oud)'!$D$5:$IV$6,2,FALSE),FALSE)),0,VLOOKUP(Kapitaalkosten!$A74,'Data E (oud)'!$1:$1048576,HLOOKUP(Naam&Kapitaalkosten!F$5&EofG,'Data E (oud)'!$D$5:$IV$6,2,FALSE),FALSE)),IF(ISERROR(VLOOKUP(Kapitaalkosten!$A74,'Data G'!$1:$1048576,HLOOKUP(Naam&Kapitaalkosten!F$5&EofG,'Data G'!$D$5:$IV$6,2,FALSE),FALSE)),0,VLOOKUP(Kapitaalkosten!$A74,'Data G'!$1:$1048576,HLOOKUP(Naam&Kapitaalkosten!F$5&EofG,'Data G'!$D$5:$IV$6,2,FALSE),FALSE))) -> 0 | G74: =IF(EofG="E",IF(ISERROR(VLOOKUP(Kapitaalkosten!$A74,'Data E (oud)'!$1:$1048576,HLOOKUP(Naam&Kapitaalkosten!G$5&EofG,'Data E (oud)'!$D$5:$IV$6,2,FALSE),FALSE)),0,VLOOKUP(Kapitaalkosten!$A74,'Data E (oud)'!$1:$1048576,HLOOKUP(Naam&Kapitaalkosten!G$5&EofG,'Data E (oud)'!$D$5:$IV$6,2,FALSE),FALSE)),IF(ISERROR(VLOOKUP(Kapitaalkosten!$A74,'Data G'!$1:$1048576,HLOOKUP(Naam&Kapitaalkosten!G$5&EofG,'Data G'!$D$5:$IV$6,2,FALSE),FALSE)),0,VLOOKUP(Kapitaalkosten!$A74,'Data G'!$1:$1048576,HLOOKUP(Naam&Kapitaalkosten!G$5&EofG,'Data G'!$D$5:$IV$6,2,FALSE),FALSE))) -> 0 | H74: =IF(EofG="E",IF(ISERROR(VLOOKUP(Kapitaalkosten!$A74,'Data E (oud)'!$1:$1048576,HLOOKUP(Naam&Kapitaalkosten!H$5&EofG,'Data E (oud)'!$D$5:$IV$6,2,FALSE),FALSE)),0,VLOOKUP(Kapitaalkosten!$A74,'Data E (oud)'!$1:$1048576,HLOOKUP(Naam&Kapitaalkosten!H$5&EofG,'Data E (oud)'!$D$5:$IV$6,2,FALSE),FALSE)),IF(ISERROR(VLOOKUP(Kapitaalkosten!$A74,'Data G'!$1:$1048576,HLOOKUP(Naam&Kapitaalkosten!H$5&EofG,'Data G'!$D$5:$IV$6,2,FALSE),FALSE)),0,VLOOKUP(Kapitaalkosten!$A74,'Data G'!$1:$1048576,HLOOKUP(Naam&Kapitaalkosten!H$5&EofG,'Data G'!$D$5:$IV$6,2,FALSE),FALSE))) -> 0 | I74: =IF(EofG="E",IF(ISERROR(VLOOKUP(Kapitaalkosten!$A74,'Data E (oud)'!$1:$1048576,HLOOKUP(Naam&Kapitaalkosten!I$5&EofG,'Data E (oud)'!$D$5:$IV$6,2,FALSE),FALSE)),0,VLOOKUP(Kapitaalkosten!$A74,'Data E (oud)'!$1:$1048576,HLOOKUP(Naam&Kapitaalkosten!I$5&EofG,'Data E (oud)'!$D$5:$IV$6,2,FALSE),FALSE)),IF(ISERROR(VLOOKUP(Kapitaalkosten!$A74,'Data G'!$1:$1048576,HLOOKUP(Naam&Kapitaalkosten!I$5&EofG,'Data G'!$D$5:$IV$6,2,FALSE),FALSE)),0,VLOOKUP(Kapitaalkosten!$A74,'Data G'!$1:$1048576,HLOOKUP(Naam&Kapitaalkosten!I$5&EofG,'Data G'!$D$5:$IV$6,2,FALSE),FALSE))) -> 0 | J74: =J66 -> 0 | K74: =K66 -> 0 | L74: =L66 -> 0
B75: Bijzondere waardeverminderingen | E75: =SUM(E76:E82) -> 0 | F75: =SUM(F76:F82) -> 0 | G75: 0 | H75: 0 | I75: 0 | J75: 0 | K75: 0 | L75: 0 | M75: 0 | N75: 0 | O75: 0 | P75: 0 | Q75: 0 | R75: 0 | S75: 0 | T75: 0 | U75: 0 | V75: 0 | W75: 0
A76: =RIGHT(B$37,2)&"bwv"&C76 -> 01bwv50 | B76: bijzondere waardevermindering bij afschrijvingstermijn | C76: 50 | E76: =IF(EofG="E",IF(ISERROR(VLOOKUP(Kapitaalkosten!$A76,'Data E (oud)'!$1:$1048576,HLOOKUP(Naam&Kapitaalkosten!E$5&EofG,'Data E (oud)'!$D$5:$IV$6,2,FALSE),FALSE)),0,VLOOKUP(Kapitaalkosten!$A76,'Data E (oud)'!$1:$1048576,HLOOKUP(Naam&Kapitaalkosten!E$5&EofG,'Data E (oud)'!$D$5:$IV$6,2,FALSE),FALSE)),IF(ISERROR(VLOOKUP(Kapitaalkosten!$A76,'Data G'!$1:$1048576,HLOOKUP(Naam&Kapitaalkosten!E$5&EofG,'Data G'!$D$5:$IV$6,2,FALSE),FALSE)),0,VLOOKUP(Kapitaalkosten!$A76,'Data G'!$1:$1048576,HLOOKUP(Naam&Kapitaalkosten!E$5&EofG,'Data G'!$D$5:$IV$6,2,FALSE),FALSE))) -> 0 | F76: =IF(EofG="E",IF(ISERROR(VLOOKUP(Kapitaalkosten!$A76,'Data E (oud)'!$1:$1048576,HLOOKUP(Naam&Kapitaalkosten!F$5&EofG,'Data E (oud)'!$D$5:$IV$6,2,FALSE),FALSE)),0,VLOOKUP(Kapitaalkosten!$A76,'Data E (oud)'!$1:$1048576,HLOOKUP(Naam&Kapitaalkosten!F$5&EofG,'Data E (oud)'!$D$5:$IV$6,2,FALSE),FALSE)),IF(ISERROR(VLOOKUP(Kapitaalkosten!$A76,'Data G'!$1:$1048576,HLOOKUP(Naam&Kapitaalkosten!F$5&EofG,'Data G'!$D$5:$IV$6,2,FALSE),FALSE)),0,VLOOKUP(Kapitaalkosten!$A76,'Data G'!$1:$1048576,HLOOKUP(Naam&Kapitaalkosten!F$5&EofG,'Data G'!$D$5:$IV$6,2,FALSE),FALSE))) -> 0 | G76: =IF(EofG="E",IF(ISERROR(VLOOKUP(Kapitaalkosten!$A76,'Data E (oud)'!$1:$1048576,HLOOKUP(Naam&Kapitaalkosten!G$5&EofG,'Data E (oud)'!$D$5:$IV$6,2,FALSE),FALSE)),0,VLOOKUP(Kapitaalkosten!$A76,'Data E (oud)'!$1:$1048576,HLOOKUP(Naam&Kapitaalkosten!G$5&EofG,'Data E (oud)'!$D$5:$IV$6,2,FALSE),FALSE)),IF(ISERROR(VLOOKUP(Kapitaalkosten!$A76,'Data G'!$1:$1048576,HLOOKUP(Naam&Kapitaalkosten!G$5&EofG,'Data G'!$D$5:$IV$6,2,FALSE),FALSE)),0,VLOOKUP(Kapitaalkosten!$A76,'Data G'!$1:$1048576,HLOOKUP(Naam&Kapitaalkosten!G$5&EofG,'Data G'!$D$5:$IV$6,2,FALSE),FALSE))) -> 0 | H76: =IF(EofG="E",IF(ISERROR(VLOOKUP(Kapitaalkosten!$A76,'Data E (oud)'!$1:$1048576,HLOOKUP(Naam&Kapitaalkosten!H$5&EofG,'Data E (oud)'!$D$5:$IV$6,2,FALSE),FALSE)),0,VLOOKUP(Kapitaalkosten!$A76,'Data E (oud)'!$1:$1048576,HLOOKUP(Naam&Kapitaalkosten!H$5&EofG,'Data E (oud)'!$D$5:$IV$6,2,FALSE),FALSE)),IF(ISERROR(VLOOKUP(Kapitaalkosten!$A76,'Data G'!$1:$1048576,HLOOKUP(Naam&Kapitaalkosten!H$5&EofG,'Data G'!$D$5:$IV$6,2,FALSE),FALSE)),0,VLOOKUP(Kapitaalkosten!$A76,'Data G'!$1:$1048576,HLOOKUP(Naam&Kapitaalkosten!H$5&EofG,'Data G'!$D$5:$IV$6,2,FALSE),FALSE))) -> 0 | I76: =IF(EofG="E",IF(ISERROR(VLOOKUP(Kapitaalkosten!$A76,'Data E (oud)'!$1:$1048576,HLOOKUP(Naam&Kapitaalkosten!I$5&EofG,'Data E (oud)'!$D$5:$IV$6,2,FALSE),FALSE)),0,VLOOKUP(Kapitaalkosten!$A76,'Data E (oud)'!$1:$1048576,HLOOKUP(Naam&Kapitaalkosten!I$5&EofG,'Data E (oud)'!$D$5:$IV$6,2,FALSE),FALSE)),IF(ISERROR(VLOOKUP(Kapitaalkosten!$A76,'Data G'!$1:$1048576,HLOOKUP(Naam&Kapitaalkosten!I$5&EofG,'Data G'!$D$5:$IV$6,2,FALSE),FALSE)),0,VLOOKUP(Kapitaalkosten!$A76,'Data G'!$1:$1048576,HLOOKUP(Naam&Kapitaalkosten!I$5&EofG,'Data G'!$D$5:$IV$6,2,FALSE),FALSE))) -> 0 | J76: =IF(EofG="E",IF(ISERROR(VLOOKUP(Kapitaalkosten!$A76,'Data E (oud)'!$1:$1048576,HLOOKUP(Naam&Kapitaalkosten!J$5&EofG,'Data E (oud)'!$D$5:$IV$6,2,FALSE),FALSE)),0,VLOOKUP(Kapitaalkosten!$A76,'Data E (oud)'!$1:$1048576,HLOOKUP(Naam&Kapitaalkosten!J$5&EofG,'Data E (oud)'!$D$5:$IV$6,2,FALSE),FALSE)),IF(ISERROR(VLOOKUP(Kapitaalkosten!$A76,'Data G'!$1:$1048576,HLOOKUP(Naam&Kapitaalkosten!J$5&EofG,'Data G'!$D$5:$IV$6,2,FALSE),FALSE)),0,VLOOKUP(Kapitaalkosten!$A76,'Data G'!$1:$1048576,HLOOKUP(Naam&Kapitaalkosten!J$5&EofG,'Data G'!$D$5:$IV$6,2,FALSE),FALSE))) -> 0 | K76: =IF(EofG="E",IF(ISERROR(VLOOKUP(Kapitaalkosten!$A76,'Data E (oud)'!$1:$1048576,HLOOKUP(Naam&Kapitaalkosten!K$5&EofG,'Data E (oud)'!$D$5:$IV$6,2,FALSE),FALSE)),0,VLOOKUP(Kapitaalkosten!$A76,'Data E (oud)'!$1:$1048576,HLOOKUP(Naam&Kapitaalkosten!K$5&EofG,'Data E (oud)'!$D$5:$IV$6,2,FALSE),FALSE)),IF(ISERROR(VLOOKUP(Kapitaalkosten!$A76,'Data G'!$1:$1048576,HLOOKUP(Naam&Kapitaalkosten!K$5&EofG,'Data G'!$D$5:$IV$6,2,FALSE),FALSE)),0,VLOOKUP(Kapitaalkosten!$A76,'Data G'!$1:$1048576,HLOOKUP(Naam&Kapitaalkosten!K$5&EofG,'Data G'!$D$5:$IV$6,2,FALSE),FALSE))) -> 0 | L76: =IF(EofG="E",IF(ISERROR(VLOOKUP(Kapitaalkosten!$A76,'Data E (oud)'!$1:$1048576,HLOOKUP(Naam&Kapitaalkosten!L$5&EofG,'Data E (oud)'!$D$5:$IV$6,2,FALSE),FALSE)),0,VLOOKUP(Kapitaalkosten!$A76,'Data E (oud)'!$1:$1048576,HLOOKUP(Naam&Kapitaalkosten!L$5&EofG,'Data E (oud)'!$D$5:$IV$6,2,FALSE),FALSE)),IF(ISERROR(VLOOKUP(Kapitaalkosten!$A76,'Data G'!$1:$1048576,HLOOKUP(Naam&Kapitaalkosten!L$5&EofG,'Data G'!$D$5:$IV$6,2,FALSE),FALSE)),0,VLOOKUP(Kapitaalkosten!$A76,'Data G'!$1:$1048576,HLOOKUP(Naam&Kapitaalkosten!L$5&EofG,'Data G'!$D$5:$IV$6,2,FALSE),FALSE))) -> 0
A77: 01bwv40 | B77: bijzondere waardevermindering bij afschrijvingstermijn | C77: 40 | E77: =IF(EofG="E",IF(ISERROR(VLOOKUP(Kapitaalkosten!$A77,'Data E (oud)'!$1:$1048576,HLOOKUP(Naam&Kapitaalkosten!E$5&EofG,'Data E (oud)'!$D$5:$IV$6,2,FALSE),FALSE)),0,VLOOKUP(Kapitaalkosten!$A77,'Data E (oud)'!$1:$1048576,HLOOKUP(Naam&Kapitaalkosten!E$5&EofG,'Data E (oud)'!$D$5:$IV$6,2,FALSE),FALSE)),IF(ISERROR(VLOOKUP(Kapitaalkosten!$A77,'Data G'!$1:$1048576,HLOOKUP(Naam&Kapitaalkosten!E$5&EofG,'Data G'!$D$5:$IV$6,2,FALSE),FALSE)),0,VLOOKUP(Kapitaalkosten!$A77,'Data G'!$1:$1048576,HLOOKUP(Naam&Kapitaalkosten!E$5&EofG,'Data G'!$D$5:$IV$6,2,FALSE),FALSE))) -> 0 | F77: =IF(EofG="E",IF(ISERROR(VLOOKUP(Kapitaalkosten!$A77,'Data E (oud)'!$1:$1048576,HLOOKUP(Naam&Kapitaalkosten!F$5&EofG,'Data E (oud)'!$D$5:$IV$6,2,FALSE),FALSE)),0,VLOOKUP(Kapitaalkosten!$A77,'Data E (oud)'!$1:$1048576,HLOOKUP(Naam&Kapitaalkosten!F$5&EofG,'Data E (oud)'!$D$5:$IV$6,2,FALSE),FALSE)),IF(ISERROR(VLOOKUP(Kapitaalkosten!$A77,'Data G'!$1:$1048576,HLOOKUP(Naam&Kapitaalkosten!F$5&EofG,'Data G'!$D$5:$IV$6,2,FALSE),FALSE)),0,VLOOKUP(Kapitaalkosten!$A77,'Data G'!$1:$1048576,HLOOKUP(Naam&Kapitaalkosten!F$5&EofG,'Data G'!$D$5:$IV$6,2,FALSE),FALSE))) -> 0 | G77: =IF(EofG="E",IF(ISERROR(VLOOKUP(Kapitaalkosten!$A77,'Data E (oud)'!$1:$1048576,HLOOKUP(Naam&Kapitaalkosten!G$5&EofG,'Data E (oud)'!$D$5:$IV$6,2,FALSE),FALSE)),0,VLOOKUP(Kapitaalkosten!$A77,'Data E (oud)'!$1:$1048576,HLOOKUP(Naam&Kapitaalkosten!G$5&EofG,'Data E (oud)'!$D$5:$IV$6,2,FALSE),FALSE)),IF(ISERROR(VLOOKUP(Kapitaalkosten!$A77,'Data G'!$1:$1048576,HLOOKUP(Naam&Kapitaalkosten!G$5&EofG,'Data G'!$D$5:$IV$6,2,FALSE),FALSE)),0,VLOOKUP(Kapitaalkosten!$A77,'Data G'!$1:$1048576,HLOOKUP(Naam&Kapitaalkosten!G$5&EofG,'Data G'!$D$5:$IV$6,2,FALSE),FALSE))) -> 0 | H77: =IF(EofG="E",IF(ISERROR(VLOOKUP(Kapitaalkosten!$A77,'Data E (oud)'!$1:$1048576,HLOOKUP(Naam&Kapitaalkosten!H$5&EofG,'Data E (oud)'!$D$5:$IV$6,2,FALSE),FALSE)),0,VLOOKUP(Kapitaalkosten!$A77,'Data E (oud)'!$1:$1048576,HLOOKUP(Naam&Kapitaalkosten!H$5&EofG,'Data E (oud)'!$D$5:$IV$6,2,FALSE),FALSE)),IF(ISERROR(VLOOKUP(Kapitaalkosten!$A77,'Data G'!$1:$1048576,HLOOKUP(Naam&Kapitaalkosten!H$5&EofG,'Data G'!$D$5:$IV$6,2,FALSE),FALSE)),0,VLOOKUP(Kapitaalkosten!$A77,'Data G'!$1:$1048576,HLOOKUP(Naam&Kapitaalkosten!H$5&EofG,'Data G'!$D$5:$IV$6,2,FALSE),FALSE))) -> 0 | I77: =IF(EofG="E",IF(ISERROR(VLOOKUP(Kapitaalkosten!$A77,'Data E (oud)'!$1:$1048576,HLOOKUP(Naam&Kapitaalkosten!I$5&EofG,'Data E (oud)'!$D$5:$IV$6,2,FALSE),FALSE)),0,VLOOKUP(Kapitaalkosten!$A77,'Data E (oud)'!$1:$1048576,HLOOKUP(Naam&Kapitaalkosten!I$5&EofG,'Data E (oud)'!$D$5:$IV$6,2,FALSE),FALSE)),IF(ISERROR(VLOOKUP(Kapitaalkosten!$A77,'Data G'!$1:$1048576,HLOOKUP(Naam&Kapitaalkosten!I$5&EofG,'Data G'!$D$5:$IV$6,2,FALSE),FALSE)),0,VLOOKUP(Kapitaalkosten!$A77,'Data G'!$1:$1048576,HLOOKUP(Naam&Kapitaalkosten!I$5&EofG,'Data G'!$D$5:$IV$6,2,FALSE),FALSE))) -> 0 | J77: =IF(EofG="E",IF(ISERROR(VLOOKUP(Kapitaalkosten!$A77,'Data E (oud)'!$1:$1048576,HLOOKUP(Naam&Kapitaalkosten!J$5&EofG,'Data E (oud)'!$D$5:$IV$6,2,FALSE),FALSE)),0,VLOOKUP(Kapitaalkosten!$A77,'Data E (oud)'!$1:$1048576,HLOOKUP(Naam&Kapitaalkosten!J$5&EofG,'Data E (oud)'!$D$5:$IV$6,2,FALSE),FALSE)),IF(ISERROR(VLOOKUP(Kapitaalkosten!$A77,'Data G'!$1:$1048576,HLOOKUP(Naam&Kapitaalkosten!J$5&EofG,'Data G'!$D$5:$IV$6,2,FALSE),FALSE)),0,VLOOKUP(Kapitaalkosten!$A77,'Data G'!$1:$1048576,HLOOKUP(Naam&Kapitaalkosten!J$5&EofG,'Data G'!$D$5:$IV$6,2,FALSE),FALSE))) -> 0 | K77: =IF(EofG="E",IF(ISERROR(VLOOKUP(Kapitaalkosten!$A77,'Data E (oud)'!$1:$1048576,HLOOKUP(Naam&Kapitaalkosten!K$5&EofG,'Data E (oud)'!$D$5:$IV$6,2,FALSE),FALSE)),0,VLOOKUP(Kapitaalkosten!$A77,'Data E (oud)'!$1:$1048576,HLOOKUP(Naam&Kapitaalkosten!K$5&EofG,'Data E (oud)'!$D$5:$IV$6,2,FALSE),FALSE)),IF(ISERROR(VLOOKUP(Kapitaalkosten!$A77,'Data G'!$1:$1048576,HLOOKUP(Naam&Kapitaalkosten!K$5&EofG,'Data G'!$D$5:$IV$6,2,FALSE),FALSE)),0,VLOOKUP(Kapitaalkosten!$A77,'Data G'!$1:$1048576,HLOOKUP(Naam&Kapitaalkosten!K$5&EofG,'Data G'!$D$5:$IV$6,2,FALSE),FALSE))) -> 0 | L77: =IF(EofG="E",IF(ISERROR(VLOOKUP(Kapitaalkosten!$A77,'Data E (oud)'!$1:$1048576,HLOOKUP(Naam&Kapitaalkosten!L$5&EofG,'Data E (oud)'!$D$5:$IV$6,2,FALSE),FALSE)),0,VLOOKUP(Kapitaalkosten!$A77,'Data E (oud)'!$1:$1048576,HLOOKUP(Naam&Kapitaalkosten!L$5&EofG,'Data E (oud)'!$D$5:$IV$6,2,FALSE),FALSE)),IF(ISERROR(VLOOKUP(Kapitaalkosten!$A77,'Data G'!$1:$1048576,HLOOKUP(Naam&Kapitaalkosten!L$5&EofG,'Data G'!$D$5:$IV$6,2,FALSE),FALSE)),0,VLOOKUP(Kapitaalkosten!$A77,'Data G'!$1:$1048576,HLOOKUP(Naam&Kapitaalkosten!L$5&EofG,'Data G'!$D$5:$IV$6,2,FALSE),FALSE))) -> 0
A78: 01bwv30 | B78: bijzondere waardevermindering bij afschrijvingstermijn | C78: 30 | E78: =IF(EofG="E",IF(ISERROR(VLOOKUP(Kapitaalkosten!$A78,'Data E (oud)'!$1:$1048576,HLOOKUP(Naam&Kapitaalkosten!E$5&EofG,'Data E (oud)'!$D$5:$IV$6,2,FALSE),FALSE)),0,VLOOKUP(Kapitaalkosten!$A78,'Data E (oud)'!$1:$1048576,HLOOKUP(Naam&Kapitaalkosten!E$5&EofG,'Data E (oud)'!$D$5:$IV$6,2,FALSE),FALSE)),IF(ISERROR(VLOOKUP(Kapitaalkosten!$A78,'Data G'!$1:$1048576,HLOOKUP(Naam&Kapitaalkosten!E$5&EofG,'Data G'!$D$5:$IV$6,2,FALSE),FALSE)),0,VLOOKUP(Kapitaalkosten!$A78,'Data G'!$1:$1048576,HLOOKUP(Naam&Kapitaalkosten!E$5&EofG,'Data G'!$D$5:$IV$6,2,FALSE),FALSE))) -> 0 | F78: =IF(EofG="E",IF(ISERROR(VLOOKUP(Kapitaalkosten!$A78,'Data E (oud)'!$1:$1048576,HLOOKUP(Naam&Kapitaalkosten!F$5&EofG,'Data E (oud)'!$D$5:$IV$6,2,FALSE),FALSE)),0,VLOOKUP(Kapitaalkosten!$A78,'Data E (oud)'!$1:$1048576,HLOOKUP(Naam&Kapitaalkosten!F$5&EofG,'Data E (oud)'!$D$5:$IV$6,2,FALSE),FALSE)),IF(ISERROR(VLOOKUP(Kapitaalkosten!$A78,'Data G'!$1:$1048576,HLOOKUP(Naam&Kapitaalkosten!F$5&EofG,'Data G'!$D$5:$IV$6,2,FALSE),FALSE)),0,VLOOKUP(Kapitaalkosten!$A78,'Data G'!$1:$1048576,HLOOKUP(Naam&Kapitaalkosten!F$5&EofG,'Data G'!$D$5:$IV$6,2,FALSE),FALSE))) -> 0 | G78: =IF(EofG="E",IF(ISERROR(VLOOKUP(Kapitaalkosten!$A78,'Data E (oud)'!$1:$1048576,HLOOKUP(Naam&Kapitaalkosten!G$5&EofG,'Data E (oud)'!$D$5:$IV$6,2,FALSE),FALSE)),0,VLOOKUP(Kapitaalkosten!$A78,'Data E (oud)'!$1:$1048576,HLOOKUP(Naam&Kapitaalkosten!G$5&EofG,'Data E (oud)'!$D$5:$IV$6,2,FALSE),FALSE)),IF(ISERROR(VLOOKUP(Kapitaalkosten!$A78,'Data G'!$1:$1048576,HLOOKUP(Naam&Kapitaalkosten!G$5&EofG,'Data G'!$D$5:$IV$6,2,FALSE),FALSE)),0,VLOOKUP(Kapitaalkosten!$A78,'Data G'!$1:$1048576,HLOOKUP(Naam&Kapitaalkosten!G$5&EofG,'Data G'!$D$5:$IV$6,2,FALSE),FALSE))) -> 0 | H78: =IF(EofG="E",IF(ISERROR(VLOOKUP(Kapitaalkosten!$A78,'Data E (oud)'!$1:$1048576,HLOOKUP(Naam&Kapitaalkosten!H$5&EofG,'Data E (oud)'!$D$5:$IV$6,2,FALSE),FALSE)),0,VLOOKUP(Kapitaalkosten!$A78,'Data E (oud)'!$1:$1048576,HLOOKUP(Naam&Kapitaalkosten!H$5&EofG,'Data E (oud)'!$D$5:$IV$6,2,FALSE),FALSE)),IF(ISERROR(VLOOKUP(Kapitaalkosten!$A78,'Data G'!$1:$1048576,HLOOKUP(Naam&Kapitaalkosten!H$5&EofG,'Data G'!$D$5:$IV$6,2,FALSE),FALSE)),0,VLOOKUP(Kapitaalkosten!$A78,'Data G'!$1:$1048576,HLOOKUP(Naam&Kapitaalkosten!H$5&EofG,'Data G'!$D$5:$IV$6,2,FALSE),FALSE))) -> 0 | I78: =IF(EofG="E",IF(ISERROR(VLOOKUP(Kapitaalkosten!$A78,'Data E (oud)'!$1:$1048576,HLOOKUP(Naam&Kapitaalkosten!I$5&EofG,'Data E (oud)'!$D$5:$IV$6,2,FALSE),FALSE)),0,VLOOKUP(Kapitaalkosten!$A78,'Data E (oud)'!$1:$1048576,HLOOKUP(Naam&Kapitaalkosten!I$5&EofG,'Data E (oud)'!$D$5:$IV$6,2,FALSE),FALSE)),IF(ISERROR(VLOOKUP(Kapitaalkosten!$A78,'Data G'!$1:$1048576,HLOOKUP(Naam&Kapitaalkosten!I$5&EofG,'Data G'!$D$5:$IV$6,2,FALSE),FALSE)),0,VLOOKUP(Kapitaalkosten!$A78,'Data G'!$1:$1048576,HLOOKUP(Naam&Kapitaalkosten!I$5&EofG,'Data G'!$D$5:$IV$6,2,FALSE),FALSE))) -> 0 | J78: =IF(EofG="E",IF(ISERROR(VLOOKUP(Kapitaalkosten!$A78,'Data E (oud)'!$1:$1048576,HLOOKUP(Naam&Kapitaalkosten!J$5&EofG,'Data E (oud)'!$D$5:$IV$6,2,FALSE),FALSE)),0,VLOOKUP(Kapitaalkosten!$A78,'Data E (oud)'!$1:$1048576,HLOOKUP(Naam&Kapitaalkosten!J$5&EofG,'Data E (oud)'!$D$5:$IV$6,2,FALSE),FALSE)),IF(ISERROR(VLOOKUP(Kapitaalkosten!$A78,'Data G'!$1:$1048576,HLOOKUP(Naam&Kapitaalkosten!J$5&EofG,'Data G'!$D$5:$IV$6,2,FALSE),FALSE)),0,VLOOKUP(Kapitaalkosten!$A78,'Data G'!$1:$1048576,HLOOKUP(Naam&Kapitaalkosten!J$5&EofG,'Data G'!$D$5:$IV$6,2,FALSE),FALSE))) -> 0 | K78: =IF(EofG="E",IF(ISERROR(VLOOKUP(Kapitaalkosten!$A78,'Data E (oud)'!$1:$1048576,HLOOKUP(Naam&Kapitaalkosten!K$5&EofG,'Data E (oud)'!$D$5:$IV$6,2,FALSE),FALSE)),0,VLOOKUP(Kapitaalkosten!$A78,'Data E (oud)'!$1:$1048576,HLOOKUP(Naam&Kapitaalkosten!K$5&EofG,'Data E (oud)'!$D$5:$IV$6,2,FALSE),FALSE)),IF(ISERROR(VLOOKUP(Kapitaalkosten!$A78,'Data G'!$1:$1048576,HLOOKUP(Naam&Kapitaalkosten!K$5&EofG,'Data G'!$D$5:$IV$6,2,FALSE),FALSE)),0,VLOOKUP(Kapitaalkosten!$A78,'Data G'!$1:$1048576,HLOOKUP(Naam&Kapitaalkosten!K$5&EofG,'Data G'!$D$5:$IV$6,2,FALSE),FALSE))) -> 0 | L78: =IF(EofG="E",IF(ISERROR(VLOOKUP(Kapitaalkosten!$A78,'Data E (oud)'!$1:$1048576,HLOOKUP(Naam&Kapitaalkosten!L$5&EofG,'Data E (oud)'!$D$5:$IV$6,2,FALSE),FALSE)),0,VLOOKUP(Kapitaalkosten!$A78,'Data E (oud)'!$1:$1048576,HLOOKUP(Naam&Kapitaalkosten!L$5&EofG,'Data E (oud)'!$D$5:$IV$6,2,FALSE),FALSE)),IF(ISERROR(VLOOKUP(Kapitaalkosten!$A78,'Data G'!$1:$1048576,HLOOKUP(Naam&Kapitaalkosten!L$5&EofG,'Data G'!$D$5:$IV$6,2,FALSE),FALSE)),0,VLOOKUP(Kapitaalkosten!$A78,'Data G'!$1:$1048576,HLOOKUP(Naam&Kapitaalkosten!L$5&EofG,'Data G'!$D$5:$IV$6,2,FALSE),FALSE))) -> 0
A79: 01bwv25 | B79: bijzondere waardevermindering bij afschrijvingstermijn | C79: 25 | E79: =IF(EofG="E",IF(ISERROR(VLOOKUP(Kapitaalkosten!$A79,'Data E (oud)'!$1:$1048576,HLOOKUP(Naam&Kapitaalkosten!E$5&EofG,'Data E (oud)'!$D$5:$IV$6,2,FALSE),FALSE)),0,VLOOKUP(Kapitaalkosten!$A79,'Data E (oud)'!$1:$1048576,HLOOKUP(Naam&Kapitaalkosten!E$5&EofG,'Data E (oud)'!$D$5:$IV$6,2,FALSE),FALSE)),IF(ISERROR(VLOOKUP(Kapitaalkosten!$A79,'Data G'!$1:$1048576,HLOOKUP(Naam&Kapitaalkosten!E$5&EofG,'Data G'!$D$5:$IV$6,2,FALSE),FALSE)),0,VLOOKUP(Kapitaalkosten!$A79,'Data G'!$1:$1048576,HLOOKUP(Naam&Kapitaalkosten!E$5&EofG,'Data G'!$D$5:$IV$6,2,FALSE),FALSE))) -> 0 | F79: =IF(EofG="E",IF(ISERROR(VLOOKUP(Kapitaalkosten!$A79,'Data E (oud)'!$1:$1048576,HLOOKUP(Naam&Kapitaalkosten!F$5&EofG,'Data E (oud)'!$D$5:$IV$6,2,FALSE),FALSE)),0,VLOOKUP(Kapitaalkosten!$A79,'Data E (oud)'!$1:$1048576,HLOOKUP(Naam&Kapitaalkosten!F$5&EofG,'Data E (oud)'!$D$5:$IV$6,2,FALSE),FALSE)),IF(ISERROR(VLOOKUP(Kapitaalkosten!$A79,'Data G'!$1:$1048576,HLOOKUP(Naam&Kapitaalkosten!F$5&EofG,'Data G'!$D$5:$IV$6,2,FALSE),FALSE)),0,VLOOKUP(Kapitaalkosten!$A79,'Data G'!$1:$1048576,HLOOKUP(Naam&Kapitaalkosten!F$5&EofG,'Data G'!$D$5:$IV$6,2,FALSE),FALSE))) -> 0 | G79: =IF(EofG="E",IF(ISERROR(VLOOKUP(Kapitaalkosten!$A79,'Data E (oud)'!$1:$1048576,HLOOKUP(Naam&Kapitaalkosten!G$5&EofG,'Data E (oud)'!$D$5:$IV$6,2,FALSE),FALSE)),0,VLOOKUP(Kapitaalkosten!$A79,'Data E (oud)'!$1:$1048576,HLOOKUP(Naam&Kapitaalkosten!G$5&EofG,'Data E (oud)'!$D$5:$IV$6,2,FALSE),FALSE)),IF(ISERROR(VLOOKUP(Kapitaalkosten!$A79,'Data G'!$1:$1048576,HLOOKUP(Naam&Kapitaalkosten!G$5&EofG,'Data G'!$D$5:$IV$6,2,FALSE),FALSE)),0,VLOOKUP(Kapitaalkosten!$A79,'Data G'!$1:$1048576,HLOOKUP(Naam&Kapitaalkosten!G$5&EofG,'Data G'!$D$5:$IV$6,2,FALSE),FALSE))) -> 0 | H79: =IF(EofG="E",IF(ISERROR(VLOOKUP(Kapitaalkosten!$A79,'Data E (oud)'!$1:$1048576,HLOOKUP(Naam&Kapitaalkosten!H$5&EofG,'Data E (oud)'!$D$5:$IV$6,2,FALSE),FALSE)),0,VLOOKUP(Kapitaalkosten!$A79,'Data E (oud)'!$1:$1048576,HLOOKUP(Naam&Kapitaalkosten!H$5&EofG,'Data E (oud)'!$D$5:$IV$6,2,FALSE),FALSE)),IF(ISERROR(VLOOKUP(Kapitaalkosten!$A79,'Data G'!$1:$1048576,HLOOKUP(Naam&Kapitaalkosten!H$5&EofG,'Data G'!$D$5:$IV$6,2,FALSE),FALSE)),0,VLOOKUP(Kapitaalkosten!$A79,'Data G'!$1:$1048576,HLOOKUP(Naam&Kapitaalkosten!H$5&EofG,'Data G'!$D$5:$IV$6,2,FALSE),FALSE))) -> 0 | I79: =IF(EofG="E",IF(ISERROR(VLOOKUP(Kapitaalkosten!$A79,'Data E (oud)'!$1:$1048576,HLOOKUP(Naam&Kapitaalkosten!I$5&EofG,'Data E (oud)'!$D$5:$IV$6,2,FALSE),FALSE)),0,VLOOKUP(Kapitaalkosten!$A79,'Data E (oud)'!$1:$1048576,HLOOKUP(Naam&Kapitaalkosten!I$5&EofG,'Data E (oud)'!$D$5:$IV$6,2,FALSE),FALSE)),IF(ISERROR(VLOOKUP(Kapitaalkosten!$A79,'Data G'!$1:$1048576,HLOOKUP(Naam&Kapitaalkosten!I$5&EofG,'Data G'!$D$5:$IV$6,2,FALSE),FALSE)),0,VLOOKUP(Kapitaalkosten!$A79,'Data G'!$1:$1048576,HLOOKUP(Naam&Kapitaalkosten!I$5&EofG,'Data G'!$D$5:$IV$6,2,FALSE),FALSE))) -> 0 | J79: =IF(EofG="E",IF(ISERROR(VLOOKUP(Kapitaalkosten!$A79,'Data E (oud)'!$1:$1048576,HLOOKUP(Naam&Kapitaalkosten!J$5&EofG,'Data E (oud)'!$D$5:$IV$6,2,FALSE),FALSE)),0,VLOOKUP(Kapitaalkosten!$A79,'Data E (oud)'!$1:$1048576,HLOOKUP(Naam&Kapitaalkosten!J$5&EofG,'Data E (oud)'!$D$5:$IV$6,2,FALSE),FALSE)),IF(ISERROR(VLOOKUP(Kapitaalkosten!$A79,'Data G'!$1:$1048576,HLOOKUP(Naam&Kapitaalkosten!J$5&EofG,'Data G'!$D$5:$IV$6,2,FALSE),FALSE)),0,VLOOKUP(Kapitaalkosten!$A79,'Data G'!$1:$1048576,HLOOKUP(Naam&Kapitaalkosten!J$5&EofG,'Data G'!$D$5:$IV$6,2,FALSE),FALSE))) -> 0 | K79: =IF(EofG="E",IF(ISERROR(VLOOKUP(Kapitaalkosten!$A79,'Data E (oud)'!$1:$1048576,HLOOKUP(Naam&Kapitaalkosten!K$5&EofG,'Data E (oud)'!$D$5:$IV$6,2,FALSE),FALSE)),0,VLOOKUP(Kapitaalkosten!$A79,'Data E (oud)'!$1:$1048576,HLOOKUP(Naam&Kapitaalkosten!K$5&EofG,'Data E (oud)'!$D$5:$IV$6,2,FALSE),FALSE)),IF(ISERROR(VLOOKUP(Kapitaalkosten!$A79,'Data G'!$1:$1048576,HLOOKUP(Naam&Kapitaalkosten!K$5&EofG,'Data G'!$D$5:$IV$6,2,FALSE),FALSE)),0,VLOOKUP(Kapitaalkosten!$A79,'Data G'!$1:$1048576,HLOOKUP(Naam&Kapitaalkosten!K$5&EofG,'Data G'!$D$5:$IV$6,2,FALSE),FALSE))) -> 0 | L79: =IF(EofG="E",IF(ISERROR(VLOOKUP(Kapitaalkosten!$A79,'Data E (oud)'!$1:$1048576,HLOOKUP(Naam&Kapitaalkosten!L$5&EofG,'Data E (oud)'!$D$5:$IV$6,2,FALSE),FALSE)),0,VLOOKUP(Kapitaalkosten!$A79,'Data E (oud)'!$1:$1048576,HLOOKUP(Naam&Kapitaalkosten!L$5&EofG,'Data E (oud)'!$D$5:$IV$6,2,FALSE),FALSE)),IF(ISERROR(VLOOKUP(Kapitaalkosten!$A79,'Data G'!$1:$1048576,HLOOKUP(Naam&Kapitaalkosten!L$5&EofG,'Data G'!$D$5:$IV$6,2,FALSE),FALSE)),0,VLOOKUP(Kapitaalkosten!$A79,'Data G'!$1:$1048576,HLOOKUP(Naam&Kapitaalkosten!L$5&EofG,'Data G'!$D$5:$IV$6,2,FALSE),FALSE))) -> 0
A80: 01bwv10 | B80: bijzondere waardevermindering bij afschrijvingstermijn | C80: 10 | E80: =IF(EofG="E",IF(ISERROR(VLOOKUP(Kapitaalkosten!$A80,'Data E (oud)'!$1:$1048576,HLOOKUP(Naam&Kapitaalkosten!E$5&EofG,'Data E (oud)'!$D$5:$IV$6,2,FALSE),FALSE)),0,VLOOKUP(Kapitaalkosten!$A80,'Data E (oud)'!$1:$1048576,HLOOKUP(Naam&Kapitaalkosten!E$5&EofG,'Data E (oud)'!$D$5:$IV$6,2,FALSE),FALSE)),IF(ISERROR(VLOOKUP(Kapitaalkosten!$A80,'Data G'!$1:$1048576,HLOOKUP(Naam&Kapitaalkosten!E$5&EofG,'Data G'!$D$5:$IV$6,2,FALSE),FALSE)),0,VLOOKUP(Kapitaalkosten!$A80,'Data G'!$1:$1048576,HLOOKUP(Naam&Kapitaalkosten!E$5&EofG,'Data G'!$D$5:$IV$6,2,FALSE),FALSE))) -> 0 | F80: =IF(EofG="E",IF(ISERROR(VLOOKUP(Kapitaalkosten!$A80,'Data E (oud)'!$1:$1048576,HLOOKUP(Naam&Kapitaalkosten!F$5&EofG,'Data E (oud)'!$D$5:$IV$6,2,FALSE),FALSE)),0,VLOOKUP(Kapitaalkosten!$A80,'Data E (oud)'!$1:$1048576,HLOOKUP(Naam&Kapitaalkosten!F$5&EofG,'Data E (oud)'!$D$5:$IV$6,2,FALSE),FALSE)),IF(ISERROR(VLOOKUP(Kapitaalkosten!$A80,'Data G'!$1:$1048576,HLOOKUP(Naam&Kapitaalkosten!F$5&EofG,'Data G'!$D$5:$IV$6,2,FALSE),FALSE)),0,VLOOKUP(Kapitaalkosten!$A80,'Data G'!$1:$1048576,HLOOKUP(Naam&Kapitaalkosten!F$5&EofG,'Data G'!$D$5:$IV$6,2,FALSE),FALSE))) -> 0 | G80: =IF(EofG="E",IF(ISERROR(VLOOKUP(Kapitaalkosten!$A80,'Data E (oud)'!$1:$1048576,HLOOKUP(Naam&Kapitaalkosten!G$5&EofG,'Data E (oud)'!$D$5:$IV$6,2,FALSE),FALSE)),0,VLOOKUP(Kapitaalkosten!$A80,'Data E (oud)'!$1:$1048576,HLOOKUP(Naam&Kapitaalkosten!G$5&EofG,'Data E (oud)'!$D$5:$IV$6,2,FALSE),FALSE)),IF(ISERROR(VLOOKUP(Kapitaalkosten!$A80,'Data G'!$1:$1048576,HLOOKUP(Naam&Kapitaalkosten!G$5&EofG,'Data G'!$D$5:$IV$6,2,FALSE),FALSE)),0,VLOOKUP(Kapitaalkosten!$A80,'Data G'!$1:$1048576,HLOOKUP(Naam&Kapitaalkosten!G$5&EofG,'Data G'!$D$5:$IV$6,2,FALSE),FALSE))) -> 0 | H80: =IF(EofG="E",IF(ISERROR(VLOOKUP(Kapitaalkosten!$A80,'Data E (oud)'!$1:$1048576,HLOOKUP(Naam&Kapitaalkosten!H$5&EofG,'Data E (oud)'!$D$5:$IV$6,2,FALSE),FALSE)),0,VLOOKUP(Kapitaalkosten!$A80,'Data E (oud)'!$1:$1048576,HLOOKUP(Naam&Kapitaalkosten!H$5&EofG,'Data E (oud)'!$D$5:$IV$6,2,FALSE),FALSE)),IF(ISERROR(VLOOKUP(Kapitaalkosten!$A80,'Data G'!$1:$1048576,HLOOKUP(Naam&Kapitaalkosten!H$5&EofG,'Data G'!$D$5:$IV$6,2,FALSE),FALSE)),0,VLOOKUP(Kapitaalkosten!$A80,'Data G'!$1:$1048576,HLOOKUP(Naam&Kapitaalkosten!H$5&EofG,'Data G'!$D$5:$IV$6,2,FALSE),FALSE))) -> 0 | I80: =IF(EofG="E",IF(ISERROR(VLOOKUP(Kapitaalkosten!$A80,'Data E (oud)'!$1:$1048576,HLOOKUP(Naam&Kapitaalkosten!I$5&EofG,'Data E (oud)'!$D$5:$IV$6,2,FALSE),FALSE)),0,VLOOKUP(Kapitaalkosten!$A80,'Data E (oud)'!$1:$1048576,HLOOKUP(Naam&Kapitaalkosten!I$5&EofG,'Data E (oud)'!$D$5:$IV$6,2,FALSE),FALSE)),IF(ISERROR(VLOOKUP(Kapitaalkosten!$A80,'Data G'!$1:$1048576,HLOOKUP(Naam&Kapitaalkosten!I$5&EofG,'Data G'!$D$5:$IV$6,2,FALSE),FALSE)),0,VLOOKUP(Kapitaalkosten!$A80,'Data G'!$1:$1048576,HLOOKUP(Naam&Kapitaalkosten!I$5&EofG,'Data G'!$D$5:$IV$6,2,FALSE),FALSE))) -> 0 | J80: =IF(EofG="E",IF(ISERROR(VLOOKUP(Kapitaalkosten!$A80,'Data E (oud)'!$1:$1048576,HLOOKUP(Naam&Kapitaalkosten!J$5&EofG,'Data E (oud)'!$D$5:$IV$6,2,FALSE),FALSE)),0,VLOOKUP(Kapitaalkosten!$A80,'Data E (oud)'!$1:$1048576,HLOOKUP(Naam&Kapitaalkosten!J$5&EofG,'Data E (oud)'!$D$5:$IV$6,2,FALSE),FALSE)),IF(ISERROR(VLOOKUP(Kapitaalkosten!$A80,'Data G'!$1:$1048576,HLOOKUP(Naam&Kapitaalkosten!J$5&EofG,'Data G'!$D$5:$IV$6,2,FALSE),FALSE)),0,VLOOKUP(Kapitaalkosten!$A80,'Data G'!$1:$1048576,HLOOKUP(Naam&Kapitaalkosten!J$5&EofG,'Data G'!$D$5:$IV$6,2,FALSE),FALSE))) -> 0 | K80: =IF(EofG="E",IF(ISERROR(VLOOKUP(Kapitaalkosten!$A80,'Data E (oud)'!$1:$1048576,HLOOKUP(Naam&Kapitaalkosten!K$5&EofG,'Data E (oud)'!$D$5:$IV$6,2,FALSE),FALSE)),0,VLOOKUP(Kapitaalkosten!$A80,'Data E (oud)'!$1:$1048576,HLOOKUP(Naam&Kapitaalkosten!K$5&EofG,'Data E (oud)'!$D$5:$IV$6,2,FALSE),FALSE)),IF(ISERROR(VLOOKUP(Kapitaalkosten!$A80,'Data G'!$1:$1048576,HLOOKUP(Naam&Kapitaalkosten!K$5&EofG,'Data G'!$D$5:$IV$6,2,FALSE),FALSE)),0,VLOOKUP(Kapitaalkosten!$A80,'Data G'!$1:$1048576,HLOOKUP(Naam&Kapitaalkosten!K$5&EofG,'Data G'!$D$5:$IV$6,2,FALSE),FALSE))) -> 0 | L80: =IF(EofG="E",IF(ISERROR(VLOOKUP(Kapitaalkosten!$A80,'Data E (oud)'!$1:$1048576,HLOOKUP(Naam&Kapitaalkosten!L$5&EofG,'Data E (oud)'!$D$5:$IV$6,2,FALSE),FALSE)),0,VLOOKUP(Kapitaalkosten!$A80,'Data E (oud)'!$1:$1048576,HLOOKUP(Naam&Kapitaalkosten!L$5&EofG,'Data E (oud)'!$D$5:$IV$6,2,FALSE),FALSE)),IF(ISERROR(VLOOKUP(Kapitaalkosten!$A80,'Data G'!$1:$1048576,HLOOKUP(Naam&Kapitaalkosten!L$5&EofG,'Data G'!$D$5:$IV$6,2,FALSE),FALSE)),0,VLOOKUP(Kapitaalkosten!$A80,'Data G'!$1:$1048576,HLOOKUP(Naam&Kapitaalkosten!L$5&EofG,'Data G'!$D$5:$IV$6,2,FALSE),FALSE))) -> 0
A81: 01bwv5 | B81: bijzondere waardevermindering bij afschrijvingstermijn | C81: 5 | E81: =IF(EofG="E",IF(ISERROR(VLOOKUP(Kapitaalkosten!$A81,'Data E (oud)'!$1:$1048576,HLOOKUP(Naam&Kapitaalkosten!E$5&EofG,'Data E (oud)'!$D$5:$IV$6,2,FALSE),FALSE)),0,VLOOKUP(Kapitaalkosten!$A81,'Data E (oud)'!$1:$1048576,HLOOKUP(Naam&Kapitaalkosten!E$5&EofG,'Data E (oud)'!$D$5:$IV$6,2,FALSE),FALSE)),IF(ISERROR(VLOOKUP(Kapitaalkosten!$A81,'Data G'!$1:$1048576,HLOOKUP(Naam&Kapitaalkosten!E$5&EofG,'Data G'!$D$5:$IV$6,2,FALSE),FALSE)),0,VLOOKUP(Kapitaalkosten!$A81,'Data G'!$1:$1048576,HLOOKUP(Naam&Kapitaalkosten!E$5&EofG,'Data G'!$D$5:$IV$6,2,FALSE),FALSE))) -> 0 | F81: =IF(EofG="E",IF(ISERROR(VLOOKUP(Kapitaalkosten!$A81,'Data E (oud)'!$1:$1048576,HLOOKUP(Naam&Kapitaalkosten!F$5&EofG,'Data E (oud)'!$D$5:$IV$6,2,FALSE),FALSE)),0,VLOOKUP(Kapitaalkosten!$A81,'Data E (oud)'!$1:$1048576,HLOOKUP(Naam&Kapitaalkosten!F$5&EofG,'Data E (oud)'!$D$5:$IV$6,2,FALSE),FALSE)),IF(ISERROR(VLOOKUP(Kapitaalkosten!$A81,'Data G'!$1:$1048576,HLOOKUP(Naam&Kapitaalkosten!F$5&EofG,'Data G'!$D$5:$IV$6,2,FALSE),FALSE)),0,VLOOKUP(Kapitaalkosten!$A81,'Data G'!$1:$1048576,HLOOKUP(Naam&Kapitaalkosten!F$5&EofG,'Data G'!$D$5:$IV$6,2,FALSE),FALSE))) -> 0 | G81: =IF(EofG="E",IF(ISERROR(VLOOKUP(Kapitaalkosten!$A81,'Data E (oud)'!$1:$1048576,HLOOKUP(Naam&Kapitaalkosten!G$5&EofG,'Data E (oud)'!$D$5:$IV$6,2,FALSE),FALSE)),0,VLOOKUP(Kapitaalkosten!$A81,'Data E (oud)'!$1:$1048576,HLOOKUP(Naam&Kapitaalkosten!G$5&EofG,'Data E (oud)'!$D$5:$IV$6,2,FALSE),FALSE)),IF(ISERROR(VLOOKUP(Kapitaalkosten!$A81,'Data G'!$1:$1048576,HLOOKUP(Naam&Kapitaalkosten!G$5&EofG,'Data G'!$D$5:$IV$6,2,FALSE),FALSE)),0,VLOOKUP(Kapitaalkosten!$A81,'Data G'!$1:$1048576,HLOOKUP(Naam&Kapitaalkosten!G$5&EofG,'Data G'!$D$5:$IV$6,2,FALSE),FALSE))) -> 0 | H81: =IF(EofG="E",IF(ISERROR(VLOOKUP(Kapitaalkosten!$A81,'Data E (oud)'!$1:$1048576,HLOOKUP(Naam&Kapitaalkosten!H$5&EofG,'Data E (oud)'!$D$5:$IV$6,2,FALSE),FALSE)),0,VLOOKUP(Kapitaalkosten!$A81,'Data E (oud)'!$1:$1048576,HLOOKUP(Naam&Kapitaalkosten!H$5&EofG,'Data E (oud)'!$D$5:$IV$6,2,FALSE),FALSE)),IF(ISERROR(VLOOKUP(Kapitaalkosten!$A81,'Data G'!$1:$1048576,HLOOKUP(Naam&Kapitaalkosten!H$5&EofG,'Data G'!$D$5:$IV$6,2,FALSE),FALSE)),0,VLOOKUP(Kapitaalkosten!$A81,'Data G'!$1:$1048576,HLOOKUP(Naam&Kapitaalkosten!H$5&EofG,'Data G'!$D$5:$IV$6,2,FALSE),FALSE))) -> 0 | I81: =IF(EofG="E",IF(ISERROR(VLOOKUP(Kapitaalkosten!$A81,'Data E (oud)'!$1:$1048576,HLOOKUP(Naam&Kapitaalkosten!I$5&EofG,'Data E (oud)'!$D$5:$IV$6,2,FALSE),FALSE)),0,VLOOKUP(Kapitaalkosten!$A81,'Data E (oud)'!$1:$1048576,HLOOKUP(Naam&Kapitaalkosten!I$5&EofG,'Data E (oud)'!$D$5:$IV$6,2,FALSE),FALSE)),IF(ISERROR(VLOOKUP(Kapitaalkosten!$A81,'Data G'!$1:$1048576,HLOOKUP(Naam&Kapitaalkosten!I$5&EofG,'Data G'!$D$5:$IV$6,2,FALSE),FALSE)),0,VLOOKUP(Kapitaalkosten!$A81,'Data G'!$1:$1048576,HLOOKUP(Naam&Kapitaalkosten!I$5&EofG,'Data G'!$D$5:$IV$6,2,FALSE),FALSE))) -> 0 | J81: =IF(EofG="E",IF(ISERROR(VLOOKUP(Kapitaalkosten!$A81,'Data E (oud)'!$1:$1048576,HLOOKUP(Naam&Kapitaalkosten!J$5&EofG,'Data E (oud)'!$D$5:$IV$6,2,FALSE),FALSE)),0,VLOOKUP(Kapitaalkosten!$A81,'Data E (oud)'!$1:$1048576,HLOOKUP(Naam&Kapitaalkosten!J$5&EofG,'Data E (oud)'!$D$5:$IV$6,2,FALSE),FALSE)),IF(ISERROR(VLOOKUP(Kapitaalkosten!$A81,'Data G'!$1:$1048576,HLOOKUP(Naam&Kapitaalkosten!J$5&EofG,'Data G'!$D$5:$IV$6,2,FALSE),FALSE)),0,VLOOKUP(Kapitaalkosten!$A81,'Data G'!$1:$1048576,HLOOKUP(Naam&Kapitaalkosten!J$5&EofG,'Data G'!$D$5:$IV$6,2,FALSE),FALSE))) -> 0 | K81: =IF(EofG="E",IF(ISERROR(VLOOKUP(Kapitaalkosten!$A81,'Data E (oud)'!$1:$1048576,HLOOKUP(Naam&Kapitaalkosten!K$5&EofG,'Data E (oud)'!$D$5:$IV$6,2,FALSE),FALSE)),0,VLOOKUP(Kapitaalkosten!$A81,'Data E (oud)'!$1:$1048576,HLOOKUP(Naam&Kapitaalkosten!K$5&EofG,'Data E (oud)'!$D$5:$IV$6,2,FALSE),FALSE)),IF(ISERROR(VLOOKUP(Kapitaalkosten!$A81,'Data G'!$1:$1048576,HLOOKUP(Naam&Kapitaalkosten!K$5&EofG,'Data G'!$D$5:$IV$6,2,FALSE),FALSE)),0,VLOOKUP(Kapitaalkosten!$A81,'Data G'!$1:$1048576,HLOOKUP(Naam&Kapitaalkosten!K$5&EofG,'Data G'!$D$5:$IV$6,2,FALSE),FALSE))) -> 0 | L81: =IF(EofG="E",IF(ISERROR(VLOOKUP(Kapitaalkosten!$A81,'Data E (oud)'!$1:$1048576,HLOOKUP(Naam&Kapitaalkosten!L$5&EofG,'Data E (oud)'!$D$5:$IV$6,2,FALSE),FALSE)),0,VLOOKUP(Kapitaalkosten!$A81,'Data E (oud)'!$1:$1048576,HLOOKUP(Naam&Kapitaalkosten!L$5&EofG,'Data E (oud)'!$D$5:$IV$6,2,FALSE),FALSE)),IF(ISERROR(VLOOKUP(Kapitaalkosten!$A81,'Data G'!$1:$1048576,HLOOKUP(Naam&Kapitaalkosten!L$5&EofG,'Data G'!$D$5:$IV$6,2,FALSE),FALSE)),0,VLOOKUP(Kapitaalkosten!$A81,'Data G'!$1:$1048576,HLOOKUP(Naam&Kapitaalkosten!L$5&EofG,'Data G'!$D$5:$IV$6,2,FALSE),FALSE))) -> 0
A82: 01bwv3 | B82: bijzondere waardevermindering bij afschrijvingstermijn | C82: 3 | E82: =IF(EofG="E",IF(ISERROR(VLOOKUP(Kapitaalkosten!$A82,'Data E (oud)'!$1:$1048576,HLOOKUP(Naam&Kapitaalkosten!E$5&EofG,'Data E (oud)'!$D$5:$IV$6,2,FALSE),FALSE)),0,VLOOKUP(Kapitaalkosten!$A82,'Data E (oud)'!$1:$1048576,HLOOKUP(Naam&Kapitaalkosten!E$5&EofG,'Data E (oud)'!$D$5:$IV$6,2,FALSE),FALSE)),IF(ISERROR(VLOOKUP(Kapitaalkosten!$A82,'Data G'!$1:$1048576,HLOOKUP(Naam&Kapitaalkosten!E$5&EofG,'Data G'!$D$5:$IV$6,2,FALSE),FALSE)),0,VLOOKUP(Kapitaalkosten!$A82,'Data G'!$1:$1048576,HLOOKUP(Naam&Kapitaalkosten!E$5&EofG,'Data G'!$D$5:$IV$6,2,FALSE),FALSE))) -> 0 | F82: =IF(EofG="E",IF(ISERROR(VLOOKUP(Kapitaalkosten!$A82,'Data E (oud)'!$1:$1048576,HLOOKUP(Naam&Kapitaalkosten!F$5&EofG,'Data E (oud)'!$D$5:$IV$6,2,FALSE),FALSE)),0,VLOOKUP(Kapitaalkosten!$A82,'Data E (oud)'!$1:$1048576,HLOOKUP(Naam&Kapitaalkosten!F$5&EofG,'Data E (oud)'!$D$5:$IV$6,2,FALSE),FALSE)),IF(ISERROR(VLOOKUP(Kapitaalkosten!$A82,'Data G'!$1:$1048576,HLOOKUP(Naam&Kapitaalkosten!F$5&EofG,'Data G'!$D$5:$IV$6,2,FALSE),FALSE)),0,VLOOKUP(Kapitaalkosten!$A82,'Data G'!$1:$1048576,HLOOKUP(Naam&Kapitaalkosten!F$5&EofG,'Data G'!$D$5:$IV$6,2,FALSE),FALSE))) -> 0 | G82: =IF(EofG="E",IF(ISERROR(VLOOKUP(Kapitaalkosten!$A82,'Data E (oud)'!$1:$1048576,HLOOKUP(Naam&Kapitaalkosten!G$5&EofG,'Data E (oud)'!$D$5:$IV$6,2,FALSE),FALSE)),0,VLOOKUP(Kapitaalkosten!$A82,'Data E (oud)'!$1:$1048576,HLOOKUP(Naam&Kapitaalkosten!G$5&EofG,'Data E (oud)'!$D$5:$IV$6,2,FALSE),FALSE)),IF(ISERROR(VLOOKUP(Kapitaalkosten!$A82,'Data G'!$1:$1048576,HLOOKUP(Naam&Kapitaalkosten!G$5&EofG,'Data G'!$D$5:$IV$6,2,FALSE),FALSE)),0,VLOOKUP(Kapitaalkosten!$A82,'Data G'!$1:$1048576,HLOOKUP(Naam&Kapitaalkosten!G$5&EofG,'Data G'!$D$5:$IV$6,2,FALSE),FALSE))) -> 0 | H82: =IF(EofG="E",IF(ISERROR(VLOOKUP(Kapitaalkosten!$A82,'Data E (oud)'!$1:$1048576,HLOOKUP(Naam&Kapitaalkosten!H$5&EofG,'Data E (oud)'!$D$5:$IV$6,2,FALSE),FALSE)),0,VLOOKUP(Kapitaalkosten!$A82,'Data E (oud)'!$1:$1048576,HLOOKUP(Naam&Kapitaalkosten!H$5&EofG,'Data E (oud)'!$D$5:$IV$6,2,FALSE),FALSE)),IF(ISERROR(VLOOKUP(Kapitaalkosten!$A82,'Data G'!$1:$1048576,HLOOKUP(Naam&Kapitaalkosten!H$5&EofG,'Data G'!$D$5:$IV$6,2,FALSE),FALSE)),0,VLOOKUP(Kapitaalkosten!$A82,'Data G'!$1:$1048576,HLOOKUP(Naam&Kapitaalkosten!H$5&EofG,'Data G'!$D$5:$IV$6,2,FALSE),FALSE))) -> 0 | I82: =IF(EofG="E",IF(ISERROR(VLOOKUP(Kapitaalkosten!$A82,'Data E (oud)'!$1:$1048576,HLOOKUP(Naam&Kapitaalkosten!I$5&EofG,'Data E (oud)'!$D$5:$IV$6,2,FALSE),FALSE)),0,VLOOKUP(Kapitaalkosten!$A82,'Data E (oud)'!$1:$1048576,HLOOKUP(Naam&Kapitaalkosten!I$5&EofG,'Data E (oud)'!$D$5:$IV$6,2,FALSE),FALSE)),IF(ISERROR(VLOOKUP(Kapitaalkosten!$A82,'Data G'!$1:$1048576,HLOOKUP(Naam&Kapitaalkosten!I$5&EofG,'Data G'!$D$5:$IV$6,2,FALSE),FALSE)),0,VLOOKUP(Kapitaalkosten!$A82,'Data G'!$1:$1048576,HLOOKUP(Naam&Kapitaalkosten!I$5&EofG,'Data G'!$D$5:$IV$6,2,FALSE),FALSE))) -> 0 | J82: =IF(EofG="E",IF(ISERROR(VLOOKUP(Kapitaalkosten!$A82,'Data E (oud)'!$1:$1048576,HLOOKUP(Naam&Kapitaalkosten!J$5&EofG,'Data E (oud)'!$D$5:$IV$6,2,FALSE),FALSE)),0,VLOOKUP(Kapitaalkosten!$A82,'Data E (oud)'!$1:$1048576,HLOOKUP(Naam&Kapitaalkosten!J$5&EofG,'Data E (oud)'!$D$5:$IV$6,2,FALSE),FALSE)),IF(ISERROR(VLOOKUP(Kapitaalkosten!$A82,'Data G'!$1:$1048576,HLOOKUP(Naam&Kapitaalkosten!J$5&EofG,'Data G'!$D$5:$IV$6,2,FALSE),FALSE)),0,VLOOKUP(Kapitaalkosten!$A82,'Data G'!$1:$1048576,HLOOKUP(Naam&Kapitaalkosten!J$5&EofG,'Data G'!$D$5:$IV$6,2,FALSE),FALSE))) -> 0 | K82: =IF(EofG="E",IF(ISERROR(VLOOKUP(Kapitaalkosten!$A82,'Data E (oud)'!$1:$1048576,HLOOKUP(Naam&Kapitaalkosten!K$5&EofG,'Data E (oud)'!$D$5:$IV$6,2,FALSE),FALSE)),0,VLOOKUP(Kapitaalkosten!$A82,'Data E (oud)'!$1:$1048576,HLOOKUP(Naam&Kapitaalkosten!K$5&EofG,'Data E (oud)'!$D$5:$IV$6,2,FALSE),FALSE)),IF(ISERROR(VLOOKUP(Kapitaalkosten!$A82,'Data G'!$1:$1048576,HLOOKUP(Naam&Kapitaalkosten!K$5&EofG,'Data G'!$D$5:$IV$6,2,FALSE),FALSE)),0,VLOOKUP(Kapitaalkosten!$A82,'Data G'!$1:$1048576,HLOOKUP(Naam&Kapitaalkosten!K$5&EofG,'Data G'!$D$5:$IV$6,2,FALSE),FALSE))) -> 0 | L82: =IF(EofG="E",IF(ISERROR(VLOOKUP(Kapitaalkosten!$A82,'Data E (oud)'!$1:$1048576,HLOOKUP(Naam&Kapitaalkosten!L$5&EofG,'Data E (oud)'!$D$5:$IV$6,2,FALSE),FALSE)),0,VLOOKUP(Kapitaalkosten!$A82,'Data E (oud)'!$1:$1048576,HLOOKUP(Naam&Kapitaalkosten!L$5&EofG,'Data E (oud)'!$D$5:$IV$6,2,FALSE),FALSE)),IF(ISERROR(VLOOKUP(Kapitaalkosten!$A82,'Data G'!$1:$1048576,HLOOKUP(Naam&Kapitaalkosten!L$5&EofG,'Data G'!$D$5:$IV$6,2,FALSE),FALSE)),0,VLOOKUP(Kapitaalkosten!$A82,'Data G'!$1:$1048576,HLOOKUP(Naam&Kapitaalkosten!L$5&EofG,'Data G'!$D$5:$IV$6,2,FALSE),FALSE))) -> 0
B83: Ultimo boekwaarde (ongeindexeerd) | D83: =C39-D56-(D57-D74+D75) -> 0 | E83: =D83-E56-(E57-E74+E75) -> 0 | F83: =E83-F56-(F57-F74+F75) -> 0 | G83: 0 | H83: =G83-H56-(H57-H74+H75) -> 0 | I83: 0 | J83: =I83-J56-(J57-J74+J75) -> 0 | K83: =J83-K56-(K57-K74+K75) -> 0 | L83: =K83-L56-(L57-L74+L75) -> 0 | M83: 0 | N83: 0 | O83: 0 | P83: 0 | Q83: 0 | R83: 0 | S83: 0 | T83: 0 | U83: 0 | V83: 0 | W83: 0
B84: Ultimo boekwaarde (geindexeerd) | D84: =D83*(1+CPI($B37,D$5)) -> 0 | E84: 0 | F84: 0 | G84: 0 | H84: 0 | I84: 0 | J84: 0 | K84: 0 | L84: 0 | M84: 0 | R84: 0 | S84: 0 | T84: 0 | U84: 0 | V84: 0 | W84: 0
B85: Kapitaalkostenvergoeding over geindexeerde boekwaarde | D85: =D84*VLOOKUP(D$5,WACCtabel,3,FALSE) -> 0 | E85: =E84*VLOOKUP(E$5,WACCtabel,3,FALSE) -> 0 | F85: =F84*VLOOKUP(F$5,WACCtabel,3,FALSE) -> 0 | G85: 0 | H85: 0 | I85: 0 | J85: =J84*VLOOKUP(J$5,WACCtabel,3,FALSE) -> 0 | K85: =K84*VLOOKUP(K$5,WACCtabel,3,FALSE) -> 0 | L85: =L84*VLOOKUP(L$5,WACCtabel,3,FALSE) -> 0 | M85: =M84*VLOOKUP(M$5,WACCtabel,3,FALSE) -> 0 | R85: 0 | S85: 0 | T85: 0 | U85: 0 | V85: 0 | W85: 0
B86: Afschrijvingen geindexeerd | D86: =D56*(1+CPI($B37,D$5)) -> 0 | E86: 0 | F86: 0 | G86: 0 | H86: 0 | I86: 0 | J86: 0 | K86: 0 | L86: 0 | M86: 0 | N86: =N56*(1+CPI($B37,N$5)) ->  | R86: 0 | S86: 0 | T86: 0 | U86: 0 | V86: 0 | W86: 0
B87: Geïndexeerde kapitaalkosten | D87: =D85+D86 -> 0 | E87: =E85+E86 -> 0 | F87: 0 | G87: 0 | H87: 0 | I87: 0 | J87: =J85+J86 -> 0 | K87: 0 | L87: 0 | M87: 0 | R87: 0 | S87: 0 | T87: 0 | U87: 0 | V87: 0 | W87: 0
B89: 2002
B91: Investeringen | C91: =SUM(E92:E99) -> 0
A92: =RIGHT(B$89,2)&"Inv"&C92 -> 02Inv50 | B92: Aanschafwaarde Investeringen met afschrijvingstermijn: | C92: 50 | E92: =IF(EofG="E",IF(ISERROR(VLOOKUP(Kapitaalkosten!$A92,'Data E (oud)'!$1:$1048576,HLOOKUP(Naam&Kapitaalkosten!E$5&EofG,'Data E (oud)'!$D$5:$IV$6,2,FALSE),FALSE)),0,VLOOKUP(Kapitaalkosten!$A92,'Data E (oud)'!$1:$1048576,HLOOKUP(Naam&Kapitaalkosten!E$5&EofG,'Data E (oud)'!$D$5:$IV$6,2,FALSE),FALSE)),IF(ISERROR(VLOOKUP(Kapitaalkosten!$A92,'Data G'!$1:$1048576,HLOOKUP(Naam&Kapitaalkosten!E$5&EofG,'Data G'!$D$5:$IV$6,2,FALSE),FALSE)),0,VLOOKUP(Kapitaalkosten!$A92,'Data G'!$1:$1048576,HLOOKUP(Naam&Kapitaalkosten!E$5&EofG,'Data G'!$D$5:$IV$6,2,FALSE),FALSE))) -> 0 | F92: =E92-F110-F128 -> 0 | G92: =F92-G110-G128 -> 0 | H92: =G92-H110-H128 -> 0 | I92: 0 | J92: 0 | K92: 0 | L92: 0 | M92: 0 | N92: 0 | O92: 0 | P92: 0 | Q92: 0 | R92: 0 | S92: 0 | T92: 0 | U92: 0 | V92: 0 | W92: 0
A93: 02Inv40 | B93: Aanschafwaarde Investeringen met afschrijvingstermijn: | C93: 40 | E93: =IF(EofG="E",IF(ISERROR(VLOOKUP(Kapitaalkosten!$A93,'Data E (oud)'!$1:$1048576,HLOOKUP(Naam&Kapitaalkosten!E$5&EofG,'Data E (oud)'!$D$5:$IV$6,2,FALSE),FALSE)),0,VLOOKUP(Kapitaalkosten!$A93,'Data E (oud)'!$1:$1048576,HLOOKUP(Naam&Kapitaalkosten!E$5&EofG,'Data E (oud)'!$D$5:$IV$6,2,FALSE),FALSE)),IF(ISERROR(VLOOKUP(Kapitaalkosten!$A93,'Data G'!$1:$1048576,HLOOKUP(Naam&Kapitaalkosten!E$5&EofG,'Data G'!$D$5:$IV$6,2,FALSE),FALSE)),0,VLOOKUP(Kapitaalkosten!$A93,'Data G'!$1:$1048576,HLOOKUP(Naam&Kapitaalkosten!E$5&EofG,'Data G'!$D$5:$IV$6,2,FALSE),FALSE))) -> 0 | F93: 0 | G93: =F93-G111-G129 -> 0 | H93: 0 | I93: 0 | J93: 0 | K93: 0 | L93: 0 | M93: 0 | N93: 0 | O93: 0 | P93: 0 | Q93: 0 | R93: 0 | S93: 0 | T93: 0 | U93: 0 | V93: 0 | W93: 0
A94: 02Inv30 | B94: Aanschafwaarde Investeringen met afschrijvingstermijn: | C94: 30 | E94: =IF(EofG="E",IF(ISERROR(VLOOKUP(Kapitaalkosten!$A94,'Data E (oud)'!$1:$1048576,HLOOKUP(Naam&Kapitaalkosten!E$5&EofG,'Data E (oud)'!$D$5:$IV$6,2,FALSE),FALSE)),0,VLOOKUP(Kapitaalkosten!$A94,'Data E (oud)'!$1:$1048576,HLOOKUP(Naam&Kapitaalkosten!E$5&EofG,'Data E (oud)'!$D$5:$IV$6,2,FALSE),FALSE)),IF(ISERROR(VLOOKUP(Kapitaalkosten!$A94,'Data G'!$1:$1048576,HLOOKUP(Naam&Kapitaalkosten!E$5&EofG,'Data G'!$D$5:$IV$6,2,FALSE),FALSE)),0,VLOOKUP(Kapitaalkosten!$A94,'Data G'!$1:$1048576,HLOOKUP(Naam&Kapitaalkosten!E$5&EofG,'Data G'!$D$5:$IV$6,2,FALSE),FALSE))) -> 0 | F94: 0 | G94: 0 | H94: 0 | I94: 0 | J94: 0 | K94: 0 | L94: 0 | M94: 0 | N94: 0 | O94: 0 | P94: 0 | Q94: 0 | R94: 0 | S94: 0 | T94: 0 | U94: 0 | V94: 0 | W94: 0
A95: 02Inv25 | B95: Aanschafwaarde Investeringen met afschrijvingstermijn: | C95: 25 | E95: =IF(EofG="E",IF(ISERROR(VLOOKUP(Kapitaalkosten!$A95,'Data E (oud)'!$1:$1048576,HLOOKUP(Naam&Kapitaalkosten!E$5&EofG,'Data E (oud)'!$D$5:$IV$6,2,FALSE),FALSE)),0,VLOOKUP(Kapitaalkosten!$A95,'Data E (oud)'!$1:$1048576,HLOOKUP(Naam&Kapitaalkosten!E$5&EofG,'Data E (oud)'!$D$5:$IV$6,2,FALSE),FALSE)),IF(ISERROR(VLOOKUP(Kapitaalkosten!$A95,'Data G'!$1:$1048576,HLOOKUP(Naam&Kapitaalkosten!E$5&EofG,'Data G'!$D$5:$IV$6,2,FALSE),FALSE)),0,VLOOKUP(Kapitaalkosten!$A95,'Data G'!$1:$1048576,HLOOKUP(Naam&Kapitaalkosten!E$5&EofG,'Data G'!$D$5:$IV$6,2,FALSE),FALSE))) -> 0 | F95: 0 | G95: 0 | H95: 0 | I95: 0 | J95: 0 | K95: 0 | L95: 0 | M95: 0 | N95: 0 | O95: 0 | P95: 0 | Q95: 0 | R95: 0 | S95: 0 | T95: 0 | U95: 0 | V95: 0 | W95: 0
A96: 02Inv10 | B96: Aanschafwaarde Investeringen met afschrijvingstermijn: | C96: 10 | E96: =IF(EofG="E",IF(ISERROR(VLOOKUP(Kapitaalkosten!$A96,'Data E (oud)'!$1:$1048576,HLOOKUP(Naam&Kapitaalkosten!E$5&EofG,'Data E (oud)'!$D$5:$IV$6,2,FALSE),FALSE)),0,VLOOKUP(Kapitaalkosten!$A96,'Data E (oud)'!$1:$1048576,HLOOKUP(Naam&Kapitaalkosten!E$5&EofG,'Data E (oud)'!$D$5:$IV$6,2,FALSE),FALSE)),IF(ISERROR(VLOOKUP(Kapitaalkosten!$A96,'Data G'!$1:$1048576,HLOOKUP(Naam&Kapitaalkosten!E$5&EofG,'Data G'!$D$5:$IV$6,2,FALSE),FALSE)),0,VLOOKUP(Kapitaalkosten!$A96,'Data G'!$1:$1048576,HLOOKUP(Naam&Kapitaalkosten!E$5&EofG,'Data G'!$D$5:$IV$6,2,FALSE),FALSE))) -> 0 | F96: 0 | G96: 0 | H96: 0 | I96: 0 | J96: 0 | K96: 0 | L96: 0 | M96: 0 | N96: 0 | O96: 0 | P96: 0 | Q96: 0 | R96: 0 | S96: 0 | T96: 0 | U96: 0 | V96: 0 | W96: 0
A97: 02Inv5 | B97: Aanschafwaarde Investeringen met afschrijvingstermijn: | C97: 5 | E97: =IF(EofG="E",IF(ISERROR(VLOOKUP(Kapitaalkosten!$A97,'Data E (oud)'!$1:$1048576,HLOOKUP(Naam&Kapitaalkosten!E$5&EofG,'Data E (oud)'!$D$5:$IV$6,2,FALSE),FALSE)),0,VLOOKUP(Kapitaalkosten!$A97,'Data E (oud)'!$1:$1048576,HLOOKUP(Naam&Kapitaalkosten!E$5&EofG,'Data E (oud)'!$D$5:$IV$6,2,FALSE),FALSE)),IF(ISERROR(VLOOKUP(Kapitaalkosten!$A97,'Data G'!$1:$1048576,HLOOKUP(Naam&Kapitaalkosten!E$5&EofG,'Data G'!$D$5:$IV$6,2,FALSE),FALSE)),0,VLOOKUP(Kapitaalkosten!$A97,'Data G'!$1:$1048576,HLOOKUP(Naam&Kapitaalkosten!E$5&EofG,'Data G'!$D$5:$IV$6,2,FALSE),FALSE))) -> 0 | F97: 0 | G97: 0 | H97: 0 | I97: 0 | J97: 0 | K97: 0 | L97: 0 | M97: 0 | N97: 0 | O97: 0 | P97: 0 | Q97: 0 | R97: 0 | S97: 0 | T97: 0 | U97: 0 | V97: 0 | W97: 0
A98: 02Inv3 | B98: Aanschafwaarde Investeringen met afschrijvingstermijn: | C98: 3 | E98: =IF(EofG="E",IF(ISERROR(VLOOKUP(Kapitaalkosten!$A98,'Data E (oud)'!$1:$1048576,HLOOKUP(Naam&Kapitaalkosten!E$5&EofG,'Data E (oud)'!$D$5:$IV$6,2,FALSE),FALSE)),0,VLOOKUP(Kapitaalkosten!$A98,'Data E (oud)'!$1:$1048576,HLOOKUP(Naam&Kapitaalkosten!E$5&EofG,'Data E (oud)'!$D$5:$IV$6,2,FALSE),FALSE)),IF(ISERROR(VLOOKUP(Kapitaalkosten!$A98,'Data G'!$1:$1048576,HLOOKUP(Naam&Kapitaalkosten!E$5&EofG,'Data G'!$D$5:$IV$6,2,FALSE),FALSE)),0,VLOOKUP(Kapitaalkosten!$A98,'Data G'!$1:$1048576,HLOOKUP(Naam&Kapitaalkosten!E$5&EofG,'Data G'!$D$5:$IV$6,2,FALSE),FALSE))) -> 0 | F98: 0 | G98: 0 | H98: 0 | I98: 0 | J98: 0 | K98: 0 | L98: 0 | M98: 0 | N98: 0 | O98: 0 | P98: 0 | Q98: 0 | R98: 0 | S98: 0 | T98: 0 | U98: 0 | V98: 0 | W98: 0
A99: =RIGHT(B$89,2)&"Inv"&C99 -> 02Invgeen | B99: Aanschafwaarde Investeringen met afschrijvingstermijn: | C99: geen | E99: =IF(EofG="E",IF(ISERROR(VLOOKUP(Kapitaalkosten!$A99,'Data E (oud)'!$1:$1048576,HLOOKUP(Naam&Kapitaalkosten!E$5&EofG,'Data E (oud)'!$D$5:$IV$6,2,FALSE),FALSE)),0,VLOOKUP(Kapitaalkosten!$A99,'Data E (oud)'!$1:$1048576,HLOOKUP(Naam&Kapitaalkosten!E$5&EofG,'Data E (oud)'!$D$5:$IV$6,2,FALSE),FALSE)),IF(ISERROR(VLOOKUP(Kapitaalkosten!$A99,'Data G'!$1:$1048576,HLOOKUP(Naam&Kapitaalkosten!E$5&EofG,'Data G'!$D$5:$IV$6,2,FALSE),FALSE)),0,VLOOKUP(Kapitaalkosten!$A99,'Data G'!$1:$1048576,HLOOKUP(Naam&Kapitaalkosten!E$5&EofG,'Data G'!$D$5:$IV$6,2,FALSE),FALSE))) -> 0 | F99: =E99 -> 0 | G99: =F99 -> 0 | H99: 0 | I99: 0 | J99: 0 | K99: 0 | L99: 0 | M99: 0 | N99: 0 | O99: 0 | P99: 0 | Q99: 0 | R99: 0 | S99: 0 | T99: 0 | U99: 0 | V99: 0 | W99: 0
B100: Gestandaardiseerde afschrijvingen | E100: =SUM(E101:E107) -> 0 | F100: =SUM(F101:F107) -> 0 | G100: 0 | H100: 0 | I100: 0 | J100: 0 | K100: 0 | L100: 0 | M100: 0 | N100: 0 | O100: 0 | P100: 0 | Q100: 0 | R100: 0 | S100: 0 | T100: 0 | U100: 0 | V100: 0 | W100: 0
A101: =RIGHT(B$89,2)&"Af"&C101 -> 02Af50 | B101: afschrijving bij afschrijvingstermijn | C101: 50 | E101: =0.5*($E92/$C92) -> 0 | F101: =IF($D$5+$C101<E$5,"",IF($D$5+$C101=E$5,0.5*F92/$C92,F92/$C92+0.5*F110/$C110)) -> 0 | G101: =IF($D$5+$C101<F$5,"",IF($D$5+$C101=F$5,0.5*G92/$C92,G92/$C92+0.5*G110/$C110)) -> 0 | H101: 0 | I101: 0 | J101: 0 | K101: 0 | L101: 0 | M101: 0 | N101: 0 | O101: 0 | P101: 0 | Q101: 0 | R101: 0 | S101: 0 | T101: 0 | U101: 0 | V101: 0 | W101: 0
A102: 02Af40 | B102: afschrijving bij afschrijvingstermijn | C102: 40 | E102: =0.5*($E93/$C93) -> 0 | F102: 0 | G102: =IF($D$5+$C102<F$5,"",IF($D$5+$C102=F$5,0.5*G93/$C93,G93/$C93+0.5*G111/$C111)) -> 0 | H102: 0 | I102: 0 | J102: 0 | K102: 0 | L102: 0 | M102: 0 | N102: 0 | O102: 0 | P102: 0 | Q102: 0 | R102: 0 | S102: 0 | T102: 0 | U102: 0 | V102: 0 | W102: 0
A103: 02Af30 | B103: afschrijving bij afschrijvingstermijn | C103: 30 | E103: 0 | F103: 0 | G103: 0 | H103: 0 | I103: 0 | J103: 0 | K103: 0 | L103: 0 | M103: 0 | N103: 0 | O103: 0 | P103: 0 | Q103: 0 | R103: 0 | S103: 0 | T103: 0 | U103: 0 | V103: 0 | W103: 0
A104: 02Af25 | B104: afschrijving bij afschrijvingstermijn | C104: 25 | E104: 0 | F104: 0 | G104: 0 | H104: 0 | I104: 0 | J104: 0 | K104: 0 | L104: 0 | M104: 0 | N104: 0 | O104: 0 | P104: 0 | Q104: 0 | R104: 0 | S104: 0 | T104: 0 | U104: 0 | V104: 0 | W104: 0
A105: 02Af10 | B105: afschrijving bij afschrijvingstermijn | C105: 10 | E105: 0 | F105: 0 | G105: 0 | H105: 0 | I105: 0 | J105: 0 | K105: 0 | L105: 0 | M105: 0 | N105: 0 | O105: 0
A106: 02Af5 | B106: afschrijving bij afschrijvingstermijn | C106: 5 | E106: =0.5*($E97/$C97) -> 0 | F106: 0 | G106: 0 | H106: =IF($D$5+$C106<G$5,"",IF($D$5+$C106=G$5,0.5*H97/$C97,H97/$C97+0.5*H115/$C115)) -> 0 | I106: 0 | J106: 0 | K106: =IF($D$5+$C106<J$5,"",IF($D$5+$C106=J$5,0.5*K97/$C97,K97/$C97+0.5*K115/$C115)) -> 
A107: 02Af3 | B107: afschrijving bij afschrijvingstermijn | C107: 3 | E107: 0 | F107: 0 | G107: 0 | H107: 0
A108: =RIGHT(B$89,2)&"Af" -> 02Af | B108: Afschrijvingen zoals opgegeven door netbeheerder | E108: =IF(EofG="E",IF(ISERROR(VLOOKUP(Kapitaalkosten!$A108,'Data E (oud)'!$1:$1048576,HLOOKUP(Naam&Kapitaalkosten!E$5&EofG,'Data E (oud)'!$D$5:$IV$6,2,FALSE),FALSE)),0,VLOOKUP(Kapitaalkosten!$A108,'Data E (oud)'!$1:$1048576,HLOOKUP(Naam&Kapitaalkosten!E$5&EofG,'Data E (oud)'!$D$5:$IV$6,2,FALSE),FALSE)),IF(ISERROR(VLOOKUP(Kapitaalkosten!$A108,'Data G'!$1:$1048576,HLOOKUP(Naam&Kapitaalkosten!E$5&EofG,'Data G'!$D$5:$IV$6,2,FALSE),FALSE)),0,VLOOKUP(Kapitaalkosten!$A108,'Data G'!$1:$1048576,HLOOKUP(Naam&Kapitaalkosten!E$5&EofG,'Data G'!$D$5:$IV$6,2,FALSE),FALSE))) -> 0 | F108: =IF(EofG="E",IF(ISERROR(VLOOKUP(Kapitaalkosten!$A108,'Data E (oud)'!$1:$1048576,HLOOKUP(Naam&Kapitaalkosten!F$5&EofG,'Data E (oud)'!$D$5:$IV$6,2,FALSE),FALSE)),0,VLOOKUP(Kapitaalkosten!$A108,'Data E (oud)'!$1:$1048576,HLOOKUP(Naam&Kapitaalkosten!F$5&EofG,'Data E (oud)'!$D$5:$IV$6,2,FALSE),FALSE)),IF(ISERROR(VLOOKUP(Kapitaalkosten!$A108,'Data G'!$1:$1048576,HLOOKUP(Naam&Kapitaalkosten!F$5&EofG,'Data G'!$D$5:$IV$6,2,FALSE),FALSE)),0,VLOOKUP(Kapitaalkosten!$A108,'Data G'!$1:$1048576,HLOOKUP(Naam&Kapitaalkosten!F$5&EofG,'Data G'!$D$5:$IV$6,2,FALSE),FALSE))) -> 0 | G108: =IF(EofG="E",IF(ISERROR(VLOOKUP(Kapitaalkosten!$A108,'Data E (oud)'!$1:$1048576,HLOOKUP(Naam&Kapitaalkosten!G$5&EofG,'Data E (oud)'!$D$5:$IV$6,2,FALSE),FALSE)),0,VLOOKUP(Kapitaalkosten!$A108,'Data E (oud)'!$1:$1048576,HLOOKUP(Naam&Kapitaalkosten!G$5&EofG,'Data E (oud)'!$D$5:$IV$6,2,FALSE),FALSE)),IF(ISERROR(VLOOKUP(Kapitaalkosten!$A108,'Data G'!$1:$1048576,HLOOKUP(Naam&Kapitaalkosten!G$5&EofG,'Data G'!$D$5:$IV$6,2,FALSE),FALSE)),0,VLOOKUP(Kapitaalkosten!$A108,'Data G'!$1:$1048576,HLOOKUP(Naam&Kapitaalkosten!G$5&EofG,'Data G'!$D$5:$IV$6,2,FALSE),FALSE))) -> 0 | H108: =IF(EofG="E",IF(ISERROR(VLOOKUP(Kapitaalkosten!$A108,'Data E (oud)'!$1:$1048576,HLOOKUP(Naam&Kapitaalkosten!H$5&EofG,'Data E (oud)'!$D$5:$IV$6,2,FALSE),FALSE)),0,VLOOKUP(Kapitaalkosten!$A108,'Data E (oud)'!$1:$1048576,HLOOKUP(Naam&Kapitaalkosten!H$5&EofG,'Data E (oud)'!$D$5:$IV$6,2,FALSE),FALSE)),IF(ISERROR(VLOOKUP(Kapitaalkosten!$A108,'Data G'!$1:$1048576,HLOOKUP(Naam&Kapitaalkosten!H$5&EofG,'Data G'!$D$5:$IV$6,2,FALSE),FALSE)),0,VLOOKUP(Kapitaalkosten!$A108,'Data G'!$1:$1048576,HLOOKUP(Naam&Kapitaalkosten!H$5&EofG,'Data G'!$D$5:$IV$6,2,FALSE),FALSE))) -> 0 | I108: =IF(EofG="E",IF(ISERROR(VLOOKUP(Kapitaalkosten!$A108,'Data E (oud)'!$1:$1048576,HLOOKUP(Naam&Kapitaalkosten!I$5&EofG,'Data E (oud)'!$D$5:$IV$6,2,FALSE),FALSE)),0,VLOOKUP(Kapitaalkosten!$A108,'Data E (oud)'!$1:$1048576,HLOOKUP(Naam&Kapitaalkosten!I$5&EofG,'Data E (oud)'!$D$5:$IV$6,2,FALSE),FALSE)),IF(ISERROR(VLOOKUP(Kapitaalkosten!$A108,'Data G'!$1:$1048576,HLOOKUP(Naam&Kapitaalkosten!I$5&EofG,'Data G'!$D$5:$IV$6,2,FALSE),FALSE)),0,VLOOKUP(Kapitaalkosten!$A108,'Data G'!$1:$1048576,HLOOKUP(Naam&Kapitaalkosten!I$5&EofG,'Data G'!$D$5:$IV$6,2,FALSE),FALSE))) -> 0 | J108: =J100 -> 0 | K108: =K100 -> 0 | L108: =L100 -> 0
B109: Desinvesteringen | F109: =SUM(F110:F117) -> 0 | G109: =SUM(G110:G117) -> 0 | H109: 0 | I109: 0 | J109: 0 | K109: 0 | L109: 0 | M109: 0 | N109: 0 | O109: 0 | P109: 0 | Q109: 0 | R109: 0 | S109: 0 | T109: 0 | U109: 0 | V109: 0 | W109: 0
A110: =RIGHT(B$89,2)&"Des"&C110 -> 02Des50 | B110: Desinvesteringen met afschrijvingstermijn: | C110: 50 | F110: =IF(EofG="E",IF(ISERROR(VLOOKUP(Kapitaalkosten!$A110,'Data E (oud)'!$1:$1048576,HLOOKUP(Naam&Kapitaalkosten!F$5&EofG,'Data E (oud)'!$D$5:$IV$6,2,FALSE),FALSE)),0,VLOOKUP(Kapitaalkosten!$A110,'Data E (oud)'!$1:$1048576,HLOOKUP(Naam&Kapitaalkosten!F$5&EofG,'Data E (oud)'!$D$5:$IV$6,2,FALSE),FALSE)),IF(ISERROR(VLOOKUP(Kapitaalkosten!$A110,'Data G'!$1:$1048576,HLOOKUP(Naam&Kapitaalkosten!F$5&EofG,'Data G'!$D$5:$IV$6,2,FALSE),FALSE)),0,VLOOKUP(Kapitaalkosten!$A110,'Data G'!$1:$1048576,HLOOKUP(Naam&Kapitaalkosten!F$5&EofG,'Data G'!$D$5:$IV$6,2,FALSE),FALSE))) -> 0 | G110: =IF(EofG="E",IF(ISERROR(VLOOKUP(Kapitaalkosten!$A110,'Data E (oud)'!$1:$1048576,HLOOKUP(Naam&Kapitaalkosten!G$5&EofG,'Data E (oud)'!$D$5:$IV$6,2,FALSE),FALSE)),0,VLOOKUP(Kapitaalkosten!$A110,'Data E (oud)'!$1:$1048576,HLOOKUP(Naam&Kapitaalkosten!G$5&EofG,'Data E (oud)'!$D$5:$IV$6,2,FALSE),FALSE)),IF(ISERROR(VLOOKUP(Kapitaalkosten!$A110,'Data G'!$1:$1048576,HLOOKUP(Naam&Kapitaalkosten!G$5&EofG,'Data G'!$D$5:$IV$6,2,FALSE),FALSE)),0,VLOOKUP(Kapitaalkosten!$A110,'Data G'!$1:$1048576,HLOOKUP(Naam&Kapitaalkosten!G$5&EofG,'Data G'!$D$5:$IV$6,2,FALSE),FALSE))) -> 0 | H110: =IF(EofG="E",IF(ISERROR(VLOOKUP(Kapitaalkosten!$A110,'Data E (oud)'!$1:$1048576,HLOOKUP(Naam&Kapitaalkosten!H$5&EofG,'Data E (oud)'!$D$5:$IV$6,2,FALSE),FALSE)),0,VLOOKUP(Kapitaalkosten!$A110,'Data E (oud)'!$1:$1048576,HLOOKUP(Naam&Kapitaalkosten!H$5&EofG,'Data E (oud)'!$D$5:$IV$6,2,FALSE),FALSE)),IF(ISERROR(VLOOKUP(Kapitaalkosten!$A110,'Data G'!$1:$1048576,HLOOKUP(Naam&Kapitaalkosten!H$5&EofG,'Data G'!$D$5:$IV$6,2,FALSE),FALSE)),0,VLOOKUP(Kapitaalkosten!$A110,'Data G'!$1:$1048576,HLOOKUP(Naam&Kapitaalkosten!H$5&EofG,'Data G'!$D$5:$IV$6,2,FALSE),FALSE))) -> 0 | I110: =IF(EofG="E",IF(ISERROR(VLOOKUP(Kapitaalkosten!$A110,'Data E (oud)'!$1:$1048576,HLOOKUP(Naam&Kapitaalkosten!I$5&EofG,'Data E (oud)'!$D$5:$IV$6,2,FALSE),FALSE)),0,VLOOKUP(Kapitaalkosten!$A110,'Data E (oud)'!$1:$1048576,HLOOKUP(Naam&Kapitaalkosten!I$5&EofG,'Data E (oud)'!$D$5:$IV$6,2,FALSE),FALSE)),IF(ISERROR(VLOOKUP(Kapitaalkosten!$A110,'Data G'!$1:$1048576,HLOOKUP(Naam&Kapitaalkosten!I$5&EofG,'Data G'!$D$5:$IV$6,2,FALSE),FALSE)),0,VLOOKUP(Kapitaalkosten!$A110,'Data G'!$1:$1048576,HLOOKUP(Naam&Kapitaalkosten!I$5&EofG,'Data G'!$D$5:$IV$6,2,FALSE),FALSE))) -> 0 | J110: =IF(EofG="E",IF(ISERROR(VLOOKUP(Kapitaalkosten!$A110,'Data E (oud)'!$1:$1048576,HLOOKUP(Naam&Kapitaalkosten!J$5&EofG,'Data E (oud)'!$D$5:$IV$6,2,FALSE),FALSE)),0,VLOOKUP(Kapitaalkosten!$A110,'Data E (oud)'!$1:$1048576,HLOOKUP(Naam&Kapitaalkosten!J$5&EofG,'Data E (oud)'!$D$5:$IV$6,2,FALSE),FALSE)),IF(ISERROR(VLOOKUP(Kapitaalkosten!$A110,'Data G'!$1:$1048576,HLOOKUP(Naam&Kapitaalkosten!J$5&EofG,'Data G'!$D$5:$IV$6,2,FALSE),FALSE)),0,VLOOKUP(Kapitaalkosten!$A110,'Data G'!$1:$1048576,HLOOKUP(Naam&Kapitaalkosten!J$5&EofG,'Data G'!$D$5:$IV$6,2,FALSE),FALSE))) -> 0 | K110: =IF(EofG="E",IF(ISERROR(VLOOKUP(Kapitaalkosten!$A110,'Data E (oud)'!$1:$1048576,HLOOKUP(Naam&Kapitaalkosten!K$5&EofG,'Data E (oud)'!$D$5:$IV$6,2,FALSE),FALSE)),0,VLOOKUP(Kapitaalkosten!$A110,'Data E (oud)'!$1:$1048576,HLOOKUP(Naam&Kapitaalkosten!K$5&EofG,'Data E (oud)'!$D$5:$IV$6,2,FALSE),FALSE)),IF(ISERROR(VLOOKUP(Kapitaalkosten!$A110,'Data G'!$1:$1048576,HLOOKUP(Naam&Kapitaalkosten!K$5&EofG,'Data G'!$D$5:$IV$6,2,FALSE),FALSE)),0,VLOOKUP(Kapitaalkosten!$A110,'Data G'!$1:$1048576,HLOOKUP(Naam&Kapitaalkosten!K$5&EofG,'Data G'!$D$5:$IV$6,2,FALSE),FALSE))) -> 0 | L110: =IF(EofG="E",IF(ISERROR(VLOOKUP(Kapitaalkosten!$A110,'Data E (oud)'!$1:$1048576,HLOOKUP(Naam&Kapitaalkosten!L$5&EofG,'Data E (oud)'!$D$5:$IV$6,2,FALSE),FALSE)),0,VLOOKUP(Kapitaalkosten!$A110,'Data E (oud)'!$1:$1048576,HLOOKUP(Naam&Kapitaalkosten!L$5&EofG,'Data E (oud)'!$D$5:$IV$6,2,FALSE),FALSE)),IF(ISERROR(VLOOKUP(Kapitaalkosten!$A110,'Data G'!$1:$1048576,HLOOKUP(Naam&Kapitaalkosten!L$5&EofG,'Data G'!$D$5:$IV$6,2,FALSE),FALSE)),0,VLOOKUP(Kapitaalkosten!$A110,'Data G'!$1:$1048576,HLOOKUP(Naam&Kapitaalkosten!L$5&EofG,'Data G'!$D$5:$IV$6,2,FALSE),FALSE))) -> 0
A111: 02Des40 | B111: Desinvesteringen met afschrijvingstermijn: | C111: 40 | F111: =IF(EofG="E",IF(ISERROR(VLOOKUP(Kapitaalkosten!$A111,'Data E (oud)'!$1:$1048576,HLOOKUP(Naam&Kapitaalkosten!F$5&EofG,'Data E (oud)'!$D$5:$IV$6,2,FALSE),FALSE)),0,VLOOKUP(Kapitaalkosten!$A111,'Data E (oud)'!$1:$1048576,HLOOKUP(Naam&Kapitaalkosten!F$5&EofG,'Data E (oud)'!$D$5:$IV$6,2,FALSE),FALSE)),IF(ISERROR(VLOOKUP(Kapitaalkosten!$A111,'Data G'!$1:$1048576,HLOOKUP(Naam&Kapitaalkosten!F$5&EofG,'Data G'!$D$5:$IV$6,2,FALSE),FALSE)),0,VLOOKUP(Kapitaalkosten!$A111,'Data G'!$1:$1048576,HLOOKUP(Naam&Kapitaalkosten!F$5&EofG,'Data G'!$D$5:$IV$6,2,FALSE),FALSE))) -> 0 | G111: =IF(EofG="E",IF(ISERROR(VLOOKUP(Kapitaalkosten!$A111,'Data E (oud)'!$1:$1048576,HLOOKUP(Naam&Kapitaalkosten!G$5&EofG,'Data E (oud)'!$D$5:$IV$6,2,FALSE),FALSE)),0,VLOOKUP(Kapitaalkosten!$A111,'Data E (oud)'!$1:$1048576,HLOOKUP(Naam&Kapitaalkosten!G$5&EofG,'Data E (oud)'!$D$5:$IV$6,2,FALSE),FALSE)),IF(ISERROR(VLOOKUP(Kapitaalkosten!$A111,'Data G'!$1:$1048576,HLOOKUP(Naam&Kapitaalkosten!G$5&EofG,'Data G'!$D$5:$IV$6,2,FALSE),FALSE)),0,VLOOKUP(Kapitaalkosten!$A111,'Data G'!$1:$1048576,HLOOKUP(Naam&Kapitaalkosten!G$5&EofG,'Data G'!$D$5:$IV$6,2,FALSE),FALSE))) -> 0 | H111: =IF(EofG="E",IF(ISERROR(VLOOKUP(Kapitaalkosten!$A111,'Data E (oud)'!$1:$1048576,HLOOKUP(Naam&Kapitaalkosten!H$5&EofG,'Data E (oud)'!$D$5:$IV$6,2,FALSE),FALSE)),0,VLOOKUP(Kapitaalkosten!$A111,'Data E (oud)'!$1:$1048576,HLOOKUP(Naam&Kapitaalkosten!H$5&EofG,'Data E (oud)'!$D$5:$IV$6,2,FALSE),FALSE)),IF(ISERROR(VLOOKUP(Kapitaalkosten!$A111,'Data G'!$1:$1048576,HLOOKUP(Naam&Kapitaalkosten!H$5&EofG,'Data G'!$D$5:$IV$6,2,FALSE),FALSE)),0,VLOOKUP(Kapitaalkosten!$A111,'Data G'!$1:$1048576,HLOOKUP(Naam&Kapitaalkosten!H$5&EofG,'Data G'!$D$5:$IV$6,2,FALSE),FALSE))) -> 0 | I111: =IF(EofG="E",IF(ISERROR(VLOOKUP(Kapitaalkosten!$A111,'Data E (oud)'!$1:$1048576,HLOOKUP(Naam&Kapitaalkosten!I$5&EofG,'Data E (oud)'!$D$5:$IV$6,2,FALSE),FALSE)),0,VLOOKUP(Kapitaalkosten!$A111,'Data E (oud)'!$1:$1048576,HLOOKUP(Naam&Kapitaalkosten!I$5&EofG,'Data E (oud)'!$D$5:$IV$6,2,FALSE),FALSE)),IF(ISERROR(VLOOKUP(Kapitaalkosten!$A111,'Data G'!$1:$1048576,HLOOKUP(Naam&Kapitaalkosten!I$5&EofG,'Data G'!$D$5:$IV$6,2,FALSE),FALSE)),0,VLOOKUP(Kapitaalkosten!$A111,'Data G'!$1:$1048576,HLOOKUP(Naam&Kapitaalkosten!I$5&EofG,'Data G'!$D$5:$IV$6,2,FALSE),FALSE))) -> 0 | J111: =IF(EofG="E",IF(ISERROR(VLOOKUP(Kapitaalkosten!$A111,'Data E (oud)'!$1:$1048576,HLOOKUP(Naam&Kapitaalkosten!J$5&EofG,'Data E (oud)'!$D$5:$IV$6,2,FALSE),FALSE)),0,VLOOKUP(Kapitaalkosten!$A111,'Data E (oud)'!$1:$1048576,HLOOKUP(Naam&Kapitaalkosten!J$5&EofG,'Data E (oud)'!$D$5:$IV$6,2,FALSE),FALSE)),IF(ISERROR(VLOOKUP(Kapitaalkosten!$A111,'Data G'!$1:$1048576,HLOOKUP(Naam&Kapitaalkosten!J$5&EofG,'Data G'!$D$5:$IV$6,2,FALSE),FALSE)),0,VLOOKUP(Kapitaalkosten!$A111,'Data G'!$1:$1048576,HLOOKUP(Naam&Kapitaalkosten!J$5&EofG,'Data G'!$D$5:$IV$6,2,FALSE),FALSE))) -> 0 | K111: =IF(EofG="E",IF(ISERROR(VLOOKUP(Kapitaalkosten!$A111,'Data E (oud)'!$1:$1048576,HLOOKUP(Naam&Kapitaalkosten!K$5&EofG,'Data E (oud)'!$D$5:$IV$6,2,FALSE),FALSE)),0,VLOOKUP(Kapitaalkosten!$A111,'Data E (oud)'!$1:$1048576,HLOOKUP(Naam&Kapitaalkosten!K$5&EofG,'Data E (oud)'!$D$5:$IV$6,2,FALSE),FALSE)),IF(ISERROR(VLOOKUP(Kapitaalkosten!$A111,'Data G'!$1:$1048576,HLOOKUP(Naam&Kapitaalkosten!K$5&EofG,'Data G'!$D$5:$IV$6,2,FALSE),FALSE)),0,VLOOKUP(Kapitaalkosten!$A111,'Data G'!$1:$1048576,HLOOKUP(Naam&Kapitaalkosten!K$5&EofG,'Data G'!$D$5:$IV$6,2,FALSE),FALSE))) -> 0 | L111: =IF(EofG="E",IF(ISERROR(VLOOKUP(Kapitaalkosten!$A111,'Data E (oud)'!$1:$1048576,HLOOKUP(Naam&Kapitaalkosten!L$5&EofG,'Data E (oud)'!$D$5:$IV$6,2,FALSE),FALSE)),0,VLOOKUP(Kapitaalkosten!$A111,'Data E (oud)'!$1:$1048576,HLOOKUP(Naam&Kapitaalkosten!L$5&EofG,'Data E (oud)'!$D$5:$IV$6,2,FALSE),FALSE)),IF(ISERROR(VLOOKUP(Kapitaalkosten!$A111,'Data G'!$1:$1048576,HLOOKUP(Naam&Kapitaalkosten!L$5&EofG,'Data G'!$D$5:$IV$6,2,FALSE),FALSE)),0,VLOOKUP(Kapitaalkosten!$A111,'Data G'!$1:$1048576,HLOOKUP(Naam&Kapitaalkosten!L$5&EofG,'Data G'!$D$5:$IV$6,2,FALSE),FALSE))) -> 0
A112: 02Des30 | B112: Desinvesteringen met afschrijvingstermijn: | C112: 30 | F112: =IF(EofG="E",IF(ISERROR(VLOOKUP(Kapitaalkosten!$A112,'Data E (oud)'!$1:$1048576,HLOOKUP(Naam&Kapitaalkosten!F$5&EofG,'Data E (oud)'!$D$5:$IV$6,2,FALSE),FALSE)),0,VLOOKUP(Kapitaalkosten!$A112,'Data E (oud)'!$1:$1048576,HLOOKUP(Naam&Kapitaalkosten!F$5&EofG,'Data E (oud)'!$D$5:$IV$6,2,FALSE),FALSE)),IF(ISERROR(VLOOKUP(Kapitaalkosten!$A112,'Data G'!$1:$1048576,HLOOKUP(Naam&Kapitaalkosten!F$5&EofG,'Data G'!$D$5:$IV$6,2,FALSE),FALSE)),0,VLOOKUP(Kapitaalkosten!$A112,'Data G'!$1:$1048576,HLOOKUP(Naam&Kapitaalkosten!F$5&EofG,'Data G'!$D$5:$IV$6,2,FALSE),FALSE))) -> 0 | G112: =IF(EofG="E",IF(ISERROR(VLOOKUP(Kapitaalkosten!$A112,'Data E (oud)'!$1:$1048576,HLOOKUP(Naam&Kapitaalkosten!G$5&EofG,'Data E (oud)'!$D$5:$IV$6,2,FALSE),FALSE)),0,VLOOKUP(Kapitaalkosten!$A112,'Data E (oud)'!$1:$1048576,HLOOKUP(Naam&Kapitaalkosten!G$5&EofG,'Data E (oud)'!$D$5:$IV$6,2,FALSE),FALSE)),IF(ISERROR(VLOOKUP(Kapitaalkosten!$A112,'Data G'!$1:$1048576,HLOOKUP(Naam&Kapitaalkosten!G$5&EofG,'Data G'!$D$5:$IV$6,2,FALSE),FALSE)),0,VLOOKUP(Kapitaalkosten!$A112,'Data G'!$1:$1048576,HLOOKUP(Naam&Kapitaalkosten!G$5&EofG,'Data G'!$D$5:$IV$6,2,FALSE),FALSE))) -> 0 | H112: =IF(EofG="E",IF(ISERROR(VLOOKUP(Kapitaalkosten!$A112,'Data E (oud)'!$1:$1048576,HLOOKUP(Naam&Kapitaalkosten!H$5&EofG,'Data E (oud)'!$D$5:$IV$6,2,FALSE),FALSE)),0,VLOOKUP(Kapitaalkosten!$A112,'Data E (oud)'!$1:$1048576,HLOOKUP(Naam&Kapitaalkosten!H$5&EofG,'Data E (oud)'!$D$5:$IV$6,2,FALSE),FALSE)),IF(ISERROR(VLOOKUP(Kapitaalkosten!$A112,'Data G'!$1:$1048576,HLOOKUP(Naam&Kapitaalkosten!H$5&EofG,'Data G'!$D$5:$IV$6,2,FALSE),FALSE)),0,VLOOKUP(Kapitaalkosten!$A112,'Data G'!$1:$1048576,HLOOKUP(Naam&Kapitaalkosten!H$5&EofG,'Data G'!$D$5:$IV$6,2,FALSE),FALSE))) -> 0 | I112: =IF(EofG="E",IF(ISERROR(VLOOKUP(Kapitaalkosten!$A112,'Data E (oud)'!$1:$1048576,HLOOKUP(Naam&Kapitaalkosten!I$5&EofG,'Data E (oud)'!$D$5:$IV$6,2,FALSE),FALSE)),0,VLOOKUP(Kapitaalkosten!$A112,'Data E (oud)'!$1:$1048576,HLOOKUP(Naam&Kapitaalkosten!I$5&EofG,'Data E (oud)'!$D$5:$IV$6,2,FALSE),FALSE)),IF(ISERROR(VLOOKUP(Kapitaalkosten!$A112,'Data G'!$1:$1048576,HLOOKUP(Naam&Kapitaalkosten!I$5&EofG,'Data G'!$D$5:$IV$6,2,FALSE),FALSE)),0,VLOOKUP(Kapitaalkosten!$A112,'Data G'!$1:$1048576,HLOOKUP(Naam&Kapitaalkosten!I$5&EofG,'Data G'!$D$5:$IV$6,2,FALSE),FALSE))) -> 0 | J112: =IF(EofG="E",IF(ISERROR(VLOOKUP(Kapitaalkosten!$A112,'Data E (oud)'!$1:$1048576,HLOOKUP(Naam&Kapitaalkosten!J$5&EofG,'Data E (oud)'!$D$5:$IV$6,2,FALSE),FALSE)),0,VLOOKUP(Kapitaalkosten!$A112,'Data E (oud)'!$1:$1048576,HLOOKUP(Naam&Kapitaalkosten!J$5&EofG,'Data E (oud)'!$D$5:$IV$6,2,FALSE),FALSE)),IF(ISERROR(VLOOKUP(Kapitaalkosten!$A112,'Data G'!$1:$1048576,HLOOKUP(Naam&Kapitaalkosten!J$5&EofG,'Data G'!$D$5:$IV$6,2,FALSE),FALSE)),0,VLOOKUP(Kapitaalkosten!$A112,'Data G'!$1:$1048576,HLOOKUP(Naam&Kapitaalkosten!J$5&EofG,'Data G'!$D$5:$IV$6,2,FALSE),FALSE))) -> 0 | K112: =IF(EofG="E",IF(ISERROR(VLOOKUP(Kapitaalkosten!$A112,'Data E (oud)'!$1:$1048576,HLOOKUP(Naam&Kapitaalkosten!K$5&EofG,'Data E (oud)'!$D$5:$IV$6,2,FALSE),FALSE)),0,VLOOKUP(Kapitaalkosten!$A112,'Data E (oud)'!$1:$1048576,HLOOKUP(Naam&Kapitaalkosten!K$5&EofG,'Data E (oud)'!$D$5:$IV$6,2,FALSE),FALSE)),IF(ISERROR(VLOOKUP(Kapitaalkosten!$A112,'Data G'!$1:$1048576,HLOOKUP(Naam&Kapitaalkosten!K$5&EofG,'Data G'!$D$5:$IV$6,2,FALSE),FALSE)),0,VLOOKUP(Kapitaalkosten!$A112,'Data G'!$1:$1048576,HLOOKUP(Naam&Kapitaalkosten!K$5&EofG,'Data G'!$D$5:$IV$6,2,FALSE),FALSE))) -> 0 | L112: =IF(EofG="E",IF(ISERROR(VLOOKUP(Kapitaalkosten!$A112,'Data E (oud)'!$1:$1048576,HLOOKUP(Naam&Kapitaalkosten!L$5&EofG,'Data E (oud)'!$D$5:$IV$6,2,FALSE),FALSE)),0,VLOOKUP(Kapitaalkosten!$A112,'Data E (oud)'!$1:$1048576,HLOOKUP(Naam&Kapitaalkosten!L$5&EofG,'Data E (oud)'!$D$5:$IV$6,2,FALSE),FALSE)),IF(ISERROR(VLOOKUP(Kapitaalkosten!$A112,'Data G'!$1:$1048576,HLOOKUP(Naam&Kapitaalkosten!L$5&EofG,'Data G'!$D$5:$IV$6,2,FALSE),FALSE)),0,VLOOKUP(Kapitaalkosten!$A112,'Data G'!$1:$1048576,HLOOKUP(Naam&Kapitaalkosten!L$5&EofG,'Data G'!$D$5:$IV$6,2,FALSE),FALSE))) -> 0
A113: 02Des25 | B113: Desinvesteringen met afschrijvingstermijn: | C113: 25 | F113: =IF(EofG="E",IF(ISERROR(VLOOKUP(Kapitaalkosten!$A113,'Data E (oud)'!$1:$1048576,HLOOKUP(Naam&Kapitaalkosten!F$5&EofG,'Data E (oud)'!$D$5:$IV$6,2,FALSE),FALSE)),0,VLOOKUP(Kapitaalkosten!$A113,'Data E (oud)'!$1:$1048576,HLOOKUP(Naam&Kapitaalkosten!F$5&EofG,'Data E (oud)'!$D$5:$IV$6,2,FALSE),FALSE)),IF(ISERROR(VLOOKUP(Kapitaalkosten!$A113,'Data G'!$1:$1048576,HLOOKUP(Naam&Kapitaalkosten!F$5&EofG,'Data G'!$D$5:$IV$6,2,FALSE),FALSE)),0,VLOOKUP(Kapitaalkosten!$A113,'Data G'!$1:$1048576,HLOOKUP(Naam&Kapitaalkosten!F$5&EofG,'Data G'!$D$5:$IV$6,2,FALSE),FALSE))) -> 0 | G113: =IF(EofG="E",IF(ISERROR(VLOOKUP(Kapitaalkosten!$A113,'Data E (oud)'!$1:$1048576,HLOOKUP(Naam&Kapitaalkosten!G$5&EofG,'Data E (oud)'!$D$5:$IV$6,2,FALSE),FALSE)),0,VLOOKUP(Kapitaalkosten!$A113,'Data E (oud)'!$1:$1048576,HLOOKUP(Naam&Kapitaalkosten!G$5&EofG,'Data E (oud)'!$D$5:$IV$6,2,FALSE),FALSE)),IF(ISERROR(VLOOKUP(Kapitaalkosten!$A113,'Data G'!$1:$1048576,HLOOKUP(Naam&Kapitaalkosten!G$5&EofG,'Data G'!$D$5:$IV$6,2,FALSE),FALSE)),0,VLOOKUP(Kapitaalkosten!$A113,'Data G'!$1:$1048576,HLOOKUP(Naam&Kapitaalkosten!G$5&EofG,'Data G'!$D$5:$IV$6,2,FALSE),FALSE))) -> 0 | H113: =IF(EofG="E",IF(ISERROR(VLOOKUP(Kapitaalkosten!$A113,'Data E (oud)'!$1:$1048576,HLOOKUP(Naam&Kapitaalkosten!H$5&EofG,'Data E (oud)'!$D$5:$IV$6,2,FALSE),FALSE)),0,VLOOKUP(Kapitaalkosten!$A113,'Data E (oud)'!$1:$1048576,HLOOKUP(Naam&Kapitaalkosten!H$5&EofG,'Data E (oud)'!$D$5:$IV$6,2,FALSE),FALSE)),IF(ISERROR(VLOOKUP(Kapitaalkosten!$A113,'Data G'!$1:$1048576,HLOOKUP(Naam&Kapitaalkosten!H$5&EofG,'Data G'!$D$5:$IV$6,2,FALSE),FALSE)),0,VLOOKUP(Kapitaalkosten!$A113,'Data G'!$1:$1048576,HLOOKUP(Naam&Kapitaalkosten!H$5&EofG,'Data G'!$D$5:$IV$6,2,FALSE),FALSE))) -> 0 | I113: =IF(EofG="E",IF(ISERROR(VLOOKUP(Kapitaalkosten!$A113,'Data E (oud)'!$1:$1048576,HLOOKUP(Naam&Kapitaalkosten!I$5&EofG,'Data E (oud)'!$D$5:$IV$6,2,FALSE),FALSE)),0,VLOOKUP(Kapitaalkosten!$A113,'Data E (oud)'!$1:$1048576,HLOOKUP(Naam&Kapitaalkosten!I$5&EofG,'Data E (oud)'!$D$5:$IV$6,2,FALSE),FALSE)),IF(ISERROR(VLOOKUP(Kapitaalkosten!$A113,'Data G'!$1:$1048576,HLOOKUP(Naam&Kapitaalkosten!I$5&EofG,'Data G'!$D$5:$IV$6,2,FALSE),FALSE)),0,VLOOKUP(Kapitaalkosten!$A113,'Data G'!$1:$1048576,HLOOKUP(Naam&Kapitaalkosten!I$5&EofG,'Data G'!$D$5:$IV$6,2,FALSE),FALSE))) -> 0 | J113: =IF(EofG="E",IF(ISERROR(VLOOKUP(Kapitaalkosten!$A113,'Data E (oud)'!$1:$1048576,HLOOKUP(Naam&Kapitaalkosten!J$5&EofG,'Data E (oud)'!$D$5:$IV$6,2,FALSE),FALSE)),0,VLOOKUP(Kapitaalkosten!$A113,'Data E (oud)'!$1:$1048576,HLOOKUP(Naam&Kapitaalkosten!J$5&EofG,'Data E (oud)'!$D$5:$IV$6,2,FALSE),FALSE)),IF(ISERROR(VLOOKUP(Kapitaalkosten!$A113,'Data G'!$1:$1048576,HLOOKUP(Naam&Kapitaalkosten!J$5&EofG,'Data G'!$D$5:$IV$6,2,FALSE),FALSE)),0,VLOOKUP(Kapitaalkosten!$A113,'Data G'!$1:$1048576,HLOOKUP(Naam&Kapitaalkosten!J$5&EofG,'Data G'!$D$5:$IV$6,2,FALSE),FALSE))) -> 0 | K113: =IF(EofG="E",IF(ISERROR(VLOOKUP(Kapitaalkosten!$A113,'Data E (oud)'!$1:$1048576,HLOOKUP(Naam&Kapitaalkosten!K$5&EofG,'Data E (oud)'!$D$5:$IV$6,2,FALSE),FALSE)),0,VLOOKUP(Kapitaalkosten!$A113,'Data E (oud)'!$1:$1048576,HLOOKUP(Naam&Kapitaalkosten!K$5&EofG,'Data E (oud)'!$D$5:$IV$6,2,FALSE),FALSE)),IF(ISERROR(VLOOKUP(Kapitaalkosten!$A113,'Data G'!$1:$1048576,HLOOKUP(Naam&Kapitaalkosten!K$5&EofG,'Data G'!$D$5:$IV$6,2,FALSE),FALSE)),0,VLOOKUP(Kapitaalkosten!$A113,'Data G'!$1:$1048576,HLOOKUP(Naam&Kapitaalkosten!K$5&EofG,'Data G'!$D$5:$IV$6,2,FALSE),FALSE))) -> 0 | L113: =IF(EofG="E",IF(ISERROR(VLOOKUP(Kapitaalkosten!$A113,'Data E (oud)'!$1:$1048576,HLOOKUP(Naam&Kapitaalkosten!L$5&EofG,'Data E (oud)'!$D$5:$IV$6,2,FALSE),FALSE)),0,VLOOKUP(Kapitaalkosten!$A113,'Data E (oud)'!$1:$1048576,HLOOKUP(Naam&Kapitaalkosten!L$5&EofG,'Data E (oud)'!$D$5:$IV$6,2,FALSE),FALSE)),IF(ISERROR(VLOOKUP(Kapitaalkosten!$A113,'Data G'!$1:$1048576,HLOOKUP(Naam&Kapitaalkosten!L$5&EofG,'Data G'!$D$5:$IV$6,2,FALSE),FALSE)),0,VLOOKUP(Kapitaalkosten!$A113,'Data G'!$1:$1048576,HLOOKUP(Naam&Kapitaalkosten!L$5&EofG,'Data G'!$D$5:$IV$6,2,FALSE),FALSE))) -> 0
A114: 02Des10 | B114: Desinvesteringen met afschrijvingstermijn: | C114: 10 | F114: =IF(EofG="E",IF(ISERROR(VLOOKUP(Kapitaalkosten!$A114,'Data E (oud)'!$1:$1048576,HLOOKUP(Naam&Kapitaalkosten!F$5&EofG,'Data E (oud)'!$D$5:$IV$6,2,FALSE),FALSE)),0,VLOOKUP(Kapitaalkosten!$A114,'Data E (oud)'!$1:$1048576,HLOOKUP(Naam&Kapitaalkosten!F$5&EofG,'Data E (oud)'!$D$5:$IV$6,2,FALSE),FALSE)),IF(ISERROR(VLOOKUP(Kapitaalkosten!$A114,'Data G'!$1:$1048576,HLOOKUP(Naam&Kapitaalkosten!F$5&EofG,'Data G'!$D$5:$IV$6,2,FALSE),FALSE)),0,VLOOKUP(Kapitaalkosten!$A114,'Data G'!$1:$1048576,HLOOKUP(Naam&Kapitaalkosten!F$5&EofG,'Data G'!$D$5:$IV$6,2,FALSE),FALSE))) -> 0 | G114: =IF(EofG="E",IF(ISERROR(VLOOKUP(Kapitaalkosten!$A114,'Data E (oud)'!$1:$1048576,HLOOKUP(Naam&Kapitaalkosten!G$5&EofG,'Data E (oud)'!$D$5:$IV$6,2,FALSE),FALSE)),0,VLOOKUP(Kapitaalkosten!$A114,'Data E (oud)'!$1:$1048576,HLOOKUP(Naam&Kapitaalkosten!G$5&EofG,'Data E (oud)'!$D$5:$IV$6,2,FALSE),FALSE)),IF(ISERROR(VLOOKUP(Kapitaalkosten!$A114,'Data G'!$1:$1048576,HLOOKUP(Naam&Kapitaalkosten!G$5&EofG,'Data G'!$D$5:$IV$6,2,FALSE),FALSE)),0,VLOOKUP(Kapitaalkosten!$A114,'Data G'!$1:$1048576,HLOOKUP(Naam&Kapitaalkosten!G$5&EofG,'Data G'!$D$5:$IV$6,2,FALSE),FALSE))) -> 0 | H114: =IF(EofG="E",IF(ISERROR(VLOOKUP(Kapitaalkosten!$A114,'Data E (oud)'!$1:$1048576,HLOOKUP(Naam&Kapitaalkosten!H$5&EofG,'Data E (oud)'!$D$5:$IV$6,2,FALSE),FALSE)),0,VLOOKUP(Kapitaalkosten!$A114,'Data E (oud)'!$1:$1048576,HLOOKUP(Naam&Kapitaalkosten!H$5&EofG,'Data E (oud)'!$D$5:$IV$6,2,FALSE),FALSE)),IF(ISERROR(VLOOKUP(Kapitaalkosten!$A114,'Data G'!$1:$1048576,HLOOKUP(Naam&Kapitaalkosten!H$5&EofG,'Data G'!$D$5:$IV$6,2,FALSE),FALSE)),0,VLOOKUP(Kapitaalkosten!$A114,'Data G'!$1:$1048576,HLOOKUP(Naam&Kapitaalkosten!H$5&EofG,'Data G'!$D$5:$IV$6,2,FALSE),FALSE))) -> 0 | I114: =IF(EofG="E",IF(ISERROR(VLOOKUP(Kapitaalkosten!$A114,'Data E (oud)'!$1:$1048576,HLOOKUP(Naam&Kapitaalkosten!I$5&EofG,'Data E (oud)'!$D$5:$IV$6,2,FALSE),FALSE)),0,VLOOKUP(Kapitaalkosten!$A114,'Data E (oud)'!$1:$1048576,HLOOKUP(Naam&Kapitaalkosten!I$5&EofG,'Data E (oud)'!$D$5:$IV$6,2,FALSE),FALSE)),IF(ISERROR(VLOOKUP(Kapitaalkosten!$A114,'Data G'!$1:$1048576,HLOOKUP(Naam&Kapitaalkosten!I$5&EofG,'Data G'!$D$5:$IV$6,2,FALSE),FALSE)),0,VLOOKUP(Kapitaalkosten!$A114,'Data G'!$1:$1048576,HLOOKUP(Naam&Kapitaalkosten!I$5&EofG,'Data G'!$D$5:$IV$6,2,FALSE),FALSE))) -> 0 | J114: =IF(EofG="E",IF(ISERROR(VLOOKUP(Kapitaalkosten!$A114,'Data E (oud)'!$1:$1048576,HLOOKUP(Naam&Kapitaalkosten!J$5&EofG,'Data E (oud)'!$D$5:$IV$6,2,FALSE),FALSE)),0,VLOOKUP(Kapitaalkosten!$A114,'Data E (oud)'!$1:$1048576,HLOOKUP(Naam&Kapitaalkosten!J$5&EofG,'Data E (oud)'!$D$5:$IV$6,2,FALSE),FALSE)),IF(ISERROR(VLOOKUP(Kapitaalkosten!$A114,'Data G'!$1:$1048576,HLOOKUP(Naam&Kapitaalkosten!J$5&EofG,'Data G'!$D$5:$IV$6,2,FALSE),FALSE)),0,VLOOKUP(Kapitaalkosten!$A114,'Data G'!$1:$1048576,HLOOKUP(Naam&Kapitaalkosten!J$5&EofG,'Data G'!$D$5:$IV$6,2,FALSE),FALSE))) -> 0 | K114: =IF(EofG="E",IF(ISERROR(VLOOKUP(Kapitaalkosten!$A114,'Data E (oud)'!$1:$1048576,HLOOKUP(Naam&Kapitaalkosten!K$5&EofG,'Data E (oud)'!$D$5:$IV$6,2,FALSE),FALSE)),0,VLOOKUP(Kapitaalkosten!$A114,'Data E (oud)'!$1:$1048576,HLOOKUP(Naam&Kapitaalkosten!K$5&EofG,'Data E (oud)'!$D$5:$IV$6,2,FALSE),FALSE)),IF(ISERROR(VLOOKUP(Kapitaalkosten!$A114,'Data G'!$1:$1048576,HLOOKUP(Naam&Kapitaalkosten!K$5&EofG,'Data G'!$D$5:$IV$6,2,FALSE),FALSE)),0,VLOOKUP(Kapitaalkosten!$A114,'Data G'!$1:$1048576,HLOOKUP(Naam&Kapitaalkosten!K$5&EofG,'Data G'!$D$5:$IV$6,2,FALSE),FALSE))) -> 0 | L114: =IF(EofG="E",IF(ISERROR(VLOOKUP(Kapitaalkosten!$A114,'Data E (oud)'!$1:$1048576,HLOOKUP(Naam&Kapitaalkosten!L$5&EofG,'Data E (oud)'!$D$5:$IV$6,2,FALSE),FALSE)),0,VLOOKUP(Kapitaalkosten!$A114,'Data E (oud)'!$1:$1048576,HLOOKUP(Naam&Kapitaalkosten!L$5&EofG,'Data E (oud)'!$D$5:$IV$6,2,FALSE),FALSE)),IF(ISERROR(VLOOKUP(Kapitaalkosten!$A114,'Data G'!$1:$1048576,HLOOKUP(Naam&Kapitaalkosten!L$5&EofG,'Data G'!$D$5:$IV$6,2,FALSE),FALSE)),0,VLOOKUP(Kapitaalkosten!$A114,'Data G'!$1:$1048576,HLOOKUP(Naam&Kapitaalkosten!L$5&EofG,'Data G'!$D$5:$IV$6,2,FALSE),FALSE))) -> 0
A115: 02Des5 | B115: Desinvesteringen met afschrijvingstermijn: | C115: 5 | F115: =IF(EofG="E",IF(ISERROR(VLOOKUP(Kapitaalkosten!$A115,'Data E (oud)'!$1:$1048576,HLOOKUP(Naam&Kapitaalkosten!F$5&EofG,'Data E (oud)'!$D$5:$IV$6,2,FALSE),FALSE)),0,VLOOKUP(Kapitaalkosten!$A115,'Data E (oud)'!$1:$1048576,HLOOKUP(Naam&Kapitaalkosten!F$5&EofG,'Data E (oud)'!$D$5:$IV$6,2,FALSE),FALSE)),IF(ISERROR(VLOOKUP(Kapitaalkosten!$A115,'Data G'!$1:$1048576,HLOOKUP(Naam&Kapitaalkosten!F$5&EofG,'Data G'!$D$5:$IV$6,2,FALSE),FALSE)),0,VLOOKUP(Kapitaalkosten!$A115,'Data G'!$1:$1048576,HLOOKUP(Naam&Kapitaalkosten!F$5&EofG,'Data G'!$D$5:$IV$6,2,FALSE),FALSE))) -> 0 | G115: =IF(EofG="E",IF(ISERROR(VLOOKUP(Kapitaalkosten!$A115,'Data E (oud)'!$1:$1048576,HLOOKUP(Naam&Kapitaalkosten!G$5&EofG,'Data E (oud)'!$D$5:$IV$6,2,FALSE),FALSE)),0,VLOOKUP(Kapitaalkosten!$A115,'Data E (oud)'!$1:$1048576,HLOOKUP(Naam&Kapitaalkosten!G$5&EofG,'Data E (oud)'!$D$5:$IV$6,2,FALSE),FALSE)),IF(ISERROR(VLOOKUP(Kapitaalkosten!$A115,'Data G'!$1:$1048576,HLOOKUP(Naam&Kapitaalkosten!G$5&EofG,'Data G'!$D$5:$IV$6,2,FALSE),FALSE)),0,VLOOKUP(Kapitaalkosten!$A115,'Data G'!$1:$1048576,HLOOKUP(Naam&Kapitaalkosten!G$5&EofG,'Data G'!$D$5:$IV$6,2,FALSE),FALSE))) -> 0 | H115: =IF(EofG="E",IF(ISERROR(VLOOKUP(Kapitaalkosten!$A115,'Data E (oud)'!$1:$1048576,HLOOKUP(Naam&Kapitaalkosten!H$5&EofG,'Data E (oud)'!$D$5:$IV$6,2,FALSE),FALSE)),0,VLOOKUP(Kapitaalkosten!$A115,'Data E (oud)'!$1:$1048576,HLOOKUP(Naam&Kapitaalkosten!H$5&EofG,'Data E (oud)'!$D$5:$IV$6,2,FALSE),FALSE)),IF(ISERROR(VLOOKUP(Kapitaalkosten!$A115,'Data G'!$1:$1048576,HLOOKUP(Naam&Kapitaalkosten!H$5&EofG,'Data G'!$D$5:$IV$6,2,FALSE),FALSE)),0,VLOOKUP(Kapitaalkosten!$A115,'Data G'!$1:$1048576,HLOOKUP(Naam&Kapitaalkosten!H$5&EofG,'Data G'!$D$5:$IV$6,2,FALSE),FALSE))) -> 0 | I115: =IF(EofG="E",IF(ISERROR(VLOOKUP(Kapitaalkosten!$A115,'Data E (oud)'!$1:$1048576,HLOOKUP(Naam&Kapitaalkosten!I$5&EofG,'Data E (oud)'!$D$5:$IV$6,2,FALSE),FALSE)),0,VLOOKUP(Kapitaalkosten!$A115,'Data E (oud)'!$1:$1048576,HLOOKUP(Naam&Kapitaalkosten!I$5&EofG,'Data E (oud)'!$D$5:$IV$6,2,FALSE),FALSE)),IF(ISERROR(VLOOKUP(Kapitaalkosten!$A115,'Data G'!$1:$1048576,HLOOKUP(Naam&Kapitaalkosten!I$5&EofG,'Data G'!$D$5:$IV$6,2,FALSE),FALSE)),0,VLOOKUP(Kapitaalkosten!$A115,'Data G'!$1:$1048576,HLOOKUP(Naam&Kapitaalkosten!I$5&EofG,'Data G'!$D$5:$IV$6,2,FALSE),FALSE))) -> 0 | J115: =IF(EofG="E",IF(ISERROR(VLOOKUP(Kapitaalkosten!$A115,'Data E (oud)'!$1:$1048576,HLOOKUP(Naam&Kapitaalkosten!J$5&EofG,'Data E (oud)'!$D$5:$IV$6,2,FALSE),FALSE)),0,VLOOKUP(Kapitaalkosten!$A115,'Data E (oud)'!$1:$1048576,HLOOKUP(Naam&Kapitaalkosten!J$5&EofG,'Data E (oud)'!$D$5:$IV$6,2,FALSE),FALSE)),IF(ISERROR(VLOOKUP(Kapitaalkosten!$A115,'Data G'!$1:$1048576,HLOOKUP(Naam&Kapitaalkosten!J$5&EofG,'Data G'!$D$5:$IV$6,2,FALSE),FALSE)),0,VLOOKUP(Kapitaalkosten!$A115,'Data G'!$1:$1048576,HLOOKUP(Naam&Kapitaalkosten!J$5&EofG,'Data G'!$D$5:$IV$6,2,FALSE),FALSE))) -> 0 | K115: =IF(EofG="E",IF(ISERROR(VLOOKUP(Kapitaalkosten!$A115,'Data E (oud)'!$1:$1048576,HLOOKUP(Naam&Kapitaalkosten!K$5&EofG,'Data E (oud)'!$D$5:$IV$6,2,FALSE),FALSE)),0,VLOOKUP(Kapitaalkosten!$A115,'Data E (oud)'!$1:$1048576,HLOOKUP(Naam&Kapitaalkosten!K$5&EofG,'Data E (oud)'!$D$5:$IV$6,2,FALSE),FALSE)),IF(ISERROR(VLOOKUP(Kapitaalkosten!$A115,'Data G'!$1:$1048576,HLOOKUP(Naam&Kapitaalkosten!K$5&EofG,'Data G'!$D$5:$IV$6,2,FALSE),FALSE)),0,VLOOKUP(Kapitaalkosten!$A115,'Data G'!$1:$1048576,HLOOKUP(Naam&Kapitaalkosten!K$5&EofG,'Data G'!$D$5:$IV$6,2,FALSE),FALSE))) -> 0 | L115: =IF(EofG="E",IF(ISERROR(VLOOKUP(Kapitaalkosten!$A115,'Data E (oud)'!$1:$1048576,HLOOKUP(Naam&Kapitaalkosten!L$5&EofG,'Data E (oud)'!$D$5:$IV$6,2,FALSE),FALSE)),0,VLOOKUP(Kapitaalkosten!$A115,'Data E (oud)'!$1:$1048576,HLOOKUP(Naam&Kapitaalkosten!L$5&EofG,'Data E (oud)'!$D$5:$IV$6,2,FALSE),FALSE)),IF(ISERROR(VLOOKUP(Kapitaalkosten!$A115,'Data G'!$1:$1048576,HLOOKUP(Naam&Kapitaalkosten!L$5&EofG,'Data G'!$D$5:$IV$6,2,FALSE),FALSE)),0,VLOOKUP(Kapitaalkosten!$A115,'Data G'!$1:$1048576,HLOOKUP(Naam&Kapitaalkosten!L$5&EofG,'Data G'!$D$5:$IV$6,2,FALSE),FALSE))) -> 0
A116: 02Des3 | B116: Desinvesteringen met afschrijvingstermijn: | C116: 3 | F116: =IF(EofG="E",IF(ISERROR(VLOOKUP(Kapitaalkosten!$A116,'Data E (oud)'!$1:$1048576,HLOOKUP(Naam&Kapitaalkosten!F$5&EofG,'Data E (oud)'!$D$5:$IV$6,2,FALSE),FALSE)),0,VLOOKUP(Kapitaalkosten!$A116,'Data E (oud)'!$1:$1048576,HLOOKUP(Naam&Kapitaalkosten!F$5&EofG,'Data E (oud)'!$D$5:$IV$6,2,FALSE),FALSE)),IF(ISERROR(VLOOKUP(Kapitaalkosten!$A116,'Data G'!$1:$1048576,HLOOKUP(Naam&Kapitaalkosten!F$5&EofG,'Data G'!$D$5:$IV$6,2,FALSE),FALSE)),0,VLOOKUP(Kapitaalkosten!$A116,'Data G'!$1:$1048576,HLOOKUP(Naam&Kapitaalkosten!F$5&EofG,'Data G'!$D$5:$IV$6,2,FALSE),FALSE))) -> 0 | G116: =IF(EofG="E",IF(ISERROR(VLOOKUP(Kapitaalkosten!$A116,'Data E (oud)'!$1:$1048576,HLOOKUP(Naam&Kapitaalkosten!G$5&EofG,'Data E (oud)'!$D$5:$IV$6,2,FALSE),FALSE)),0,VLOOKUP(Kapitaalkosten!$A116,'Data E (oud)'!$1:$1048576,HLOOKUP(Naam&Kapitaalkosten!G$5&EofG,'Data E (oud)'!$D$5:$IV$6,2,FALSE),FALSE)),IF(ISERROR(VLOOKUP(Kapitaalkosten!$A116,'Data G'!$1:$1048576,HLOOKUP(Naam&Kapitaalkosten!G$5&EofG,'Data G'!$D$5:$IV$6,2,FALSE),FALSE)),0,VLOOKUP(Kapitaalkosten!$A116,'Data G'!$1:$1048576,HLOOKUP(Naam&Kapitaalkosten!G$5&EofG,'Data G'!$D$5:$IV$6,2,FALSE),FALSE))) -> 0 | H116: =IF(EofG="E",IF(ISERROR(VLOOKUP(Kapitaalkosten!$A116,'Data E (oud)'!$1:$1048576,HLOOKUP(Naam&Kapitaalkosten!H$5&EofG,'Data E (oud)'!$D$5:$IV$6,2,FALSE),FALSE)),0,VLOOKUP(Kapitaalkosten!$A116,'Data E (oud)'!$1:$1048576,HLOOKUP(Naam&Kapitaalkosten!H$5&EofG,'Data E (oud)'!$D$5:$IV$6,2,FALSE),FALSE)),IF(ISERROR(VLOOKUP(Kapitaalkosten!$A116,'Data G'!$1:$1048576,HLOOKUP(Naam&Kapitaalkosten!H$5&EofG,'Data G'!$D$5:$IV$6,2,FALSE),FALSE)),0,VLOOKUP(Kapitaalkosten!$A116,'Data G'!$1:$1048576,HLOOKUP(Naam&Kapitaalkosten!H$5&EofG,'Data G'!$D$5:$IV$6,2,FALSE),FALSE))) -> 0 | I116: =IF(EofG="E",IF(ISERROR(VLOOKUP(Kapitaalkosten!$A116,'Data E (oud)'!$1:$1048576,HLOOKUP(Naam&Kapitaalkosten!I$5&EofG,'Data E (oud)'!$D$5:$IV$6,2,FALSE),FALSE)),0,VLOOKUP(Kapitaalkosten!$A116,'Data E (oud)'!$1:$1048576,HLOOKUP(Naam&Kapitaalkosten!I$5&EofG,'Data E (oud)'!$D$5:$IV$6,2,FALSE),FALSE)),IF(ISERROR(VLOOKUP(Kapitaalkosten!$A116,'Data G'!$1:$1048576,HLOOKUP(Naam&Kapitaalkosten!I$5&EofG,'Data G'!$D$5:$IV$6,2,FALSE),FALSE)),0,VLOOKUP(Kapitaalkosten!$A116,'Data G'!$1:$1048576,HLOOKUP(Naam&Kapitaalkosten!I$5&EofG,'Data G'!$D$5:$IV$6,2,FALSE),FALSE))) -> 0 | J116: =IF(EofG="E",IF(ISERROR(VLOOKUP(Kapitaalkosten!$A116,'Data E (oud)'!$1:$1048576,HLOOKUP(Naam&Kapitaalkosten!J$5&EofG,'Data E (oud)'!$D$5:$IV$6,2,FALSE),FALSE)),0,VLOOKUP(Kapitaalkosten!$A116,'Data E (oud)'!$1:$1048576,HLOOKUP(Naam&Kapitaalkosten!J$5&EofG,'Data E (oud)'!$D$5:$IV$6,2,FALSE),FALSE)),IF(ISERROR(VLOOKUP(Kapitaalkosten!$A116,'Data G'!$1:$1048576,HLOOKUP(Naam&Kapitaalkosten!J$5&EofG,'Data G'!$D$5:$IV$6,2,FALSE),FALSE)),0,VLOOKUP(Kapitaalkosten!$A116,'Data G'!$1:$1048576,HLOOKUP(Naam&Kapitaalkosten!J$5&EofG,'Data G'!$D$5:$IV$6,2,FALSE),FALSE))) -> 0 | K116: =IF(EofG="E",IF(ISERROR(VLOOKUP(Kapitaalkosten!$A116,'Data E (oud)'!$1:$1048576,HLOOKUP(Naam&Kapitaalkosten!K$5&EofG,'Data E (oud)'!$D$5:$IV$6,2,FALSE),FALSE)),0,VLOOKUP(Kapitaalkosten!$A116,'Data E (oud)'!$1:$1048576,HLOOKUP(Naam&Kapitaalkosten!K$5&EofG,'Data E (oud)'!$D$5:$IV$6,2,FALSE),FALSE)),IF(ISERROR(VLOOKUP(Kapitaalkosten!$A116,'Data G'!$1:$1048576,HLOOKUP(Naam&Kapitaalkosten!K$5&EofG,'Data G'!$D$5:$IV$6,2,FALSE),FALSE)),0,VLOOKUP(Kapitaalkosten!$A116,'Data G'!$1:$1048576,HLOOKUP(Naam&Kapitaalkosten!K$5&EofG,'Data G'!$D$5:$IV$6,2,FALSE),FALSE))) -> 0 | L116: =IF(EofG="E",IF(ISERROR(VLOOKUP(Kapitaalkosten!$A116,'Data E (oud)'!$1:$1048576,HLOOKUP(Naam&Kapitaalkosten!L$5&EofG,'Data E (oud)'!$D$5:$IV$6,2,FALSE),FALSE)),0,VLOOKUP(Kapitaalkosten!$A116,'Data E (oud)'!$1:$1048576,HLOOKUP(Naam&Kapitaalkosten!L$5&EofG,'Data E (oud)'!$D$5:$IV$6,2,FALSE),FALSE)),IF(ISERROR(VLOOKUP(Kapitaalkosten!$A116,'Data G'!$1:$1048576,HLOOKUP(Naam&Kapitaalkosten!L$5&EofG,'Data G'!$D$5:$IV$6,2,FALSE),FALSE)),0,VLOOKUP(Kapitaalkosten!$A116,'Data G'!$1:$1048576,HLOOKUP(Naam&Kapitaalkosten!L$5&EofG,'Data G'!$D$5:$IV$6,2,FALSE),FALSE))) -> 0
A117: 02Desgeen | B117: Desinvesteringen met afschrijvingstermijn: | C117: geen | F117: =IF(EofG="E",IF(ISERROR(VLOOKUP(Kapitaalkosten!$A117,'Data E (oud)'!$1:$1048576,HLOOKUP(Naam&Kapitaalkosten!F$5&EofG,'Data E (oud)'!$D$5:$IV$6,2,FALSE),FALSE)),0,VLOOKUP(Kapitaalkosten!$A117,'Data E (oud)'!$1:$1048576,HLOOKUP(Naam&Kapitaalkosten!F$5&EofG,'Data E (oud)'!$D$5:$IV$6,2,FALSE),FALSE)),IF(ISERROR(VLOOKUP(Kapitaalkosten!$A117,'Data G'!$1:$1048576,HLOOKUP(Naam&Kapitaalkosten!F$5&EofG,'Data G'!$D$5:$IV$6,2,FALSE),FALSE)),0,VLOOKUP(Kapitaalkosten!$A117,'Data G'!$1:$1048576,HLOOKUP(Naam&Kapitaalkosten!F$5&EofG,'Data G'!$D$5:$IV$6,2,FALSE),FALSE))) -> 0 | G117: =IF(EofG="E",IF(ISERROR(VLOOKUP(Kapitaalkosten!$A117,'Data E (oud)'!$1:$1048576,HLOOKUP(Naam&Kapitaalkosten!G$5&EofG,'Data E (oud)'!$D$5:$IV$6,2,FALSE),FALSE)),0,VLOOKUP(Kapitaalkosten!$A117,'Data E (oud)'!$1:$1048576,HLOOKUP(Naam&Kapitaalkosten!G$5&EofG,'Data E (oud)'!$D$5:$IV$6,2,FALSE),FALSE)),IF(ISERROR(VLOOKUP(Kapitaalkosten!$A117,'Data G'!$1:$1048576,HLOOKUP(Naam&Kapitaalkosten!G$5&EofG,'Data G'!$D$5:$IV$6,2,FALSE),FALSE)),0,VLOOKUP(Kapitaalkosten!$A117,'Data G'!$1:$1048576,HLOOKUP(Naam&Kapitaalkosten!G$5&EofG,'Data G'!$D$5:$IV$6,2,FALSE),FALSE))) -> 0 | H117: =IF(EofG="E",IF(ISERROR(VLOOKUP(Kapitaalkosten!$A117,'Data E (oud)'!$1:$1048576,HLOOKUP(Naam&Kapitaalkosten!H$5&EofG,'Data E (oud)'!$D$5:$IV$6,2,FALSE),FALSE)),0,VLOOKUP(Kapitaalkosten!$A117,'Data E (oud)'!$1:$1048576,HLOOKUP(Naam&Kapitaalkosten!H$5&EofG,'Data E (oud)'!$D$5:$IV$6,2,FALSE),FALSE)),IF(ISERROR(VLOOKUP(Kapitaalkosten!$A117,'Data G'!$1:$1048576,HLOOKUP(Naam&Kapitaalkosten!H$5&EofG,'Data G'!$D$5:$IV$6,2,FALSE),FALSE)),0,VLOOKUP(Kapitaalkosten!$A117,'Data G'!$1:$1048576,HLOOKUP(Naam&Kapitaalkosten!H$5&EofG,'Data G'!$D$5:$IV$6,2,FALSE),FALSE))) -> 0 | I117: =IF(EofG="E",IF(ISERROR(VLOOKUP(Kapitaalkosten!$A117,'Data E (oud)'!$1:$1048576,HLOOKUP(Naam&Kapitaalkosten!I$5&EofG,'Data E (oud)'!$D$5:$IV$6,2,FALSE),FALSE)),0,VLOOKUP(Kapitaalkosten!$A117,'Data E (oud)'!$1:$1048576,HLOOKUP(Naam&Kapitaalkosten!I$5&EofG,'Data E (oud)'!$D$5:$IV$6,2,FALSE),FALSE)),IF(ISERROR(VLOOKUP(Kapitaalkosten!$A117,'Data G'!$1:$1048576,HLOOKUP(Naam&Kapitaalkosten!I$5&EofG,'Data G'!$D$5:$IV$6,2,FALSE),FALSE)),0,VLOOKUP(Kapitaalkosten!$A117,'Data G'!$1:$1048576,HLOOKUP(Naam&Kapitaalkosten!I$5&EofG,'Data G'!$D$5:$IV$6,2,FALSE),FALSE))) -> 0 | J117: =IF(EofG="E",IF(ISERROR(VLOOKUP(Kapitaalkosten!$A117,'Data E (oud)'!$1:$1048576,HLOOKUP(Naam&Kapitaalkosten!J$5&EofG,'Data E (oud)'!$D$5:$IV$6,2,FALSE),FALSE)),0,VLOOKUP(Kapitaalkosten!$A117,'Data E (oud)'!$1:$1048576,HLOOKUP(Naam&Kapitaalkosten!J$5&EofG,'Data E (oud)'!$D$5:$IV$6,2,FALSE),FALSE)),IF(ISERROR(VLOOKUP(Kapitaalkosten!$A117,'Data G'!$1:$1048576,HLOOKUP(Naam&Kapitaalkosten!J$5&EofG,'Data G'!$D$5:$IV$6,2,FALSE),FALSE)),0,VLOOKUP(Kapitaalkosten!$A117,'Data G'!$1:$1048576,HLOOKUP(Naam&Kapitaalkosten!J$5&EofG,'Data G'!$D$5:$IV$6,2,FALSE),FALSE))) -> 0 | K117: =IF(EofG="E",IF(ISERROR(VLOOKUP(Kapitaalkosten!$A117,'Data E (oud)'!$1:$1048576,HLOOKUP(Naam&Kapitaalkosten!K$5&EofG,'Data E (oud)'!$D$5:$IV$6,2,FALSE),FALSE)),0,VLOOKUP(Kapitaalkosten!$A117,'Data E (oud)'!$1:$1048576,HLOOKUP(Naam&Kapitaalkosten!K$5&EofG,'Data E (oud)'!$D$5:$IV$6,2,FALSE),FALSE)),IF(ISERROR(VLOOKUP(Kapitaalkosten!$A117,'Data G'!$1:$1048576,HLOOKUP(Naam&Kapitaalkosten!K$5&EofG,'Data G'!$D$5:$IV$6,2,FALSE),FALSE)),0,VLOOKUP(Kapitaalkosten!$A117,'Data G'!$1:$1048576,HLOOKUP(Naam&Kapitaalkosten!K$5&EofG,'Data G'!$D$5:$IV$6,2,FALSE),FALSE))) -> 0 | L117: =IF(EofG="E",IF(ISERROR(VLOOKUP(Kapitaalkosten!$A117,'Data E (oud)'!$1:$1048576,HLOOKUP(Naam&Kapitaalkosten!L$5&EofG,'Data E (oud)'!$D$5:$IV$6,2,FALSE),FALSE)),0,VLOOKUP(Kapitaalkosten!$A117,'Data E (oud)'!$1:$1048576,HLOOKUP(Naam&Kapitaalkosten!L$5&EofG,'Data E (oud)'!$D$5:$IV$6,2,FALSE),FALSE)),IF(ISERROR(VLOOKUP(Kapitaalkosten!$A117,'Data G'!$1:$1048576,HLOOKUP(Naam&Kapitaalkosten!L$5&EofG,'Data G'!$D$5:$IV$6,2,FALSE),FALSE)),0,VLOOKUP(Kapitaalkosten!$A117,'Data G'!$1:$1048576,HLOOKUP(Naam&Kapitaalkosten!L$5&EofG,'Data G'!$D$5:$IV$6,2,FALSE),FALSE))) -> 0
B118: Cumulatieve afschrijvingen desinvesteringen (c.a.d.) | F118: =SUM(F119:F125) -> 0 | G118: 0 | H118: 0 | I118: 0 | J118: 0 | K118: 0 | L118: 0 | M118: 0 | N118: 0 | O118: 0 | P118: 0 | Q118: 0 | R118: 0 | S118: 0 | T118: 0 | U118: 0 | V118: 0 | W118: 0
A119: =RIGHT(B$89,2)&"cad"&C119 -> 02cad50 | B119: cumulatieve afschrijving bij afschrijvingstermijn | C119: 50 | F119: =IF(E92=0,"",(SUM($D101:E101)-SUM($D119:E119))*F110/E92+0.5*F110/$C110) ->  | G119: =IF(F92=0,"",(SUM($D101:F101)-SUM($D119:F119))*G110/F92+0.5*G110/$C110) ->  | H119: =IF(G92=0,"",(SUM($D101:G101)-SUM($D119:G119))*H110/G92+0.5*H110/$C110) ->  | I119: =IF(H92=0,"",(SUM($D101:H101)-SUM($D119:H119))*I110/H92+0.5*I110/$C110) ->  | J119: =IF(I92=0,"",(SUM($D101:I101)-SUM($D119:I119))*J110/I92+0.5*J110/$C110) ->  | K119: =IF(J92=0,"",(SUM($D101:J101)-SUM($D119:J119))*K110/J92+0.5*K110/$C110) ->  | L119: =IF(K92=0,"",(SUM($D101:K101)-SUM($D119:K119))*L110/K92+0.5*L110/$C110) ->  | M119: =IF(L92=0,"",(SUM($D101:L101)-SUM($D119:L119))*M110/L92+0.5*M110/$C110) ->  | N119: =IF(M92=0,"",(SUM($D101:M101)-SUM($D119:M119))*N110/M92+0.5*N110/$C110) ->  | O119: =IF(N92=0,"",(SUM($D101:N101)-SUM($D119:N119))*O110/N92+0.5*O110/$C110) ->  | P119: =IF(O92=0,"",(SUM($D101:O101)-SUM($D119:O119))*P110/O92+0.5*P110/$C110) ->  | Q119: =IF(P92=0,"",(SUM($D101:P101)-SUM($D119:P119))*Q110/P92+0.5*Q110/$C110) ->  | R119: =IF(Q92=0,"",(SUM($D101:Q101)-SUM($D119:Q119))*R110/Q92+0.5*R110/$C110) ->  | S119: =IF(R92=0,"",(SUM($D101:R101)-SUM($D119:R119))*S110/R92+0.5*S110/$C110) ->  | T119: =IF(S92=0,"",(SUM($D101:S101)-SUM($D119:S119))*T110/S92+0.5*T110/$C110) ->  | U119: =IF(T92=0,"",(SUM($D101:T101)-SUM($D119:T119))*U110/T92+0.5*U110/$C110) ->  | V119: =IF(U92=0,"",(SUM($D101:U101)-SUM($D119:U119))*V110/U92+0.5*V110/$C110) ->  | W119: =IF(V92=0,"",(SUM($D101:V101)-SUM($D119:V119))*W110/V92+0.5*W110/$C110) -> 
A120: 02cad40 | B120: cumulatieve afschrijving bij afschrijvingstermijn | C120: 40 | F120: =IF(E93=0,"",(SUM($D102:E102)-SUM($D120:E120))*F111/E93+0.5*F111/$C111) ->  | G120: =IF(F93=0,"",(SUM($D102:F102)-SUM($D120:F120))*G111/F93+0.5*G111/$C111) ->  | H120: =IF(G93=0,"",(SUM($D102:G102)-SUM($D120:G120))*H111/G93+0.5*H111/$C111) ->  | I120: =IF(H93=0,"",(SUM($D102:H102)-SUM($D120:H120))*I111/H93+0.5*I111/$C111) ->  | J120: =IF(I93=0,"",(SUM($D102:I102)-SUM($D120:I120))*J111/I93+0.5*J111/$C111) ->  | K120: =IF(J93=0,"",(SUM($D102:J102)-SUM($D120:J120))*K111/J93+0.5*K111/$C111) ->  | L120: =IF(K93=0,"",(SUM($D102:K102)-SUM($D120:K120))*L111/K93+0.5*L111/$C111) ->  | M120: =IF(L93=0,"",(SUM($D102:L102)-SUM($D120:L120))*M111/L93+0.5*M111/$C111) ->  | N120: =IF(M93=0,"",(SUM($D102:M102)-SUM($D120:M120))*N111/M93+0.5*N111/$C111) ->  | O120: =IF(N93=0,"",(SUM($D102:N102)-SUM($D120:N120))*O111/N93+0.5*O111/$C111) ->  | P120: =IF(O93=0,"",(SUM($D102:O102)-SUM($D120:O120))*P111/O93+0.5*P111/$C111) ->  | Q120: =IF(P93=0,"",(SUM($D102:P102)-SUM($D120:P120))*Q111/P93+0.5*Q111/$C111) ->  | R120: =IF(Q93=0,"",(SUM($D102:Q102)-SUM($D120:Q120))*R111/Q93+0.5*R111/$C111) ->  | S120: =IF(R93=0,"",(SUM($D102:R102)-SUM($D120:R120))*S111/R93+0.5*S111/$C111) ->  | T120: =IF(S93=0,"",(SUM($D102:S102)-SUM($D120:S120))*T111/S93+0.5*T111/$C111) ->  | U120: =IF(T93=0,"",(SUM($D102:T102)-SUM($D120:T120))*U111/T93+0.5*U111/$C111) ->  | V120: =IF(U93=0,"",(SUM($D102:U102)-SUM($D120:U120))*V111/U93+0.5*V111/$C111) ->  | W120: =IF(V93=0,"",(SUM($D102:V102)-SUM($D120:V120))*W111/V93+0.5*W111/$C111) -> 
A121: 02cad30 | B121: cumulatieve afschrijving bij afschrijvingstermijn | C121: 30 | F121: =IF(E94=0,"",(SUM($D103:E103)-SUM($D121:E121))*F112/E94+0.5*F112/$C112) ->  | G121: =IF(F94=0,"",(SUM($D103:F103)-SUM($D121:F121))*G112/F94+0.5*G112/$C112) ->  | H121: =IF(G94=0,"",(SUM($D103:G103)-SUM($D121:G121))*H112/G94+0.5*H112/$C112) ->  | I121: =IF(H94=0,"",(SUM($D103:H103)-SUM($D121:H121))*I112/H94+0.5*I112/$C112) ->  | J121: =IF(I94=0,"",(SUM($D103:I103)-SUM($D121:I121))*J112/I94+0.5*J112/$C112) ->  | K121: =IF(J94=0,"",(SUM($D103:J103)-SUM($D121:J121))*K112/J94+0.5*K112/$C112) ->  | L121: =IF(K94=0,"",(SUM($D103:K103)-SUM($D121:K121))*L112/K94+0.5*L112/$C112) ->  | M121: =IF(L94=0,"",(SUM($D103:L103)-SUM($D121:L121))*M112/L94+0.5*M112/$C112) ->  | N121: =IF(M94=0,"",(SUM($D103:M103)-SUM($D121:M121))*N112/M94+0.5*N112/$C112) ->  | O121: =IF(N94=0,"",(SUM($D103:N103)-SUM($D121:N121))*O112/N94+0.5*O112/$C112) ->  | P121: =IF(O94=0,"",(SUM($D103:O103)-SUM($D121:O121))*P112/O94+0.5*P112/$C112) ->  | Q121: =IF(P94=0,"",(SUM($D103:P103)-SUM($D121:P121))*Q112/P94+0.5*Q112/$C112) ->  | R121: =IF(Q94=0,"",(SUM($D103:Q103)-SUM($D121:Q121))*R112/Q94+0.5*R112/$C112) ->  | S121: =IF(R94=0,"",(SUM($D103:R103)-SUM($D121:R121))*S112/R94+0.5*S112/$C112) ->  | T121: =IF(S94=0,"",(SUM($D103:S103)-SUM($D121:S121))*T112/S94+0.5*T112/$C112) ->  | U121: =IF(T94=0,"",(SUM($D103:T103)-SUM($D121:T121))*U112/T94+0.5*U112/$C112) ->  | V121: =IF(U94=0,"",(SUM($D103:U103)-SUM($D121:U121))*V112/U94+0.5*V112/$C112) ->  | W121: =IF(V94=0,"",(SUM($D103:V103)-SUM($D121:V121))*W112/V94+0.5*W112/$C112) -> 
A122: 02cad25 | B122: cumulatieve afschrijving bij afschrijvingstermijn | C122: 25 | F122: =IF(E95=0,"",(SUM($D104:E104)-SUM($D122:E122))*F113/E95+0.5*F113/$C113) ->  | G122: =IF(F95=0,"",(SUM($D104:F104)-SUM($D122:F122))*G113/F95+0.5*G113/$C113) ->  | H122: =IF(G95=0,"",(SUM($D104:G104)-SUM($D122:G122))*H113/G95+0.5*H113/$C113) ->  | I122: =IF(H95=0,"",(SUM($D104:H104)-SUM($D122:H122))*I113/H95+0.5*I113/$C113) ->  | J122: =IF(I95=0,"",(SUM($D104:I104)-SUM($D122:I122))*J113/I95+0.5*J113/$C113) ->  | K122: =IF(J95=0,"",(SUM($D104:J104)-SUM($D122:J122))*K113/J95+0.5*K113/$C113) ->  | L122: =IF(K95=0,"",(SUM($D104:K104)-SUM($D122:K122))*L113/K95+0.5*L113/$C113) ->  | M122: =IF(L95=0,"",(SUM($D104:L104)-SUM($D122:L122))*M113/L95+0.5*M113/$C113) ->  | N122: =IF(M95=0,"",(SUM($D104:M104)-SUM($D122:M122))*N113/M95+0.5*N113/$C113) ->  | O122: =IF(N95=0,"",(SUM($D104:N104)-SUM($D122:N122))*O113/N95+0.5*O113/$C113) ->  | P122: =IF(O95=0,"",(SUM($D104:O104)-SUM($D122:O122))*P113/O95+0.5*P113/$C113) ->  | Q122: =IF(P95=0,"",(SUM($D104:P104)-SUM($D122:P122))*Q113/P95+0.5*Q113/$C113) ->  | R122: =IF(Q95=0,"",(SUM($D104:Q104)-SUM($D122:Q122))*R113/Q95+0.5*R113/$C113) ->  | S122: =IF(R95=0,"",(SUM($D104:R104)-SUM($D122:R122))*S113/R95+0.5*S113/$C113) ->  | T122: =IF(S95=0,"",(SUM($D104:S104)-SUM($D122:S122))*T113/S95+0.5*T113/$C113) ->  | U122: =IF(T95=0,"",(SUM($D104:T104)-SUM($D122:T122))*U113/T95+0.5*U113/$C113) ->  | V122: =IF(U95=0,"",(SUM($D104:U104)-SUM($D122:U122))*V113/U95+0.5*V113/$C113) ->  | W122: =IF(V95=0,"",(SUM($D104:V104)-SUM($D122:V122))*W113/V95+0.5*W113/$C113) -> 
A123: 02cad10 | B123: cumulatieve afschrijving bij afschrijvingstermijn | C123: 10 | F123: =IF(E96=0,"",(SUM($D105:E105)-SUM($D123:E123))*F114/E96+0.5*F114/$C114) ->  | G123: =IF(F96=0,"",(SUM($D105:F105)-SUM($D123:F123))*G114/F96+0.5*G114/$C114) ->  | H123: =IF(G96=0,"",(SUM($D105:G105)-SUM($D123:G123))*H114/G96+0.5*H114/$C114) ->  | I123: =IF(H96=0,"",(SUM($D105:H105)-SUM($D123:H123))*I114/H96+0.5*I114/$C114) ->  | J123: =IF(I96=0,"",(SUM($D105:I105)-SUM($D123:I123))*J114/I96+0.5*J114/$C114) ->  | K123: =IF(J96=0,"",(SUM($D105:J105)-SUM($D123:J123))*K114/J96+0.5*K114/$C114) ->  | L123: =IF(K96=0,"",(SUM($D105:K105)-SUM($D123:K123))*L114/K96+0.5*L114/$C114) ->  | M123: =IF(L96=0,"",(SUM($D105:L105)-SUM($D123:L123))*M114/L96+0.5*M114/$C114) ->  | N123: =IF(M96=0,"",(SUM($D105:M105)-SUM($D123:M123))*N114/M96+0.5*N114/$C114) ->  | O123: =IF(N96=0,"",(SUM($D105:N105)-SUM($D123:N123))*O114/N96+0.5*O114/$C114) ->  | P123: =IF(O96=0,"",(SUM($D105:O105)-SUM($D123:O123))*P114/O96+0.5*P114/$C114) ->  | Q123: =IF(P96=0,"",(SUM($D105:P105)-SUM($D123:P123))*Q114/P96+0.5*Q114/$C114) ->  | R123: =IF(Q96=0,"",(SUM($D105:Q105)-SUM($D123:Q123))*R114/Q96+0.5*R114/$C114) ->  | S123: =IF(R96=0,"",(SUM($D105:R105)-SUM($D123:R123))*S114/R96+0.5*S114/$C114) ->  | T123: =IF(S96=0,"",(SUM($D105:S105)-SUM($D123:S123))*T114/S96+0.5*T114/$C114) ->  | U123: =IF(T96=0,"",(SUM($D105:T105)-SUM($D123:T123))*U114/T96+0.5*U114/$C114) ->  | V123: =IF(U96=0,"",(SUM($D105:U105)-SUM($D123:U123))*V114/U96+0.5*V114/$C114) ->  | W123: =IF(V96=0,"",(SUM($D105:V105)-SUM($D123:V123))*W114/V96+0.5*W114/$C114) -> 
A124: 02cad5 | B124: cumulatieve afschrijving bij afschrijvingstermijn | C124: 5 | F124: =IF(E97=0,"",(SUM($D106:E106)-SUM($D124:E124))*F115/E97+0.5*F115/$C115) ->  | G124: =IF(F97=0,"",(SUM($D106:F106)-SUM($D124:F124))*G115/F97+0.5*G115/$C115) ->  | H124: =IF(G97=0,"",(SUM($D106:G106)-SUM($D124:G124))*H115/G97+0.5*H115/$C115) ->  | I124: =IF(H97=0,"",(SUM($D106:H106)-SUM($D124:H124))*I115/H97+0.5*I115/$C115) ->  | J124: =IF(I97=0,"",(SUM($D106:I106)-SUM($D124:I124))*J115/I97+0.5*J115/$C115) ->  | K124: =IF(J97=0,"",(SUM($D106:J106)-SUM($D124:J124))*K115/J97+0.5*K115/$C115) ->  | L124: =IF(K97=0,"",(SUM($D106:K106)-SUM($D124:K124))*L115/K97+0.5*L115/$C115) ->  | M124: =IF(L97=0,"",(SUM($D106:L106)-SUM($D124:L124))*M115/L97+0.5*M115/$C115) ->  | N124: =IF(M97=0,"",(SUM($D106:M106)-SUM($D124:M124))*N115/M97+0.5*N115/$C115) ->  | O124: =IF(N97=0,"",(SUM($D106:N106)-SUM($D124:N124))*O115/N97+0.5*O115/$C115) ->  | P124: =IF(O97=0,"",(SUM($D106:O106)-SUM($D124:O124))*P115/O97+0.5*P115/$C115) ->  | Q124: =IF(P97=0,"",(SUM($D106:P106)-SUM($D124:P124))*Q115/P97+0.5*Q115/$C115) ->  | R124: =IF(Q97=0,"",(SUM($D106:Q106)-SUM($D124:Q124))*R115/Q97+0.5*R115/$C115) ->  | S124: =IF(R97=0,"",(SUM($D106:R106)-SUM($D124:R124))*S115/R97+0.5*S115/$C115) ->  | T124: =IF(S97=0,"",(SUM($D106:S106)-SUM($D124:S124))*T115/S97+0.5*T115/$C115) ->  | U124: =IF(T97=0,"",(SUM($D106:T106)-SUM($D124:T124))*U115/T97+0.5*U115/$C115) ->  | V124: =IF(U97=0,"",(SUM($D106:U106)-SUM($D124:U124))*V115/U97+0.5*V115/$C115) ->  | W124: =IF(V97=0,"",(SUM($D106:V106)-SUM($D124:V124))*W115/V97+0.5*W115/$C115) -> 
A125: 02cad3 | B125: cumulatieve afschrijving bij afschrijvingstermijn | C125: 3 | F125: =IF(E98=0,"",(SUM($D107:E107)-SUM($D125:E125))*F116/E98+0.5*F116/$C116) ->  | G125: =IF(F98=0,"",(SUM($D107:F107)-SUM($D125:F125))*G116/F98+0.5*G116/$C116) ->  | H125: =IF(G98=0,"",(SUM($D107:G107)-SUM($D125:G125))*H116/G98+0.5*H116/$C116) ->  | I125: =IF(H98=0,"",(SUM($D107:H107)-SUM($D125:H125))*I116/H98+0.5*I116/$C116) ->  | J125: =IF(I98=0,"",(SUM($D107:I107)-SUM($D125:I125))*J116/I98+0.5*J116/$C116) ->  | K125: =IF(J98=0,"",(SUM($D107:J107)-SUM($D125:J125))*K116/J98+0.5*K116/$C116) ->  | L125: =IF(K98=0,"",(SUM($D107:K107)-SUM($D125:K125))*L116/K98+0.5*L116/$C116) ->  | M125: =IF(L98=0,"",(SUM($D107:L107)-SUM($D125:L125))*M116/L98+0.5*M116/$C116) ->  | N125: =IF(M98=0,"",(SUM($D107:M107)-SUM($D125:M125))*N116/M98+0.5*N116/$C116) ->  | O125: =IF(N98=0,"",(SUM($D107:N107)-SUM($D125:N125))*O116/N98+0.5*O116/$C116) ->  | P125: =IF(O98=0,"",(SUM($D107:O107)-SUM($D125:O125))*P116/O98+0.5*P116/$C116) ->  | Q125: =IF(P98=0,"",(SUM($D107:P107)-SUM($D125:P125))*Q116/P98+0.5*Q116/$C116) ->  | R125: =IF(Q98=0,"",(SUM($D107:Q107)-SUM($D125:Q125))*R116/Q98+0.5*R116/$C116) ->  | S125: =IF(R98=0,"",(SUM($D107:R107)-SUM($D125:R125))*S116/R98+0.5*S116/$C116) ->  | T125: =IF(S98=0,"",(SUM($D107:S107)-SUM($D125:S125))*T116/S98+0.5*T116/$C116) ->  | U125: =IF(T98=0,"",(SUM($D107:T107)-SUM($D125:T125))*U116/T98+0.5*U116/$C116) ->  | V125: =IF(U98=0,"",(SUM($D107:U107)-SUM($D125:U125))*V116/U98+0.5*V116/$C116) ->  | W125: =IF(V98=0,"",(SUM($D107:V107)-SUM($D125:V125))*W116/V98+0.5*W116/$C116) -> 
A126: =RIGHT(B$89,2)&"cad" -> 02cad | B126: c.a.d. opgegeven door netbeheerder | F126: =IF(EofG="E",IF(ISERROR(VLOOKUP(Kapitaalkosten!$A126,'Data E (oud)'!$1:$1048576,HLOOKUP(Naam&Kapitaalkosten!F$5&EofG,'Data E (oud)'!$D$5:$IV$6,2,FALSE),FALSE)),0,VLOOKUP(Kapitaalkosten!$A126,'Data E (oud)'!$1:$1048576,HLOOKUP(Naam&Kapitaalkosten!F$5&EofG,'Data E (oud)'!$D$5:$IV$6,2,FALSE),FALSE)),IF(ISERROR(VLOOKUP(Kapitaalkosten!$A126,'Data G'!$1:$1048576,HLOOKUP(Naam&Kapitaalkosten!F$5&EofG,'Data G'!$D$5:$IV$6,2,FALSE),FALSE)),0,VLOOKUP(Kapitaalkosten!$A126,'Data G'!$1:$1048576,HLOOKUP(Naam&Kapitaalkosten!F$5&EofG,'Data G'!$D$5:$IV$6,2,FALSE),FALSE))) -> 0 | G126: =IF(EofG="E",IF(ISERROR(VLOOKUP(Kapitaalkosten!$A126,'Data E (oud)'!$1:$1048576,HLOOKUP(Naam&Kapitaalkosten!G$5&EofG,'Data E (oud)'!$D$5:$IV$6,2,FALSE),FALSE)),0,VLOOKUP(Kapitaalkosten!$A126,'Data E (oud)'!$1:$1048576,HLOOKUP(Naam&Kapitaalkosten!G$5&EofG,'Data E (oud)'!$D$5:$IV$6,2,FALSE),FALSE)),IF(ISERROR(VLOOKUP(Kapitaalkosten!$A126,'Data G'!$1:$1048576,HLOOKUP(Naam&Kapitaalkosten!G$5&EofG,'Data G'!$D$5:$IV$6,2,FALSE),FALSE)),0,VLOOKUP(Kapitaalkosten!$A126,'Data G'!$1:$1048576,HLOOKUP(Naam&Kapitaalkosten!G$5&EofG,'Data G'!$D$5:$IV$6,2,FALSE),FALSE))) -> 0 | H126: =IF(EofG="E",IF(ISERROR(VLOOKUP(Kapitaalkosten!$A126,'Data E (oud)'!$1:$1048576,HLOOKUP(Naam&Kapitaalkosten!H$5&EofG,'Data E (oud)'!$D$5:$IV$6,2,FALSE),FALSE)),0,VLOOKUP(Kapitaalkosten!$A126,'Data E (oud)'!$1:$1048576,HLOOKUP(Naam&Kapitaalkosten!H$5&EofG,'Data E (oud)'!$D$5:$IV$6,2,FALSE),FALSE)),IF(ISERROR(VLOOKUP(Kapitaalkosten!$A126,'Data G'!$1:$1048576,HLOOKUP(Naam&Kapitaalkosten!H$5&EofG,'Data G'!$D$5:$IV$6,2,FALSE),FALSE)),0,VLOOKUP(Kapitaalkosten!$A126,'Data G'!$1:$1048576,HLOOKUP(Naam&Kapitaalkosten!H$5&EofG,'Data G'!$D$5:$IV$6,2,FALSE),FALSE))) -> 0 | I126: =IF(EofG="E",IF(ISERROR(VLOOKUP(Kapitaalkosten!$A126,'Data E (oud)'!$1:$1048576,HLOOKUP(Naam&Kapitaalkosten!I$5&EofG,'Data E (oud)'!$D$5:$IV$6,2,FALSE),FALSE)),0,VLOOKUP(Kapitaalkosten!$A126,'Data E (oud)'!$1:$1048576,HLOOKUP(Naam&Kapitaalkosten!I$5&EofG,'Data E (oud)'!$D$5:$IV$6,2,FALSE),FALSE)),IF(ISERROR(VLOOKUP(Kapitaalkosten!$A126,'Data G'!$1:$1048576,HLOOKUP(Naam&Kapitaalkosten!I$5&EofG,'Data G'!$D$5:$IV$6,2,FALSE),FALSE)),0,VLOOKUP(Kapitaalkosten!$A126,'Data G'!$1:$1048576,HLOOKUP(Naam&Kapitaalkosten!I$5&EofG,'Data G'!$D$5:$IV$6,2,FALSE),FALSE))) -> 0 | J126: =J118 -> 0 | K126: =K118 -> 0 | L126: =L118 -> 0
B127: Bijzondere waardeverminderingen | F127: =SUM(F128:F134) -> 0 | G127: 0 | H127: 0 | I127: 0 | J127: 0 | K127: 0 | L127: 0 | M127: 0 | N127: 0 | O127: 0 | P127: 0 | Q127: 0 | R127: 0 | S127: 0 | T127: 0 | U127: 0 | V127: 0 | W127: 0
A128: =RIGHT(B$89,2)&"bwv"&C128 -> 02bwv50 | B128: bijzondere waardevermindering bij afschrijvingstermijn | C128: 50 | F128: =IF(EofG="E",IF(ISERROR(VLOOKUP(Kapitaalkosten!$A128,'Data E (oud)'!$1:$1048576,HLOOKUP(Naam&Kapitaalkosten!F$5&EofG,'Data E (oud)'!$D$5:$IV$6,2,FALSE),FALSE)),0,VLOOKUP(Kapitaalkosten!$A128,'Data E (oud)'!$1:$1048576,HLOOKUP(Naam&Kapitaalkosten!F$5&EofG,'Data E (oud)'!$D$5:$IV$6,2,FALSE),FALSE)),IF(ISERROR(VLOOKUP(Kapitaalkosten!$A128,'Data G'!$1:$1048576,HLOOKUP(Naam&Kapitaalkosten!F$5&EofG,'Data G'!$D$5:$IV$6,2,FALSE),FALSE)),0,VLOOKUP(Kapitaalkosten!$A128,'Data G'!$1:$1048576,HLOOKUP(Naam&Kapitaalkosten!F$5&EofG,'Data G'!$D$5:$IV$6,2,FALSE),FALSE))) -> 0 | G128: =IF(EofG="E",IF(ISERROR(VLOOKUP(Kapitaalkosten!$A128,'Data E (oud)'!$1:$1048576,HLOOKUP(Naam&Kapitaalkosten!G$5&EofG,'Data E (oud)'!$D$5:$IV$6,2,FALSE),FALSE)),0,VLOOKUP(Kapitaalkosten!$A128,'Data E (oud)'!$1:$1048576,HLOOKUP(Naam&Kapitaalkosten!G$5&EofG,'Data E (oud)'!$D$5:$IV$6,2,FALSE),FALSE)),IF(ISERROR(VLOOKUP(Kapitaalkosten!$A128,'Data G'!$1:$1048576,HLOOKUP(Naam&Kapitaalkosten!G$5&EofG,'Data G'!$D$5:$IV$6,2,FALSE),FALSE)),0,VLOOKUP(Kapitaalkosten!$A128,'Data G'!$1:$1048576,HLOOKUP(Naam&Kapitaalkosten!G$5&EofG,'Data G'!$D$5:$IV$6,2,FALSE),FALSE))) -> 0 | H128: =IF(EofG="E",IF(ISERROR(VLOOKUP(Kapitaalkosten!$A128,'Data E (oud)'!$1:$1048576,HLOOKUP(Naam&Kapitaalkosten!H$5&EofG,'Data E (oud)'!$D$5:$IV$6,2,FALSE),FALSE)),0,VLOOKUP(Kapitaalkosten!$A128,'Data E (oud)'!$1:$1048576,HLOOKUP(Naam&Kapitaalkosten!H$5&EofG,'Data E (oud)'!$D$5:$IV$6,2,FALSE),FALSE)),IF(ISERROR(VLOOKUP(Kapitaalkosten!$A128,'Data G'!$1:$1048576,HLOOKUP(Naam&Kapitaalkosten!H$5&EofG,'Data G'!$D$5:$IV$6,2,FALSE),FALSE)),0,VLOOKUP(Kapitaalkosten!$A128,'Data G'!$1:$1048576,HLOOKUP(Naam&Kapitaalkosten!H$5&EofG,'Data G'!$D$5:$IV$6,2,FALSE),FALSE))) -> 0 | I128: =IF(EofG="E",IF(ISERROR(VLOOKUP(Kapitaalkosten!$A128,'Data E (oud)'!$1:$1048576,HLOOKUP(Naam&Kapitaalkosten!I$5&EofG,'Data E (oud)'!$D$5:$IV$6,2,FALSE),FALSE)),0,VLOOKUP(Kapitaalkosten!$A128,'Data E (oud)'!$1:$1048576,HLOOKUP(Naam&Kapitaalkosten!I$5&EofG,'Data E (oud)'!$D$5:$IV$6,2,FALSE),FALSE)),IF(ISERROR(VLOOKUP(Kapitaalkosten!$A128,'Data G'!$1:$1048576,HLOOKUP(Naam&Kapitaalkosten!I$5&EofG,'Data G'!$D$5:$IV$6,2,FALSE),FALSE)),0,VLOOKUP(Kapitaalkosten!$A128,'Data G'!$1:$1048576,HLOOKUP(Naam&Kapitaalkosten!I$5&EofG,'Data G'!$D$5:$IV$6,2,FALSE),FALSE))) -> 0 | J128: =IF(EofG="E",IF(ISERROR(VLOOKUP(Kapitaalkosten!$A128,'Data E (oud)'!$1:$1048576,HLOOKUP(Naam&Kapitaalkosten!J$5&EofG,'Data E (oud)'!$D$5:$IV$6,2,FALSE),FALSE)),0,VLOOKUP(Kapitaalkosten!$A128,'Data E (oud)'!$1:$1048576,HLOOKUP(Naam&Kapitaalkosten!J$5&EofG,'Data E (oud)'!$D$5:$IV$6,2,FALSE),FALSE)),IF(ISERROR(VLOOKUP(Kapitaalkosten!$A128,'Data G'!$1:$1048576,HLOOKUP(Naam&Kapitaalkosten!J$5&EofG,'Data G'!$D$5:$IV$6,2,FALSE),FALSE)),0,VLOOKUP(Kapitaalkosten!$A128,'Data G'!$1:$1048576,HLOOKUP(Naam&Kapitaalkosten!J$5&EofG,'Data G'!$D$5:$IV$6,2,FALSE),FALSE))) -> 0 | K128: =IF(EofG="E",IF(ISERROR(VLOOKUP(Kapitaalkosten!$A128,'Data E (oud)'!$1:$1048576,HLOOKUP(Naam&Kapitaalkosten!K$5&EofG,'Data E (oud)'!$D$5:$IV$6,2,FALSE),FALSE)),0,VLOOKUP(Kapitaalkosten!$A128,'Data E (oud)'!$1:$1048576,HLOOKUP(Naam&Kapitaalkosten!K$5&EofG,'Data E (oud)'!$D$5:$IV$6,2,FALSE),FALSE)),IF(ISERROR(VLOOKUP(Kapitaalkosten!$A128,'Data G'!$1:$1048576,HLOOKUP(Naam&Kapitaalkosten!K$5&EofG,'Data G'!$D$5:$IV$6,2,FALSE),FALSE)),0,VLOOKUP(Kapitaalkosten!$A128,'Data G'!$1:$1048576,HLOOKUP(Naam&Kapitaalkosten!K$5&EofG,'Data G'!$D$5:$IV$6,2,FALSE),FALSE))) -> 0 | L128: =IF(EofG="E",IF(ISERROR(VLOOKUP(Kapitaalkosten!$A128,'Data E (oud)'!$1:$1048576,HLOOKUP(Naam&Kapitaalkosten!L$5&EofG,'Data E (oud)'!$D$5:$IV$6,2,FALSE),FALSE)),0,VLOOKUP(Kapitaalkosten!$A128,'Data E (oud)'!$1:$1048576,HLOOKUP(Naam&Kapitaalkosten!L$5&EofG,'Data E (oud)'!$D$5:$IV$6,2,FALSE),FALSE)),IF(ISERROR(VLOOKUP(Kapitaalkosten!$A128,'Data G'!$1:$1048576,HLOOKUP(Naam&Kapitaalkosten!L$5&EofG,'Data G'!$D$5:$IV$6,2,FALSE),FALSE)),0,VLOOKUP(Kapitaalkosten!$A128,'Data G'!$1:$1048576,HLOOKUP(Naam&Kapitaalkosten!L$5&EofG,'Data G'!$D$5:$IV$6,2,FALSE),FALSE))) -> 0
A129: =RIGHT(B$89,2)&"bwv"&C129 -> 02bwv40 | B129: bijzondere waardevermindering bij afschrijvingstermijn | C129: 40 | F129: =IF(EofG="E",IF(ISERROR(VLOOKUP(Kapitaalkosten!$A129,'Data E (oud)'!$1:$1048576,HLOOKUP(Naam&Kapitaalkosten!F$5&EofG,'Data E (oud)'!$D$5:$IV$6,2,FALSE),FALSE)),0,VLOOKUP(Kapitaalkosten!$A129,'Data E (oud)'!$1:$1048576,HLOOKUP(Naam&Kapitaalkosten!F$5&EofG,'Data E (oud)'!$D$5:$IV$6,2,FALSE),FALSE)),IF(ISERROR(VLOOKUP(Kapitaalkosten!$A129,'Data G'!$1:$1048576,HLOOKUP(Naam&Kapitaalkosten!F$5&EofG,'Data G'!$D$5:$IV$6,2,FALSE),FALSE)),0,VLOOKUP(Kapitaalkosten!$A129,'Data G'!$1:$1048576,HLOOKUP(Naam&Kapitaalkosten!F$5&EofG,'Data G'!$D$5:$IV$6,2,FALSE),FALSE))) -> 0 | G129: =IF(EofG="E",IF(ISERROR(VLOOKUP(Kapitaalkosten!$A129,'Data E (oud)'!$1:$1048576,HLOOKUP(Naam&Kapitaalkosten!G$5&EofG,'Data E (oud)'!$D$5:$IV$6,2,FALSE),FALSE)),0,VLOOKUP(Kapitaalkosten!$A129,'Data E (oud)'!$1:$1048576,HLOOKUP(Naam&Kapitaalkosten!G$5&EofG,'Data E (oud)'!$D$5:$IV$6,2,FALSE),FALSE)),IF(ISERROR(VLOOKUP(Kapitaalkosten!$A129,'Data G'!$1:$1048576,HLOOKUP(Naam&Kapitaalkosten!G$5&EofG,'Data G'!$D$5:$IV$6,2,FALSE),FALSE)),0,VLOOKUP(Kapitaalkosten!$A129,'Data G'!$1:$1048576,HLOOKUP(Naam&Kapitaalkosten!G$5&EofG,'Data G'!$D$5:$IV$6,2,FALSE),FALSE))) -> 0 | H129: =IF(EofG="E",IF(ISERROR(VLOOKUP(Kapitaalkosten!$A129,'Data E (oud)'!$1:$1048576,HLOOKUP(Naam&Kapitaalkosten!H$5&EofG,'Data E (oud)'!$D$5:$IV$6,2,FALSE),FALSE)),0,VLOOKUP(Kapitaalkosten!$A129,'Data E (oud)'!$1:$1048576,HLOOKUP(Naam&Kapitaalkosten!H$5&EofG,'Data E (oud)'!$D$5:$IV$6,2,FALSE),FALSE)),IF(ISERROR(VLOOKUP(Kapitaalkosten!$A129,'Data G'!$1:$1048576,HLOOKUP(Naam&Kapitaalkosten!H$5&EofG,'Data G'!$D$5:$IV$6,2,FALSE),FALSE)),0,VLOOKUP(Kapitaalkosten!$A129,'Data G'!$1:$1048576,HLOOKUP(Naam&Kapitaalkosten!H$5&EofG,'Data G'!$D$5:$IV$6,2,FALSE),FALSE))) -> 0 | I129: =IF(EofG="E",IF(ISERROR(VLOOKUP(Kapitaalkosten!$A129,'Data E (oud)'!$1:$1048576,HLOOKUP(Naam&Kapitaalkosten!I$5&EofG,'Data E (oud)'!$D$5:$IV$6,2,FALSE),FALSE)),0,VLOOKUP(Kapitaalkosten!$A129,'Data E (oud)'!$1:$1048576,HLOOKUP(Naam&Kapitaalkosten!I$5&EofG,'Data E (oud)'!$D$5:$IV$6,2,FALSE),FALSE)),IF(ISERROR(VLOOKUP(Kapitaalkosten!$A129,'Data G'!$1:$1048576,HLOOKUP(Naam&Kapitaalkosten!I$5&EofG,'Data G'!$D$5:$IV$6,2,FALSE),FALSE)),0,VLOOKUP(Kapitaalkosten!$A129,'Data G'!$1:$1048576,HLOOKUP(Naam&Kapitaalkosten!I$5&EofG,'Data G'!$D$5:$IV$6,2,FALSE),FALSE))) -> 0 | J129: =IF(EofG="E",IF(ISERROR(VLOOKUP(Kapitaalkosten!$A129,'Data E (oud)'!$1:$1048576,HLOOKUP(Naam&Kapitaalkosten!J$5&EofG,'Data E (oud)'!$D$5:$IV$6,2,FALSE),FALSE)),0,VLOOKUP(Kapitaalkosten!$A129,'Data E (oud)'!$1:$1048576,HLOOKUP(Naam&Kapitaalkosten!J$5&EofG,'Data E (oud)'!$D$5:$IV$6,2,FALSE),FALSE)),IF(ISERROR(VLOOKUP(Kapitaalkosten!$A129,'Data G'!$1:$1048576,HLOOKUP(Naam&Kapitaalkosten!J$5&EofG,'Data G'!$D$5:$IV$6,2,FALSE),FALSE)),0,VLOOKUP(Kapitaalkosten!$A129,'Data G'!$1:$1048576,HLOOKUP(Naam&Kapitaalkosten!J$5&EofG,'Data G'!$D$5:$IV$6,2,FALSE),FALSE))) -> 0 | K129: =IF(EofG="E",IF(ISERROR(VLOOKUP(Kapitaalkosten!$A129,'Data E (oud)'!$1:$1048576,HLOOKUP(Naam&Kapitaalkosten!K$5&EofG,'Data E (oud)'!$D$5:$IV$6,2,FALSE),FALSE)),0,VLOOKUP(Kapitaalkosten!$A129,'Data E (oud)'!$1:$1048576,HLOOKUP(Naam&Kapitaalkosten!K$5&EofG,'Data E (oud)'!$D$5:$IV$6,2,FALSE),FALSE)),IF(ISERROR(VLOOKUP(Kapitaalkosten!$A129,'Data G'!$1:$1048576,HLOOKUP(Naam&Kapitaalkosten!K$5&EofG,'Data G'!$D$5:$IV$6,2,FALSE),FALSE)),0,VLOOKUP(Kapitaalkosten!$A129,'Data G'!$1:$1048576,HLOOKUP(Naam&Kapitaalkosten!K$5&EofG,'Data G'!$D$5:$IV$6,2,FALSE),FALSE))) -> 0 | L129: =IF(EofG="E",IF(ISERROR(VLOOKUP(Kapitaalkosten!$A129,'Data E (oud)'!$1:$1048576,HLOOKUP(Naam&Kapitaalkosten!L$5&EofG,'Data E (oud)'!$D$5:$IV$6,2,FALSE),FALSE)),0,VLOOKUP(Kapitaalkosten!$A129,'Data E (oud)'!$1:$1048576,HLOOKUP(Naam&Kapitaalkosten!L$5&EofG,'Data E (oud)'!$D$5:$IV$6,2,FALSE),FALSE)),IF(ISERROR(VLOOKUP(Kapitaalkosten!$A129,'Data G'!$1:$1048576,HLOOKUP(Naam&Kapitaalkosten!L$5&EofG,'Data G'!$D$5:$IV$6,2,FALSE),FALSE)),0,VLOOKUP(Kapitaalkosten!$A129,'Data G'!$1:$1048576,HLOOKUP(Naam&Kapitaalkosten!L$5&EofG,'Data G'!$D$5:$IV$6,2,FALSE),FALSE))) -> 0
A130: 02bwv30 | B130: bijzondere waardevermindering bij afschrijvingstermijn | C130: 30 | F130: =IF(EofG="E",IF(ISERROR(VLOOKUP(Kapitaalkosten!$A130,'Data E (oud)'!$1:$1048576,HLOOKUP(Naam&Kapitaalkosten!F$5&EofG,'Data E (oud)'!$D$5:$IV$6,2,FALSE),FALSE)),0,VLOOKUP(Kapitaalkosten!$A130,'Data E (oud)'!$1:$1048576,HLOOKUP(Naam&Kapitaalkosten!F$5&EofG,'Data E (oud)'!$D$5:$IV$6,2,FALSE),FALSE)),IF(ISERROR(VLOOKUP(Kapitaalkosten!$A130,'Data G'!$1:$1048576,HLOOKUP(Naam&Kapitaalkosten!F$5&EofG,'Data G'!$D$5:$IV$6,2,FALSE),FALSE)),0,VLOOKUP(Kapitaalkosten!$A130,'Data G'!$1:$1048576,HLOOKUP(Naam&Kapitaalkosten!F$5&EofG,'Data G'!$D$5:$IV$6,2,FALSE),FALSE))) -> 0 | G130: =IF(EofG="E",IF(ISERROR(VLOOKUP(Kapitaalkosten!$A130,'Data E (oud)'!$1:$1048576,HLOOKUP(Naam&Kapitaalkosten!G$5&EofG,'Data E (oud)'!$D$5:$IV$6,2,FALSE),FALSE)),0,VLOOKUP(Kapitaalkosten!$A130,'Data E (oud)'!$1:$1048576,HLOOKUP(Naam&Kapitaalkosten!G$5&EofG,'Data E (oud)'!$D$5:$IV$6,2,FALSE),FALSE)),IF(ISERROR(VLOOKUP(Kapitaalkosten!$A130,'Data G'!$1:$1048576,HLOOKUP(Naam&Kapitaalkosten!G$5&EofG,'Data G'!$D$5:$IV$6,2,FALSE),FALSE)),0,VLOOKUP(Kapitaalkosten!$A130,'Data G'!$1:$1048576,HLOOKUP(Naam&Kapitaalkosten!G$5&EofG,'Data G'!$D$5:$IV$6,2,FALSE),FALSE))) -> 0 | H130: =IF(EofG="E",IF(ISERROR(VLOOKUP(Kapitaalkosten!$A130,'Data E (oud)'!$1:$1048576,HLOOKUP(Naam&Kapitaalkosten!H$5&EofG,'Data E (oud)'!$D$5:$IV$6,2,FALSE),FALSE)),0,VLOOKUP(Kapitaalkosten!$A130,'Data E (oud)'!$1:$1048576,HLOOKUP(Naam&Kapitaalkosten!H$5&EofG,'Data E (oud)'!$D$5:$IV$6,2,FALSE),FALSE)),IF(ISERROR(VLOOKUP(Kapitaalkosten!$A130,'Data G'!$1:$1048576,HLOOKUP(Naam&Kapitaalkosten!H$5&EofG,'Data G'!$D$5:$IV$6,2,FALSE),FALSE)),0,VLOOKUP(Kapitaalkosten!$A130,'Data G'!$1:$1048576,HLOOKUP(Naam&Kapitaalkosten!H$5&EofG,'Data G'!$D$5:$IV$6,2,FALSE),FALSE))) -> 0 | I130: =IF(EofG="E",IF(ISERROR(VLOOKUP(Kapitaalkosten!$A130,'Data E (oud)'!$1:$1048576,HLOOKUP(Naam&Kapitaalkosten!I$5&EofG,'Data E (oud)'!$D$5:$IV$6,2,FALSE),FALSE)),0,VLOOKUP(Kapitaalkosten!$A130,'Data E (oud)'!$1:$1048576,HLOOKUP(Naam&Kapitaalkosten!I$5&EofG,'Data E (oud)'!$D$5:$IV$6,2,FALSE),FALSE)),IF(ISERROR(VLOOKUP(Kapitaalkosten!$A130,'Data G'!$1:$1048576,HLOOKUP(Naam&Kapitaalkosten!I$5&EofG,'Data G'!$D$5:$IV$6,2,FALSE),FALSE)),0,VLOOKUP(Kapitaalkosten!$A130,'Data G'!$1:$1048576,HLOOKUP(Naam&Kapitaalkosten!I$5&EofG,'Data G'!$D$5:$IV$6,2,FALSE),FALSE))) -> 0 | J130: =IF(EofG="E",IF(ISERROR(VLOOKUP(Kapitaalkosten!$A130,'Data E (oud)'!$1:$1048576,HLOOKUP(Naam&Kapitaalkosten!J$5&EofG,'Data E (oud)'!$D$5:$IV$6,2,FALSE),FALSE)),0,VLOOKUP(Kapitaalkosten!$A130,'Data E (oud)'!$1:$1048576,HLOOKUP(Naam&Kapitaalkosten!J$5&EofG,'Data E (oud)'!$D$5:$IV$6,2,FALSE),FALSE)),IF(ISERROR(VLOOKUP(Kapitaalkosten!$A130,'Data G'!$1:$1048576,HLOOKUP(Naam&Kapitaalkosten!J$5&EofG,'Data G'!$D$5:$IV$6,2,FALSE),FALSE)),0,VLOOKUP(Kapitaalkosten!$A130,'Data G'!$1:$1048576,HLOOKUP(Naam&Kapitaalkosten!J$5&EofG,'Data G'!$D$5:$IV$6,2,FALSE),FALSE))) -> 0 | K130: =IF(EofG="E",IF(ISERROR(VLOOKUP(Kapitaalkosten!$A130,'Data E (oud)'!$1:$1048576,HLOOKUP(Naam&Kapitaalkosten!K$5&EofG,'Data E (oud)'!$D$5:$IV$6,2,FALSE),FALSE)),0,VLOOKUP(Kapitaalkosten!$A130,'Data E (oud)'!$1:$1048576,HLOOKUP(Naam&Kapitaalkosten!K$5&EofG,'Data E (oud)'!$D$5:$IV$6,2,FALSE),FALSE)),IF(ISERROR(VLOOKUP(Kapitaalkosten!$A130,'Data G'!$1:$1048576,HLOOKUP(Naam&Kapitaalkosten!K$5&EofG,'Data G'!$D$5:$IV$6,2,FALSE),FALSE)),0,VLOOKUP(Kapitaalkosten!$A130,'Data G'!$1:$1048576,HLOOKUP(Naam&Kapitaalkosten!K$5&EofG,'Data G'!$D$5:$IV$6,2,FALSE),FALSE))) -> 0 | L130: =IF(EofG="E",IF(ISERROR(VLOOKUP(Kapitaalkosten!$A130,'Data E (oud)'!$1:$1048576,HLOOKUP(Naam&Kapitaalkosten!L$5&EofG,'Data E (oud)'!$D$5:$IV$6,2,FALSE),FALSE)),0,VLOOKUP(Kapitaalkosten!$A130,'Data E (oud)'!$1:$1048576,HLOOKUP(Naam&Kapitaalkosten!L$5&EofG,'Data E (oud)'!$D$5:$IV$6,2,FALSE),FALSE)),IF(ISERROR(VLOOKUP(Kapitaalkosten!$A130,'Data G'!$1:$1048576,HLOOKUP(Naam&Kapitaalkosten!L$5&EofG,'Data G'!$D$5:$IV$6,2,FALSE),FALSE)),0,VLOOKUP(Kapitaalkosten!$A130,'Data G'!$1:$1048576,HLOOKUP(Naam&Kapitaalkosten!L$5&EofG,'Data G'!$D$5:$IV$6,2,FALSE),FALSE))) -> 0
A131: 02bwv25 | B131: bijzondere waardevermindering bij afschrijvingstermijn | C131: 25 | F131: =IF(EofG="E",IF(ISERROR(VLOOKUP(Kapitaalkosten!$A131,'Data E (oud)'!$1:$1048576,HLOOKUP(Naam&Kapitaalkosten!F$5&EofG,'Data E (oud)'!$D$5:$IV$6,2,FALSE),FALSE)),0,VLOOKUP(Kapitaalkosten!$A131,'Data E (oud)'!$1:$1048576,HLOOKUP(Naam&Kapitaalkosten!F$5&EofG,'Data E (oud)'!$D$5:$IV$6,2,FALSE),FALSE)),IF(ISERROR(VLOOKUP(Kapitaalkosten!$A131,'Data G'!$1:$1048576,HLOOKUP(Naam&Kapitaalkosten!F$5&EofG,'Data G'!$D$5:$IV$6,2,FALSE),FALSE)),0,VLOOKUP(Kapitaalkosten!$A131,'Data G'!$1:$1048576,HLOOKUP(Naam&Kapitaalkosten!F$5&EofG,'Data G'!$D$5:$IV$6,2,FALSE),FALSE))) -> 0 | G131: =IF(EofG="E",IF(ISERROR(VLOOKUP(Kapitaalkosten!$A131,'Data E (oud)'!$1:$1048576,HLOOKUP(Naam&Kapitaalkosten!G$5&EofG,'Data E (oud)'!$D$5:$IV$6,2,FALSE),FALSE)),0,VLOOKUP(Kapitaalkosten!$A131,'Data E (oud)'!$1:$1048576,HLOOKUP(Naam&Kapitaalkosten!G$5&EofG,'Data E (oud)'!$D$5:$IV$6,2,FALSE),FALSE)),IF(ISERROR(VLOOKUP(Kapitaalkosten!$A131,'Data G'!$1:$1048576,HLOOKUP(Naam&Kapitaalkosten!G$5&EofG,'Data G'!$D$5:$IV$6,2,FALSE),FALSE)),0,VLOOKUP(Kapitaalkosten!$A131,'Data G'!$1:$1048576,HLOOKUP(Naam&Kapitaalkosten!G$5&EofG,'Data G'!$D$5:$IV$6,2,FALSE),FALSE))) -> 0 | H131: =IF(EofG="E",IF(ISERROR(VLOOKUP(Kapitaalkosten!$A131,'Data E (oud)'!$1:$1048576,HLOOKUP(Naam&Kapitaalkosten!H$5&EofG,'Data E (oud)'!$D$5:$IV$6,2,FALSE),FALSE)),0,VLOOKUP(Kapitaalkosten!$A131,'Data E (oud)'!$1:$1048576,HLOOKUP(Naam&Kapitaalkosten!H$5&EofG,'Data E (oud)'!$D$5:$IV$6,2,FALSE),FALSE)),IF(ISERROR(VLOOKUP(Kapitaalkosten!$A131,'Data G'!$1:$1048576,HLOOKUP(Naam&Kapitaalkosten!H$5&EofG,'Data G'!$D$5:$IV$6,2,FALSE),FALSE)),0,VLOOKUP(Kapitaalkosten!$A131,'Data G'!$1:$1048576,HLOOKUP(Naam&Kapitaalkosten!H$5&EofG,'Data G'!$D$5:$IV$6,2,FALSE),FALSE))) -> 0 | I131: =IF(EofG="E",IF(ISERROR(VLOOKUP(Kapitaalkosten!$A131,'Data E (oud)'!$1:$1048576,HLOOKUP(Naam&Kapitaalkosten!I$5&EofG,'Data E (oud)'!$D$5:$IV$6,2,FALSE),FALSE)),0,VLOOKUP(Kapitaalkosten!$A131,'Data E (oud)'!$1:$1048576,HLOOKUP(Naam&Kapitaalkosten!I$5&EofG,'Data E (oud)'!$D$5:$IV$6,2,FALSE),FALSE)),IF(ISERROR(VLOOKUP(Kapitaalkosten!$A131,'Data G'!$1:$1048576,HLOOKUP(Naam&Kapitaalkosten!I$5&EofG,'Data G'!$D$5:$IV$6,2,FALSE),FALSE)),0,VLOOKUP(Kapitaalkosten!$A131,'Data G'!$1:$1048576,HLOOKUP(Naam&Kapitaalkosten!I$5&EofG,'Data G'!$D$5:$IV$6,2,FALSE),FALSE))) -> 0 | J131: =IF(EofG="E",IF(ISERROR(VLOOKUP(Kapitaalkosten!$A131,'Data E (oud)'!$1:$1048576,HLOOKUP(Naam&Kapitaalkosten!J$5&EofG,'Data E (oud)'!$D$5:$IV$6,2,FALSE),FALSE)),0,VLOOKUP(Kapitaalkosten!$A131,'Data E (oud)'!$1:$1048576,HLOOKUP(Naam&Kapitaalkosten!J$5&EofG,'Data E (oud)'!$D$5:$IV$6,2,FALSE),FALSE)),IF(ISERROR(VLOOKUP(Kapitaalkosten!$A131,'Data G'!$1:$1048576,HLOOKUP(Naam&Kapitaalkosten!J$5&EofG,'Data G'!$D$5:$IV$6,2,FALSE),FALSE)),0,VLOOKUP(Kapitaalkosten!$A131,'Data G'!$1:$1048576,HLOOKUP(Naam&Kapitaalkosten!J$5&EofG,'Data G'!$D$5:$IV$6,2,FALSE),FALSE))) -> 0 | K131: =IF(EofG="E",IF(ISERROR(VLOOKUP(Kapitaalkosten!$A131,'Data E (oud)'!$1:$1048576,HLOOKUP(Naam&Kapitaalkosten!K$5&EofG,'Data E (oud)'!$D$5:$IV$6,2,FALSE),FALSE)),0,VLOOKUP(Kapitaalkosten!$A131,'Data E (oud)'!$1:$1048576,HLOOKUP(Naam&Kapitaalkosten!K$5&EofG,'Data E (oud)'!$D$5:$IV$6,2,FALSE),FALSE)),IF(ISERROR(VLOOKUP(Kapitaalkosten!$A131,'Data G'!$1:$1048576,HLOOKUP(Naam&Kapitaalkosten!K$5&EofG,'Data G'!$D$5:$IV$6,2,FALSE),FALSE)),0,VLOOKUP(Kapitaalkosten!$A131,'Data G'!$1:$1048576,HLOOKUP(Naam&Kapitaalkosten!K$5&EofG,'Data G'!$D$5:$IV$6,2,FALSE),FALSE))) -> 0 | L131: =IF(EofG="E",IF(ISERROR(VLOOKUP(Kapitaalkosten!$A131,'Data E (oud)'!$1:$1048576,HLOOKUP(Naam&Kapitaalkosten!L$5&EofG,'Data E (oud)'!$D$5:$IV$6,2,FALSE),FALSE)),0,VLOOKUP(Kapitaalkosten!$A131,'Data E (oud)'!$1:$1048576,HLOOKUP(Naam&Kapitaalkosten!L$5&EofG,'Data E (oud)'!$D$5:$IV$6,2,FALSE),FALSE)),IF(ISERROR(VLOOKUP(Kapitaalkosten!$A131,'Data G'!$1:$1048576,HLOOKUP(Naam&Kapitaalkosten!L$5&EofG,'Data G'!$D$5:$IV$6,2,FALSE),FALSE)),0,VLOOKUP(Kapitaalkosten!$A131,'Data G'!$1:$1048576,HLOOKUP(Naam&Kapitaalkosten!L$5&EofG,'Data G'!$D$5:$IV$6,2,FALSE),FALSE))) -> 0
A132: 02bwv10 | B132: bijzondere waardevermindering bij afschrijvingstermijn | C132: 10 | F132: =IF(EofG="E",IF(ISERROR(VLOOKUP(Kapitaalkosten!$A132,'Data E (oud)'!$1:$1048576,HLOOKUP(Naam&Kapitaalkosten!F$5&EofG,'Data E (oud)'!$D$5:$IV$6,2,FALSE),FALSE)),0,VLOOKUP(Kapitaalkosten!$A132,'Data E (oud)'!$1:$1048576,HLOOKUP(Naam&Kapitaalkosten!F$5&EofG,'Data E (oud)'!$D$5:$IV$6,2,FALSE),FALSE)),IF(ISERROR(VLOOKUP(Kapitaalkosten!$A132,'Data G'!$1:$1048576,HLOOKUP(Naam&Kapitaalkosten!F$5&EofG,'Data G'!$D$5:$IV$6,2,FALSE),FALSE)),0,VLOOKUP(Kapitaalkosten!$A132,'Data G'!$1:$1048576,HLOOKUP(Naam&Kapitaalkosten!F$5&EofG,'Data G'!$D$5:$IV$6,2,FALSE),FALSE))) -> 0 | G132: =IF(EofG="E",IF(ISERROR(VLOOKUP(Kapitaalkosten!$A132,'Data E (oud)'!$1:$1048576,HLOOKUP(Naam&Kapitaalkosten!G$5&EofG,'Data E (oud)'!$D$5:$IV$6,2,FALSE),FALSE)),0,VLOOKUP(Kapitaalkosten!$A132,'Data E (oud)'!$1:$1048576,HLOOKUP(Naam&Kapitaalkosten!G$5&EofG,'Data E (oud)'!$D$5:$IV$6,2,FALSE),FALSE)),IF(ISERROR(VLOOKUP(Kapitaalkosten!$A132,'Data G'!$1:$1048576,HLOOKUP(Naam&Kapitaalkosten!G$5&EofG,'Data G'!$D$5:$IV$6,2,FALSE),FALSE)),0,VLOOKUP(Kapitaalkosten!$A132,'Data G'!$1:$1048576,HLOOKUP(Naam&Kapitaalkosten!G$5&EofG,'Data G'!$D$5:$IV$6,2,FALSE),FALSE))) -> 0 | H132: =IF(EofG="E",IF(ISERROR(VLOOKUP(Kapitaalkosten!$A132,'Data E (oud)'!$1:$1048576,HLOOKUP(Naam&Kapitaalkosten!H$5&EofG,'Data E (oud)'!$D$5:$IV$6,2,FALSE),FALSE)),0,VLOOKUP(Kapitaalkosten!$A132,'Data E (oud)'!$1:$1048576,HLOOKUP(Naam&Kapitaalkosten!H$5&EofG,'Data E (oud)'!$D$5:$IV$6,2,FALSE),FALSE)),IF(ISERROR(VLOOKUP(Kapitaalkosten!$A132,'Data G'!$1:$1048576,HLOOKUP(Naam&Kapitaalkosten!H$5&EofG,'Data G'!$D$5:$IV$6,2,FALSE),FALSE)),0,VLOOKUP(Kapitaalkosten!$A132,'Data G'!$1:$1048576,HLOOKUP(Naam&Kapitaalkosten!H$5&EofG,'Data G'!$D$5:$IV$6,2,FALSE),FALSE))) -> 0 | I132: =IF(EofG="E",IF(ISERROR(VLOOKUP(Kapitaalkosten!$A132,'Data E (oud)'!$1:$1048576,HLOOKUP(Naam&Kapitaalkosten!I$5&EofG,'Data E (oud)'!$D$5:$IV$6,2,FALSE),FALSE)),0,VLOOKUP(Kapitaalkosten!$A132,'Data E (oud)'!$1:$1048576,HLOOKUP(Naam&Kapitaalkosten!I$5&EofG,'Data E (oud)'!$D$5:$IV$6,2,FALSE),FALSE)),IF(ISERROR(VLOOKUP(Kapitaalkosten!$A132,'Data G'!$1:$1048576,HLOOKUP(Naam&Kapitaalkosten!I$5&EofG,'Data G'!$D$5:$IV$6,2,FALSE),FALSE)),0,VLOOKUP(Kapitaalkosten!$A132,'Data G'!$1:$1048576,HLOOKUP(Naam&Kapitaalkosten!I$5&EofG,'Data G'!$D$5:$IV$6,2,FALSE),FALSE))) -> 0 | J132: =IF(EofG="E",IF(ISERROR(VLOOKUP(Kapitaalkosten!$A132,'Data E (oud)'!$1:$1048576,HLOOKUP(Naam&Kapitaalkosten!J$5&EofG,'Data E (oud)'!$D$5:$IV$6,2,FALSE),FALSE)),0,VLOOKUP(Kapitaalkosten!$A132,'Data E (oud)'!$1:$1048576,HLOOKUP(Naam&Kapitaalkosten!J$5&EofG,'Data E (oud)'!$D$5:$IV$6,2,FALSE),FALSE)),IF(ISERROR(VLOOKUP(Kapitaalkosten!$A132,'Data G'!$1:$1048576,HLOOKUP(Naam&Kapitaalkosten!J$5&EofG,'Data G'!$D$5:$IV$6,2,FALSE),FALSE)),0,VLOOKUP(Kapitaalkosten!$A132,'Data G'!$1:$1048576,HLOOKUP(Naam&Kapitaalkosten!J$5&EofG,'Data G'!$D$5:$IV$6,2,FALSE),FALSE))) -> 0 | K132: =IF(EofG="E",IF(ISERROR(VLOOKUP(Kapitaalkosten!$A132,'Data E (oud)'!$1:$1048576,HLOOKUP(Naam&Kapitaalkosten!K$5&EofG,'Data E (oud)'!$D$5:$IV$6,2,FALSE),FALSE)),0,VLOOKUP(Kapitaalkosten!$A132,'Data E (oud)'!$1:$1048576,HLOOKUP(Naam&Kapitaalkosten!K$5&EofG,'Data E (oud)'!$D$5:$IV$6,2,FALSE),FALSE)),IF(ISERROR(VLOOKUP(Kapitaalkosten!$A132,'Data G'!$1:$1048576,HLOOKUP(Naam&Kapitaalkosten!K$5&EofG,'Data G'!$D$5:$IV$6,2,FALSE),FALSE)),0,VLOOKUP(Kapitaalkosten!$A132,'Data G'!$1:$1048576,HLOOKUP(Naam&Kapitaalkosten!K$5&EofG,'Data G'!$D$5:$IV$6,2,FALSE),FALSE))) -> 0 | L132: =IF(EofG="E",IF(ISERROR(VLOOKUP(Kapitaalkosten!$A132,'Data E (oud)'!$1:$1048576,HLOOKUP(Naam&Kapitaalkosten!L$5&EofG,'Data E (oud)'!$D$5:$IV$6,2,FALSE),FALSE)),0,VLOOKUP(Kapitaalkosten!$A132,'Data E (oud)'!$1:$1048576,HLOOKUP(Naam&Kapitaalkosten!L$5&EofG,'Data E (oud)'!$D$5:$IV$6,2,FALSE),FALSE)),IF(ISERROR(VLOOKUP(Kapitaalkosten!$A132,'Data G'!$1:$1048576,HLOOKUP(Naam&Kapitaalkosten!L$5&EofG,'Data G'!$D$5:$IV$6,2,FALSE),FALSE)),0,VLOOKUP(Kapitaalkosten!$A132,'Data G'!$1:$1048576,HLOOKUP(Naam&Kapitaalkosten!L$5&EofG,'Data G'!$D$5:$IV$6,2,FALSE),FALSE))) -> 0
A133: 02bwv5 | B133: bijzondere waardevermindering bij afschrijvingstermijn | C133: 5 | F133: =IF(EofG="E",IF(ISERROR(VLOOKUP(Kapitaalkosten!$A133,'Data E (oud)'!$1:$1048576,HLOOKUP(Naam&Kapitaalkosten!F$5&EofG,'Data E (oud)'!$D$5:$IV$6,2,FALSE),FALSE)),0,VLOOKUP(Kapitaalkosten!$A133,'Data E (oud)'!$1:$1048576,HLOOKUP(Naam&Kapitaalkosten!F$5&EofG,'Data E (oud)'!$D$5:$IV$6,2,FALSE),FALSE)),IF(ISERROR(VLOOKUP(Kapitaalkosten!$A133,'Data G'!$1:$1048576,HLOOKUP(Naam&Kapitaalkosten!F$5&EofG,'Data G'!$D$5:$IV$6,2,FALSE),FALSE)),0,VLOOKUP(Kapitaalkosten!$A133,'Data G'!$1:$1048576,HLOOKUP(Naam&Kapitaalkosten!F$5&EofG,'Data G'!$D$5:$IV$6,2,FALSE),FALSE))) -> 0 | G133: =IF(EofG="E",IF(ISERROR(VLOOKUP(Kapitaalkosten!$A133,'Data E (oud)'!$1:$1048576,HLOOKUP(Naam&Kapitaalkosten!G$5&EofG,'Data E (oud)'!$D$5:$IV$6,2,FALSE),FALSE)),0,VLOOKUP(Kapitaalkosten!$A133,'Data E (oud)'!$1:$1048576,HLOOKUP(Naam&Kapitaalkosten!G$5&EofG,'Data E (oud)'!$D$5:$IV$6,2,FALSE),FALSE)),IF(ISERROR(VLOOKUP(Kapitaalkosten!$A133,'Data G'!$1:$1048576,HLOOKUP(Naam&Kapitaalkosten!G$5&EofG,'Data G'!$D$5:$IV$6,2,FALSE),FALSE)),0,VLOOKUP(Kapitaalkosten!$A133,'Data G'!$1:$1048576,HLOOKUP(Naam&Kapitaalkosten!G$5&EofG,'Data G'!$D$5:$IV$6,2,FALSE),FALSE))) -> 0 | H133: =IF(EofG="E",IF(ISERROR(VLOOKUP(Kapitaalkosten!$A133,'Data E (oud)'!$1:$1048576,HLOOKUP(Naam&Kapitaalkosten!H$5&EofG,'Data E (oud)'!$D$5:$IV$6,2,FALSE),FALSE)),0,VLOOKUP(Kapitaalkosten!$A133,'Data E (oud)'!$1:$1048576,HLOOKUP(Naam&Kapitaalkosten!H$5&EofG,'Data E (oud)'!$D$5:$IV$6,2,FALSE),FALSE)),IF(ISERROR(VLOOKUP(Kapitaalkosten!$A133,'Data G'!$1:$1048576,HLOOKUP(Naam&Kapitaalkosten!H$5&EofG,'Data G'!$D$5:$IV$6,2,FALSE),FALSE)),0,VLOOKUP(Kapitaalkosten!$A133,'Data G'!$1:$1048576,HLOOKUP(Naam&Kapitaalkosten!H$5&EofG,'Data G'!$D$5:$IV$6,2,FALSE),FALSE))) -> 0 | I133: =IF(EofG="E",IF(ISERROR(VLOOKUP(Kapitaalkosten!$A133,'Data E (oud)'!$1:$1048576,HLOOKUP(Naam&Kapitaalkosten!I$5&EofG,'Data E (oud)'!$D$5:$IV$6,2,FALSE),FALSE)),0,VLOOKUP(Kapitaalkosten!$A133,'Data E (oud)'!$1:$1048576,HLOOKUP(Naam&Kapitaalkosten!I$5&EofG,'Data E (oud)'!$D$5:$IV$6,2,FALSE),FALSE)),IF(ISERROR(VLOOKUP(Kapitaalkosten!$A133,'Data G'!$1:$1048576,HLOOKUP(Naam&Kapitaalkosten!I$5&EofG,'Data G'!$D$5:$IV$6,2,FALSE),FALSE)),0,VLOOKUP(Kapitaalkosten!$A133,'Data G'!$1:$1048576,HLOOKUP(Naam&Kapitaalkosten!I$5&EofG,'Data G'!$D$5:$IV$6,2,FALSE),FALSE))) -> 0 | J133: =IF(EofG="E",IF(ISERROR(VLOOKUP(Kapitaalkosten!$A133,'Data E (oud)'!$1:$1048576,HLOOKUP(Naam&Kapitaalkosten!J$5&EofG,'Data E (oud)'!$D$5:$IV$6,2,FALSE),FALSE)),0,VLOOKUP(Kapitaalkosten!$A133,'Data E (oud)'!$1:$1048576,HLOOKUP(Naam&Kapitaalkosten!J$5&EofG,'Data E (oud)'!$D$5:$IV$6,2,FALSE),FALSE)),IF(ISERROR(VLOOKUP(Kapitaalkosten!$A133,'Data G'!$1:$1048576,HLOOKUP(Naam&Kapitaalkosten!J$5&EofG,'Data G'!$D$5:$IV$6,2,FALSE),FALSE)),0,VLOOKUP(Kapitaalkosten!$A133,'Data G'!$1:$1048576,HLOOKUP(Naam&Kapitaalkosten!J$5&EofG,'Data G'!$D$5:$IV$6,2,FALSE),FALSE))) -> 0 | K133: =IF(EofG="E",IF(ISERROR(VLOOKUP(Kapitaalkosten!$A133,'Data E (oud)'!$1:$1048576,HLOOKUP(Naam&Kapitaalkosten!K$5&EofG,'Data E (oud)'!$D$5:$IV$6,2,FALSE),FALSE)),0,VLOOKUP(Kapitaalkosten!$A133,'Data E (oud)'!$1:$1048576,HLOOKUP(Naam&Kapitaalkosten!K$5&EofG,'Data E (oud)'!$D$5:$IV$6,2,FALSE),FALSE)),IF(ISERROR(VLOOKUP(Kapitaalkosten!$A133,'Data G'!$1:$1048576,HLOOKUP(Naam&Kapitaalkosten!K$5&EofG,'Data G'!$D$5:$IV$6,2,FALSE),FALSE)),0,VLOOKUP(Kapitaalkosten!$A133,'Data G'!$1:$1048576,HLOOKUP(Naam&Kapitaalkosten!K$5&EofG,'Data G'!$D$5:$IV$6,2,FALSE),FALSE))) -> 0 | L133: =IF(EofG="E",IF(ISERROR(VLOOKUP(Kapitaalkosten!$A133,'Data E (oud)'!$1:$1048576,HLOOKUP(Naam&Kapitaalkosten!L$5&EofG,'Data E (oud)'!$D$5:$IV$6,2,FALSE),FALSE)),0,VLOOKUP(Kapitaalkosten!$A133,'Data E (oud)'!$1:$1048576,HLOOKUP(Naam&Kapitaalkosten!L$5&EofG,'Data E (oud)'!$D$5:$IV$6,2,FALSE),FALSE)),IF(ISERROR(VLOOKUP(Kapitaalkosten!$A133,'Data G'!$1:$1048576,HLOOKUP(Naam&Kapitaalkosten!L$5&EofG,'Data G'!$D$5:$IV$6,2,FALSE),FALSE)),0,VLOOKUP(Kapitaalkosten!$A133,'Data G'!$1:$1048576,HLOOKUP(Naam&Kapitaalkosten!L$5&EofG,'Data G'!$D$5:$IV$6,2,FALSE),FALSE))) -> 0
A134: 02bwv3 | B134: bijzondere waardevermindering bij afschrijvingstermijn | C134: 3 | F134: =IF(EofG="E",IF(ISERROR(VLOOKUP(Kapitaalkosten!$A134,'Data E (oud)'!$1:$1048576,HLOOKUP(Naam&Kapitaalkosten!F$5&EofG,'Data E (oud)'!$D$5:$IV$6,2,FALSE),FALSE)),0,VLOOKUP(Kapitaalkosten!$A134,'Data E (oud)'!$1:$1048576,HLOOKUP(Naam&Kapitaalkosten!F$5&EofG,'Data E (oud)'!$D$5:$IV$6,2,FALSE),FALSE)),IF(ISERROR(VLOOKUP(Kapitaalkosten!$A134,'Data G'!$1:$1048576,HLOOKUP(Naam&Kapitaalkosten!F$5&EofG,'Data G'!$D$5:$IV$6,2,FALSE),FALSE)),0,VLOOKUP(Kapitaalkosten!$A134,'Data G'!$1:$1048576,HLOOKUP(Naam&Kapitaalkosten!F$5&EofG,'Data G'!$D$5:$IV$6,2,FALSE),FALSE))) -> 0 | G134: =IF(EofG="E",IF(ISERROR(VLOOKUP(Kapitaalkosten!$A134,'Data E (oud)'!$1:$1048576,HLOOKUP(Naam&Kapitaalkosten!G$5&EofG,'Data E (oud)'!$D$5:$IV$6,2,FALSE),FALSE)),0,VLOOKUP(Kapitaalkosten!$A134,'Data E (oud)'!$1:$1048576,HLOOKUP(Naam&Kapitaalkosten!G$5&EofG,'Data E (oud)'!$D$5:$IV$6,2,FALSE),FALSE)),IF(ISERROR(VLOOKUP(Kapitaalkosten!$A134,'Data G'!$1:$1048576,HLOOKUP(Naam&Kapitaalkosten!G$5&EofG,'Data G'!$D$5:$IV$6,2,FALSE),FALSE)),0,VLOOKUP(Kapitaalkosten!$A134,'Data G'!$1:$1048576,HLOOKUP(Naam&Kapitaalkosten!G$5&EofG,'Data G'!$D$5:$IV$6,2,FALSE),FALSE))) -> 0 | H134: =IF(EofG="E",IF(ISERROR(VLOOKUP(Kapitaalkosten!$A134,'Data E (oud)'!$1:$1048576,HLOOKUP(Naam&Kapitaalkosten!H$5&EofG,'Data E (oud)'!$D$5:$IV$6,2,FALSE),FALSE)),0,VLOOKUP(Kapitaalkosten!$A134,'Data E (oud)'!$1:$1048576,HLOOKUP(Naam&Kapitaalkosten!H$5&EofG,'Data E (oud)'!$D$5:$IV$6,2,FALSE),FALSE)),IF(ISERROR(VLOOKUP(Kapitaalkosten!$A134,'Data G'!$1:$1048576,HLOOKUP(Naam&Kapitaalkosten!H$5&EofG,'Data G'!$D$5:$IV$6,2,FALSE),FALSE)),0,VLOOKUP(Kapitaalkosten!$A134,'Data G'!$1:$1048576,HLOOKUP(Naam&Kapitaalkosten!H$5&EofG,'Data G'!$D$5:$IV$6,2,FALSE),FALSE))) -> 0 | I134: =IF(EofG="E",IF(ISERROR(VLOOKUP(Kapitaalkosten!$A134,'Data E (oud)'!$1:$1048576,HLOOKUP(Naam&Kapitaalkosten!I$5&EofG,'Data E (oud)'!$D$5:$IV$6,2,FALSE),FALSE)),0,VLOOKUP(Kapitaalkosten!$A134,'Data E (oud)'!$1:$1048576,HLOOKUP(Naam&Kapitaalkosten!I$5&EofG,'Data E (oud)'!$D$5:$IV$6,2,FALSE),FALSE)),IF(ISERROR(VLOOKUP(Kapitaalkosten!$A134,'Data G'!$1:$1048576,HLOOKUP(Naam&Kapitaalkosten!I$5&EofG,'Data G'!$D$5:$IV$6,2,FALSE),FALSE)),0,VLOOKUP(Kapitaalkosten!$A134,'Data G'!$1:$1048576,HLOOKUP(Naam&Kapitaalkosten!I$5&EofG,'Data G'!$D$5:$IV$6,2,FALSE),FALSE))) -> 0 | J134: =IF(EofG="E",IF(ISERROR(VLOOKUP(Kapitaalkosten!$A134,'Data E (oud)'!$1:$1048576,HLOOKUP(Naam&Kapitaalkosten!J$5&EofG,'Data E (oud)'!$D$5:$IV$6,2,FALSE),FALSE)),0,VLOOKUP(Kapitaalkosten!$A134,'Data E (oud)'!$1:$1048576,HLOOKUP(Naam&Kapitaalkosten!J$5&EofG,'Data E (oud)'!$D$5:$IV$6,2,FALSE),FALSE)),IF(ISERROR(VLOOKUP(Kapitaalkosten!$A134,'Data G'!$1:$1048576,HLOOKUP(Naam&Kapitaalkosten!J$5&EofG,'Data G'!$D$5:$IV$6,2,FALSE),FALSE)),0,VLOOKUP(Kapitaalkosten!$A134,'Data G'!$1:$1048576,HLOOKUP(Naam&Kapitaalkosten!J$5&EofG,'Data G'!$D$5:$IV$6,2,FALSE),FALSE))) -> 0 | K134: =IF(EofG="E",IF(ISERROR(VLOOKUP(Kapitaalkosten!$A134,'Data E (oud)'!$1:$1048576,HLOOKUP(Naam&Kapitaalkosten!K$5&EofG,'Data E (oud)'!$D$5:$IV$6,2,FALSE),FALSE)),0,VLOOKUP(Kapitaalkosten!$A134,'Data E (oud)'!$1:$1048576,HLOOKUP(Naam&Kapitaalkosten!K$5&EofG,'Data E (oud)'!$D$5:$IV$6,2,FALSE),FALSE)),IF(ISERROR(VLOOKUP(Kapitaalkosten!$A134,'Data G'!$1:$1048576,HLOOKUP(Naam&Kapitaalkosten!K$5&EofG,'Data G'!$D$5:$IV$6,2,FALSE),FALSE)),0,VLOOKUP(Kapitaalkosten!$A134,'Data G'!$1:$1048576,HLOOKUP(Naam&Kapitaalkosten!K$5&EofG,'Data G'!$D$5:$IV$6,2,FALSE),FALSE))) -> 0 | L134: =IF(EofG="E",IF(ISERROR(VLOOKUP(Kapitaalkosten!$A134,'Data E (oud)'!$1:$1048576,HLOOKUP(Naam&Kapitaalkosten!L$5&EofG,'Data E (oud)'!$D$5:$IV$6,2,FALSE),FALSE)),0,VLOOKUP(Kapitaalkosten!$A134,'Data E (oud)'!$1:$1048576,HLOOKUP(Naam&Kapitaalkosten!L$5&EofG,'Data E (oud)'!$D$5:$IV$6,2,FALSE),FALSE)),IF(ISERROR(VLOOKUP(Kapitaalkosten!$A134,'Data G'!$1:$1048576,HLOOKUP(Naam&Kapitaalkosten!L$5&EofG,'Data G'!$D$5:$IV$6,2,FALSE),FALSE)),0,VLOOKUP(Kapitaalkosten!$A134,'Data G'!$1:$1048576,HLOOKUP(Naam&Kapitaalkosten!L$5&EofG,'Data G'!$D$5:$IV$6,2,FALSE),FALSE))) -> 0
B135: Ultimo boekwaarde (ongeindexeerd) | E135: =C91-E108-(E109-E126) -> 0 | F135: =E135-F108-(F109-F126+F127) -> 0 | G135: 0 | H135: 0 | I135: 0 | J135: =I135-J108-(J109-J126+J127) -> 0 | K135: =J135-K108-(K109-K126+K127) -> 0 | L135: =K135-L108-(L109-L126+L127) -> 0 | M135: 0 | N135: 0 | O135: 0 | P135: 0 | Q135: 0 | R135: 0 | S135: 0 | T135: 0 | U135: 0 | V135: 0 | W135: 0
B136: Ultimo boekwaarde (geindexeerd) | E136: =E135*(1+CPI($B89,E$5)) -> 0 | F136: 0 | G136: 0 | H136: 0 | I136: 0 | J136: 0 | K136: 0 | L136: 0 | M136: 0 | R136: 0 | S136: 0 | T136: 0 | U136: 0 | V136: 0 | W136: 0
B137: Kapitaalkostenvergoeding over geindexeerde boekwaarde | E137: =E136*VLOOKUP(E$5,WACCtabel,3,FALSE) -> 0 | F137: =F136*VLOOKUP(F$5,WACCtabel,3,FALSE) -> 0 | G137: =G136*VLOOKUP(G$5,WACCtabel,3,FALSE) -> 0 | H137: 0 | I137: 0 | J137: 0 | K137: =K136*VLOOKUP(K$5,WACCtabel,3,FALSE) -> 0 | L137: =L136*VLOOKUP(L$5,WACCtabel,3,FALSE) -> 0 | M137: 0 | Q137: =Q136*VLOOKUP(Q$5,WACCtabel,3,FALSE) ->  | R137: 0 | S137: 0 | T137: 0 | U137: 0 | V137: 0 | W137: 0
B138: Afschrijvingen geindexeerd | E138: =E108*(1+CPI($B89,E$5)) -> 0 | F138: 0 | G138: 0 | H138: 0 | I138: 0 | J138: 0 | K138: 0 | L138: 0 | M138: 0 | N138: =N108*(1+CPI($B89,N$5)) ->  | R138: 0 | S138: 0 | T138: 0 | U138: 0 | V138: 0 | W138: 0
B139: Geïndexeerde kapitaalkosten | E139: =E137+E138 -> 0 | F139: 0 | G139: 0 | H139: 0 | I139: 0 | J139: 0 | K139: 0 | L139: 0 | M139: 0 | R139: 0 | S139: 0 | T139: 0 | U139: 0 | V139: 0 | W139: 0
B141: 2003
B143: Investeringen | C143: =SUM(F144:F151) -> 0
A144: =RIGHT(B$141,2)&"Inv"&C144 -> 03Inv50 | B144: Aanschafwaarde Investeringen met afschrijvingstermijn: | C144: 50 | F144: =IF(EofG="E",IF(ISERROR(VLOOKUP(Kapitaalkosten!$A144,'Data E (oud)'!$1:$1048576,HLOOKUP(Naam&Kapitaalkosten!F$5&EofG,'Data E (oud)'!$D$5:$IV$6,2,FALSE),FALSE)),0,VLOOKUP(Kapitaalkosten!$A144,'Data E (oud)'!$1:$1048576,HLOOKUP(Naam&Kapitaalkosten!F$5&EofG,'Data E (oud)'!$D$5:$IV$6,2,FALSE),FALSE)),IF(ISERROR(VLOOKUP(Kapitaalkosten!$A144,'Data G'!$1:$1048576,HLOOKUP(Naam&Kapitaalkosten!F$5&EofG,'Data G'!$D$5:$IV$6,2,FALSE),FALSE)),0,VLOOKUP(Kapitaalkosten!$A144,'Data G'!$1:$1048576,HLOOKUP(Naam&Kapitaalkosten!F$5&EofG,'Data G'!$D$5:$IV$6,2,FALSE),FALSE))) -> 0 | G144: =F144-G162-G180 -> 0 | H144: =G144-H162-H180 -> 0 | I144: 0 | J144: 0 | K144: 0 | L144: 0 | M144: 0 | N144: 0 | O144: 0 | P144: 0 | Q144: 0 | R144: 0 | S144: 0 | T144: 0 | U144: 0 | V144: 0 | W144: 0
A145: 03Inv40 | B145: Aanschafwaarde Investeringen met afschrijvingstermijn: | C145: 40 | F145: =IF(EofG="E",IF(ISERROR(VLOOKUP(Kapitaalkosten!$A145,'Data E (oud)'!$1:$1048576,HLOOKUP(Naam&Kapitaalkosten!F$5&EofG,'Data E (oud)'!$D$5:$IV$6,2,FALSE),FALSE)),0,VLOOKUP(Kapitaalkosten!$A145,'Data E (oud)'!$1:$1048576,HLOOKUP(Naam&Kapitaalkosten!F$5&EofG,'Data E (oud)'!$D$5:$IV$6,2,FALSE),FALSE)),IF(ISERROR(VLOOKUP(Kapitaalkosten!$A145,'Data G'!$1:$1048576,HLOOKUP(Naam&Kapitaalkosten!F$5&EofG,'Data G'!$D$5:$IV$6,2,FALSE),FALSE)),0,VLOOKUP(Kapitaalkosten!$A145,'Data G'!$1:$1048576,HLOOKUP(Naam&Kapitaalkosten!F$5&EofG,'Data G'!$D$5:$IV$6,2,FALSE),FALSE))) -> 0 | G145: 0 | H145: =G145-H163-H181 -> 0 | I145: 0 | J145: 0 | K145: 0 | L145: 0 | M145: 0 | N145: 0 | O145: 0 | P145: 0 | Q145: 0 | R145: 0 | S145: 0 | T145: 0 | U145: 0 | V145: 0 | W145: 0
A146: 03Inv30 | B146: Aanschafwaarde Investeringen met afschrijvingstermijn: | C146: 30 | F146: =IF(EofG="E",IF(ISERROR(VLOOKUP(Kapitaalkosten!$A146,'Data E (oud)'!$1:$1048576,HLOOKUP(Naam&Kapitaalkosten!F$5&EofG,'Data E (oud)'!$D$5:$IV$6,2,FALSE),FALSE)),0,VLOOKUP(Kapitaalkosten!$A146,'Data E (oud)'!$1:$1048576,HLOOKUP(Naam&Kapitaalkosten!F$5&EofG,'Data E (oud)'!$D$5:$IV$6,2,FALSE),FALSE)),IF(ISERROR(VLOOKUP(Kapitaalkosten!$A146,'Data G'!$1:$1048576,HLOOKUP(Naam&Kapitaalkosten!F$5&EofG,'Data G'!$D$5:$IV$6,2,FALSE),FALSE)),0,VLOOKUP(Kapitaalkosten!$A146,'Data G'!$1:$1048576,HLOOKUP(Naam&Kapitaalkosten!F$5&EofG,'Data G'!$D$5:$IV$6,2,FALSE),FALSE))) -> 0 | G146: 0 | H146: 0 | I146: 0 | J146: 0 | K146: 0 | L146: 0 | M146: 0 | N146: 0 | O146: 0 | P146: 0 | Q146: 0 | R146: 0 | S146: 0 | T146: 0 | U146: 0 | V146: 0 | W146: 0
A147: 03Inv25 | B147: Aanschafwaarde Investeringen met afschrijvingstermijn: | C147: 25 | F147: =IF(EofG="E",IF(ISERROR(VLOOKUP(Kapitaalkosten!$A147,'Data E (oud)'!$1:$1048576,HLOOKUP(Naam&Kapitaalkosten!F$5&EofG,'Data E (oud)'!$D$5:$IV$6,2,FALSE),FALSE)),0,VLOOKUP(Kapitaalkosten!$A147,'Data E (oud)'!$1:$1048576,HLOOKUP(Naam&Kapitaalkosten!F$5&EofG,'Data E (oud)'!$D$5:$IV$6,2,FALSE),FALSE)),IF(ISERROR(VLOOKUP(Kapitaalkosten!$A147,'Data G'!$1:$1048576,HLOOKUP(Naam&Kapitaalkosten!F$5&EofG,'Data G'!$D$5:$IV$6,2,FALSE),FALSE)),0,VLOOKUP(Kapitaalkosten!$A147,'Data G'!$1:$1048576,HLOOKUP(Naam&Kapitaalkosten!F$5&EofG,'Data G'!$D$5:$IV$6,2,FALSE),FALSE))) -> 0 | G147: 0 | H147: 0 | I147: 0 | J147: 0 | K147: 0 | L147: 0 | M147: 0 | N147: 0 | O147: 0 | P147: 0 | Q147: 0 | R147: 0 | S147: 0 | T147: 0 | U147: 0 | V147: 0 | W147: 0
A148: 03Inv10 | B148: Aanschafwaarde Investeringen met afschrijvingstermijn: | C148: 10 | F148: =IF(EofG="E",IF(ISERROR(VLOOKUP(Kapitaalkosten!$A148,'Data E (oud)'!$1:$1048576,HLOOKUP(Naam&Kapitaalkosten!F$5&EofG,'Data E (oud)'!$D$5:$IV$6,2,FALSE),FALSE)),0,VLOOKUP(Kapitaalkosten!$A148,'Data E (oud)'!$1:$1048576,HLOOKUP(Naam&Kapitaalkosten!F$5&EofG,'Data E (oud)'!$D$5:$IV$6,2,FALSE),FALSE)),IF(ISERROR(VLOOKUP(Kapitaalkosten!$A148,'Data G'!$1:$1048576,HLOOKUP(Naam&Kapitaalkosten!F$5&EofG,'Data G'!$D$5:$IV$6,2,FALSE),FALSE)),0,VLOOKUP(Kapitaalkosten!$A148,'Data G'!$1:$1048576,HLOOKUP(Naam&Kapitaalkosten!F$5&EofG,'Data G'!$D$5:$IV$6,2,FALSE),FALSE))) -> 0 | G148: 0 | H148: 0 | I148: 0 | J148: 0 | K148: 0 | L148: 0 | M148: 0 | N148: 0 | O148: 0 | P148: 0 | Q148: 0 | R148: 0 | S148: 0 | T148: 0 | U148: 0 | V148: 0 | W148: 0
A149: 03Inv5 | B149: Aanschafwaarde Investeringen met afschrijvingstermijn: | C149: 5 | F149: =IF(EofG="E",IF(ISERROR(VLOOKUP(Kapitaalkosten!$A149,'Data E (oud)'!$1:$1048576,HLOOKUP(Naam&Kapitaalkosten!F$5&EofG,'Data E (oud)'!$D$5:$IV$6,2,FALSE),FALSE)),0,VLOOKUP(Kapitaalkosten!$A149,'Data E (oud)'!$1:$1048576,HLOOKUP(Naam&Kapitaalkosten!F$5&EofG,'Data E (oud)'!$D$5:$IV$6,2,FALSE),FALSE)),IF(ISERROR(VLOOKUP(Kapitaalkosten!$A149,'Data G'!$1:$1048576,HLOOKUP(Naam&Kapitaalkosten!F$5&EofG,'Data G'!$D$5:$IV$6,2,FALSE),FALSE)),0,VLOOKUP(Kapitaalkosten!$A149,'Data G'!$1:$1048576,HLOOKUP(Naam&Kapitaalkosten!F$5&EofG,'Data G'!$D$5:$IV$6,2,FALSE),FALSE))) -> 0 | G149: 0 | H149: 0 | I149: 0 | J149: 0 | K149: 0 | L149: 0 | M149: 0 | N149: 0 | O149: 0 | P149: 0 | Q149: 0 | R149: 0 | S149: 0 | T149: 0 | U149: 0 | V149: 0 | W149: 0
A150: 03Inv3 | B150: Aanschafwaarde Investeringen met afschrijvingstermijn: | C150: 3 | F150: =IF(EofG="E",IF(ISERROR(VLOOKUP(Kapitaalkosten!$A150,'Data E (oud)'!$1:$1048576,HLOOKUP(Naam&Kapitaalkosten!F$5&EofG,'Data E (oud)'!$D$5:$IV$6,2,FALSE),FALSE)),0,VLOOKUP(Kapitaalkosten!$A150,'Data E (oud)'!$1:$1048576,HLOOKUP(Naam&Kapitaalkosten!F$5&EofG,'Data E (oud)'!$D$5:$IV$6,2,FALSE),FALSE)),IF(ISERROR(VLOOKUP(Kapitaalkosten!$A150,'Data G'!$1:$1048576,HLOOKUP(Naam&Kapitaalkosten!F$5&EofG,'Data G'!$D$5:$IV$6,2,FALSE),FALSE)),0,VLOOKUP(Kapitaalkosten!$A150,'Data G'!$1:$1048576,HLOOKUP(Naam&Kapitaalkosten!F$5&EofG,'Data G'!$D$5:$IV$6,2,FALSE),FALSE))) -> 0 | G150: 0 | H150: 0 | I150: 0 | J150: 0 | K150: 0 | L150: 0 | M150: 0 | N150: 0 | O150: 0 | P150: 0 | Q150: 0 | R150: 0 | S150: 0 | T150: 0 | U150: 0 | V150: 0 | W150: 0
A151: =RIGHT(B$141,2)&"Inv"&C151 -> 03Invgeen | B151: Aanschafwaarde Investeringen met afschrijvingstermijn: | C151: geen | F151: =IF(EofG="E",IF(ISERROR(VLOOKUP(Kapitaalkosten!$A151,'Data E (oud)'!$1:$1048576,HLOOKUP(Naam&Kapitaalkosten!F$5&EofG,'Data E (oud)'!$D$5:$IV$6,2,FALSE),FALSE)),0,VLOOKUP(Kapitaalkosten!$A151,'Data E (oud)'!$1:$1048576,HLOOKUP(Naam&Kapitaalkosten!F$5&EofG,'Data E (oud)'!$D$5:$IV$6,2,FALSE),FALSE)),IF(ISERROR(VLOOKUP(Kapitaalkosten!$A151,'Data G'!$1:$1048576,HLOOKUP(Naam&Kapitaalkosten!F$5&EofG,'Data G'!$D$5:$IV$6,2,FALSE),FALSE)),0,VLOOKUP(Kapitaalkosten!$A151,'Data G'!$1:$1048576,HLOOKUP(Naam&Kapitaalkosten!F$5&EofG,'Data G'!$D$5:$IV$6,2,FALSE),FALSE))) -> 0 | G151: =F151 -> 0 | H151: =G151 -> 0 | I151: 0 | J151: 0 | K151: 0 | L151: 0 | M151: 0 | N151: 0 | O151: 0 | P151: 0 | Q151: 0 | R151: 0 | S151: 0 | T151: 0 | U151: 0 | V151: 0 | W151: 0
B152: Gestandaardiseerde afschrijvingen | F152: =SUM(F153:F159) -> 0 | G152: 0 | H152: 0 | I152: 0 | J152: 0 | K152: 0 | L152: 0 | M152: 0 | N152: 0 | O152: 0 | P152: 0 | Q152: 0 | R152: 0 | S152: 0 | T152: 0 | U152: 0 | V152: 0 | W152: 0
A153: =RIGHT(B$141,2)&"Af"&C153 -> 03Af50 | B153: afschrijving bij afschrijvingstermijn | C153: 50 | F153: =0.5*($F144/$C144) -> 0 | G153: =IF($D$5+$C153<E$5,"",IF($D$5+$C153=E$5,0.5*G144/$C144,G144/$C144+0.5*G162/$C162)) -> 0 | H153: =IF($D$5+$C153<F$5,"",IF($D$5+$C153=F$5,0.5*H144/$C144,H144/$C144+0.5*H162/$C162)) -> 0 | I153: =IF($D$5+$C153<G$5,"",IF($D$5+$C153=G$5,0.5*I144/$C144,I144/$C144+0.5*I162/$C162)) -> 0 | J153: 0 | K153: 0 | L153: 0 | M153: 0 | N153: 0 | O153: 0 | P153: 0 | Q153: 0 | R153: 0 | S153: 0 | T153: 0 | U153: 0 | V153: 0 | W153: 0
A154: 03Af40 | B154: afschrijving bij afschrijvingstermijn | C154: 40 | F154: 0 | G154: =IF($D$5+$C154<E$5,"",IF($D$5+$C154=E$5,0.5*G145/$C145,G145/$C145+0.5*G163/$C163)) -> 0 | H154: 0 | I154: 0 | J154: 0 | K154: 0 | L154: 0 | M154: 0 | N154: 0 | O154: 0 | P154: 0 | Q154: 0 | R154: 0 | S154: 0 | T154: 0 | U154: 0 | V154: 0 | W154: 0
A155: 03Af30 | B155: afschrijving bij afschrijvingstermijn | C155: 30 | F155: 0 | G155: 0 | H155: 0 | I155: 0 | J155: 0 | K155: 0 | L155: 0 | M155: 0 | N155: 0 | O155: 0 | P155: 0 | Q155: 0 | R155: 0 | S155: 0 | T155: 0 | U155: 0 | V155: 0 | W155: 0
A156: 03Af25 | B156: afschrijving bij afschrijvingstermijn | C156: 25 | F156: 0 | G156: 0 | H156: 0 | I156: 0 | J156: 0 | K156: 0 | L156: 0 | M156: 0 | N156: 0 | O156: 0 | P156: 0 | Q156: 0 | R156: 0 | S156: 0 | T156: 0 | U156: 0 | V156: 0 | W156: 0
A157: 03Af10 | B157: afschrijving bij afschrijvingstermijn | C157: 10 | F157: 0 | G157: 0 | H157: 0 | I157: 0 | J157: 0 | K157: 0 | L157: 0 | M157: 0 | N157: 0 | O157: 0 | P157: 0
A158: 03Af5 | B158: afschrijving bij afschrijvingstermijn | C158: 5 | F158: 0 | G158: 0 | H158: 0 | I158: 0 | J158: 0 | K158: 0
A159: 03Af3 | B159: afschrijving bij afschrijvingstermijn | C159: 3 | F159: 0 | G159: 0 | H159: 0 | I159: 0
A160: =RIGHT(B$141,2)&"Af" -> 03Af | B160: Afschrijvingen zoals opgegeven door netbeheerder | F160: =IF(EofG="E",IF(ISERROR(VLOOKUP(Kapitaalkosten!$A160,'Data E (oud)'!$1:$1048576,HLOOKUP(Naam&Kapitaalkosten!F$5&EofG,'Data E (oud)'!$D$5:$IV$6,2,FALSE),FALSE)),0,VLOOKUP(Kapitaalkosten!$A160,'Data E (oud)'!$1:$1048576,HLOOKUP(Naam&Kapitaalkosten!F$5&EofG,'Data E (oud)'!$D$5:$IV$6,2,FALSE),FALSE)),IF(ISERROR(VLOOKUP(Kapitaalkosten!$A160,'Data G'!$1:$1048576,HLOOKUP(Naam&Kapitaalkosten!F$5&EofG,'Data G'!$D$5:$IV$6,2,FALSE),FALSE)),0,VLOOKUP(Kapitaalkosten!$A160,'Data G'!$1:$1048576,HLOOKUP(Naam&Kapitaalkosten!F$5&EofG,'Data G'!$D$5:$IV$6,2,FALSE),FALSE))) -> 0 | G160: =IF(EofG="E",IF(ISERROR(VLOOKUP(Kapitaalkosten!$A160,'Data E (oud)'!$1:$1048576,HLOOKUP(Naam&Kapitaalkosten!G$5&EofG,'Data E (oud)'!$D$5:$IV$6,2,FALSE),FALSE)),0,VLOOKUP(Kapitaalkosten!$A160,'Data E (oud)'!$1:$1048576,HLOOKUP(Naam&Kapitaalkosten!G$5&EofG,'Data E (oud)'!$D$5:$IV$6,2,FALSE),FALSE)),IF(ISERROR(VLOOKUP(Kapitaalkosten!$A160,'Data G'!$1:$1048576,HLOOKUP(Naam&Kapitaalkosten!G$5&EofG,'Data G'!$D$5:$IV$6,2,FALSE),FALSE)),0,VLOOKUP(Kapitaalkosten!$A160,'Data G'!$1:$1048576,HLOOKUP(Naam&Kapitaalkosten!G$5&EofG,'Data G'!$D$5:$IV$6,2,FALSE),FALSE))) -> 0 | H160: =IF(EofG="E",IF(ISERROR(VLOOKUP(Kapitaalkosten!$A160,'Data E (oud)'!$1:$1048576,HLOOKUP(Naam&Kapitaalkosten!H$5&EofG,'Data E (oud)'!$D$5:$IV$6,2,FALSE),FALSE)),0,VLOOKUP(Kapitaalkosten!$A160,'Data E (oud)'!$1:$1048576,HLOOKUP(Naam&Kapitaalkosten!H$5&EofG,'Data E (oud)'!$D$5:$IV$6,2,FALSE),FALSE)),IF(ISERROR(VLOOKUP(Kapitaalkosten!$A160,'Data G'!$1:$1048576,HLOOKUP(Naam&Kapitaalkosten!H$5&EofG,'Data G'!$D$5:$IV$6,2,FALSE),FALSE)),0,VLOOKUP(Kapitaalkosten!$A160,'Data G'!$1:$1048576,HLOOKUP(Naam&Kapitaalkosten!H$5&EofG,'Data G'!$D$5:$IV$6,2,FALSE),FALSE))) -> 0 | I160: =IF(EofG="E",IF(ISERROR(VLOOKUP(Kapitaalkosten!$A160,'Data E (oud)'!$1:$1048576,HLOOKUP(Naam&Kapitaalkosten!I$5&EofG,'Data E (oud)'!$D$5:$IV$6,2,FALSE),FALSE)),0,VLOOKUP(Kapitaalkosten!$A160,'Data E (oud)'!$1:$1048576,HLOOKUP(Naam&Kapitaalkosten!I$5&EofG,'Data E (oud)'!$D$5:$IV$6,2,FALSE),FALSE)),IF(ISERROR(VLOOKUP(Kapitaalkosten!$A160,'Data G'!$1:$1048576,HLOOKUP(Naam&Kapitaalkosten!I$5&EofG,'Data G'!$D$5:$IV$6,2,FALSE),FALSE)),0,VLOOKUP(Kapitaalkosten!$A160,'Data G'!$1:$1048576,HLOOKUP(Naam&Kapitaalkosten!I$5&EofG,'Data G'!$D$5:$IV$6,2,FALSE),FALSE))) -> 0 | J160: =J152 -> 0 | K160: =K152 -> 0 | L160: =L152 -> 0
B161: Desinvesteringen | G161: =SUM(G162:G169) -> 0 | H161: =SUM(H162:H169) -> 0 | I161: 0 | J161: 0 | K161: 0 | L161: 0 | M161: 0 | N161: 0 | O161: 0 | P161: 0 | Q161: 0 | R161: 0 | S161: 0 | T161: 0 | U161: 0 | V161: 0 | W161: 0
A162: =RIGHT(B$141,2)&"Des"&C162 -> 03Des50 | B162: Desinvesteringen met afschrijvingstermijn: | C162: 50 | G162: =IF(EofG="E",IF(ISERROR(VLOOKUP(Kapitaalkosten!$A162,'Data E (oud)'!$1:$1048576,HLOOKUP(Naam&Kapitaalkosten!G$5&EofG,'Data E (oud)'!$D$5:$IV$6,2,FALSE),FALSE)),0,VLOOKUP(Kapitaalkosten!$A162,'Data E (oud)'!$1:$1048576,HLOOKUP(Naam&Kapitaalkosten!G$5&EofG,'Data E (oud)'!$D$5:$IV$6,2,FALSE),FALSE)),IF(ISERROR(VLOOKUP(Kapitaalkosten!$A162,'Data G'!$1:$1048576,HLOOKUP(Naam&Kapitaalkosten!G$5&EofG,'Data G'!$D$5:$IV$6,2,FALSE),FALSE)),0,VLOOKUP(Kapitaalkosten!$A162,'Data G'!$1:$1048576,HLOOKUP(Naam&Kapitaalkosten!G$5&EofG,'Data G'!$D$5:$IV$6,2,FALSE),FALSE))) -> 0 | H162: =IF(EofG="E",IF(ISERROR(VLOOKUP(Kapitaalkosten!$A162,'Data E (oud)'!$1:$1048576,HLOOKUP(Naam&Kapitaalkosten!H$5&EofG,'Data E (oud)'!$D$5:$IV$6,2,FALSE),FALSE)),0,VLOOKUP(Kapitaalkosten!$A162,'Data E (oud)'!$1:$1048576,HLOOKUP(Naam&Kapitaalkosten!H$5&EofG,'Data E (oud)'!$D$5:$IV$6,2,FALSE),FALSE)),IF(ISERROR(VLOOKUP(Kapitaalkosten!$A162,'Data G'!$1:$1048576,HLOOKUP(Naam&Kapitaalkosten!H$5&EofG,'Data G'!$D$5:$IV$6,2,FALSE),FALSE)),0,VLOOKUP(Kapitaalkosten!$A162,'Data G'!$1:$1048576,HLOOKUP(Naam&Kapitaalkosten!H$5&EofG,'Data G'!$D$5:$IV$6,2,FALSE),FALSE))) -> 0 | I162: =IF(EofG="E",IF(ISERROR(VLOOKUP(Kapitaalkosten!$A162,'Data E (oud)'!$1:$1048576,HLOOKUP(Naam&Kapitaalkosten!I$5&EofG,'Data E (oud)'!$D$5:$IV$6,2,FALSE),FALSE)),0,VLOOKUP(Kapitaalkosten!$A162,'Data E (oud)'!$1:$1048576,HLOOKUP(Naam&Kapitaalkosten!I$5&EofG,'Data E (oud)'!$D$5:$IV$6,2,FALSE),FALSE)),IF(ISERROR(VLOOKUP(Kapitaalkosten!$A162,'Data G'!$1:$1048576,HLOOKUP(Naam&Kapitaalkosten!I$5&EofG,'Data G'!$D$5:$IV$6,2,FALSE),FALSE)),0,VLOOKUP(Kapitaalkosten!$A162,'Data G'!$1:$1048576,HLOOKUP(Naam&Kapitaalkosten!I$5&EofG,'Data G'!$D$5:$IV$6,2,FALSE),FALSE))) -> 0 | J162: =IF(EofG="E",IF(ISERROR(VLOOKUP(Kapitaalkosten!$A162,'Data E (oud)'!$1:$1048576,HLOOKUP(Naam&Kapitaalkosten!J$5&EofG,'Data E (oud)'!$D$5:$IV$6,2,FALSE),FALSE)),0,VLOOKUP(Kapitaalkosten!$A162,'Data E (oud)'!$1:$1048576,HLOOKUP(Naam&Kapitaalkosten!J$5&EofG,'Data E (oud)'!$D$5:$IV$6,2,FALSE),FALSE)),IF(ISERROR(VLOOKUP(Kapitaalkosten!$A162,'Data G'!$1:$1048576,HLOOKUP(Naam&Kapitaalkosten!J$5&EofG,'Data G'!$D$5:$IV$6,2,FALSE),FALSE)),0,VLOOKUP(Kapitaalkosten!$A162,'Data G'!$1:$1048576,HLOOKUP(Naam&Kapitaalkosten!J$5&EofG,'Data G'!$D$5:$IV$6,2,FALSE),FALSE))) -> 0 | K162: =IF(EofG="E",IF(ISERROR(VLOOKUP(Kapitaalkosten!$A162,'Data E (oud)'!$1:$1048576,HLOOKUP(Naam&Kapitaalkosten!K$5&EofG,'Data E (oud)'!$D$5:$IV$6,2,FALSE),FALSE)),0,VLOOKUP(Kapitaalkosten!$A162,'Data E (oud)'!$1:$1048576,HLOOKUP(Naam&Kapitaalkosten!K$5&EofG,'Data E (oud)'!$D$5:$IV$6,2,FALSE),FALSE)),IF(ISERROR(VLOOKUP(Kapitaalkosten!$A162,'Data G'!$1:$1048576,HLOOKUP(Naam&Kapitaalkosten!K$5&EofG,'Data G'!$D$5:$IV$6,2,FALSE),FALSE)),0,VLOOKUP(Kapitaalkosten!$A162,'Data G'!$1:$1048576,HLOOKUP(Naam&Kapitaalkosten!K$5&EofG,'Data G'!$D$5:$IV$6,2,FALSE),FALSE))) -> 0 | L162: =IF(EofG="E",IF(ISERROR(VLOOKUP(Kapitaalkosten!$A162,'Data E (oud)'!$1:$1048576,HLOOKUP(Naam&Kapitaalkosten!L$5&EofG,'Data E (oud)'!$D$5:$IV$6,2,FALSE),FALSE)),0,VLOOKUP(Kapitaalkosten!$A162,'Data E (oud)'!$1:$1048576,HLOOKUP(Naam&Kapitaalkosten!L$5&EofG,'Data E (oud)'!$D$5:$IV$6,2,FALSE),FALSE)),IF(ISERROR(VLOOKUP(Kapitaalkosten!$A162,'Data G'!$1:$1048576,HLOOKUP(Naam&Kapitaalkosten!L$5&EofG,'Data G'!$D$5:$IV$6,2,FALSE),FALSE)),0,VLOOKUP(Kapitaalkosten!$A162,'Data G'!$1:$1048576,HLOOKUP(Naam&Kapitaalkosten!L$5&EofG,'Data G'!$D$5:$IV$6,2,FALSE),FALSE))) -> 0
A163: 03Des40 | B163: Desinvesteringen met afschrijvingstermijn: | C163: 40 | G163: =IF(EofG="E",IF(ISERROR(VLOOKUP(Kapitaalkosten!$A163,'Data E (oud)'!$1:$1048576,HLOOKUP(Naam&Kapitaalkosten!G$5&EofG,'Data E (oud)'!$D$5:$IV$6,2,FALSE),FALSE)),0,VLOOKUP(Kapitaalkosten!$A163,'Data E (oud)'!$1:$1048576,HLOOKUP(Naam&Kapitaalkosten!G$5&EofG,'Data E (oud)'!$D$5:$IV$6,2,FALSE),FALSE)),IF(ISERROR(VLOOKUP(Kapitaalkosten!$A163,'Data G'!$1:$1048576,HLOOKUP(Naam&Kapitaalkosten!G$5&EofG,'Data G'!$D$5:$IV$6,2,FALSE),FALSE)),0,VLOOKUP(Kapitaalkosten!$A163,'Data G'!$1:$1048576,HLOOKUP(Naam&Kapitaalkosten!G$5&EofG,'Data G'!$D$5:$IV$6,2,FALSE),FALSE))) -> 0 | H163: =IF(EofG="E",IF(ISERROR(VLOOKUP(Kapitaalkosten!$A163,'Data E (oud)'!$1:$1048576,HLOOKUP(Naam&Kapitaalkosten!H$5&EofG,'Data E (oud)'!$D$5:$IV$6,2,FALSE),FALSE)),0,VLOOKUP(Kapitaalkosten!$A163,'Data E (oud)'!$1:$1048576,HLOOKUP(Naam&Kapitaalkosten!H$5&EofG,'Data E (oud)'!$D$5:$IV$6,2,FALSE),FALSE)),IF(ISERROR(VLOOKUP(Kapitaalkosten!$A163,'Data G'!$1:$1048576,HLOOKUP(Naam&Kapitaalkosten!H$5&EofG,'Data G'!$D$5:$IV$6,2,FALSE),FALSE)),0,VLOOKUP(Kapitaalkosten!$A163,'Data G'!$1:$1048576,HLOOKUP(Naam&Kapitaalkosten!H$5&EofG,'Data G'!$D$5:$IV$6,2,FALSE),FALSE))) -> 0 | I163: =IF(EofG="E",IF(ISERROR(VLOOKUP(Kapitaalkosten!$A163,'Data E (oud)'!$1:$1048576,HLOOKUP(Naam&Kapitaalkosten!I$5&EofG,'Data E (oud)'!$D$5:$IV$6,2,FALSE),FALSE)),0,VLOOKUP(Kapitaalkosten!$A163,'Data E (oud)'!$1:$1048576,HLOOKUP(Naam&Kapitaalkosten!I$5&EofG,'Data E (oud)'!$D$5:$IV$6,2,FALSE),FALSE)),IF(ISERROR(VLOOKUP(Kapitaalkosten!$A163,'Data G'!$1:$1048576,HLOOKUP(Naam&Kapitaalkosten!I$5&EofG,'Data G'!$D$5:$IV$6,2,FALSE),FALSE)),0,VLOOKUP(Kapitaalkosten!$A163,'Data G'!$1:$1048576,HLOOKUP(Naam&Kapitaalkosten!I$5&EofG,'Data G'!$D$5:$IV$6,2,FALSE),FALSE))) -> 0 | J163: =IF(EofG="E",IF(ISERROR(VLOOKUP(Kapitaalkosten!$A163,'Data E (oud)'!$1:$1048576,HLOOKUP(Naam&Kapitaalkosten!J$5&EofG,'Data E (oud)'!$D$5:$IV$6,2,FALSE),FALSE)),0,VLOOKUP(Kapitaalkosten!$A163,'Data E (oud)'!$1:$1048576,HLOOKUP(Naam&Kapitaalkosten!J$5&EofG,'Data E (oud)'!$D$5:$IV$6,2,FALSE),FALSE)),IF(ISERROR(VLOOKUP(Kapitaalkosten!$A163,'Data G'!$1:$1048576,HLOOKUP(Naam&Kapitaalkosten!J$5&EofG,'Data G'!$D$5:$IV$6,2,FALSE),FALSE)),0,VLOOKUP(Kapitaalkosten!$A163,'Data G'!$1:$1048576,HLOOKUP(Naam&Kapitaalkosten!J$5&EofG,'Data G'!$D$5:$IV$6,2,FALSE),FALSE))) -> 0 | K163: =IF(EofG="E",IF(ISERROR(VLOOKUP(Kapitaalkosten!$A163,'Data E (oud)'!$1:$1048576,HLOOKUP(Naam&Kapitaalkosten!K$5&EofG,'Data E (oud)'!$D$5:$IV$6,2,FALSE),FALSE)),0,VLOOKUP(Kapitaalkosten!$A163,'Data E (oud)'!$1:$1048576,HLOOKUP(Naam&Kapitaalkosten!K$5&EofG,'Data E (oud)'!$D$5:$IV$6,2,FALSE),FALSE)),IF(ISERROR(VLOOKUP(Kapitaalkosten!$A163,'Data G'!$1:$1048576,HLOOKUP(Naam&Kapitaalkosten!K$5&EofG,'Data G'!$D$5:$IV$6,2,FALSE),FALSE)),0,VLOOKUP(Kapitaalkosten!$A163,'Data G'!$1:$1048576,HLOOKUP(Naam&Kapitaalkosten!K$5&EofG,'Data G'!$D$5:$IV$6,2,FALSE),FALSE))) -> 0 | L163: =IF(EofG="E",IF(ISERROR(VLOOKUP(Kapitaalkosten!$A163,'Data E (oud)'!$1:$1048576,HLOOKUP(Naam&Kapitaalkosten!L$5&EofG,'Data E (oud)'!$D$5:$IV$6,2,FALSE),FALSE)),0,VLOOKUP(Kapitaalkosten!$A163,'Data E (oud)'!$1:$1048576,HLOOKUP(Naam&Kapitaalkosten!L$5&EofG,'Data E (oud)'!$D$5:$IV$6,2,FALSE),FALSE)),IF(ISERROR(VLOOKUP(Kapitaalkosten!$A163,'Data G'!$1:$1048576,HLOOKUP(Naam&Kapitaalkosten!L$5&EofG,'Data G'!$D$5:$IV$6,2,FALSE),FALSE)),0,VLOOKUP(Kapitaalkosten!$A163,'Data G'!$1:$1048576,HLOOKUP(Naam&Kapitaalkosten!L$5&EofG,'Data G'!$D$5:$IV$6,2,FALSE),FALSE))) -> 0
A164: 03Des30 | B164: Desinvesteringen met afschrijvingstermijn: | C164: 30 | G164: =IF(EofG="E",IF(ISERROR(VLOOKUP(Kapitaalkosten!$A164,'Data E (oud)'!$1:$1048576,HLOOKUP(Naam&Kapitaalkosten!G$5&EofG,'Data E (oud)'!$D$5:$IV$6,2,FALSE),FALSE)),0,VLOOKUP(Kapitaalkosten!$A164,'Data E (oud)'!$1:$1048576,HLOOKUP(Naam&Kapitaalkosten!G$5&EofG,'Data E (oud)'!$D$5:$IV$6,2,FALSE),FALSE)),IF(ISERROR(VLOOKUP(Kapitaalkosten!$A164,'Data G'!$1:$1048576,HLOOKUP(Naam&Kapitaalkosten!G$5&EofG,'Data G'!$D$5:$IV$6,2,FALSE),FALSE)),0,VLOOKUP(Kapitaalkosten!$A164,'Data G'!$1:$1048576,HLOOKUP(Naam&Kapitaalkosten!G$5&EofG,'Data G'!$D$5:$IV$6,2,FALSE),FALSE))) -> 0 | H164: =IF(EofG="E",IF(ISERROR(VLOOKUP(Kapitaalkosten!$A164,'Data E (oud)'!$1:$1048576,HLOOKUP(Naam&Kapitaalkosten!H$5&EofG,'Data E (oud)'!$D$5:$IV$6,2,FALSE),FALSE)),0,VLOOKUP(Kapitaalkosten!$A164,'Data E (oud)'!$1:$1048576,HLOOKUP(Naam&Kapitaalkosten!H$5&EofG,'Data E (oud)'!$D$5:$IV$6,2,FALSE),FALSE)),IF(ISERROR(VLOOKUP(Kapitaalkosten!$A164,'Data G'!$1:$1048576,HLOOKUP(Naam&Kapitaalkosten!H$5&EofG,'Data G'!$D$5:$IV$6,2,FALSE),FALSE)),0,VLOOKUP(Kapitaalkosten!$A164,'Data G'!$1:$1048576,HLOOKUP(Naam&Kapitaalkosten!H$5&EofG,'Data G'!$D$5:$IV$6,2,FALSE),FALSE))) -> 0 | I164: =IF(EofG="E",IF(ISERROR(VLOOKUP(Kapitaalkosten!$A164,'Data E (oud)'!$1:$1048576,HLOOKUP(Naam&Kapitaalkosten!I$5&EofG,'Data E (oud)'!$D$5:$IV$6,2,FALSE),FALSE)),0,VLOOKUP(Kapitaalkosten!$A164,'Data E (oud)'!$1:$1048576,HLOOKUP(Naam&Kapitaalkosten!I$5&EofG,'Data E (oud)'!$D$5:$IV$6,2,FALSE),FALSE)),IF(ISERROR(VLOOKUP(Kapitaalkosten!$A164,'Data G'!$1:$1048576,HLOOKUP(Naam&Kapitaalkosten!I$5&EofG,'Data G'!$D$5:$IV$6,2,FALSE),FALSE)),0,VLOOKUP(Kapitaalkosten!$A164,'Data G'!$1:$1048576,HLOOKUP(Naam&Kapitaalkosten!I$5&EofG,'Data G'!$D$5:$IV$6,2,FALSE),FALSE))) -> 0 | J164: =IF(EofG="E",IF(ISERROR(VLOOKUP(Kapitaalkosten!$A164,'Data E (oud)'!$1:$1048576,HLOOKUP(Naam&Kapitaalkosten!J$5&EofG,'Data E (oud)'!$D$5:$IV$6,2,FALSE),FALSE)),0,VLOOKUP(Kapitaalkosten!$A164,'Data E (oud)'!$1:$1048576,HLOOKUP(Naam&Kapitaalkosten!J$5&EofG,'Data E (oud)'!$D$5:$IV$6,2,FALSE),FALSE)),IF(ISERROR(VLOOKUP(Kapitaalkosten!$A164,'Data G'!$1:$1048576,HLOOKUP(Naam&Kapitaalkosten!J$5&EofG,'Data G'!$D$5:$IV$6,2,FALSE),FALSE)),0,VLOOKUP(Kapitaalkosten!$A164,'Data G'!$1:$1048576,HLOOKUP(Naam&Kapitaalkosten!J$5&EofG,'Data G'!$D$5:$IV$6,2,FALSE),FALSE))) -> 0 | K164: =IF(EofG="E",IF(ISERROR(VLOOKUP(Kapitaalkosten!$A164,'Data E (oud)'!$1:$1048576,HLOOKUP(Naam&Kapitaalkosten!K$5&EofG,'Data E (oud)'!$D$5:$IV$6,2,FALSE),FALSE)),0,VLOOKUP(Kapitaalkosten!$A164,'Data E (oud)'!$1:$1048576,HLOOKUP(Naam&Kapitaalkosten!K$5&EofG,'Data E (oud)'!$D$5:$IV$6,2,FALSE),FALSE)),IF(ISERROR(VLOOKUP(Kapitaalkosten!$A164,'Data G'!$1:$1048576,HLOOKUP(Naam&Kapitaalkosten!K$5&EofG,'Data G'!$D$5:$IV$6,2,FALSE),FALSE)),0,VLOOKUP(Kapitaalkosten!$A164,'Data G'!$1:$1048576,HLOOKUP(Naam&Kapitaalkosten!K$5&EofG,'Data G'!$D$5:$IV$6,2,FALSE),FALSE))) -> 0 | L164: =IF(EofG="E",IF(ISERROR(VLOOKUP(Kapitaalkosten!$A164,'Data E (oud)'!$1:$1048576,HLOOKUP(Naam&Kapitaalkosten!L$5&EofG,'Data E (oud)'!$D$5:$IV$6,2,FALSE),FALSE)),0,VLOOKUP(Kapitaalkosten!$A164,'Data E (oud)'!$1:$1048576,HLOOKUP(Naam&Kapitaalkosten!L$5&EofG,'Data E (oud)'!$D$5:$IV$6,2,FALSE),FALSE)),IF(ISERROR(VLOOKUP(Kapitaalkosten!$A164,'Data G'!$1:$1048576,HLOOKUP(Naam&Kapitaalkosten!L$5&EofG,'Data G'!$D$5:$IV$6,2,FALSE),FALSE)),0,VLOOKUP(Kapitaalkosten!$A164,'Data G'!$1:$1048576,HLOOKUP(Naam&Kapitaalkosten!L$5&EofG,'Data G'!$D$5:$IV$6,2,FALSE),FALSE))) -> 0
A165: 03Des25 | B165: Desinvesteringen met afschrijvingstermijn: | C165: 25 | G165: =IF(EofG="E",IF(ISERROR(VLOOKUP(Kapitaalkosten!$A165,'Data E (oud)'!$1:$1048576,HLOOKUP(Naam&Kapitaalkosten!G$5&EofG,'Data E (oud)'!$D$5:$IV$6,2,FALSE),FALSE)),0,VLOOKUP(Kapitaalkosten!$A165,'Data E (oud)'!$1:$1048576,HLOOKUP(Naam&Kapitaalkosten!G$5&EofG,'Data E (oud)'!$D$5:$IV$6,2,FALSE),FALSE)),IF(ISERROR(VLOOKUP(Kapitaalkosten!$A165,'Data G'!$1:$1048576,HLOOKUP(Naam&Kapitaalkosten!G$5&EofG,'Data G'!$D$5:$IV$6,2,FALSE),FALSE)),0,VLOOKUP(Kapitaalkosten!$A165,'Data G'!$1:$1048576,HLOOKUP(Naam&Kapitaalkosten!G$5&EofG,'Data G'!$D$5:$IV$6,2,FALSE),FALSE))) -> 0 | H165: =IF(EofG="E",IF(ISERROR(VLOOKUP(Kapitaalkosten!$A165,'Data E (oud)'!$1:$1048576,HLOOKUP(Naam&Kapitaalkosten!H$5&EofG,'Data E (oud)'!$D$5:$IV$6,2,FALSE),FALSE)),0,VLOOKUP(Kapitaalkosten!$A165,'Data E (oud)'!$1:$1048576,HLOOKUP(Naam&Kapitaalkosten!H$5&EofG,'Data E (oud)'!$D$5:$IV$6,2,FALSE),FALSE)),IF(ISERROR(VLOOKUP(Kapitaalkosten!$A165,'Data G'!$1:$1048576,HLOOKUP(Naam&Kapitaalkosten!H$5&EofG,'Data G'!$D$5:$IV$6,2,FALSE),FALSE)),0,VLOOKUP(Kapitaalkosten!$A165,'Data G'!$1:$1048576,HLOOKUP(Naam&Kapitaalkosten!H$5&EofG,'Data G'!$D$5:$IV$6,2,FALSE),FALSE))) -> 0 | I165: =IF(EofG="E",IF(ISERROR(VLOOKUP(Kapitaalkosten!$A165,'Data E (oud)'!$1:$1048576,HLOOKUP(Naam&Kapitaalkosten!I$5&EofG,'Data E (oud)'!$D$5:$IV$6,2,FALSE),FALSE)),0,VLOOKUP(Kapitaalkosten!$A165,'Data E (oud)'!$1:$1048576,HLOOKUP(Naam&Kapitaalkosten!I$5&EofG,'Data E (oud)'!$D$5:$IV$6,2,FALSE),FALSE)),IF(ISERROR(VLOOKUP(Kapitaalkosten!$A165,'Data G'!$1:$1048576,HLOOKUP(Naam&Kapitaalkosten!I$5&EofG,'Data G'!$D$5:$IV$6,2,FALSE),FALSE)),0,VLOOKUP(Kapitaalkosten!$A165,'Data G'!$1:$1048576,HLOOKUP(Naam&Kapitaalkosten!I$5&EofG,'Data G'!$D$5:$IV$6,2,FALSE),FALSE))) -> 0 | J165: =IF(EofG="E",IF(ISERROR(VLOOKUP(Kapitaalkosten!$A165,'Data E (oud)'!$1:$1048576,HLOOKUP(Naam&Kapitaalkosten!J$5&EofG,'Data E (oud)'!$D$5:$IV$6,2,FALSE),FALSE)),0,VLOOKUP(Kapitaalkosten!$A165,'Data E (oud)'!$1:$1048576,HLOOKUP(Naam&Kapitaalkosten!J$5&EofG,'Data E (oud)'!$D$5:$IV$6,2,FALSE),FALSE)),IF(ISERROR(VLOOKUP(Kapitaalkosten!$A165,'Data G'!$1:$1048576,HLOOKUP(Naam&Kapitaalkosten!J$5&EofG,'Data G'!$D$5:$IV$6,2,FALSE),FALSE)),0,VLOOKUP(Kapitaalkosten!$A165,'Data G'!$1:$1048576,HLOOKUP(Naam&Kapitaalkosten!J$5&EofG,'Data G'!$D$5:$IV$6,2,FALSE),FALSE))) -> 0 | K165: =IF(EofG="E",IF(ISERROR(VLOOKUP(Kapitaalkosten!$A165,'Data E (oud)'!$1:$1048576,HLOOKUP(Naam&Kapitaalkosten!K$5&EofG,'Data E (oud)'!$D$5:$IV$6,2,FALSE),FALSE)),0,VLOOKUP(Kapitaalkosten!$A165,'Data E (oud)'!$1:$1048576,HLOOKUP(Naam&Kapitaalkosten!K$5&EofG,'Data E (oud)'!$D$5:$IV$6,2,FALSE),FALSE)),IF(ISERROR(VLOOKUP(Kapitaalkosten!$A165,'Data G'!$1:$1048576,HLOOKUP(Naam&Kapitaalkosten!K$5&EofG,'Data G'!$D$5:$IV$6,2,FALSE),FALSE)),0,VLOOKUP(Kapitaalkosten!$A165,'Data G'!$1:$1048576,HLOOKUP(Naam&Kapitaalkosten!K$5&EofG,'Data G'!$D$5:$IV$6,2,FALSE),FALSE))) -> 0 | L165: =IF(EofG="E",IF(ISERROR(VLOOKUP(Kapitaalkosten!$A165,'Data E (oud)'!$1:$1048576,HLOOKUP(Naam&Kapitaalkosten!L$5&EofG,'Data E (oud)'!$D$5:$IV$6,2,FALSE),FALSE)),0,VLOOKUP(Kapitaalkosten!$A165,'Data E (oud)'!$1:$1048576,HLOOKUP(Naam&Kapitaalkosten!L$5&EofG,'Data E (oud)'!$D$5:$IV$6,2,FALSE),FALSE)),IF(ISERROR(VLOOKUP(Kapitaalkosten!$A165,'Data G'!$1:$1048576,HLOOKUP(Naam&Kapitaalkosten!L$5&EofG,'Data G'!$D$5:$IV$6,2,FALSE),FALSE)),0,VLOOKUP(Kapitaalkosten!$A165,'Data G'!$1:$1048576,HLOOKUP(Naam&Kapitaalkosten!L$5&EofG,'Data G'!$D$5:$IV$6,2,FALSE),FALSE))) -> 0
A166: 03Des10 | B166: Desinvesteringen met afschrijvingstermijn: | C166: 10 | G166: =IF(EofG="E",IF(ISERROR(VLOOKUP(Kapitaalkosten!$A166,'Data E (oud)'!$1:$1048576,HLOOKUP(Naam&Kapitaalkosten!G$5&EofG,'Data E (oud)'!$D$5:$IV$6,2,FALSE),FALSE)),0,VLOOKUP(Kapitaalkosten!$A166,'Data E (oud)'!$1:$1048576,HLOOKUP(Naam&Kapitaalkosten!G$5&EofG,'Data E (oud)'!$D$5:$IV$6,2,FALSE),FALSE)),IF(ISERROR(VLOOKUP(Kapitaalkosten!$A166,'Data G'!$1:$1048576,HLOOKUP(Naam&Kapitaalkosten!G$5&EofG,'Data G'!$D$5:$IV$6,2,FALSE),FALSE)),0,VLOOKUP(Kapitaalkosten!$A166,'Data G'!$1:$1048576,HLOOKUP(Naam&Kapitaalkosten!G$5&EofG,'Data G'!$D$5:$IV$6,2,FALSE),FALSE))) -> 0 | H166: =IF(EofG="E",IF(ISERROR(VLOOKUP(Kapitaalkosten!$A166,'Data E (oud)'!$1:$1048576,HLOOKUP(Naam&Kapitaalkosten!H$5&EofG,'Data E (oud)'!$D$5:$IV$6,2,FALSE),FALSE)),0,VLOOKUP(Kapitaalkosten!$A166,'Data E (oud)'!$1:$1048576,HLOOKUP(Naam&Kapitaalkosten!H$5&EofG,'Data E (oud)'!$D$5:$IV$6,2,FALSE),FALSE)),IF(ISERROR(VLOOKUP(Kapitaalkosten!$A166,'Data G'!$1:$1048576,HLOOKUP(Naam&Kapitaalkosten!H$5&EofG,'Data G'!$D$5:$IV$6,2,FALSE),FALSE)),0,VLOOKUP(Kapitaalkosten!$A166,'Data G'!$1:$1048576,HLOOKUP(Naam&Kapitaalkosten!H$5&EofG,'Data G'!$D$5:$IV$6,2,FALSE),FALSE))) -> 0 | I166: =IF(EofG="E",IF(ISERROR(VLOOKUP(Kapitaalkosten!$A166,'Data E (oud)'!$1:$1048576,HLOOKUP(Naam&Kapitaalkosten!I$5&EofG,'Data E (oud)'!$D$5:$IV$6,2,FALSE),FALSE)),0,VLOOKUP(Kapitaalkosten!$A166,'Data E (oud)'!$1:$1048576,HLOOKUP(Naam&Kapitaalkosten!I$5&EofG,'Data E (oud)'!$D$5:$IV$6,2,FALSE),FALSE)),IF(ISERROR(VLOOKUP(Kapitaalkosten!$A166,'Data G'!$1:$1048576,HLOOKUP(Naam&Kapitaalkosten!I$5&EofG,'Data G'!$D$5:$IV$6,2,FALSE),FALSE)),0,VLOOKUP(Kapitaalkosten!$A166,'Data G'!$1:$1048576,HLOOKUP(Naam&Kapitaalkosten!I$5&EofG,'Data G'!$D$5:$IV$6,2,FALSE),FALSE))) -> 0 | J166: =IF(EofG="E",IF(ISERROR(VLOOKUP(Kapitaalkosten!$A166,'Data E (oud)'!$1:$1048576,HLOOKUP(Naam&Kapitaalkosten!J$5&EofG,'Data E (oud)'!$D$5:$IV$6,2,FALSE),FALSE)),0,VLOOKUP(Kapitaalkosten!$A166,'Data E (oud)'!$1:$1048576,HLOOKUP(Naam&Kapitaalkosten!J$5&EofG,'Data E (oud)'!$D$5:$IV$6,2,FALSE),FALSE)),IF(ISERROR(VLOOKUP(Kapitaalkosten!$A166,'Data G'!$1:$1048576,HLOOKUP(Naam&Kapitaalkosten!J$5&EofG,'Data G'!$D$5:$IV$6,2,FALSE),FALSE)),0,VLOOKUP(Kapitaalkosten!$A166,'Data G'!$1:$1048576,HLOOKUP(Naam&Kapitaalkosten!J$5&EofG,'Data G'!$D$5:$IV$6,2,FALSE),FALSE))) -> 0 | K166: =IF(EofG="E",IF(ISERROR(VLOOKUP(Kapitaalkosten!$A166,'Data E (oud)'!$1:$1048576,HLOOKUP(Naam&Kapitaalkosten!K$5&EofG,'Data E (oud)'!$D$5:$IV$6,2,FALSE),FALSE)),0,VLOOKUP(Kapitaalkosten!$A166,'Data E (oud)'!$1:$1048576,HLOOKUP(Naam&Kapitaalkosten!K$5&EofG,'Data E (oud)'!$D$5:$IV$6,2,FALSE),FALSE)),IF(ISERROR(VLOOKUP(Kapitaalkosten!$A166,'Data G'!$1:$1048576,HLOOKUP(Naam&Kapitaalkosten!K$5&EofG,'Data G'!$D$5:$IV$6,2,FALSE),FALSE)),0,VLOOKUP(Kapitaalkosten!$A166,'Data G'!$1:$1048576,HLOOKUP(Naam&Kapitaalkosten!K$5&EofG,'Data G'!$D$5:$IV$6,2,FALSE),FALSE))) -> 0 | L166: =IF(EofG="E",IF(ISERROR(VLOOKUP(Kapitaalkosten!$A166,'Data E (oud)'!$1:$1048576,HLOOKUP(Naam&Kapitaalkosten!L$5&EofG,'Data E (oud)'!$D$5:$IV$6,2,FALSE),FALSE)),0,VLOOKUP(Kapitaalkosten!$A166,'Data E (oud)'!$1:$1048576,HLOOKUP(Naam&Kapitaalkosten!L$5&EofG,'Data E (oud)'!$D$5:$IV$6,2,FALSE),FALSE)),IF(ISERROR(VLOOKUP(Kapitaalkosten!$A166,'Data G'!$1:$1048576,HLOOKUP(Naam&Kapitaalkosten!L$5&EofG,'Data G'!$D$5:$IV$6,2,FALSE),FALSE)),0,VLOOKUP(Kapitaalkosten!$A166,'Data G'!$1:$1048576,HLOOKUP(Naam&Kapitaalkosten!L$5&EofG,'Data G'!$D$5:$IV$6,2,FALSE),FALSE))) -> 0
A167: 03Des5 | B167: Desinvesteringen met afschrijvingstermijn: | C167: 5 | G167: =IF(EofG="E",IF(ISERROR(VLOOKUP(Kapitaalkosten!$A167,'Data E (oud)'!$1:$1048576,HLOOKUP(Naam&Kapitaalkosten!G$5&EofG,'Data E (oud)'!$D$5:$IV$6,2,FALSE),FALSE)),0,VLOOKUP(Kapitaalkosten!$A167,'Data E (oud)'!$1:$1048576,HLOOKUP(Naam&Kapitaalkosten!G$5&EofG,'Data E (oud)'!$D$5:$IV$6,2,FALSE),FALSE)),IF(ISERROR(VLOOKUP(Kapitaalkosten!$A167,'Data G'!$1:$1048576,HLOOKUP(Naam&Kapitaalkosten!G$5&EofG,'Data G'!$D$5:$IV$6,2,FALSE),FALSE)),0,VLOOKUP(Kapitaalkosten!$A167,'Data G'!$1:$1048576,HLOOKUP(Naam&Kapitaalkosten!G$5&EofG,'Data G'!$D$5:$IV$6,2,FALSE),FALSE))) -> 0 | H167: =IF(EofG="E",IF(ISERROR(VLOOKUP(Kapitaalkosten!$A167,'Data E (oud)'!$1:$1048576,HLOOKUP(Naam&Kapitaalkosten!H$5&EofG,'Data E (oud)'!$D$5:$IV$6,2,FALSE),FALSE)),0,VLOOKUP(Kapitaalkosten!$A167,'Data E (oud)'!$1:$1048576,HLOOKUP(Naam&Kapitaalkosten!H$5&EofG,'Data E (oud)'!$D$5:$IV$6,2,FALSE),FALSE)),IF(ISERROR(VLOOKUP(Kapitaalkosten!$A167,'Data G'!$1:$1048576,HLOOKUP(Naam&Kapitaalkosten!H$5&EofG,'Data G'!$D$5:$IV$6,2,FALSE),FALSE)),0,VLOOKUP(Kapitaalkosten!$A167,'Data G'!$1:$1048576,HLOOKUP(Naam&Kapitaalkosten!H$5&EofG,'Data G'!$D$5:$IV$6,2,FALSE),FALSE))) -> 0 | I167: =IF(EofG="E",IF(ISERROR(VLOOKUP(Kapitaalkosten!$A167,'Data E (oud)'!$1:$1048576,HLOOKUP(Naam&Kapitaalkosten!I$5&EofG,'Data E (oud)'!$D$5:$IV$6,2,FALSE),FALSE)),0,VLOOKUP(Kapitaalkosten!$A167,'Data E (oud)'!$1:$1048576,HLOOKUP(Naam&Kapitaalkosten!I$5&EofG,'Data E (oud)'!$D$5:$IV$6,2,FALSE),FALSE)),IF(ISERROR(VLOOKUP(Kapitaalkosten!$A167,'Data G'!$1:$1048576,HLOOKUP(Naam&Kapitaalkosten!I$5&EofG,'Data G'!$D$5:$IV$6,2,FALSE),FALSE)),0,VLOOKUP(Kapitaalkosten!$A167,'Data G'!$1:$1048576,HLOOKUP(Naam&Kapitaalkosten!I$5&EofG,'Data G'!$D$5:$IV$6,2,FALSE),FALSE))) -> 0 | J167: =IF(EofG="E",IF(ISERROR(VLOOKUP(Kapitaalkosten!$A167,'Data E (oud)'!$1:$1048576,HLOOKUP(Naam&Kapitaalkosten!J$5&EofG,'Data E (oud)'!$D$5:$IV$6,2,FALSE),FALSE)),0,VLOOKUP(Kapitaalkosten!$A167,'Data E (oud)'!$1:$1048576,HLOOKUP(Naam&Kapitaalkosten!J$5&EofG,'Data E (oud)'!$D$5:$IV$6,2,FALSE),FALSE)),IF(ISERROR(VLOOKUP(Kapitaalkosten!$A167,'Data G'!$1:$1048576,HLOOKUP(Naam&Kapitaalkosten!J$5&EofG,'Data G'!$D$5:$IV$6,2,FALSE),FALSE)),0,VLOOKUP(Kapitaalkosten!$A167,'Data G'!$1:$1048576,HLOOKUP(Naam&Kapitaalkosten!J$5&EofG,'Data G'!$D$5:$IV$6,2,FALSE),FALSE))) -> 0 | K167: =IF(EofG="E",IF(ISERROR(VLOOKUP(Kapitaalkosten!$A167,'Data E (oud)'!$1:$1048576,HLOOKUP(Naam&Kapitaalkosten!K$5&EofG,'Data E (oud)'!$D$5:$IV$6,2,FALSE),FALSE)),0,VLOOKUP(Kapitaalkosten!$A167,'Data E (oud)'!$1:$1048576,HLOOKUP(Naam&Kapitaalkosten!K$5&EofG,'Data E (oud)'!$D$5:$IV$6,2,FALSE),FALSE)),IF(ISERROR(VLOOKUP(Kapitaalkosten!$A167,'Data G'!$1:$1048576,HLOOKUP(Naam&Kapitaalkosten!K$5&EofG,'Data G'!$D$5:$IV$6,2,FALSE),FALSE)),0,VLOOKUP(Kapitaalkosten!$A167,'Data G'!$1:$1048576,HLOOKUP(Naam&Kapitaalkosten!K$5&EofG,'Data G'!$D$5:$IV$6,2,FALSE),FALSE))) -> 0 | L167: =IF(EofG="E",IF(ISERROR(VLOOKUP(Kapitaalkosten!$A167,'Data E (oud)'!$1:$1048576,HLOOKUP(Naam&Kapitaalkosten!L$5&EofG,'Data E (oud)'!$D$5:$IV$6,2,FALSE),FALSE)),0,VLOOKUP(Kapitaalkosten!$A167,'Data E (oud)'!$1:$1048576,HLOOKUP(Naam&Kapitaalkosten!L$5&EofG,'Data E (oud)'!$D$5:$IV$6,2,FALSE),FALSE)),IF(ISERROR(VLOOKUP(Kapitaalkosten!$A167,'Data G'!$1:$1048576,HLOOKUP(Naam&Kapitaalkosten!L$5&EofG,'Data G'!$D$5:$IV$6,2,FALSE),FALSE)),0,VLOOKUP(Kapitaalkosten!$A167,'Data G'!$1:$1048576,HLOOKUP(Naam&Kapitaalkosten!L$5&EofG,'Data G'!$D$5:$IV$6,2,FALSE),FALSE))) -> 0
A168: 03Des3 | B168: Desinvesteringen met afschrijvingstermijn: | C168: 3 | G168: =IF(EofG="E",IF(ISERROR(VLOOKUP(Kapitaalkosten!$A168,'Data E (oud)'!$1:$1048576,HLOOKUP(Naam&Kapitaalkosten!G$5&EofG,'Data E (oud)'!$D$5:$IV$6,2,FALSE),FALSE)),0,VLOOKUP(Kapitaalkosten!$A168,'Data E (oud)'!$1:$1048576,HLOOKUP(Naam&Kapitaalkosten!G$5&EofG,'Data E (oud)'!$D$5:$IV$6,2,FALSE),FALSE)),IF(ISERROR(VLOOKUP(Kapitaalkosten!$A168,'Data G'!$1:$1048576,HLOOKUP(Naam&Kapitaalkosten!G$5&EofG,'Data G'!$D$5:$IV$6,2,FALSE),FALSE)),0,VLOOKUP(Kapitaalkosten!$A168,'Data G'!$1:$1048576,HLOOKUP(Naam&Kapitaalkosten!G$5&EofG,'Data G'!$D$5:$IV$6,2,FALSE),FALSE))) -> 0 | H168: =IF(EofG="E",IF(ISERROR(VLOOKUP(Kapitaalkosten!$A168,'Data E (oud)'!$1:$1048576,HLOOKUP(Naam&Kapitaalkosten!H$5&EofG,'Data E (oud)'!$D$5:$IV$6,2,FALSE),FALSE)),0,VLOOKUP(Kapitaalkosten!$A168,'Data E (oud)'!$1:$1048576,HLOOKUP(Naam&Kapitaalkosten!H$5&EofG,'Data E (oud)'!$D$5:$IV$6,2,FALSE),FALSE)),IF(ISERROR(VLOOKUP(Kapitaalkosten!$A168,'Data G'!$1:$1048576,HLOOKUP(Naam&Kapitaalkosten!H$5&EofG,'Data G'!$D$5:$IV$6,2,FALSE),FALSE)),0,VLOOKUP(Kapitaalkosten!$A168,'Data G'!$1:$1048576,HLOOKUP(Naam&Kapitaalkosten!H$5&EofG,'Data G'!$D$5:$IV$6,2,FALSE),FALSE))) -> 0 | I168: =IF(EofG="E",IF(ISERROR(VLOOKUP(Kapitaalkosten!$A168,'Data E (oud)'!$1:$1048576,HLOOKUP(Naam&Kapitaalkosten!I$5&EofG,'Data E (oud)'!$D$5:$IV$6,2,FALSE),FALSE)),0,VLOOKUP(Kapitaalkosten!$A168,'Data E (oud)'!$1:$1048576,HLOOKUP(Naam&Kapitaalkosten!I$5&EofG,'Data E (oud)'!$D$5:$IV$6,2,FALSE),FALSE)),IF(ISERROR(VLOOKUP(Kapitaalkosten!$A168,'Data G'!$1:$1048576,HLOOKUP(Naam&Kapitaalkosten!I$5&EofG,'Data G'!$D$5:$IV$6,2,FALSE),FALSE)),0,VLOOKUP(Kapitaalkosten!$A168,'Data G'!$1:$1048576,HLOOKUP(Naam&Kapitaalkosten!I$5&EofG,'Data G'!$D$5:$IV$6,2,FALSE),FALSE))) -> 0 | J168: =IF(EofG="E",IF(ISERROR(VLOOKUP(Kapitaalkosten!$A168,'Data E (oud)'!$1:$1048576,HLOOKUP(Naam&Kapitaalkosten!J$5&EofG,'Data E (oud)'!$D$5:$IV$6,2,FALSE),FALSE)),0,VLOOKUP(Kapitaalkosten!$A168,'Data E (oud)'!$1:$1048576,HLOOKUP(Naam&Kapitaalkosten!J$5&EofG,'Data E (oud)'!$D$5:$IV$6,2,FALSE),FALSE)),IF(ISERROR(VLOOKUP(Kapitaalkosten!$A168,'Data G'!$1:$1048576,HLOOKUP(Naam&Kapitaalkosten!J$5&EofG,'Data G'!$D$5:$IV$6,2,FALSE),FALSE)),0,VLOOKUP(Kapitaalkosten!$A168,'Data G'!$1:$1048576,HLOOKUP(Naam&Kapitaalkosten!J$5&EofG,'Data G'!$D$5:$IV$6,2,FALSE),FALSE))) -> 0 | K168: =IF(EofG="E",IF(ISERROR(VLOOKUP(Kapitaalkosten!$A168,'Data E (oud)'!$1:$1048576,HLOOKUP(Naam&Kapitaalkosten!K$5&EofG,'Data E (oud)'!$D$5:$IV$6,2,FALSE),FALSE)),0,VLOOKUP(Kapitaalkosten!$A168,'Data E (oud)'!$1:$1048576,HLOOKUP(Naam&Kapitaalkosten!K$5&EofG,'Data E (oud)'!$D$5:$IV$6,2,FALSE),FALSE)),IF(ISERROR(VLOOKUP(Kapitaalkosten!$A168,'Data G'!$1:$1048576,HLOOKUP(Naam&Kapitaalkosten!K$5&EofG,'Data G'!$D$5:$IV$6,2,FALSE),FALSE)),0,VLOOKUP(Kapitaalkosten!$A168,'Data G'!$1:$1048576,HLOOKUP(Naam&Kapitaalkosten!K$5&EofG,'Data G'!$D$5:$IV$6,2,FALSE),FALSE))) -> 0 | L168: =IF(EofG="E",IF(ISERROR(VLOOKUP(Kapitaalkosten!$A168,'Data E (oud)'!$1:$1048576,HLOOKUP(Naam&Kapitaalkosten!L$5&EofG,'Data E (oud)'!$D$5:$IV$6,2,FALSE),FALSE)),0,VLOOKUP(Kapitaalkosten!$A168,'Data E (oud)'!$1:$1048576,HLOOKUP(Naam&Kapitaalkosten!L$5&EofG,'Data E (oud)'!$D$5:$IV$6,2,FALSE),FALSE)),IF(ISERROR(VLOOKUP(Kapitaalkosten!$A168,'Data G'!$1:$1048576,HLOOKUP(Naam&Kapitaalkosten!L$5&EofG,'Data G'!$D$5:$IV$6,2,FALSE),FALSE)),0,VLOOKUP(Kapitaalkosten!$A168,'Data G'!$1:$1048576,HLOOKUP(Naam&Kapitaalkosten!L$5&EofG,'Data G'!$D$5:$IV$6,2,FALSE),FALSE))) -> 0
A169: 03Desgeen | B169: Desinvesteringen met afschrijvingstermijn: | C169: geen | G169: =IF(EofG="E",IF(ISERROR(VLOOKUP(Kapitaalkosten!$A169,'Data E (oud)'!$1:$1048576,HLOOKUP(Naam&Kapitaalkosten!G$5&EofG,'Data E (oud)'!$D$5:$IV$6,2,FALSE),FALSE)),0,VLOOKUP(Kapitaalkosten!$A169,'Data E (oud)'!$1:$1048576,HLOOKUP(Naam&Kapitaalkosten!G$5&EofG,'Data E (oud)'!$D$5:$IV$6,2,FALSE),FALSE)),IF(ISERROR(VLOOKUP(Kapitaalkosten!$A169,'Data G'!$1:$1048576,HLOOKUP(Naam&Kapitaalkosten!G$5&EofG,'Data G'!$D$5:$IV$6,2,FALSE),FALSE)),0,VLOOKUP(Kapitaalkosten!$A169,'Data G'!$1:$1048576,HLOOKUP(Naam&Kapitaalkosten!G$5&EofG,'Data G'!$D$5:$IV$6,2,FALSE),FALSE))) -> 0 | H169: =IF(EofG="E",IF(ISERROR(VLOOKUP(Kapitaalkosten!$A169,'Data E (oud)'!$1:$1048576,HLOOKUP(Naam&Kapitaalkosten!H$5&EofG,'Data E (oud)'!$D$5:$IV$6,2,FALSE),FALSE)),0,VLOOKUP(Kapitaalkosten!$A169,'Data E (oud)'!$1:$1048576,HLOOKUP(Naam&Kapitaalkosten!H$5&EofG,'Data E (oud)'!$D$5:$IV$6,2,FALSE),FALSE)),IF(ISERROR(VLOOKUP(Kapitaalkosten!$A169,'Data G'!$1:$1048576,HLOOKUP(Naam&Kapitaalkosten!H$5&EofG,'Data G'!$D$5:$IV$6,2,FALSE),FALSE)),0,VLOOKUP(Kapitaalkosten!$A169,'Data G'!$1:$1048576,HLOOKUP(Naam&Kapitaalkosten!H$5&EofG,'Data G'!$D$5:$IV$6,2,FALSE),FALSE))) -> 0 | I169: =IF(EofG="E",IF(ISERROR(VLOOKUP(Kapitaalkosten!$A169,'Data E (oud)'!$1:$1048576,HLOOKUP(Naam&Kapitaalkosten!I$5&EofG,'Data E (oud)'!$D$5:$IV$6,2,FALSE),FALSE)),0,VLOOKUP(Kapitaalkosten!$A169,'Data E (oud)'!$1:$1048576,HLOOKUP(Naam&Kapitaalkosten!I$5&EofG,'Data E (oud)'!$D$5:$IV$6,2,FALSE),FALSE)),IF(ISERROR(VLOOKUP(Kapitaalkosten!$A169,'Data G'!$1:$1048576,HLOOKUP(Naam&Kapitaalkosten!I$5&EofG,'Data G'!$D$5:$IV$6,2,FALSE),FALSE)),0,VLOOKUP(Kapitaalkosten!$A169,'Data G'!$1:$1048576,HLOOKUP(Naam&Kapitaalkosten!I$5&EofG,'Data G'!$D$5:$IV$6,2,FALSE),FALSE))) -> 0 | J169: =IF(EofG="E",IF(ISERROR(VLOOKUP(Kapitaalkosten!$A169,'Data E (oud)'!$1:$1048576,HLOOKUP(Naam&Kapitaalkosten!J$5&EofG,'Data E (oud)'!$D$5:$IV$6,2,FALSE),FALSE)),0,VLOOKUP(Kapitaalkosten!$A169,'Data E (oud)'!$1:$1048576,HLOOKUP(Naam&Kapitaalkosten!J$5&EofG,'Data E (oud)'!$D$5:$IV$6,2,FALSE),FALSE)),IF(ISERROR(VLOOKUP(Kapitaalkosten!$A169,'Data G'!$1:$1048576,HLOOKUP(Naam&Kapitaalkosten!J$5&EofG,'Data G'!$D$5:$IV$6,2,FALSE),FALSE)),0,VLOOKUP(Kapitaalkosten!$A169,'Data G'!$1:$1048576,HLOOKUP(Naam&Kapitaalkosten!J$5&EofG,'Data G'!$D$5:$IV$6,2,FALSE),FALSE))) -> 0 | K169: =IF(EofG="E",IF(ISERROR(VLOOKUP(Kapitaalkosten!$A169,'Data E (oud)'!$1:$1048576,HLOOKUP(Naam&Kapitaalkosten!K$5&EofG,'Data E (oud)'!$D$5:$IV$6,2,FALSE),FALSE)),0,VLOOKUP(Kapitaalkosten!$A169,'Data E (oud)'!$1:$1048576,HLOOKUP(Naam&Kapitaalkosten!K$5&EofG,'Data E (oud)'!$D$5:$IV$6,2,FALSE),FALSE)),IF(ISERROR(VLOOKUP(Kapitaalkosten!$A169,'Data G'!$1:$1048576,HLOOKUP(Naam&Kapitaalkosten!K$5&EofG,'Data G'!$D$5:$IV$6,2,FALSE),FALSE)),0,VLOOKUP(Kapitaalkosten!$A169,'Data G'!$1:$1048576,HLOOKUP(Naam&Kapitaalkosten!K$5&EofG,'Data G'!$D$5:$IV$6,2,FALSE),FALSE))) -> 0 | L169: =IF(EofG="E",IF(ISERROR(VLOOKUP(Kapitaalkosten!$A169,'Data E (oud)'!$1:$1048576,HLOOKUP(Naam&Kapitaalkosten!L$5&EofG,'Data E (oud)'!$D$5:$IV$6,2,FALSE),FALSE)),0,VLOOKUP(Kapitaalkosten!$A169,'Data E (oud)'!$1:$1048576,HLOOKUP(Naam&Kapitaalkosten!L$5&EofG,'Data E (oud)'!$D$5:$IV$6,2,FALSE),FALSE)),IF(ISERROR(VLOOKUP(Kapitaalkosten!$A169,'Data G'!$1:$1048576,HLOOKUP(Naam&Kapitaalkosten!L$5&EofG,'Data G'!$D$5:$IV$6,2,FALSE),FALSE)),0,VLOOKUP(Kapitaalkosten!$A169,'Data G'!$1:$1048576,HLOOKUP(Naam&Kapitaalkosten!L$5&EofG,'Data G'!$D$5:$IV$6,2,FALSE),FALSE))) -> 0
B170: Cumulatieve afschrijvingen desinvesteringen (c.a.d.) | G170: =SUM(G171:G177) -> 0 | H170: 0 | I170: 0 | J170: 0 | K170: 0 | L170: 0 | M170: 0 | N170: 0 | O170: 0 | P170: 0 | Q170: 0 | R170: 0 | S170: 0 | T170: 0 | U170: 0 | V170: 0 | W170: 0
A171: =RIGHT(B$141,2)&"cad"&C171 -> 03cad50 | B171: cumulatieve afschrijving bij afschrijvingstermijn | C171: 50 | G171: =IF(F144=0,"",(SUM($D153:F153)-SUM($D171:F171))*G162/F144+0.5*G162/$C162) ->  | H171: =IF(G144=0,"",(SUM($D153:G153)-SUM($D171:G171))*H162/G144+0.5*H162/$C162) ->  | I171: =IF(H144=0,"",(SUM($D153:H153)-SUM($D171:H171))*I162/H144+0.5*I162/$C162) ->  | J171: =IF(I144=0,"",(SUM($D153:I153)-SUM($D171:I171))*J162/I144+0.5*J162/$C162) ->  | K171: =IF(J144=0,"",(SUM($D153:J153)-SUM($D171:J171))*K162/J144+0.5*K162/$C162) ->  | L171: =IF(K144=0,"",(SUM($D153:K153)-SUM($D171:K171))*L162/K144+0.5*L162/$C162) ->  | M171: =IF(L144=0,"",(SUM($D153:L153)-SUM($D171:L171))*M162/L144+0.5*M162/$C162) ->  | N171: =IF(M144=0,"",(SUM($D153:M153)-SUM($D171:M171))*N162/M144+0.5*N162/$C162) ->  | O171: =IF(N144=0,"",(SUM($D153:N153)-SUM($D171:N171))*O162/N144+0.5*O162/$C162) ->  | P171: =IF(O144=0,"",(SUM($D153:O153)-SUM($D171:O171))*P162/O144+0.5*P162/$C162) ->  | Q171: =IF(P144=0,"",(SUM($D153:P153)-SUM($D171:P171))*Q162/P144+0.5*Q162/$C162) ->  | R171: =IF(Q144=0,"",(SUM($D153:Q153)-SUM($D171:Q171))*R162/Q144+0.5*R162/$C162) ->  | S171: =IF(R144=0,"",(SUM($D153:R153)-SUM($D171:R171))*S162/R144+0.5*S162/$C162) ->  | T171: =IF(S144=0,"",(SUM($D153:S153)-SUM($D171:S171))*T162/S144+0.5*T162/$C162) ->  | U171: =IF(T144=0,"",(SUM($D153:T153)-SUM($D171:T171))*U162/T144+0.5*U162/$C162) ->  | V171: =IF(U144=0,"",(SUM($D153:U153)-SUM($D171:U171))*V162/U144+0.5*V162/$C162) ->  | W171: =IF(V144=0,"",(SUM($D153:V153)-SUM($D171:V171))*W162/V144+0.5*W162/$C162) -> 
A172: 03cad40 | B172: cumulatieve afschrijving bij afschrijvingstermijn | C172: 40 | G172: =IF(F145=0,"",(SUM($D154:F154)-SUM($D172:F172))*G163/F145+0.5*G163/$C163) ->  | H172: =IF(G145=0,"",(SUM($D154:G154)-SUM($D172:G172))*H163/G145+0.5*H163/$C163) ->  | I172: =IF(H145=0,"",(SUM($D154:H154)-SUM($D172:H172))*I163/H145+0.5*I163/$C163) ->  | J172: =IF(I145=0,"",(SUM($D154:I154)-SUM($D172:I172))*J163/I145+0.5*J163/$C163) ->  | K172: =IF(J145=0,"",(SUM($D154:J154)-SUM($D172:J172))*K163/J145+0.5*K163/$C163) ->  | L172: =IF(K145=0,"",(SUM($D154:K154)-SUM($D172:K172))*L163/K145+0.5*L163/$C163) ->  | M172: =IF(L145=0,"",(SUM($D154:L154)-SUM($D172:L172))*M163/L145+0.5*M163/$C163) ->  | N172: =IF(M145=0,"",(SUM($D154:M154)-SUM($D172:M172))*N163/M145+0.5*N163/$C163) ->  | O172: =IF(N145=0,"",(SUM($D154:N154)-SUM($D172:N172))*O163/N145+0.5*O163/$C163) ->  | P172: =IF(O145=0,"",(SUM($D154:O154)-SUM($D172:O172))*P163/O145+0.5*P163/$C163) ->  | Q172: =IF(P145=0,"",(SUM($D154:P154)-SUM($D172:P172))*Q163/P145+0.5*Q163/$C163) ->  | R172: =IF(Q145=0,"",(SUM($D154:Q154)-SUM($D172:Q172))*R163/Q145+0.5*R163/$C163) ->  | S172: =IF(R145=0,"",(SUM($D154:R154)-SUM($D172:R172))*S163/R145+0.5*S163/$C163) ->  | T172: =IF(S145=0,"",(SUM($D154:S154)-SUM($D172:S172))*T163/S145+0.5*T163/$C163) ->  | U172: =IF(T145=0,"",(SUM($D154:T154)-SUM($D172:T172))*U163/T145+0.5*U163/$C163) ->  | V172: =IF(U145=0,"",(SUM($D154:U154)-SUM($D172:U172))*V163/U145+0.5*V163/$C163) ->  | W172: =IF(V145=0,"",(SUM($D154:V154)-SUM($D172:V172))*W163/V145+0.5*W163/$C163) -> 
A173: 03cad30 | B173: cumulatieve afschrijving bij afschrijvingstermijn | C173: 30 | G173: =IF(F146=0,"",(SUM($D155:F155)-SUM($D173:F173))*G164/F146+0.5*G164/$C164) ->  | H173: =IF(G146=0,"",(SUM($D155:G155)-SUM($D173:G173))*H164/G146+0.5*H164/$C164) ->  | I173: =IF(H146=0,"",(SUM($D155:H155)-SUM($D173:H173))*I164/H146+0.5*I164/$C164) ->  | J173: =IF(I146=0,"",(SUM($D155:I155)-SUM($D173:I173))*J164/I146+0.5*J164/$C164) ->  | K173: =IF(J146=0,"",(SUM($D155:J155)-SUM($D173:J173))*K164/J146+0.5*K164/$C164) ->  | L173: =IF(K146=0,"",(SUM($D155:K155)-SUM($D173:K173))*L164/K146+0.5*L164/$C164) ->  | M173: =IF(L146=0,"",(SUM($D155:L155)-SUM($D173:L173))*M164/L146+0.5*M164/$C164) ->  | N173: =IF(M146=0,"",(SUM($D155:M155)-SUM($D173:M173))*N164/M146+0.5*N164/$C164) ->  | O173: =IF(N146=0,"",(SUM($D155:N155)-SUM($D173:N173))*O164/N146+0.5*O164/$C164) ->  | P173: =IF(O146=0,"",(SUM($D155:O155)-SUM($D173:O173))*P164/O146+0.5*P164/$C164) ->  | Q173: =IF(P146=0,"",(SUM($D155:P155)-SUM($D173:P173))*Q164/P146+0.5*Q164/$C164) ->  | R173: =IF(Q146=0,"",(SUM($D155:Q155)-SUM($D173:Q173))*R164/Q146+0.5*R164/$C164) ->  | S173: =IF(R146=0,"",(SUM($D155:R155)-SUM($D173:R173))*S164/R146+0.5*S164/$C164) ->  | T173: =IF(S146=0,"",(SUM($D155:S155)-SUM($D173:S173))*T164/S146+0.5*T164/$C164) ->  | U173: =IF(T146=0,"",(SUM($D155:T155)-SUM($D173:T173))*U164/T146+0.5*U164/$C164) ->  | V173: =IF(U146=0,"",(SUM($D155:U155)-SUM($D173:U173))*V164/U146+0.5*V164/$C164) ->  | W173: =IF(V146=0,"",(SUM($D155:V155)-SUM($D173:V173))*W164/V146+0.5*W164/$C164) -> 
A174: 03cad25 | B174: cumulatieve afschrijving bij afschrijvingstermijn | C174: 25 | G174: =IF(F147=0,"",(SUM($D156:F156)-SUM($D174:F174))*G165/F147+0.5*G165/$C165) ->  | H174: =IF(G147=0,"",(SUM($D156:G156)-SUM($D174:G174))*H165/G147+0.5*H165/$C165) ->  | I174: =IF(H147=0,"",(SUM($D156:H156)-SUM($D174:H174))*I165/H147+0.5*I165/$C165) ->  | J174: =IF(I147=0,"",(SUM($D156:I156)-SUM($D174:I174))*J165/I147+0.5*J165/$C165) ->  | K174: =IF(J147=0,"",(SUM($D156:J156)-SUM($D174:J174))*K165/J147+0.5*K165/$C165) ->  | L174: =IF(K147=0,"",(SUM($D156:K156)-SUM($D174:K174))*L165/K147+0.5*L165/$C165) ->  | M174: =IF(L147=0,"",(SUM($D156:L156)-SUM($D174:L174))*M165/L147+0.5*M165/$C165) ->  | N174: =IF(M147=0,"",(SUM($D156:M156)-SUM($D174:M174))*N165/M147+0.5*N165/$C165) ->  | O174: =IF(N147=0,"",(SUM($D156:N156)-SUM($D174:N174))*O165/N147+0.5*O165/$C165) ->  | P174: =IF(O147=0,"",(SUM($D156:O156)-SUM($D174:O174))*P165/O147+0.5*P165/$C165) ->  | Q174: =IF(P147=0,"",(SUM($D156:P156)-SUM($D174:P174))*Q165/P147+0.5*Q165/$C165) ->  | R174: =IF(Q147=0,"",(SUM($D156:Q156)-SUM($D174:Q174))*R165/Q147+0.5*R165/$C165) ->  | S174: =IF(R147=0,"",(SUM($D156:R156)-SUM($D174:R174))*S165/R147+0.5*S165/$C165) ->  | T174: =IF(S147=0,"",(SUM($D156:S156)-SUM($D174:S174))*T165/S147+0.5*T165/$C165) ->  | U174: =IF(T147=0,"",(SUM($D156:T156)-SUM($D174:T174))*U165/T147+0.5*U165/$C165) ->  | V174: =IF(U147=0,"",(SUM($D156:U156)-SUM($D174:U174))*V165/U147+0.5*V165/$C165) ->  | W174: =IF(V147=0,"",(SUM($D156:V156)-SUM($D174:V174))*W165/V147+0.5*W165/$C165) -> 
A175: 03cad10 | B175: cumulatieve afschrijving bij afschrijvingstermijn | C175: 10 | G175: =IF(F148=0,"",(SUM($D157:F157)-SUM($D175:F175))*G166/F148+0.5*G166/$C166) ->  | H175: =IF(G148=0,"",(SUM($D157:G157)-SUM($D175:G175))*H166/G148+0.5*H166/$C166) ->  | I175: =IF(H148=0,"",(SUM($D157:H157)-SUM($D175:H175))*I166/H148+0.5*I166/$C166) ->  | J175: =IF(I148=0,"",(SUM($D157:I157)-SUM($D175:I175))*J166/I148+0.5*J166/$C166) ->  | K175: =IF(J148=0,"",(SUM($D157:J157)-SUM($D175:J175))*K166/J148+0.5*K166/$C166) ->  | L175: =IF(K148=0,"",(SUM($D157:K157)-SUM($D175:K175))*L166/K148+0.5*L166/$C166) ->  | M175: =IF(L148=0,"",(SUM($D157:L157)-SUM($D175:L175))*M166/L148+0.5*M166/$C166) ->  | N175: =IF(M148=0,"",(SUM($D157:M157)-SUM($D175:M175))*N166/M148+0.5*N166/$C166) ->  | O175: =IF(N148=0,"",(SUM($D157:N157)-SUM($D175:N175))*O166/N148+0.5*O166/$C166) ->  | P175: =IF(O148=0,"",(SUM($D157:O157)-SUM($D175:O175))*P166/O148+0.5*P166/$C166) ->  | Q175: =IF(P148=0,"",(SUM($D157:P157)-SUM($D175:P175))*Q166/P148+0.5*Q166/$C166) ->  | R175: =IF(Q148=0,"",(SUM($D157:Q157)-SUM($D175:Q175))*R166/Q148+0.5*R166/$C166) ->  | S175: =IF(R148=0,"",(SUM($D157:R157)-SUM($D175:R175))*S166/R148+0.5*S166/$C166) ->  | T175: =IF(S148=0,"",(SUM($D157:S157)-SUM($D175:S175))*T166/S148+0.5*T166/$C166) ->  | U175: =IF(T148=0,"",(SUM($D157:T157)-SUM($D175:T175))*U166/T148+0.5*U166/$C166) ->  | V175: =IF(U148=0,"",(SUM($D157:U157)-SUM($D175:U175))*V166/U148+0.5*V166/$C166) ->  | W175: =IF(V148=0,"",(SUM($D157:V157)-SUM($D175:V175))*W166/V148+0.5*W166/$C166) -> 
A176: 03cad5 | B176: cumulatieve afschrijving bij afschrijvingstermijn | C176: 5 | G176: =IF(F149=0,"",(SUM($D158:F158)-SUM($D176:F176))*G167/F149+0.5*G167/$C167) ->  | H176: =IF(G149=0,"",(SUM($D158:G158)-SUM($D176:G176))*H167/G149+0.5*H167/$C167) ->  | I176: =IF(H149=0,"",(SUM($D158:H158)-SUM($D176:H176))*I167/H149+0.5*I167/$C167) ->  | J176: =IF(I149=0,"",(SUM($D158:I158)-SUM($D176:I176))*J167/I149+0.5*J167/$C167) ->  | K176: =IF(J149=0,"",(SUM($D158:J158)-SUM($D176:J176))*K167/J149+0.5*K167/$C167) ->  | L176: =IF(K149=0,"",(SUM($D158:K158)-SUM($D176:K176))*L167/K149+0.5*L167/$C167) ->  | M176: =IF(L149=0,"",(SUM($D158:L158)-SUM($D176:L176))*M167/L149+0.5*M167/$C167) ->  | N176: =IF(M149=0,"",(SUM($D158:M158)-SUM($D176:M176))*N167/M149+0.5*N167/$C167) ->  | O176: =IF(N149=0,"",(SUM($D158:N158)-SUM($D176:N176))*O167/N149+0.5*O167/$C167) ->  | P176: =IF(O149=0,"",(SUM($D158:O158)-SUM($D176:O176))*P167/O149+0.5*P167/$C167) ->  | Q176: =IF(P149=0,"",(SUM($D158:P158)-SUM($D176:P176))*Q167/P149+0.5*Q167/$C167) ->  | R176: =IF(Q149=0,"",(SUM($D158:Q158)-SUM($D176:Q176))*R167/Q149+0.5*R167/$C167) ->  | S176: =IF(R149=0,"",(SUM($D158:R158)-SUM($D176:R176))*S167/R149+0.5*S167/$C167) ->  | T176: =IF(S149=0,"",(SUM($D158:S158)-SUM($D176:S176))*T167/S149+0.5*T167/$C167) ->  | U176: =IF(T149=0,"",(SUM($D158:T158)-SUM($D176:T176))*U167/T149+0.5*U167/$C167) ->  | V176: =IF(U149=0,"",(SUM($D158:U158)-SUM($D176:U176))*V167/U149+0.5*V167/$C167) ->  | W176: =IF(V149=0,"",(SUM($D158:V158)-SUM($D176:V176))*W167/V149+0.5*W167/$C167) -> 
A177: 03cad3 | B177: cumulatieve afschrijving bij afschrijvingstermijn | C177: 3 | G177: =IF(F150=0,"",(SUM($D159:F159)-SUM($D177:F177))*G168/F150+0.5*G168/$C168) ->  | H177: =IF(G150=0,"",(SUM($D159:G159)-SUM($D177:G177))*H168/G150+0.5*H168/$C168) ->  | I177: =IF(H150=0,"",(SUM($D159:H159)-SUM($D177:H177))*I168/H150+0.5*I168/$C168) ->  | J177: =IF(I150=0,"",(SUM($D159:I159)-SUM($D177:I177))*J168/I150+0.5*J168/$C168) ->  | K177: =IF(J150=0,"",(SUM($D159:J159)-SUM($D177:J177))*K168/J150+0.5*K168/$C168) ->  | L177: =IF(K150=0,"",(SUM($D159:K159)-SUM($D177:K177))*L168/K150+0.5*L168/$C168) ->  | M177: =IF(L150=0,"",(SUM($D159:L159)-SUM($D177:L177))*M168/L150+0.5*M168/$C168) ->  | N177: =IF(M150=0,"",(SUM($D159:M159)-SUM($D177:M177))*N168/M150+0.5*N168/$C168) ->  | O177: =IF(N150=0,"",(SUM($D159:N159)-SUM($D177:N177))*O168/N150+0.5*O168/$C168) ->  | P177: =IF(O150=0,"",(SUM($D159:O159)-SUM($D177:O177))*P168/O150+0.5*P168/$C168) ->  | Q177: =IF(P150=0,"",(SUM($D159:P159)-SUM($D177:P177))*Q168/P150+0.5*Q168/$C168) ->  | R177: =IF(Q150=0,"",(SUM($D159:Q159)-SUM($D177:Q177))*R168/Q150+0.5*R168/$C168) ->  | S177: =IF(R150=0,"",(SUM($D159:R159)-SUM($D177:R177))*S168/R150+0.5*S168/$C168) ->  | T177: =IF(S150=0,"",(SUM($D159:S159)-SUM($D177:S177))*T168/S150+0.5*T168/$C168) ->  | U177: =IF(T150=0,"",(SUM($D159:T159)-SUM($D177:T177))*U168/T150+0.5*U168/$C168) ->  | V177: =IF(U150=0,"",(SUM($D159:U159)-SUM($D177:U177))*V168/U150+0.5*V168/$C168) ->  | W177: =IF(V150=0,"",(SUM($D159:V159)-SUM($D177:V177))*W168/V150+0.5*W168/$C168) -> 
A178: =RIGHT(B$141,2)&"cad" -> 03cad | B178: c.a.d. opgegeven door netbeheerder | G178: =IF(EofG="E",IF(ISERROR(VLOOKUP(Kapitaalkosten!$A178,'Data E (oud)'!$1:$1048576,HLOOKUP(Naam&Kapitaalkosten!G$5&EofG,'Data E (oud)'!$D$5:$IV$6,2,FALSE),FALSE)),0,VLOOKUP(Kapitaalkosten!$A178,'Data E (oud)'!$1:$1048576,HLOOKUP(Naam&Kapitaalkosten!G$5&EofG,'Data E (oud)'!$D$5:$IV$6,2,FALSE),FALSE)),IF(ISERROR(VLOOKUP(Kapitaalkosten!$A178,'Data G'!$1:$1048576,HLOOKUP(Naam&Kapitaalkosten!G$5&EofG,'Data G'!$D$5:$IV$6,2,FALSE),FALSE)),0,VLOOKUP(Kapitaalkosten!$A178,'Data G'!$1:$1048576,HLOOKUP(Naam&Kapitaalkosten!G$5&EofG,'Data G'!$D$5:$IV$6,2,FALSE),FALSE))) -> 0 | H178: =IF(EofG="E",IF(ISERROR(VLOOKUP(Kapitaalkosten!$A178,'Data E (oud)'!$1:$1048576,HLOOKUP(Naam&Kapitaalkosten!H$5&EofG,'Data E (oud)'!$D$5:$IV$6,2,FALSE),FALSE)),0,VLOOKUP(Kapitaalkosten!$A178,'Data E (oud)'!$1:$1048576,HLOOKUP(Naam&Kapitaalkosten!H$5&EofG,'Data E (oud)'!$D$5:$IV$6,2,FALSE),FALSE)),IF(ISERROR(VLOOKUP(Kapitaalkosten!$A178,'Data G'!$1:$1048576,HLOOKUP(Naam&Kapitaalkosten!H$5&EofG,'Data G'!$D$5:$IV$6,2,FALSE),FALSE)),0,VLOOKUP(Kapitaalkosten!$A178,'Data G'!$1:$1048576,HLOOKUP(Naam&Kapitaalkosten!H$5&EofG,'Data G'!$D$5:$IV$6,2,FALSE),FALSE))) -> 0 | I178: =IF(EofG="E",IF(ISERROR(VLOOKUP(Kapitaalkosten!$A178,'Data E (oud)'!$1:$1048576,HLOOKUP(Naam&Kapitaalkosten!I$5&EofG,'Data E (oud)'!$D$5:$IV$6,2,FALSE),FALSE)),0,VLOOKUP(Kapitaalkosten!$A178,'Data E (oud)'!$1:$1048576,HLOOKUP(Naam&Kapitaalkosten!I$5&EofG,'Data E (oud)'!$D$5:$IV$6,2,FALSE),FALSE)),IF(ISERROR(VLOOKUP(Kapitaalkosten!$A178,'Data G'!$1:$1048576,HLOOKUP(Naam&Kapitaalkosten!I$5&EofG,'Data G'!$D$5:$IV$6,2,FALSE),FALSE)),0,VLOOKUP(Kapitaalkosten!$A178,'Data G'!$1:$1048576,HLOOKUP(Naam&Kapitaalkosten!I$5&EofG,'Data G'!$D$5:$IV$6,2,FALSE),FALSE))) -> 0 | J178: =J170 -> 0 | K178: =K170 -> 0 | L178: =L170 -> 0
A179: =RIGHT(B$141,2)&"bwv" -> 03bwv | B179: Bijzondere waardeverminderingen | G179: =SUM(G180:G186) -> 0 | H179: 0 | I179: 0 | J179: 0 | K179: 0 | L179: 0 | M179: 0 | N179: 0 | O179: 0 | P179: 0 | Q179: 0 | R179: 0 | S179: 0 | T179: 0 | U179: 0 | V179: 0 | W179: 0
A180: =RIGHT(B$141,2)&"bwv"&C180 -> 03bwv50 | B180: bijzondere waardevermindering bij afschrijvingstermijn | C180: 50 | G180: =IF(EofG="E",IF(ISERROR(VLOOKUP(Kapitaalkosten!$A180,'Data E (oud)'!$1:$1048576,HLOOKUP(Naam&Kapitaalkosten!G$5&EofG,'Data E (oud)'!$D$5:$IV$6,2,FALSE),FALSE)),0,VLOOKUP(Kapitaalkosten!$A180,'Data E (oud)'!$1:$1048576,HLOOKUP(Naam&Kapitaalkosten!G$5&EofG,'Data E (oud)'!$D$5:$IV$6,2,FALSE),FALSE)),IF(ISERROR(VLOOKUP(Kapitaalkosten!$A180,'Data G'!$1:$1048576,HLOOKUP(Naam&Kapitaalkosten!G$5&EofG,'Data G'!$D$5:$IV$6,2,FALSE),FALSE)),0,VLOOKUP(Kapitaalkosten!$A180,'Data G'!$1:$1048576,HLOOKUP(Naam&Kapitaalkosten!G$5&EofG,'Data G'!$D$5:$IV$6,2,FALSE),FALSE))) -> 0 | H180: =IF(EofG="E",IF(ISERROR(VLOOKUP(Kapitaalkosten!$A180,'Data E (oud)'!$1:$1048576,HLOOKUP(Naam&Kapitaalkosten!H$5&EofG,'Data E (oud)'!$D$5:$IV$6,2,FALSE),FALSE)),0,VLOOKUP(Kapitaalkosten!$A180,'Data E (oud)'!$1:$1048576,HLOOKUP(Naam&Kapitaalkosten!H$5&EofG,'Data E (oud)'!$D$5:$IV$6,2,FALSE),FALSE)),IF(ISERROR(VLOOKUP(Kapitaalkosten!$A180,'Data G'!$1:$1048576,HLOOKUP(Naam&Kapitaalkosten!H$5&EofG,'Data G'!$D$5:$IV$6,2,FALSE),FALSE)),0,VLOOKUP(Kapitaalkosten!$A180,'Data G'!$1:$1048576,HLOOKUP(Naam&Kapitaalkosten!H$5&EofG,'Data G'!$D$5:$IV$6,2,FALSE),FALSE))) -> 0 | I180: =IF(EofG="E",IF(ISERROR(VLOOKUP(Kapitaalkosten!$A180,'Data E (oud)'!$1:$1048576,HLOOKUP(Naam&Kapitaalkosten!I$5&EofG,'Data E (oud)'!$D$5:$IV$6,2,FALSE),FALSE)),0,VLOOKUP(Kapitaalkosten!$A180,'Data E (oud)'!$1:$1048576,HLOOKUP(Naam&Kapitaalkosten!I$5&EofG,'Data E (oud)'!$D$5:$IV$6,2,FALSE),FALSE)),IF(ISERROR(VLOOKUP(Kapitaalkosten!$A180,'Data G'!$1:$1048576,HLOOKUP(Naam&Kapitaalkosten!I$5&EofG,'Data G'!$D$5:$IV$6,2,FALSE),FALSE)),0,VLOOKUP(Kapitaalkosten!$A180,'Data G'!$1:$1048576,HLOOKUP(Naam&Kapitaalkosten!I$5&EofG,'Data G'!$D$5:$IV$6,2,FALSE),FALSE))) -> 0 | J180: =IF(EofG="E",IF(ISERROR(VLOOKUP(Kapitaalkosten!$A180,'Data E (oud)'!$1:$1048576,HLOOKUP(Naam&Kapitaalkosten!J$5&EofG,'Data E (oud)'!$D$5:$IV$6,2,FALSE),FALSE)),0,VLOOKUP(Kapitaalkosten!$A180,'Data E (oud)'!$1:$1048576,HLOOKUP(Naam&Kapitaalkosten!J$5&EofG,'Data E (oud)'!$D$5:$IV$6,2,FALSE),FALSE)),IF(ISERROR(VLOOKUP(Kapitaalkosten!$A180,'Data G'!$1:$1048576,HLOOKUP(Naam&Kapitaalkosten!J$5&EofG,'Data G'!$D$5:$IV$6,2,FALSE),FALSE)),0,VLOOKUP(Kapitaalkosten!$A180,'Data G'!$1:$1048576,HLOOKUP(Naam&Kapitaalkosten!J$5&EofG,'Data G'!$D$5:$IV$6,2,FALSE),FALSE))) -> 0 | K180: =IF(EofG="E",IF(ISERROR(VLOOKUP(Kapitaalkosten!$A180,'Data E (oud)'!$1:$1048576,HLOOKUP(Naam&Kapitaalkosten!K$5&EofG,'Data E (oud)'!$D$5:$IV$6,2,FALSE),FALSE)),0,VLOOKUP(Kapitaalkosten!$A180,'Data E (oud)'!$1:$1048576,HLOOKUP(Naam&Kapitaalkosten!K$5&EofG,'Data E (oud)'!$D$5:$IV$6,2,FALSE),FALSE)),IF(ISERROR(VLOOKUP(Kapitaalkosten!$A180,'Data G'!$1:$1048576,HLOOKUP(Naam&Kapitaalkosten!K$5&EofG,'Data G'!$D$5:$IV$6,2,FALSE),FALSE)),0,VLOOKUP(Kapitaalkosten!$A180,'Data G'!$1:$1048576,HLOOKUP(Naam&Kapitaalkosten!K$5&EofG,'Data G'!$D$5:$IV$6,2,FALSE),FALSE))) -> 0 | L180: =IF(EofG="E",IF(ISERROR(VLOOKUP(Kapitaalkosten!$A180,'Data E (oud)'!$1:$1048576,HLOOKUP(Naam&Kapitaalkosten!L$5&EofG,'Data E (oud)'!$D$5:$IV$6,2,FALSE),FALSE)),0,VLOOKUP(Kapitaalkosten!$A180,'Data E (oud)'!$1:$1048576,HLOOKUP(Naam&Kapitaalkosten!L$5&EofG,'Data E (oud)'!$D$5:$IV$6,2,FALSE),FALSE)),IF(ISERROR(VLOOKUP(Kapitaalkosten!$A180,'Data G'!$1:$1048576,HLOOKUP(Naam&Kapitaalkosten!L$5&EofG,'Data G'!$D$5:$IV$6,2,FALSE),FALSE)),0,VLOOKUP(Kapitaalkosten!$A180,'Data G'!$1:$1048576,HLOOKUP(Naam&Kapitaalkosten!L$5&EofG,'Data G'!$D$5:$IV$6,2,FALSE),FALSE))) -> 0
A181: =RIGHT(B$141,2)&"bwv"&C181 -> 03bwv40 | B181: bijzondere waardevermindering bij afschrijvingstermijn | C181: 40 | G181: =IF(EofG="E",IF(ISERROR(VLOOKUP(Kapitaalkosten!$A181,'Data E (oud)'!$1:$1048576,HLOOKUP(Naam&Kapitaalkosten!G$5&EofG,'Data E (oud)'!$D$5:$IV$6,2,FALSE),FALSE)),0,VLOOKUP(Kapitaalkosten!$A181,'Data E (oud)'!$1:$1048576,HLOOKUP(Naam&Kapitaalkosten!G$5&EofG,'Data E (oud)'!$D$5:$IV$6,2,FALSE),FALSE)),IF(ISERROR(VLOOKUP(Kapitaalkosten!$A181,'Data G'!$1:$1048576,HLOOKUP(Naam&Kapitaalkosten!G$5&EofG,'Data G'!$D$5:$IV$6,2,FALSE),FALSE)),0,VLOOKUP(Kapitaalkosten!$A181,'Data G'!$1:$1048576,HLOOKUP(Naam&Kapitaalkosten!G$5&EofG,'Data G'!$D$5:$IV$6,2,FALSE),FALSE))) -> 0 | H181: =IF(EofG="E",IF(ISERROR(VLOOKUP(Kapitaalkosten!$A181,'Data E (oud)'!$1:$1048576,HLOOKUP(Naam&Kapitaalkosten!H$5&EofG,'Data E (oud)'!$D$5:$IV$6,2,FALSE),FALSE)),0,VLOOKUP(Kapitaalkosten!$A181,'Data E (oud)'!$1:$1048576,HLOOKUP(Naam&Kapitaalkosten!H$5&EofG,'Data E (oud)'!$D$5:$IV$6,2,FALSE),FALSE)),IF(ISERROR(VLOOKUP(Kapitaalkosten!$A181,'Data G'!$1:$1048576,HLOOKUP(Naam&Kapitaalkosten!H$5&EofG,'Data G'!$D$5:$IV$6,2,FALSE),FALSE)),0,VLOOKUP(Kapitaalkosten!$A181,'Data G'!$1:$1048576,HLOOKUP(Naam&Kapitaalkosten!H$5&EofG,'Data G'!$D$5:$IV$6,2,FALSE),FALSE))) -> 0 | I181: =IF(EofG="E",IF(ISERROR(VLOOKUP(Kapitaalkosten!$A181,'Data E (oud)'!$1:$1048576,HLOOKUP(Naam&Kapitaalkosten!I$5&EofG,'Data E (oud)'!$D$5:$IV$6,2,FALSE),FALSE)),0,VLOOKUP(Kapitaalkosten!$A181,'Data E (oud)'!$1:$1048576,HLOOKUP(Naam&Kapitaalkosten!I$5&EofG,'Data E (oud)'!$D$5:$IV$6,2,FALSE),FALSE)),IF(ISERROR(VLOOKUP(Kapitaalkosten!$A181,'Data G'!$1:$1048576,HLOOKUP(Naam&Kapitaalkosten!I$5&EofG,'Data G'!$D$5:$IV$6,2,FALSE),FALSE)),0,VLOOKUP(Kapitaalkosten!$A181,'Data G'!$1:$1048576,HLOOKUP(Naam&Kapitaalkosten!I$5&EofG,'Data G'!$D$5:$IV$6,2,FALSE),FALSE))) -> 0 | J181: =IF(EofG="E",IF(ISERROR(VLOOKUP(Kapitaalkosten!$A181,'Data E (oud)'!$1:$1048576,HLOOKUP(Naam&Kapitaalkosten!J$5&EofG,'Data E (oud)'!$D$5:$IV$6,2,FALSE),FALSE)),0,VLOOKUP(Kapitaalkosten!$A181,'Data E (oud)'!$1:$1048576,HLOOKUP(Naam&Kapitaalkosten!J$5&EofG,'Data E (oud)'!$D$5:$IV$6,2,FALSE),FALSE)),IF(ISERROR(VLOOKUP(Kapitaalkosten!$A181,'Data G'!$1:$1048576,HLOOKUP(Naam&Kapitaalkosten!J$5&EofG,'Data G'!$D$5:$IV$6,2,FALSE),FALSE)),0,VLOOKUP(Kapitaalkosten!$A181,'Data G'!$1:$1048576,HLOOKUP(Naam&Kapitaalkosten!J$5&EofG,'Data G'!$D$5:$IV$6,2,FALSE),FALSE))) -> 0 | K181: =IF(EofG="E",IF(ISERROR(VLOOKUP(Kapitaalkosten!$A181,'Data E (oud)'!$1:$1048576,HLOOKUP(Naam&Kapitaalkosten!K$5&EofG,'Data E (oud)'!$D$5:$IV$6,2,FALSE),FALSE)),0,VLOOKUP(Kapitaalkosten!$A181,'Data E (oud)'!$1:$1048576,HLOOKUP(Naam&Kapitaalkosten!K$5&EofG,'Data E (oud)'!$D$5:$IV$6,2,FALSE),FALSE)),IF(ISERROR(VLOOKUP(Kapitaalkosten!$A181,'Data G'!$1:$1048576,HLOOKUP(Naam&Kapitaalkosten!K$5&EofG,'Data G'!$D$5:$IV$6,2,FALSE),FALSE)),0,VLOOKUP(Kapitaalkosten!$A181,'Data G'!$1:$1048576,HLOOKUP(Naam&Kapitaalkosten!K$5&EofG,'Data G'!$D$5:$IV$6,2,FALSE),FALSE))) -> 0 | L181: =IF(EofG="E",IF(ISERROR(VLOOKUP(Kapitaalkosten!$A181,'Data E (oud)'!$1:$1048576,HLOOKUP(Naam&Kapitaalkosten!L$5&EofG,'Data E (oud)'!$D$5:$IV$6,2,FALSE),FALSE)),0,VLOOKUP(Kapitaalkosten!$A181,'Data E (oud)'!$1:$1048576,HLOOKUP(Naam&Kapitaalkosten!L$5&EofG,'Data E (oud)'!$D$5:$IV$6,2,FALSE),FALSE)),IF(ISERROR(VLOOKUP(Kapitaalkosten!$A181,'Data G'!$1:$1048576,HLOOKUP(Naam&Kapitaalkosten!L$5&EofG,'Data G'!$D$5:$IV$6,2,FALSE),FALSE)),0,VLOOKUP(Kapitaalkosten!$A181,'Data G'!$1:$1048576,HLOOKUP(Naam&Kapitaalkosten!L$5&EofG,'Data G'!$D$5:$IV$6,2,FALSE),FALSE))) -> 0
A182: 03bwv30 | B182: bijzondere waardevermindering bij afschrijvingstermijn | C182: 30 | G182: =IF(EofG="E",IF(ISERROR(VLOOKUP(Kapitaalkosten!$A182,'Data E (oud)'!$1:$1048576,HLOOKUP(Naam&Kapitaalkosten!G$5&EofG,'Data E (oud)'!$D$5:$IV$6,2,FALSE),FALSE)),0,VLOOKUP(Kapitaalkosten!$A182,'Data E (oud)'!$1:$1048576,HLOOKUP(Naam&Kapitaalkosten!G$5&EofG,'Data E (oud)'!$D$5:$IV$6,2,FALSE),FALSE)),IF(ISERROR(VLOOKUP(Kapitaalkosten!$A182,'Data G'!$1:$1048576,HLOOKUP(Naam&Kapitaalkosten!G$5&EofG,'Data G'!$D$5:$IV$6,2,FALSE),FALSE)),0,VLOOKUP(Kapitaalkosten!$A182,'Data G'!$1:$1048576,HLOOKUP(Naam&Kapitaalkosten!G$5&EofG,'Data G'!$D$5:$IV$6,2,FALSE),FALSE))) -> 0 | H182: =IF(EofG="E",IF(ISERROR(VLOOKUP(Kapitaalkosten!$A182,'Data E (oud)'!$1:$1048576,HLOOKUP(Naam&Kapitaalkosten!H$5&EofG,'Data E (oud)'!$D$5:$IV$6,2,FALSE),FALSE)),0,VLOOKUP(Kapitaalkosten!$A182,'Data E (oud)'!$1:$1048576,HLOOKUP(Naam&Kapitaalkosten!H$5&EofG,'Data E (oud)'!$D$5:$IV$6,2,FALSE),FALSE)),IF(ISERROR(VLOOKUP(Kapitaalkosten!$A182,'Data G'!$1:$1048576,HLOOKUP(Naam&Kapitaalkosten!H$5&EofG,'Data G'!$D$5:$IV$6,2,FALSE),FALSE)),0,VLOOKUP(Kapitaalkosten!$A182,'Data G'!$1:$1048576,HLOOKUP(Naam&Kapitaalkosten!H$5&EofG,'Data G'!$D$5:$IV$6,2,FALSE),FALSE))) -> 0 | I182: =IF(EofG="E",IF(ISERROR(VLOOKUP(Kapitaalkosten!$A182,'Data E (oud)'!$1:$1048576,HLOOKUP(Naam&Kapitaalkosten!I$5&EofG,'Data E (oud)'!$D$5:$IV$6,2,FALSE),FALSE)),0,VLOOKUP(Kapitaalkosten!$A182,'Data E (oud)'!$1:$1048576,HLOOKUP(Naam&Kapitaalkosten!I$5&EofG,'Data E (oud)'!$D$5:$IV$6,2,FALSE),FALSE)),IF(ISERROR(VLOOKUP(Kapitaalkosten!$A182,'Data G'!$1:$1048576,HLOOKUP(Naam&Kapitaalkosten!I$5&EofG,'Data G'!$D$5:$IV$6,2,FALSE),FALSE)),0,VLOOKUP(Kapitaalkosten!$A182,'Data G'!$1:$1048576,HLOOKUP(Naam&Kapitaalkosten!I$5&EofG,'Data G'!$D$5:$IV$6,2,FALSE),FALSE))) -> 0 | J182: =IF(EofG="E",IF(ISERROR(VLOOKUP(Kapitaalkosten!$A182,'Data E (oud)'!$1:$1048576,HLOOKUP(Naam&Kapitaalkosten!J$5&EofG,'Data E (oud)'!$D$5:$IV$6,2,FALSE),FALSE)),0,VLOOKUP(Kapitaalkosten!$A182,'Data E (oud)'!$1:$1048576,HLOOKUP(Naam&Kapitaalkosten!J$5&EofG,'Data E (oud)'!$D$5:$IV$6,2,FALSE),FALSE)),IF(ISERROR(VLOOKUP(Kapitaalkosten!$A182,'Data G'!$1:$1048576,HLOOKUP(Naam&Kapitaalkosten!J$5&EofG,'Data G'!$D$5:$IV$6,2,FALSE),FALSE)),0,VLOOKUP(Kapitaalkosten!$A182,'Data G'!$1:$1048576,HLOOKUP(Naam&Kapitaalkosten!J$5&EofG,'Data G'!$D$5:$IV$6,2,FALSE),FALSE))) -> 0 | K182: =IF(EofG="E",IF(ISERROR(VLOOKUP(Kapitaalkosten!$A182,'Data E (oud)'!$1:$1048576,HLOOKUP(Naam&Kapitaalkosten!K$5&EofG,'Data E (oud)'!$D$5:$IV$6,2,FALSE),FALSE)),0,VLOOKUP(Kapitaalkosten!$A182,'Data E (oud)'!$1:$1048576,HLOOKUP(Naam&Kapitaalkosten!K$5&EofG,'Data E (oud)'!$D$5:$IV$6,2,FALSE),FALSE)),IF(ISERROR(VLOOKUP(Kapitaalkosten!$A182,'Data G'!$1:$1048576,HLOOKUP(Naam&Kapitaalkosten!K$5&EofG,'Data G'!$D$5:$IV$6,2,FALSE),FALSE)),0,VLOOKUP(Kapitaalkosten!$A182,'Data G'!$1:$1048576,HLOOKUP(Naam&Kapitaalkosten!K$5&EofG,'Data G'!$D$5:$IV$6,2,FALSE),FALSE))) -> 0 | L182: =IF(EofG="E",IF(ISERROR(VLOOKUP(Kapitaalkosten!$A182,'Data E (oud)'!$1:$1048576,HLOOKUP(Naam&Kapitaalkosten!L$5&EofG,'Data E (oud)'!$D$5:$IV$6,2,FALSE),FALSE)),0,VLOOKUP(Kapitaalkosten!$A182,'Data E (oud)'!$1:$1048576,HLOOKUP(Naam&Kapitaalkosten!L$5&EofG,'Data E (oud)'!$D$5:$IV$6,2,FALSE),FALSE)),IF(ISERROR(VLOOKUP(Kapitaalkosten!$A182,'Data G'!$1:$1048576,HLOOKUP(Naam&Kapitaalkosten!L$5&EofG,'Data G'!$D$5:$IV$6,2,FALSE),FALSE)),0,VLOOKUP(Kapitaalkosten!$A182,'Data G'!$1:$1048576,HLOOKUP(Naam&Kapitaalkosten!L$5&EofG,'Data G'!$D$5:$IV$6,2,FALSE),FALSE))) -> 0
A183: 03bwv25 | B183: bijzondere waardevermindering bij afschrijvingstermijn | C183: 25 | G183: =IF(EofG="E",IF(ISERROR(VLOOKUP(Kapitaalkosten!$A183,'Data E (oud)'!$1:$1048576,HLOOKUP(Naam&Kapitaalkosten!G$5&EofG,'Data E (oud)'!$D$5:$IV$6,2,FALSE),FALSE)),0,VLOOKUP(Kapitaalkosten!$A183,'Data E (oud)'!$1:$1048576,HLOOKUP(Naam&Kapitaalkosten!G$5&EofG,'Data E (oud)'!$D$5:$IV$6,2,FALSE),FALSE)),IF(ISERROR(VLOOKUP(Kapitaalkosten!$A183,'Data G'!$1:$1048576,HLOOKUP(Naam&Kapitaalkosten!G$5&EofG,'Data G'!$D$5:$IV$6,2,FALSE),FALSE)),0,VLOOKUP(Kapitaalkosten!$A183,'Data G'!$1:$1048576,HLOOKUP(Naam&Kapitaalkosten!G$5&EofG,'Data G'!$D$5:$IV$6,2,FALSE),FALSE))) -> 0 | H183: =IF(EofG="E",IF(ISERROR(VLOOKUP(Kapitaalkosten!$A183,'Data E (oud)'!$1:$1048576,HLOOKUP(Naam&Kapitaalkosten!H$5&EofG,'Data E (oud)'!$D$5:$IV$6,2,FALSE),FALSE)),0,VLOOKUP(Kapitaalkosten!$A183,'Data E (oud)'!$1:$1048576,HLOOKUP(Naam&Kapitaalkosten!H$5&EofG,'Data E (oud)'!$D$5:$IV$6,2,FALSE),FALSE)),IF(ISERROR(VLOOKUP(Kapitaalkosten!$A183,'Data G'!$1:$1048576,HLOOKUP(Naam&Kapitaalkosten!H$5&EofG,'Data G'!$D$5:$IV$6,2,FALSE),FALSE)),0,VLOOKUP(Kapitaalkosten!$A183,'Data G'!$1:$1048576,HLOOKUP(Naam&Kapitaalkosten!H$5&EofG,'Data G'!$D$5:$IV$6,2,FALSE),FALSE))) -> 0 | I183: =IF(EofG="E",IF(ISERROR(VLOOKUP(Kapitaalkosten!$A183,'Data E (oud)'!$1:$1048576,HLOOKUP(Naam&Kapitaalkosten!I$5&EofG,'Data E (oud)'!$D$5:$IV$6,2,FALSE),FALSE)),0,VLOOKUP(Kapitaalkosten!$A183,'Data E (oud)'!$1:$1048576,HLOOKUP(Naam&Kapitaalkosten!I$5&EofG,'Data E (oud)'!$D$5:$IV$6,2,FALSE),FALSE)),IF(ISERROR(VLOOKUP(Kapitaalkosten!$A183,'Data G'!$1:$1048576,HLOOKUP(Naam&Kapitaalkosten!I$5&EofG,'Data G'!$D$5:$IV$6,2,FALSE),FALSE)),0,VLOOKUP(Kapitaalkosten!$A183,'Data G'!$1:$1048576,HLOOKUP(Naam&Kapitaalkosten!I$5&EofG,'Data G'!$D$5:$IV$6,2,FALSE),FALSE))) -> 0 | J183: =IF(EofG="E",IF(ISERROR(VLOOKUP(Kapitaalkosten!$A183,'Data E (oud)'!$1:$1048576,HLOOKUP(Naam&Kapitaalkosten!J$5&EofG,'Data E (oud)'!$D$5:$IV$6,2,FALSE),FALSE)),0,VLOOKUP(Kapitaalkosten!$A183,'Data E (oud)'!$1:$1048576,HLOOKUP(Naam&Kapitaalkosten!J$5&EofG,'Data E (oud)'!$D$5:$IV$6,2,FALSE),FALSE)),IF(ISERROR(VLOOKUP(Kapitaalkosten!$A183,'Data G'!$1:$1048576,HLOOKUP(Naam&Kapitaalkosten!J$5&EofG,'Data G'!$D$5:$IV$6,2,FALSE),FALSE)),0,VLOOKUP(Kapitaalkosten!$A183,'Data G'!$1:$1048576,HLOOKUP(Naam&Kapitaalkosten!J$5&EofG,'Data G'!$D$5:$IV$6,2,FALSE),FALSE))) -> 0 | K183: =IF(EofG="E",IF(ISERROR(VLOOKUP(Kapitaalkosten!$A183,'Data E (oud)'!$1:$1048576,HLOOKUP(Naam&Kapitaalkosten!K$5&EofG,'Data E (oud)'!$D$5:$IV$6,2,FALSE),FALSE)),0,VLOOKUP(Kapitaalkosten!$A183,'Data E (oud)'!$1:$1048576,HLOOKUP(Naam&Kapitaalkosten!K$5&EofG,'Data E (oud)'!$D$5:$IV$6,2,FALSE),FALSE)),IF(ISERROR(VLOOKUP(Kapitaalkosten!$A183,'Data G'!$1:$1048576,HLOOKUP(Naam&Kapitaalkosten!K$5&EofG,'Data G'!$D$5:$IV$6,2,FALSE),FALSE)),0,VLOOKUP(Kapitaalkosten!$A183,'Data G'!$1:$1048576,HLOOKUP(Naam&Kapitaalkosten!K$5&EofG,'Data G'!$D$5:$IV$6,2,FALSE),FALSE))) -> 0 | L183: =IF(EofG="E",IF(ISERROR(VLOOKUP(Kapitaalkosten!$A183,'Data E (oud)'!$1:$1048576,HLOOKUP(Naam&Kapitaalkosten!L$5&EofG,'Data E (oud)'!$D$5:$IV$6,2,FALSE),FALSE)),0,VLOOKUP(Kapitaalkosten!$A183,'Data E (oud)'!$1:$1048576,HLOOKUP(Naam&Kapitaalkosten!L$5&EofG,'Data E (oud)'!$D$5:$IV$6,2,FALSE),FALSE)),IF(ISERROR(VLOOKUP(Kapitaalkosten!$A183,'Data G'!$1:$1048576,HLOOKUP(Naam&Kapitaalkosten!L$5&EofG,'Data G'!$D$5:$IV$6,2,FALSE),FALSE)),0,VLOOKUP(Kapitaalkosten!$A183,'Data G'!$1:$1048576,HLOOKUP(Naam&Kapitaalkosten!L$5&EofG,'Data G'!$D$5:$IV$6,2,FALSE),FALSE))) -> 0
A184: 03bwv10 | B184: bijzondere waardevermindering bij afschrijvingstermijn | C184: 10 | G184: =IF(EofG="E",IF(ISERROR(VLOOKUP(Kapitaalkosten!$A184,'Data E (oud)'!$1:$1048576,HLOOKUP(Naam&Kapitaalkosten!G$5&EofG,'Data E (oud)'!$D$5:$IV$6,2,FALSE),FALSE)),0,VLOOKUP(Kapitaalkosten!$A184,'Data E (oud)'!$1:$1048576,HLOOKUP(Naam&Kapitaalkosten!G$5&EofG,'Data E (oud)'!$D$5:$IV$6,2,FALSE),FALSE)),IF(ISERROR(VLOOKUP(Kapitaalkosten!$A184,'Data G'!$1:$1048576,HLOOKUP(Naam&Kapitaalkosten!G$5&EofG,'Data G'!$D$5:$IV$6,2,FALSE),FALSE)),0,VLOOKUP(Kapitaalkosten!$A184,'Data G'!$1:$1048576,HLOOKUP(Naam&Kapitaalkosten!G$5&EofG,'Data G'!$D$5:$IV$6,2,FALSE),FALSE))) -> 0 | H184: =IF(EofG="E",IF(ISERROR(VLOOKUP(Kapitaalkosten!$A184,'Data E (oud)'!$1:$1048576,HLOOKUP(Naam&Kapitaalkosten!H$5&EofG,'Data E (oud)'!$D$5:$IV$6,2,FALSE),FALSE)),0,VLOOKUP(Kapitaalkosten!$A184,'Data E (oud)'!$1:$1048576,HLOOKUP(Naam&Kapitaalkosten!H$5&EofG,'Data E (oud)'!$D$5:$IV$6,2,FALSE),FALSE)),IF(ISERROR(VLOOKUP(Kapitaalkosten!$A184,'Data G'!$1:$1048576,HLOOKUP(Naam&Kapitaalkosten!H$5&EofG,'Data G'!$D$5:$IV$6,2,FALSE),FALSE)),0,VLOOKUP(Kapitaalkosten!$A184,'Data G'!$1:$1048576,HLOOKUP(Naam&Kapitaalkosten!H$5&EofG,'Data G'!$D$5:$IV$6,2,FALSE),FALSE))) -> 0 | I184: =IF(EofG="E",IF(ISERROR(VLOOKUP(Kapitaalkosten!$A184,'Data E (oud)'!$1:$1048576,HLOOKUP(Naam&Kapitaalkosten!I$5&EofG,'Data E (oud)'!$D$5:$IV$6,2,FALSE),FALSE)),0,VLOOKUP(Kapitaalkosten!$A184,'Data E (oud)'!$1:$1048576,HLOOKUP(Naam&Kapitaalkosten!I$5&EofG,'Data E (oud)'!$D$5:$IV$6,2,FALSE),FALSE)),IF(ISERROR(VLOOKUP(Kapitaalkosten!$A184,'Data G'!$1:$1048576,HLOOKUP(Naam&Kapitaalkosten!I$5&EofG,'Data G'!$D$5:$IV$6,2,FALSE),FALSE)),0,VLOOKUP(Kapitaalkosten!$A184,'Data G'!$1:$1048576,HLOOKUP(Naam&Kapitaalkosten!I$5&EofG,'Data G'!$D$5:$IV$6,2,FALSE),FALSE))) -> 0 | J184: =IF(EofG="E",IF(ISERROR(VLOOKUP(Kapitaalkosten!$A184,'Data E (oud)'!$1:$1048576,HLOOKUP(Naam&Kapitaalkosten!J$5&EofG,'Data E (oud)'!$D$5:$IV$6,2,FALSE),FALSE)),0,VLOOKUP(Kapitaalkosten!$A184,'Data E (oud)'!$1:$1048576,HLOOKUP(Naam&Kapitaalkosten!J$5&EofG,'Data E (oud)'!$D$5:$IV$6,2,FALSE),FALSE)),IF(ISERROR(VLOOKUP(Kapitaalkosten!$A184,'Data G'!$1:$1048576,HLOOKUP(Naam&Kapitaalkosten!J$5&EofG,'Data G'!$D$5:$IV$6,2,FALSE),FALSE)),0,VLOOKUP(Kapitaalkosten!$A184,'Data G'!$1:$1048576,HLOOKUP(Naam&Kapitaalkosten!J$5&EofG,'Data G'!$D$5:$IV$6,2,FALSE),FALSE))) -> 0 | K184: =IF(EofG="E",IF(ISERROR(VLOOKUP(Kapitaalkosten!$A184,'Data E (oud)'!$1:$1048576,HLOOKUP(Naam&Kapitaalkosten!K$5&EofG,'Data E (oud)'!$D$5:$IV$6,2,FALSE),FALSE)),0,VLOOKUP(Kapitaalkosten!$A184,'Data E (oud)'!$1:$1048576,HLOOKUP(Naam&Kapitaalkosten!K$5&EofG,'Data E (oud)'!$D$5:$IV$6,2,FALSE),FALSE)),IF(ISERROR(VLOOKUP(Kapitaalkosten!$A184,'Data G'!$1:$1048576,HLOOKUP(Naam&Kapitaalkosten!K$5&EofG,'Data G'!$D$5:$IV$6,2,FALSE),FALSE)),0,VLOOKUP(Kapitaalkosten!$A184,'Data G'!$1:$1048576,HLOOKUP(Naam&Kapitaalkosten!K$5&EofG,'Data G'!$D$5:$IV$6,2,FALSE),FALSE))) -> 0 | L184: =IF(EofG="E",IF(ISERROR(VLOOKUP(Kapitaalkosten!$A184,'Data E (oud)'!$1:$1048576,HLOOKUP(Naam&Kapitaalkosten!L$5&EofG,'Data E (oud)'!$D$5:$IV$6,2,FALSE),FALSE)),0,VLOOKUP(Kapitaalkosten!$A184,'Data E (oud)'!$1:$1048576,HLOOKUP(Naam&Kapitaalkosten!L$5&EofG,'Data E (oud)'!$D$5:$IV$6,2,FALSE),FALSE)),IF(ISERROR(VLOOKUP(Kapitaalkosten!$A184,'Data G'!$1:$1048576,HLOOKUP(Naam&Kapitaalkosten!L$5&EofG,'Data G'!$D$5:$IV$6,2,FALSE),FALSE)),0,VLOOKUP(Kapitaalkosten!$A184,'Data G'!$1:$1048576,HLOOKUP(Naam&Kapitaalkosten!L$5&EofG,'Data G'!$D$5:$IV$6,2,FALSE),FALSE))) -> 0
A185: 03bwv5 | B185: bijzondere waardevermindering bij afschrijvingstermijn | C185: 5 | G185: =IF(EofG="E",IF(ISERROR(VLOOKUP(Kapitaalkosten!$A185,'Data E (oud)'!$1:$1048576,HLOOKUP(Naam&Kapitaalkosten!G$5&EofG,'Data E (oud)'!$D$5:$IV$6,2,FALSE),FALSE)),0,VLOOKUP(Kapitaalkosten!$A185,'Data E (oud)'!$1:$1048576,HLOOKUP(Naam&Kapitaalkosten!G$5&EofG,'Data E (oud)'!$D$5:$IV$6,2,FALSE),FALSE)),IF(ISERROR(VLOOKUP(Kapitaalkosten!$A185,'Data G'!$1:$1048576,HLOOKUP(Naam&Kapitaalkosten!G$5&EofG,'Data G'!$D$5:$IV$6,2,FALSE),FALSE)),0,VLOOKUP(Kapitaalkosten!$A185,'Data G'!$1:$1048576,HLOOKUP(Naam&Kapitaalkosten!G$5&EofG,'Data G'!$D$5:$IV$6,2,FALSE),FALSE))) -> 0 | H185: =IF(EofG="E",IF(ISERROR(VLOOKUP(Kapitaalkosten!$A185,'Data E (oud)'!$1:$1048576,HLOOKUP(Naam&Kapitaalkosten!H$5&EofG,'Data E (oud)'!$D$5:$IV$6,2,FALSE),FALSE)),0,VLOOKUP(Kapitaalkosten!$A185,'Data E (oud)'!$1:$1048576,HLOOKUP(Naam&Kapitaalkosten!H$5&EofG,'Data E (oud)'!$D$5:$IV$6,2,FALSE),FALSE)),IF(ISERROR(VLOOKUP(Kapitaalkosten!$A185,'Data G'!$1:$1048576,HLOOKUP(Naam&Kapitaalkosten!H$5&EofG,'Data G'!$D$5:$IV$6,2,FALSE),FALSE)),0,VLOOKUP(Kapitaalkosten!$A185,'Data G'!$1:$1048576,HLOOKUP(Naam&Kapitaalkosten!H$5&EofG,'Data G'!$D$5:$IV$6,2,FALSE),FALSE))) -> 0 | I185: =IF(EofG="E",IF(ISERROR(VLOOKUP(Kapitaalkosten!$A185,'Data E (oud)'!$1:$1048576,HLOOKUP(Naam&Kapitaalkosten!I$5&EofG,'Data E (oud)'!$D$5:$IV$6,2,FALSE),FALSE)),0,VLOOKUP(Kapitaalkosten!$A185,'Data E (oud)'!$1:$1048576,HLOOKUP(Naam&Kapitaalkosten!I$5&EofG,'Data E (oud)'!$D$5:$IV$6,2,FALSE),FALSE)),IF(ISERROR(VLOOKUP(Kapitaalkosten!$A185,'Data G'!$1:$1048576,HLOOKUP(Naam&Kapitaalkosten!I$5&EofG,'Data G'!$D$5:$IV$6,2,FALSE),FALSE)),0,VLOOKUP(Kapitaalkosten!$A185,'Data G'!$1:$1048576,HLOOKUP(Naam&Kapitaalkosten!I$5&EofG,'Data G'!$D$5:$IV$6,2,FALSE),FALSE))) -> 0 | J185: =IF(EofG="E",IF(ISERROR(VLOOKUP(Kapitaalkosten!$A185,'Data E (oud)'!$1:$1048576,HLOOKUP(Naam&Kapitaalkosten!J$5&EofG,'Data E (oud)'!$D$5:$IV$6,2,FALSE),FALSE)),0,VLOOKUP(Kapitaalkosten!$A185,'Data E (oud)'!$1:$1048576,HLOOKUP(Naam&Kapitaalkosten!J$5&EofG,'Data E (oud)'!$D$5:$IV$6,2,FALSE),FALSE)),IF(ISERROR(VLOOKUP(Kapitaalkosten!$A185,'Data G'!$1:$1048576,HLOOKUP(Naam&Kapitaalkosten!J$5&EofG,'Data G'!$D$5:$IV$6,2,FALSE),FALSE)),0,VLOOKUP(Kapitaalkosten!$A185,'Data G'!$1:$1048576,HLOOKUP(Naam&Kapitaalkosten!J$5&EofG,'Data G'!$D$5:$IV$6,2,FALSE),FALSE))) -> 0 | K185: =IF(EofG="E",IF(ISERROR(VLOOKUP(Kapitaalkosten!$A185,'Data E (oud)'!$1:$1048576,HLOOKUP(Naam&Kapitaalkosten!K$5&EofG,'Data E (oud)'!$D$5:$IV$6,2,FALSE),FALSE)),0,VLOOKUP(Kapitaalkosten!$A185,'Data E (oud)'!$1:$1048576,HLOOKUP(Naam&Kapitaalkosten!K$5&EofG,'Data E (oud)'!$D$5:$IV$6,2,FALSE),FALSE)),IF(ISERROR(VLOOKUP(Kapitaalkosten!$A185,'Data G'!$1:$1048576,HLOOKUP(Naam&Kapitaalkosten!K$5&EofG,'Data G'!$D$5:$IV$6,2,FALSE),FALSE)),0,VLOOKUP(Kapitaalkosten!$A185,'Data G'!$1:$1048576,HLOOKUP(Naam&Kapitaalkosten!K$5&EofG,'Data G'!$D$5:$IV$6,2,FALSE),FALSE))) -> 0 | L185: =IF(EofG="E",IF(ISERROR(VLOOKUP(Kapitaalkosten!$A185,'Data E (oud)'!$1:$1048576,HLOOKUP(Naam&Kapitaalkosten!L$5&EofG,'Data E (oud)'!$D$5:$IV$6,2,FALSE),FALSE)),0,VLOOKUP(Kapitaalkosten!$A185,'Data E (oud)'!$1:$1048576,HLOOKUP(Naam&Kapitaalkosten!L$5&EofG,'Data E (oud)'!$D$5:$IV$6,2,FALSE),FALSE)),IF(ISERROR(VLOOKUP(Kapitaalkosten!$A185,'Data G'!$1:$1048576,HLOOKUP(Naam&Kapitaalkosten!L$5&EofG,'Data G'!$D$5:$IV$6,2,FALSE),FALSE)),0,VLOOKUP(Kapitaalkosten!$A185,'Data G'!$1:$1048576,HLOOKUP(Naam&Kapitaalkosten!L$5&EofG,'Data G'!$D$5:$IV$6,2,FALSE),FALSE))) -> 0
